Workbook

Sheet Languages (hidden)
A2: English (U.S.) | B2: Spanish
A3: Description (required) | B3: Description (required)
A5: ID Code (optional)
A6: Underlying Ground Slope
A7: Ungraded Slope
A8: Final Slope
A9: Final Top Slope
A10: Lift (dump) Height
A11: Mid-Bench Length
A12: Average Flat Area Long Dimension (ripping distance)
A13: Final (Regraded) Dump Footprint
A14: Regrade Volume (1) (if calculated elsewhere)
A15: Cover Thickness Slopes
A16: Cover Thickness Flat Areas
A17: Distance from Cover Borrow
A18: Slope from Dump to Cover Borrow
A19: Slope Growth Media Thickness
A20: Flat Area Growth Media Thickness
A21: Distance from Growth Media Stockpile
A22: Slope from Dump to Stockpile

Sheet Lists (hidden)
K1: Syntax for "Groups", no space between number and letter, i.e. 11B.
A2: Data Validation Lists | D2: Equipment Fleets | H2: Materials | K2: Wage Selection | O2: Wage Classifications
D3: SlopeRegradingFleets | H3: HolePluggingMaterials | K3: Equipment Operators | L3: North | M3: South | O3: Equipment Operators | P3: North | Q3: South | T3: Toe Offset Calculator
A4: Yes/No | K4: ='Labor Rates'!A35 -> Bulldozers | P4: Group 1 | Q4: Group 1
D5: Small | H5: Cuttings | K5: ='Labor Rates'!A36 -> D6R | L5: Group 8 | M5: Group 8 | P5: Group 1A | Q5: Group 2
A6: Yes | D6: Med | H6: Cement | K6: ='Labor Rates'!A37 -> D6R w/ Winch | L6: Group 8 | M6: Group 8 | P6: Group 2 | Q6: Group 3
A7: No | D7: Large | H7: Grout | K7: ='Labor Rates'!A38 -> D7R | L7: Group 8 | M7: Group 8 | P7: Group 3 | Q7: Group 4 | T7: Current Slope (a) | V7: 2 | W7: H:1V
K8: ='Labor Rates'!A39 -> D8R | L8: Group 8 | M8: Group 8 | P8: Group 4 | Q8: Group 5 | T8: Final Slope (a') | V8: 3 | W8: H:1V
A9: CheckBox | D9: RoadRegradingFleets | H9: WellPumpTypes | K9: ='Labor Rates'!A40 -> D9R | L9: Group 8 | M9: Group 8 | P9: Group 5 | Q9: Group 6 | T9: Lift Height (h) | V9: 20
D10: optimize | K10: ='Labor Rates'!A41 -> D10R | L10: Group 8 | M10: Group 8 | P10: Group 6 | Q10: Group 7 | T10: Slope (approx) | V10: 0
A11: x | D11: Small | H11: Submersible | K11: ='Labor Rates'!A42 -> D11R | L11: Group 8 | M11: Group 8 | P11: Group 7 | Q11: Group 8
D12: Medium | H12: Line Shaft | K12: ='Labor Rates'!A43 -> Wheeled Dozers | P12: Group 8 | Q12: Group 9 | U12: A | V12: =OffsetCurrentSlope*OffsetLiftHeight -> 40
A13: Dozer Materials | D13: Large | K13: ='Labor Rates'!A44 -> 824G | L13: Group 8 | M13: Group 8 | P13: Group 9 | Q13: Group 10 | U13: B | V13: =OffsetFinalSlope*OffsetLiftHeight -> 60
A14: (select material) | K14: ='Labor Rates'!A45 -> 834G | L14: Group 8 | M14: Group 8 | P14: Group 10 | Q14: Group 11 | U14: C | V14: =0.5*(V13-OffsetA) -> 10
A15: 1.2 | D15: CoverPlacementFleets | K15: ='Labor Rates'!A46 -> 844 | L15: Group 8 | M15: Group 8 | P15: Group 10A | Q15: Group 12
A16: 1 | D16: Small Truck | K16: ='Labor Rates'!A47 -> 854G | L16: Group 8 | M16: Group 8 | P16: Group 11 | Q16: Group 13
A17: 0.8 | D17: Med Truck | K17: ='Labor Rates'!A48 -> Motor Graders | P17: Group 11A | Q17: Group 14
A18: 0.8 | D18: Large Truck | K18: ='Labor Rates'!A49 -> 120H | L18: Group 8 | M18: Group 7 | P18: Group 11B | Q18: Group 15
A19: 0.6 | D19: XLarge Truck | K19: ='Labor Rates'!A50 -> 14G/H | L19: Group 8 | M19: Group 7 | Q19: Group 16
D20: Scraper Dozer | K20: ='Labor Rates'!A51 -> 16G/H | L20: Group 8 | M20: Group 7 | Q20: Group 17
A21: Job Efficiency Correction | D21: Tandem Scraper | K21: ='Labor Rates'!A52 -> 24M | L21: Group 8 | M21: Group 7 | Q21: Group 17
K22: ='Labor Rates'!A53 -> Track Excavators | Q22: Group 18
A23: 30 min/hr | B23: =ROUND(30/60,2) -> 0.5 | D23: RippingFleets | K23: ='Labor Rates'!A54 -> 312C | L23: Group 11 | M23: Group 8 | Q23: Group 19
A24: 35 min/hr | B24: =ROUND(35/60,2) -> 0.58 | K24: ='Labor Rates'!A55 -> 320C | L24: Group 11 | M24: Group 8 | Q24: Group 20
A25: 40 min/hr | B25: =ROUND(40/60,2) -> 0.67 | D25: Small Dozer | K25: ='Labor Rates'!A56 -> 325C | L25: Group 11 | M25: Group 8 | Q25: Group 21
A26: 45 min/hr | B26: =ROUND(45/60,2) -> 0.75 | D26: Med Dozer | K26: ='Labor Rates'!A57 -> 330C | L26: Group 11 | M26: Group 8 | Q26: Group 22
A27: 50 min/hr | B27: =ROUND(50/60,2) -> 0.83 | D27: Large Dozer | K27: ='Labor Rates'!A58 -> 345B | L27: Group 11 | M27: Group 8 | Q27: Group 23
A28: 52.5 min/hr | B28: =ROUND(52.5/60,2) -> 0.88 | D28: Grader | K28: ='Labor Rates'!A59 -> 365BL | L28: Group 11 | M28: Group 10 | Q28: Group 24
A29: 55 min/hr | B29: =ROUND(55/60,2) -> 0.92 | K29: ='Labor Rates'!A60 -> 385BL | L29: Group 11 | M29: Group 10 | Q29: Group 25
A30: 60 min/hr | B30: =ROUND(60/60,2) -> 1 | D30: SlabBreakingFleets | K30: ='Labor Rates'!A61 -> Scrapers | O30: Truck Drivers | P30: North | Q30: South
K31: ='Labor Rates'!A62 -> 631G | L31: Group 8 | M31: Group 8 | P31: Dump Truck Driver < 4 yds | Q31: Group 1
A32: Dozer Operator Correction | D32: Sm Excavator | E32: =SmallExcavator -> 325C | K32: ='Labor Rates'!A63 -> 637G | L32: Group 8 | M32: Group 8 | P32: Dump Truck Driver > 4 yds < 8 yds | Q32: Group 2
D33: Med Excavator | E33: =MedExcavator -> 345B | K33: ='Labor Rates'!A64 -> Wheeled Loaders | P33: Dump Truck Driver > 3 yds < 25 yds | Q33: Group 3
A34: Excellent | B34: 1 | D34: Lg Excavator | E34: =LargeExcavator -> 385BL | K34: ='Labor Rates'!A65 -> 924G | L34: Group 10 | M34: Group 8 | P34: Dump Truck Driver > 8 yds < 18 yds | Q34: Group 4
A35: Average | B35: 0.75 | K35: ='Labor Rates'!A66 -> 928G | L35: Group 10 | M35: Group 8
A36: Poor | B36: 0.6 | D36: RoadFleets | K36: ='Labor Rates'!A67 -> 950G | L36: Group 11 | M36: Group 8
D37: Sm Excavator | K37: ='Labor Rates'!A68 -> 966G | L37: Group 11 | M37: Group 8
A38: Other Operator Correction | D38: Med Excavator | K38: ='Labor Rates'!A69 -> 972G | L38: Group 11 | M38: Group 8 | P38: Dump Truck Driver > 25 yds < 60 yds | Q38: Group 3
D39: Lg Excavator | K39: ='Labor Rates'!A70 -> 980G | L39: Group 11 | M39: Group 10 | P39: Dump Truck Driver > 60 yds < 75 yds | Q39: Group 4
A40: Excellent | B40: 1.25 | D40: Sm Dozer | K40: ='Labor Rates'!A71 -> 988G | L40: Group 11 | M40: Group 10 | P40: Dump Truck Driver > 75 yds < 100 yds
A41: Average | B41: 1 | D41: Med Dozer | K41: ='Labor Rates'!A73 -> 992G | L41: Group 11A | M41: Group 10 | P41: Dump Truck Driver > 100 yds
A42: Poor | B42: 0.75 | D42: Lg Dozer | K42: ='Labor Rates'!A74 -> 994D | L42: Group 11A | M42: Group 10 | P42: Dump Truck Driver > 100 yds < 250 yds
K43: ='Labor Rates'!A75 -> L2350 | L43: Group 11A | M43: Group 10 | P43: Dump Truck Driver > 250 yds < 350 yds
A44: Cover Materials | D44: Number of Excavators | K44: Shovels | P44: Dump Truck Driver > 350 yds
K45: PC2000 | P45: Truck Driver Transit Mix < 8 yds
A46: =INDEX(HaulMaterials,B46) -> Alluvium | B46: 2 | D46: 1 | K46: PC3000 | P46: Truck Driver Transit Mix 8 yds to 12 yds
A47: Basalt | B47: 3 | D47: 2 | K47: PC4000 | P47: Truck Driver Transit Mix > 12 yds
A48: Clay - Dry | B48: 4 | K48: PC5500 | P48: Heavy Duty Transport
A49: Granite - broken | B49: 5 | D49: BackfillFleets | K49: PC8000 | P49: Water Truck < 2,500 gallons
A50: Gravel | B50: 6 | D50: Small Truck | K50: ='Labor Rates'!A82 -> Hydraulic Hammers | P50: Water Truck > 2,500 gallons
A51: LS - broken | B51: 7 | D51: Med Truck | K51: ='Labor Rates'!A83 -> H-120 (fits 325) | P51: Truck w/ Water Trailer
A52: LS - crushed | B52: 8 | D52: Large Truck | K52: ='Labor Rates'!A84 -> H-160 (fits 345) | O52: Laborers | P52: North | Q52: South
A53: Sandstone | B53: 9 | D53: XLarge Truck | K53: ='Labor Rates'!A85 -> H-180 (fits 365/385) | P53: Group 1 | Q53: Group 1
A54: Shale | B54: 10 | K54: ='Labor Rates'!A86 -> Demolition Shears | P54: Group 1A | Q54: Group 2
A55: Stone - crushed | B55: 11 | D55: DitchExcavatorFleets | K55: ='Labor Rates'!A87 -> S340 (fits 322/325/330) | P55: Group 2 | Q55: Group 3
A56: Tailings - Coarse (dry, loose sand) | B56: 12 | K56: ='Labor Rates'!A88 -> S365 (fits 330/345) | P56: Group 3 | Q56: Group 4
A57: Tailings - Slimes (loose sand & clay) | B57: 13 | D57: Small | K57: ='Labor Rates'!A89 -> S390 (fits 365/385) | P57: Group 4 | Q57: Group 5
A58: Topsoil | B58: 14 | D58: Medium | K58: ='Labor Rates'!A90 -> Demolition Grapples | P58: Group 5 | Q58: Group 6
D59: Large | K59: ='Labor Rates'!A91 -> G315 (fits 322/325) | P59: Group 6 | Q59: Group 7
A60: Dozing Density Correction | K60: ='Labor Rates'!A92 -> G320 (fits 325/330) | P60: Group 7
D61: ProjectMaintenanceFleets | K61: ='Labor Rates'!A93 -> G330 (fits 345/365) | P61: Group 8
A62: =Productivity!B181 -> Alluvium | B62: =ROUND(2300/VLOOKUP(A62,DozingMaterialArray,2),2) -> 0.79 | K62: ='Labor Rates'!A94 -> Other Equipment | P62: Group 9
A63: =Productivity!B182 -> Basalt | B63: 0.7 | D63: Small | K63: ='Labor Rates'!A95 -> 420D 4WD Backhoe | L63: Group 10A | M63: Group 8
A64: =Productivity!B183 -> Clay - Dry | B64: 0.92 | D64: Medium | K64: ='Labor Rates'!A96 -> 428D 4WD Backhoe | L64: Group 10A | M64: Group 8
A65: =Productivity!B184 -> Granite - broken | B65: 0.82 | D65: Large | K65: ='Labor Rates'!A97 -> CS533E Vibratory Roller | L65: Group 3 | M65: Group 5
A66: =Productivity!B185 -> Gravel | B66: 0.9 | D66: Liner Types | K66: ='Labor Rates'!A98 -> CS633E Vibratory Roller | L66: Group 10 | M66: Group 12
A67: =Productivity!B186 -> LS - broken | B67: 0.88 | K67: ='Labor Rates'!A99 -> CP533E Sheepsfoot Compactor | L67: Group 2 | M67: Group 2
A68: =Productivity!B187 -> LS - crushed | B68: 0.88 | D68: None | K68: ='Labor Rates'!A100 -> CP633E Sheepsfoot Compactor
A69: =Productivity!B188 -> Sandstone | B69: 0.9 | D69: ='Misc. Unit Costs'!B186 -> 60 mil HDPE | K69: ='Labor Rates'!A101 -> Light Truck - 1.5 Ton | L69: Group 10 | M69: Group 12
A70: =Productivity!B189 -> Shale | B70: 1.1 | K70: ='Labor Rates'!A102 -> Supervisor's Truck | L70: Group 2 | M70: Group 2
A71: =Productivity!B190 -> Stone - crushed | B71: 0.85 | D71: ExplRoadFleets | K71: ='Labor Rates'!A103 -> Flatbed Truck
A72: Tailings - Coarse (dry, loose sand) | B72: 0.96 | D72: Small Excavator | K72: ='Labor Rates'!A104 -> Air Compressor + tools
A73: Tailings - Slimes (loose sand & clay) | B73: 0.85 | D73: Small Dozer | K73: ='Labor Rates'!A105 -> Welding Equipment
A74: =Productivity!B193 -> Topsoil | B74: 1.44 | D74: =IF(NOI,"","Medium Excavator") -> Medium Excavator | K74: ='Labor Rates'!A106 -> Heavy Duty Drill Rig
D75: =IF(NOI,"","Large Dozer") -> Large Dozer | K75: ='Labor Rates'!A107 -> Pump (plugging) Drill Rig | L75: Group 6 | M75: Group 6
A76: Drill Hole Types | D76: Grader | E76: not currently an option | K76: ='Labor Rates'!A108 -> Concrete Pump | L76: Group 7 | M76: Group 25
K77: ='Labor Rates'!A109 -> Gas Engine Vibrator
A78: Monitor | D78: Fence Install Crews | K78: ='Labor Rates'!A110 -> Generator 5KW
A79: Dewatering | K79: ='Labor Rates'!A111 -> HDEP Welder (pipe or liner)
A80: Production | D80: Install Barbed Wire Fence | E80: B-80A | K80: ='Labor Rates'!A112 -> 5 Ton Crane | M80: Group 6
A81: Injection | D81: Install Chain Link Fence | E81: B-80C | K81: ='Labor Rates'!A113 -> 20 Ton Crane | M81: Group 6
K82: ='Labor Rates'!A114 -> 50 Ton Crane | M82: Group 6
A83: Slab Demolition | K83: ='Labor Rates'!A115 -> 120 Ton Crane
D84: Fence Removal Crews | K84: ='Equipment Costs'!A101 -> Trucks
A85: Break & bury | K85: ='Labor Rates'!A122 -> 725
A86: Bury in place | D86: Barbed Wire Fence Removal | E86: 2 Clab | K86: ='Labor Rates'!A123 -> 730
D87: Chain Link Fence/Pipeline/Culvert Removal | E87: B-6 | K87: ='Labor Rates'!A124 -> 735
K88: ='Labor Rates'!A125 -> 740
A89: Building Types | D89: Solid Waste Types | K89: ='Labor Rates'!A126 -> 769D | L89: Dump Truck Driver > 25 yds < 60 yds | M89: Group 3
K90: ='Labor Rates'!A127 -> 773E | L90: Dump Truck Driver > 60 yds < 75 yds | M90: Group 4
A91: ='Misc. Unit Costs'!B38 -> Lg. steel | D91: Solid Waste | K91: ='Labor Rates'!A128 -> 777D | L91: Dump Truck Driver > 60 yds < 75 yds | M91: Group 4
A92: ='Misc. Unit Costs'!B39 -> Lg. concrete | D92: Construction Debris | K92: ='Labor Rates'!A129 -> 785C
A93: ='Misc. Unit Costs'!B40 -> Lg. masonry | K93: ='Labor Rates'!A131 -> 797B
A94: ='Misc. Unit Costs'!B41 -> Lg. mixed | D94: Hazardous Material Types | K94: ='Labor Rates'!A132 -> 613E (5,000 gal) Water Wagon
A95: ='Misc. Unit Costs'!B42 -> Sm. steel | K95: ='Labor Rates'!A133 -> 621E (8,000 gal) Water Wagon | L95: =P50 -> Water Truck > 2,500 gallons | M95: Group 4
A96: ='Misc. Unit Costs'!B43 -> Sm. concrete | D96: Solid | K96: ='Labor Rates'!A134 -> 777D Water Truck | L96: =P50 -> Water Truck > 2,500 gallons | M96: Group 4
A97: ='Misc. Unit Costs'!B44 -> Sm. masonry | D97: Liquid | K97: ='Labor Rates'!A135 -> 785C Water Truck
A98: ='Misc. Unit Costs'!B45 -> Sm. wood | K98: ='Labor Rates'!A136 -> Dump Truck (10-12 yd3 ) | L98: Dump Truck Driver > 8 yds < 18 yds | M98: Group 2
D99: Hydrocarbon Contam Wastes | K99: Heavy Duty Transport | L99: Heavy Duty Transport | M99: Group 5
A100: Wall Types
D101: Contaminated Soil
A102: ='Misc. Unit Costs'!B48 -> Block 4 in (100 mm) thick | D102: Other
A103: ='Misc. Unit Costs'!B49 -> Block 6 in (150 mm) thick
A104: ='Misc. Unit Costs'!B50 -> Block 8 in (200 mm) thick | D104: Waste Containment Types | K104: Laborers | L104: North | M104: South
A105: ='Misc. Unit Costs'!B51 -> Block 12 in (300 mm) thick | K105: ='Labor Rates'!A142 -> General Laborer | L105: Group 1 | M105: Group 1
A106: ='Misc. Unit Costs'!B52 -> Conc 6 in (150 mm) thick | D106: =IF(Metric,"Solid 200-L drum","Solid 55-gal drum") -> Solid 55-gal drum | K106: ='Labor Rates'!A143 -> Skilled Laborer | L106: Group 3 | M106: Group 2
A107: ='Misc. Unit Costs'!B53 -> Conc 8 in (200 mm) thick | D107: Solid Bulk | K107: ='Labor Rates'!A144 -> Driller's Helper | L107: Group 1 | M107: Group 1
A108: ='Misc. Unit Costs'!B54 -> Conc 10 in (250 mm) thick | D108: =IF(Metric,"Liquid 200-L drum","Liquid 55-gal drum") -> Liquid 55-gal drum | K108: ='Labor Rates'!A145 -> Rodmen (reinforcing concrete) | L108: Group 2 | M108: Group 2
A109: ='Misc. Unit Costs'!B55 -> Conc 12 in (300 mm) thick | D109: Liquid Bulk | K109: ='Labor Rates'!A146 -> Cement finisher
K110: ='Labor Rates'!A147 -> Carpenter
A111: Fence Types | D111: Waste Disposal Sites | K111: ='Labor Rates'!A154 -> Project Manager
K112: ='Labor Rates'!A155 -> Foreman
A113: ='Misc. Unit Costs'!B127 -> Barbed 3-strand Removal | D113: Landfill (bulk) | K113: ='Labor Rates'!A156 -> Field Geologist/Engineer
A114: ='Misc. Unit Costs'!B129 -> Barbed 5-strand Removal | D114: Dumpster | K114: ='Labor Rates'!A157 -> Field Tech/Sampler
A115: ='Misc. Unit Costs'!B130 -> Chain link 8-10 ft (2.5-3 m) Removal | K115: ='Labor Rates'!A158 -> Range Scientist
D116: Vacuum Truck Size
A117: Exploration Hole Types | K117: Maintenance Fleets
D118: Small (2,200 gal) | K118: 14G/H
A119: Rotary | D119: Large (5,000 gal) | K119: 16G/H
A120: Reverse Circ | K120: 613E (5,000 gal) Water Wagon
A121: Core | D121: Waste Categories | K121: 621E (8,000 gal) Water Wagon
A122: Rotary Pre-drill | K122: 777D Water Truck
D123: Process - Other | E123: 8230 | K123: 785C Water Truck
A124: Exploration Access/Slopes | D124: Other Facilities | E124: 8240
D125: Off Site Facilities | E125: 8250
A126: Overland | D126: Waste Mgmt & Disposal | E126: 8298 | K126: Seeding Methods
A127: Original Slope <30 | K127: Hand Broadcast
A128: Original Slope >30 | K128: Mechanical Broadcast
D129: HCS Disposal | K129: Drill
A130: Adit/Decline Plug Types | K130: Hydroseeding
D131: On site | K131: Shrub Planting - bare root
A132: Rock Backfill | D132: Off site | K132: Tree Planting - bare root
A133: Concrete Bulkhead | K133: Cactus Planting
A134: Concrete + Rock | D134: Pipe Locations
A135: Bat Gate | K135: DozerList
A136: Bat Culvert | D136: On site | K136: =K5 -> D6R
A137: Foam (adit) | D137: Off site | K137: =K7 -> D7R
A138: Foam (production) | K138: =K8 -> D8R
D139: Closure Plan Studies | K139: =K9 -> D9R
A140: Shaft Plug Types | K140: =K10 -> D10R
D141: closure plan | E141: 6083 | K141: =K11 -> D11R
A142: Backfill | D142: compliance report | E142: 7090
A143: Concrete Cap | D143: geotechnical | E143: 6083
A144: Steel Cap | B144: << Not currently used | D144: hydrological | E144: 6083
D145: geochemical | E145: 6083
A146: Powerline Types | D146: revegetation | E146: 6083
A147: ='Misc. Unit Costs'!B162 -> Single Pole | D147: water quality | E147: 6083
A148: ='Misc. Unit Costs'!B163 -> Double Pole | D148: wildlife | E148: 6083
D149: contaminant characterization | E149: 6083
A150: Wall Types | D150: legacy site survey | E150: 6083
D151: open hole survey | E151: 6083
A152: ='Material Costs'!A21 -> None | D152: land use/socioeconomics | E152: 6083
A153: ='Material Costs'!A22 -> Mix 1 | D153: other | E153: 6083
A154: ='Material Costs'!A23 -> Mix 2
A155: ='Material Costs'!A24 -> Mix 3 | D155: Closure Plan Engineering
A156: ='Material Costs'!A25 -> Mix 4
A157: ='Material Costs'!A26 -> User Mix 1 | D157: testing | E157: 6088
A158: ='Material Costs'!A27 -> User Mix 2 | D158: design | E158: 6084
A159: ='Material Costs'!A28 -> User Mix 3 | D159: materials balance | E159: 6086
A160: ='Material Costs'!A29 -> User Mix 4 | D160: other | E160: 6084
A162: ='Material Costs'!A31 -> User Mix 5 (from Seed Mix sheet) | D162: Closure Plan Permitting
A164: Pit Berm Construction | D164: application | E164: 6085
D165: fees | E165: 6085
A166: Haul & Place | D166: legal | E166: 6085
A167: Excavate | D167: public consultation | E167: 6085
A168: Dozer | D168: other | E168: 6085
A170: Drillhole Plug Methods | D170: Water Pipe Types
A172: =IF(Nevada,"","none") -> none | D172: 4in (100 mm) HDPE | E172: 1
A173: Grout + Backfill | D173: 6in (150 mm) HDPE | E173: 2
A174: Grout Only
A175: Cement Plug | D175: Drainpipe Types
A176: =IF(Nevada,"","Top Plug") -> Top Plug
D177: Drain 4in (100mm) corrugated | E177: 5
A178: IFM Project Size | D178: Drain 6in (150mm) corrugated | E178: 6
D179: Slotted 4in (100mm) PVC | E179: 3
A180: Small | D180: Slotted 6in (150mm) PVC | E180: 4
A181: Large
D182: TrenchBackfillFleets
A183: Pipe material
D184: Small Dozer
A185: HDPE | D185: Medium Dozer
A186: PVC | D186: Large Dozer
A187: Brass
A188: Cast Iron
A189: Smooth Steel
A190: Asbestos Cement | D190: Pond BackfillFleets
A192: Likelihood | D192: Small Truck
D193: Med Truck
A194: A - Almost Certain | D194: Large Truck
A195: B - Likely | D195: XLarge Truck
A196: C - Possible | D196: Small Dozer
A197: D - Unlikely | D197: Med Dozer
A198: E - Rare | D198: Large Dozer
A200: Consequence | D200: Frequency
A202: 1 - Insignificant | D202: One-time
A203: 2 - Minor | D203: Annual
A204: 3 - Moderate | D204: Other
A205: 4 - Major
A206: 5 - Catastrophic | D206: Other User Categories for Cost Summary Sheet (BLM)
A208: Evaporator Types | D208: Mob/Demob
... 491 more rows

Sheet Property Information
B3: Enter Data Below in Green and Blue Spaces
B5: STANDARDIZED RECLAMATION COST ESTIMATOR
B7: Version 1.4.1
B8: Build 017c (Revised 18 February 2025)
B9: Approved for use in Nevada, August 1, 2012
B10: COST DATA FILE INFORMATION
BB11: IsBRCE? | BC11: FALSE
B12: File Name: | C12: =MID(BE12,BD12+1,BC12-BD12-1) -> SRCE_Version_1_4_1_017c_NV_2026_rev1.xlsm | BB12: =MID(BE12,BD12+1,BC12-BD12-1) -> SRCE_Version_1_4_1_017c_NV_2026_rev1.xlsm | BC12: =FIND("]",BE12,BD12+1) -> 203 | BD12: =FIND("[",BE12) -> 161 | BE12: =BF12 -> https://doimspp-my.sharepoint.com/personal/kdepaoli_blm_gov/Documents/Home_Drive/Kenneths/BONDING LIAISON POSITION/SRCE COST UPDATES/SRCE/SRCE Cost Update 2026/[SRCE_Version_1_4_1_017c_NV_2026_rev1.xlsm]Property Information | BF12: =CELL("filename",C12) -> https://doimspp-my.sharepoint.com/personal/kdepaoli_blm_gov/Documents/Home_Drive/Kenneths/BONDING LIAISON POSITION/SRCE COST UPDATES/SRCE/SRCE Cost Update 2026/[SRCE_Version_1_4_1_017c_NV_2026_rev1.xlsm]Property Information
BC13: Metric | BD13: English
B14: Cost Data File: | C14: SRCE_Cost_Data_File_1_12_Std_2026_rev1.xlsm | BB14: Measurement Units | BC14: FALSE | BD14: TRUE
B16: Cost Data Date: | C16: 2026-08-01 | BB16: Language | BC16: English (U.S.)
B18: Cost Data Basis: | C18: User Data | F18: Data Cost Units: | G18: Imperial | BB18: NOI/POO | BC18: FALSE | BD18: FALSE | BE18: TRUE
B20: Author/Source: | C20: Nevada Division of Environmental Protection (NDEP) & NV BLM | BB20: Public/Private | BC20: FALSE | BD20: TRUE | BE20: =IF(BD20=TRUE,"Public","Private") -> Public
B22: PROJECT INFORMATION | BB22: Std Labor Cost | BC22: TRUE | BD22: FALSE | BE22: =IF(BC22=TRUE,"DAVIS BACON WAGE RATES", "MINE OPERATOR WAGE RATES") -> DAVIS BACON WAGE RATES
B24: Property/Mine Name: | F24: Property Code: | BB24: Std Equip Cost | BC24: TRUE | BD24: FALSE | BE24: =IF(BC24=TRUE,"CATERPILLAR RENTAL RATES", "MINE OPERATOR COSTS") -> CATERPILLAR RENTAL RATES
BC25: TRUE | BD25: FALSE
B26: Project Name:
B28: Date of Submittal: | E28: Average Altitude: | H28: 0 | J28: =IF(Metric,"m","ft.") -> ft. | BB28: In Nevada? | BC28: FALSE
BB29: New Data? | BC29: FALSE | BD29: did the data just get imported?
B30: Units of Measure: | BB30: Selected Region: | BC30: Northern Nevada
BB31: Zones Valid? | BC31: =IF(ProjectRegion="","",IF(OR(ISBLANK(EquipmentZone),ISBLANK(TruckDriverZone),ISBLANK(LaborerZone),EquipmentZoneRate="Invalid Zone",TruckZoneRate="Invalid Zone",LaborZoneRate="Invalid Zone"),FALSE,TRUE)) -> TRUE
B32: Language: | BB32: Region | BC32: Region Name | BD32: Regional Description
BB33: Region 1 | BC33: Northern Nevada | BD33: Churchill, Douglas, Elko, Eureka, Humboldt, Lander, Lyon, Mineral, Pershing, Storey, Washoe, and White Pine Counties
B34: Select One: | BB34: Region 2 | BC34: Southern Nevada | BD34: Clark, Esmeralda, Lincoln and Nye Counties
BB35: Region 3 | BC35: N. Nevada Notice Level | BD35: Notice Level Cost Basis for Churchill, Douglas, Elko, Esmeralda, Eureka, Humboldt, Lander, Lyon, Mineral, Pershing, Storey, Washoe, and White Pine Counties
B36: Select One: | BB36: Region 4 | BC36: S. Nevada Notice Level | BD36: Clark, Esmeralda, Lincoln and Nye Counties
BB37: Region 5
B38: Cost Estimate Type: | C38: Surety | BB38: Region 6
BB39: Region 7
B40: Cost Basis Category: | F40: =IF(ProjectRegion=""," <<< Select Cost Basis",IF(OR(ISBLANK(EquipmentZone),ISBLANK(TruckDriverZone),ISBLANK(LaborerZone),EquipmentZoneRate="Invalid Zone",TruckZoneRate="Invalid Zone",LaborZoneRate="Invalid Zone"),"Select Zone >>> ","")) ->  | BB40: Region 8
BB41: Region 9
B42: Cost Basis Description: | C42: =IF(OR(ISBLANK(ProjectRegion),ProjectRegion=""),"**** LOAD DATA FILE FROM StdRecCost MENU . . . . . . OR SELECT PROJECT REGION IF DATA ALREADY LOADED ****",VLOOKUP(BC30,RegionInformationTable,2,FALSE)) -> Churchill, Douglas, Elko, Eureka, Humboldt, Lander, Lyon, Mineral, Pershing, Storey, Washoe, and White Pine Counties | BB42: Region 10
BB43: Region 11
BB44: Region 12
BB45: Region 13
B46: Copyright© 2004-2025 | BB46: Region 14
B47: SRCE Software. All Rights Reserved | BB47: Region 15
M166: =IF(L166="None required","",IF(ISBLANK(B13),"",IF(G58="optimize",FH166,G58))) -> 

Sheet Table of Contents
B2: =IF('Property Information'!C26=0,"Enter Project Name",CONCATENATE("Project Name: ",'Property Information'!C26)) -> Enter Project Name
B3: =IF(SubmittalDate=0,"Enter Submittal Date",CONCATENATE("Project Date: ",SubmittalDate)) -> Enter Submittal Date
B4: =FileName -> SRCE_Version_1_4_1_017c_NV_2026_rev1.xlsm
B5: =IF('Property Information'!$BC$18=TRUE,"Notice",IF('Property Information'!$BD$18=TRUE,"Plan of Operations","Reclamation Plan")) -> Reclamation Plan
B7: Table of Contents
B9: Property Information
B10: Cost Summary
B11: Cost Schedule
B12: PER-LOM Detail
B13: PER-LOM Summary
B14: Cashflow Summary
B15: Exploration
B16: Exploration Roads & Pads
B17: Waste Rock Dumps
B18: Heap Leach Pads
B19: Tailings
B20: Roads
B21: Pits
B22: Quarries & Borrow Pits
B23: Underground Openings
B24: Material Hauling
B25: Foundations and Buildings
B26: Other Demo & Equipment Removal
B27: Sediment & Drainage Control
B28: Process Ponds
B29: Landfills
B30: Yards, Etc.
B31: Waste Disposal
B32: Well Abandonment
B33: Misc. Costs
B34: Monitoring
B35: Construction Management
B36: Solution Management
B37: Closure Planning
B38: General & Administration
B39: Human Resources
B40: Other User
B41: Reclamation Quantities
B42: Labor Costs
B43: Equipment Costs
B44: Material Costs
B45: Misc. Unit Costs
B46: Fleets (Crews)
B47: Productivity
B48: User Tools
B49: Seed Mixture | C49: Description
B50: User Sheet 1
B51: User Sheet 2
B52: User Sheet 3
B53: User Sheet 4
B54: User Sheet 5
B55: User Sheet 6
B56: User Sheet 7
B57: User Sheet 8
B58: User Sheet 9
B59: User Sheet 10
B60: User Sheet 11
B61: User Sheet 12
B62: User Sheet 13
B63: User Sheet 14
B64: User Sheet 15
B65: User Sheet 16
B66: User Sheet 17
B67: User Sheet 18
B68: User Sheet 19
B69: User Sheet 20

Sheet Cost Summary
A1: =IF('Property Information'!C26=0,"Enter Project Name",CONCATENATE("Project Name: ",'Property Information'!C26)) -> Enter Project Name
A2: =IF(SubmittalDate=0,"Enter Submittal Date",CONCATENATE("Project Date: ",SubmittalDate)) -> Enter Submittal Date
A3: =IF(ISBLANK('Property Information'!B7),"Invalid Model Version!",CONCATENATE("Model Version: ",'Property Information'!B7)) -> Model Version: Version 1.4.1
A4: =CONCATENATE("File Name: ",FileName) -> File Name: SRCE_Version_1_4_1_017c_NV_2026_rev1.xlsm
A5: =CONCATENATE("Data Cost File: ",DataFileName) -> Data Cost File: SRCE_Cost_Data_File_1_12_Std_2026_rev1.xlsm
A6: =CONCATENATE("Cost Basis: ",CostBasisCategory) -> Cost Basis: Northern Nevada
A9: A. Earthwork/Recontouring | D9: Labor (1) | E9: Equipment (2) | F9: Materials | G9: Total
A10: Exploration | D10: =Exploration!C15 -> 0 | E10: =Exploration!D15 -> 0 | F10: =Exploration!E15 -> 0 | G10: =ROUND(SUM(D10:F10),0) -> 0
A11: Exploration Roads & Drill Pads | D11: ='Expl. Roads & Pads'!C14 -> 0 | E11: ='Expl. Roads & Pads'!D14 -> 0 | F11: ='Expl. Roads & Pads'!E14 -> 0 | G11: =ROUND(SUM(D11:F11),0) -> 0
A12: Roads | D12: =Roads!C14 -> 0 | E12: =Roads!D14 -> 0 | F12: =Roads!E14 -> 0 | G12: 0
A13: Well Abandonment | D13: =DrillAbandonLabor -> 0 | E13: =DrillAbandonEquip -> 0 | F13: =DrillAbandMaterials -> 0 | G13: 0
A14: Pits | D14: =Pits!C11 -> 0 | E14: =Pits!D11 -> 0 | F14: =Pits!E11 -> N/A | G14: 0
A15: Quarries & Borrow Areas | D15: ='Quarries & Borrow Pits'!C16 -> 0 | E15: ='Quarries & Borrow Pits'!D16 -> 0 | F15: ='Quarries & Borrow Pits'!E16 -> 0 | G15: 0
A16: Underground Openings | D16: ='Underground Openings'!C14 -> 0 | E16: ='Underground Openings'!D14 -> 0 | F16: ='Underground Openings'!E14 -> 0 | G16: 0
A17: Process Ponds | D17: ='Process Ponds'!C14 -> 0 | E17: ='Process Ponds'!D14 -> 0 | F17: ='Process Ponds'!E14 -> 0 | G17: 0
A18: Heaps | D18: ='Heap Leach'!C16 -> 0 | E18: ='Heap Leach'!D16 -> 0 | F18: ='Heap Leach'!E16 -> 0 | G18: 0
A19: Waste Rock Dumps | D19: ='Waste Rock Dumps'!C15 -> 0 | E19: ='Waste Rock Dumps'!D15 -> 0 | F19: ='Waste Rock Dumps'!E15 -> 0 | G19: 0
A20: Landfills | D20: =Landfills!C15 -> 0 | E20: =Landfills!D15 -> 0 | F20: =Landfills!E15 -> 0 | G20: 0
A21: Tailings | D21: =Tailings!C16 -> 0 | E21: =Tailings!D16 -> 0 | F21: =Tailings!E16 -> 0 | G21: 0
A22: Foundation & Buildings Areas | D22: ='Foundations & Buildings'!C18 -> 0 | E22: ='Foundations & Buildings'!D18 -> 0 | F22: ='Foundations & Buildings'!E18 -> 0 | G22: 0
A23: Yards, Etc. | D23: ='Yards, Etc.'!C15 -> 0 | E23: ='Yards, Etc.'!D15 -> 0 | F23: ='Yards, Etc.'!E15 -> 0 | G23: 0
A24: Drainage & Sediment Control | D24: ='Sediment & Drainage Control'!C18 -> 0 | E24: ='Sediment & Drainage Control'!D18 -> 0 | F24: ='Sediment & Drainage Control'!E18 -> 0 | G24: 0
A25: Generic Material Hauling | D25: ='Haul Material'!C15 -> 0 | E25: ='Haul Material'!D15 -> 0 | F25: ='Haul Material'!E15 -> 0 | G25: 0
A26: Other User Costs (from Other User sheet) | D26: =SUMIF(OtherUserType,"A. Earthwork",OtherUserLabor) -> 0 | E26: =SUMIF(OtherUserType,"A. Earthwork",OtherUserEquip) -> 0 | F26: =SUMIF(OtherUserType,"A. Earthwork",OtherUserMaterials)+SUMIF(OtherUserType,"A. Earthwork",OtherUserCapEx) -> 0 | G26: 0
A27: Other** | G27: 0
A28: Subtotal | D28: =SUM(D10:D27) -> 0 | E28: =SUM(E10:E27) -> 0 | F28: =SUM(F10:F27) -> 0 | G28: =SUM(G10:G27) -> 0
A30: Mob/Demob if included in Other User sheet | D30: =SUMIF(OtherUserType,"Mob/Demob",OtherUserLabor) -> 0 | E30: =SUMIF(OtherUserType,"Mob/Demob",OtherUserEquip) -> 0 | F30: =SUMIF(OtherUserType,"Mob/Demob",OtherUserMaterials)+SUMIF(OtherUserType,"Mob/Demob",OtherUserCapEx) -> 0 | G30: =ROUND(SUM(D30:F30),0) -> 0
A31: Mob/Demob | G31: 0
A32: Subtotal "A" | D32: =SUM(D28:D31) -> 0 | E32: =SUM(E28:E31) -> 0 | F32: =SUM(F28:F31) -> 0 | G32: =ROUND(SUM(G28:G31),0) -> 0
A34: B. Revegetation/Stabilization | D34: Labor (1) | E34: Equipment (2) | F34: Materials | G34: Total
A35: Exploration | D35: =Exploration!C16 -> 0 | E35: =Exploration!D16 -> 0 | F35: =Exploration!E16 -> 0 | G35: =ROUND(SUM(D35:F35),0) -> 0
A36: Exploration Roads & Drill Pads | D36: ='Expl. Roads & Pads'!C15 -> 0 | E36: ='Expl. Roads & Pads'!D15 -> 0 | F36: ='Expl. Roads & Pads'!E15 -> 0 | G36: 0
A37: Roads | D37: =Roads!C15 -> 0 | E37: =Roads!D15 -> 0 | F37: =Roads!E15 -> 0 | G37: 0
A38: Well Abandonment | G38: N/A
A39: Pits | D39: =Pits!C12 -> 0 | E39: =Pits!D12 -> 0 | F39: =Pits!E12 -> 0 | G39: =ROUND(SUM(D39:F39),0) -> 0
A40: Quarries & Borrow Areas | D40: ='Quarries & Borrow Pits'!C19 -> 0 | E40: ='Quarries & Borrow Pits'!D19 -> 0 | F40: ='Quarries & Borrow Pits'!E19 -> 0 | G40: 0
A41: Underground Openings | G41: N/A
A42: Process Ponds | D42: ='Process Ponds'!C15 -> 0 | E42: ='Process Ponds'!D15 -> 0 | F42: ='Process Ponds'!E15 -> 0 | G42: =ROUND(SUM(D42:F42),0) -> 0
A43: Heaps | D43: ='Heap Leach'!C17 -> 0 | E43: ='Heap Leach'!D17 -> 0 | F43: ='Heap Leach'!E17 -> 0 | G43: 0
A44: Waste Rock Dumps | D44: ='Waste Rock Dumps'!C16 -> 0 | E44: ='Waste Rock Dumps'!D16 -> 0 | F44: ='Waste Rock Dumps'!E16 -> 0 | G44: 0
A45: Landfills | D45: =Landfills!C16 -> 0 | E45: =Landfills!D16 -> 0 | F45: =Landfills!E16 -> 0 | G45: 0
A46: Tailings | D46: =Tailings!C17 -> 0 | E46: =Tailings!D17 -> 0 | F46: =Tailings!E17 -> 0 | G46: 0
A47: Foundation & Buildings Areas | D47: ='Foundations & Buildings'!C19 -> 0 | E47: ='Foundations & Buildings'!D19 -> 0 | F47: ='Foundations & Buildings'!E19 -> 0 | G47: 0
A48: Yards, Etc. | D48: ='Yards, Etc.'!C16 -> 0 | E48: ='Yards, Etc.'!D16 -> 0 | F48: ='Yards, Etc.'!E16 -> 0 | G48: 0
A49: Drainage & Sediment Control | D49: ='Sediment & Drainage Control'!C21 -> 0 | E49: ='Sediment & Drainage Control'!D21 -> 0 | F49: ='Sediment & Drainage Control'!E21 -> 0 | G49: 0
A50: Generic Material Hauling | D50: ='Haul Material'!C16 -> 0 | E50: ='Haul Material'!D16 -> 0 | F50: ='Haul Material'!E16 -> 0 | G50: 0
A51: Other User Costs (from Other User sheet) | D51: =SUMIF(OtherUserType,"B. Revegetation",OtherUserLabor) -> 0 | E51: =SUMIF(OtherUserType,"B. Revegetation",OtherUserEquip) -> 0 | F51: =SUMIF(OtherUserType,"B. Revegetation",OtherUserMaterials)+SUMIF(OtherUserType,"B. Revegetation",OtherUserCapEx) -> 0 | G51: 0
A52: Other** | G52: 0
A53: Subtotal "B" | D53: =SUM(D35:D52) -> 0 | E53: =SUM(E35:E52) -> 0 | F53: =SUM(F35:F52) -> 0 | G53: =ROUND(SUM(G35:G52),0) -> 0
A55: C. Detoxification/Water Treatment/Disposal of Wastes** | D55: Labor (1) | E55: Equipment (2) | F55: Materials | G55: Total
A56: Process Ponds/Sludge | G56: =ROUND(SUM(D56:F56),0) -> 0
A57: Heaps | G57: 0
A58: Dumps (Waste & Landfill) | G58: 0
A59: Tailings | G59: 0
A60: Surplus Water Disposal | G60: 0
A61: Monitoring | G61: 0
A62: Miscellaneous | G62: 0
A63: Solid Waste - On Site | D63: ='Waste Disposal'!C11 -> 0 | E63: ='Waste Disposal'!D11 -> 0 | F63: ='Waste Disposal'!E11 -> N/A | G63: 0
A64: Solid Waste - Off Site | G64: =ROUND('Waste Disposal'!F12,0) -> 0
A65: Hazardous Materials | G65: =ROUND('Waste Disposal'!F13,0) -> 0
A66: Hydrocarbon Contaminated Soils | D66: ='Waste Disposal'!C14 -> 0 | E66: ='Waste Disposal'!D14 -> 0 | F66: ='Waste Disposal'!E14 -> 0 | G66: =ROUND(SUM(D66:F66),0) -> 0
A67: Pumping (from Solution Mgmt sheet) | D67: ='Solution Mgmt'!C10 -> 0 | E67: ='Solution Mgmt'!D10+'Solution Mgmt'!F10 -> 0 | F67: ='Solution Mgmt'!E10 -> N/A | G67: 0
A68: Evaporation (from Solution Mgmt sheet) | D68: ='Solution Mgmt'!C11 -> 0 | E68: ='Solution Mgmt'!D11+'Solution Mgmt'!F11 -> 0 | F68: ='Solution Mgmt'!E11 -> 0 | G68: 0
A69: Treatment (from Solution Mgmt sheet) | D69: ='Solution Mgmt'!C12 -> 0 | E69: ='Solution Mgmt'!D12+'Solution Mgmt'!F12 -> 0 | F69: ='Solution Mgmt'!E12 -> 0 | G69: 0
A70: Decontamination (from Solution Mgmt sheet) | D70: ='Solution Mgmt'!C13 -> 0 | E70: ='Solution Mgmt'!D13+'Solution Mgmt'!F13 -> 0 | F70: ='Solution Mgmt'!E13 -> 0 | G70: 0
A71: Other User Costs (from Other User sheet) | D71: =SUMIF(OtherUserType,"C. Water Management",OtherUserLabor) -> 0 | E71: =SUMIF(OtherUserType,"C. Water Management",OtherUserEquip) -> 0 | F71: =SUMIF(OtherUserType,"C. Water Management",OtherUserMaterials)+SUMIF(OtherUserType,"C. Water Management",OtherUserCapEx) -> 0 | G71: 0
A72: Other** | G72: 0
A73: Subtotal "C" | D73: =SUM(D56:D72) -> 0 | E73: =SUM(E56:E72) -> 0 | F73: =SUM(F56:F72) -> 0 | G73: =ROUND(SUM(G56:G72),0) -> 0
A75: D. Structure, Equipment and Facility Removal, and Misc. | D75: Labor (1) | E75: Equipment (2) | F75: Materials | G75: Total
A76: Foundation & Buildings Areas | D76: ='Foundations & Buildings'!C14 -> 0 | E76: ='Foundations & Buildings'!D14 -> 0 | F76: ='Foundations & Buildings'!E14 -> 0 | G76: =ROUND(SUM(D76:F76),0) -> 0
A77: Other Demolition | D77: ='Other Demo & Equip Removal'!C11 -> 0 | E77: ='Other Demo & Equip Removal'!D11 -> 0 | F77: ='Other Demo & Equip Removal'!E11 -> 0 | G77: 0
A78: Equipment Removal | D78: ='Other Demo & Equip Removal'!C12 -> 0 | E78: ='Other Demo & Equip Removal'!D12 -> 0 | F78: ='Other Demo & Equip Removal'!E12 -> 0 | G78: 0
A79: Fence Removal | D79: ='Misc. Costs'!C11 -> 0 | E79: ='Misc. Costs'!D11 -> 0 | G79: 0
A80: Fence Installation | D80: ='Misc. Costs'!C12 -> 0 | E80: ='Misc. Costs'!D12 -> 0 | F80: ='Misc. Costs'!E12 -> 0 | G80: 0
A81: Culvert Removal | D81: ='Misc. Costs'!C13 -> 0 | E81: ='Misc. Costs'!D13 -> 0 | F81: ='Misc. Costs'!E13 -> N/A | G81: 0
A82: Pipe Removal | D82: ='Misc. Costs'!C14 -> 0 | E82: ='Misc. Costs'!D14 -> 0 | F82: ='Misc. Costs'!E14 -> N/A | G82: 0
A83: Powerline Removal | D83: ='Misc. Costs'!C15 -> 0 | G83: 0
A84: Transformer Removal | D84: ='Misc. Costs'!C16 -> 0 | G84: 0
A85: Rip-rap, rock lining, gabions | D85: ='Misc. Costs'!C17 -> 0 | E85: ='Misc. Costs'!D17 -> 0 | F85: ='Misc. Costs'!E17 -> 0 | G85: 0
A86: Other Misc. Costs | D86: ='Misc. Costs'!C18 -> 0 | E86: ='Misc. Costs'!D18 -> 0 | F86: ='Misc. Costs'!E18 -> 0 | G86: 0
A87: Other User Costs (from Other User sheet) | D87: =SUMIF(OtherUserType,"D. Facility & Equipment Demo",OtherUserLabor) -> 0 | E87: =SUMIF(OtherUserType,"D. Facility & Equipment Demo",OtherUserEquip) -> 0 | F87: =SUMIF(OtherUserType,"D. Facility & Equipment Demo",OtherUserMaterials)+SUMIF(OtherUserType,"D. Facility & Equipment Demo",OtherUserCapEx) -> 0 | G87: 0
A88: Other** | G88: 0
A89: Subtotal "D" | D89: =SUM(D76:D88) -> 0 | E89: =SUM(E76:E88) -> 0 | F89: =SUM(F76:F88) -> 0 | G89: =ROUND(SUM(G76:G88),0) -> 0
A91: E. Monitoring | D91: Labor (1) | E91: Equipment (2) | F91: Materials | G91: Total
A92: Reclamation Monitoring and Maintenance | D92: =Monitoring!C14 -> 0 | E92: =Monitoring!D14 -> 0 | F92: =Monitoring!E14 -> 0 | G92: =ROUND(SUM(D92:F92),0) -> 0
A93: Ground and Surface Water Monitoring | D93: =Monitoring!C15 -> 0 | E93: =Monitoring!D15 -> 0 | F93: =Monitoring!E15 -> 0 | G93: 0
A94: Other User Costs (from Other User sheet) | D94: =SUMIF(OtherUserType,"E. Monitoring",OtherUserLabor) -> 0 | E94: =SUMIF(OtherUserType,"E. Monitoring",OtherUserEquip) -> 0 | F94: =SUMIF(OtherUserType,"E. Monitoring",OtherUserMaterials)+SUMIF(OtherUserType,"E. Monitoring",OtherUserCapEx) -> 0 | G94: 0
A95: Subtotal "E" | D95: =SUM(D92:D94) -> 0 | E95: =SUM(E92:E94) -> 0 | F95: =SUM(F92:F94) -> 0 | G95: =ROUND(SUM(G92:G94),0) -> 0
A97: F. Construction Management & Support | D97: Labor | E97: Equipment (2) | F97: Materials | G97: Total
A98: Construction Management | D98: ='Constr. Mgmt'!C11 -> 0 | E98: ='Constr. Mgmt'!D11 -> 0 | F98: ='Constr. Mgmt'!E11 -> N/A | G98: =ROUND(SUM(D98:F98),0) -> 0
A99: Construction Support | D99: ='Constr. Mgmt'!C12 -> 0 | E99: ='Constr. Mgmt'!D12 -> 0 | F99: ='Constr. Mgmt'!E12 -> 0 | G99: 0
A100: Road Maintenance | D100: ='Constr. Mgmt'!C13 -> 0 | E100: ='Constr. Mgmt'!D13 -> 0 | F100: ='Constr. Mgmt'!E13 -> 0 | G100: 0
A101: Other User Costs (from Other User sheet) | D101: =SUMIF(OtherUserType,"F. Construction Mgmt",OtherUserLabor) -> 0 | E101: =SUMIF(OtherUserType,"F. Construction Mgmt",OtherUserEquip) -> 0 | F101: =SUMIF(OtherUserType,"F. Construction Mgmt",OtherUserMaterials)+SUMIF(OtherUserType,"F. Construction Mgmt",OtherUserCapEx) -> 0 | G101: 0
A102: Other** | G102: =SUM(D102:F102) -> 0
A103: Subtotal "F" | D103: =SUM(D98:D102) -> 0 | E103: =SUM(E98:E102) -> 0 | F103: =SUM(F98:F102) -> 0 | G103: =ROUND(SUM(G98:G102),0) -> 0
A105: G. Closure Planning, G&A, Human Resources | F105: Include? | G105: Total | BI105: TRUE
A106: Closure Planning | G106: =IF(ClosurePlanningCheck, ClosurePlanTotal,"") -> 0 | BI106: TRUE
A107: General & Administration | G107: =IF(GandACheck,GandATotal,"") -> 0 | BI107: TRUE
A108: Human Resources | G108: =IF(HRCheck,HRTotal,"") -> 0
A109: Other User Costs (from Other User sheet) | D109: =SUMIF(OtherUserType,"G. Closure Planning, G&A & HR",OtherUserLabor) -> 0 | E109: =SUMIF(OtherUserType,"G. Closure Planning, G&A & HR",OtherUserEquip) -> 0 | F109: =SUMIF(OtherUserType,"G. Closure Planning, G&A & HR",OtherUserMaterials)+SUMIF(OtherUserType,"G. Closure Planning, G&A & HR",OtherUserCapEx) -> 0 | G109: =ROUND(SUM(D109:F109),0) -> 0
A110: Other** | G110: 0
A111: Subtotal "G" | D111: =SUM(D106:D110) -> 0 | E111: =SUM(E106:E110) -> 0 | F111: =SUM(F106:F110) -> 0 | G111: =ROUND(SUM(G106:G110),0) -> 0
A113: Subtotal Operational & Maintenance Costs | D113: Labor (1) | E113: Equipment (2) | F113: Materials (3) | G113: Total
A114: Subtotal A through F | D114: =D32+D53+D73+D89+D95+D103+D111 -> 0 | E114: =E32+E53+E73+E89+E95+E103+E111 -> 0 | F114: =F32+F53+F73+F89+F95+F103+F111 -> 0 | G114: =G32+G53+G73+G89+G95+G103+G111 -> 0 | BB114: Indirect Costs | BL114: Indirect Costs
BB115: 1. Engineering, Design and Construction (ED&C) Plan (7) | BG115: =(IF(NOI=TRUE,"N/A ",IF(G114<=BC129,ROUND(BC130*G114,0),IF(AND(BC129<G114,G114<=BD129),ROUND(BD130*G114,0),IF(AND(BD129<G114,G114<=BE129),ROUND(BE130*G114,0),IF(G114>BF129,ROUND(BF130*G114,0),0)))))) -> 0 | BH115: =BG115/$G$114 ->  | BI115: TRUE | BL115: Insurance (1.5% of labor costs) | BM115: =0.015*BM100 -> 0 | BP115: =BM115 -> 0
A116: ** Other Operator supplied costs - additional documentation required. | BB116: 2. Contingency (8) | BG116: =IF(NOI=TRUE,"N/A ",IF(G114<=BC132,ROUND(BC133*G114,0),IF(AND(BC132<G114,G114<=BD132),ROUND(BD133*G114,0),IF(AND(BD132<G114,G114<=BE132),ROUND(BE133*G114,0),IF(G114>BF132,ROUND(BF133*G114,0),0))))) -> 0 | BH116: =BG116/$G$114 ->  | BI116: TRUE | BL116: Bond (3% of the O&M costs) | BP116: =0.03*BP100 -> 0
BB117: 3. Insurance (9) | BD117: =ROUND(BC134*D114,0) -> 0 | BG117: =BD117 -> 0 | BH117: =BG117/D114 ->  | BI117: TRUE | BL117: Contractor Profit (10% of O&M cost) | BP117: =0.1*BP100 -> 0
BB118: 4. Performance Bond (10) | BG118: =IF(G114<=100000,"N/A ",ROUND(G114*BC135,0)) -> N/A | BH118: =BG118/$G$114 ->  | BI118: TRUE | BL118: Contract Administration (4) (See Table Below) | BP118: =BP146 -> 1058186.062
A119: =IF(AND(MineLabor=FALSE,MineEquip=FALSE),BB114,"") -> Indirect Costs | F119: Include? | G119: Total | BB119: 5. Contractor Profit (11) | BG119: =ROUND(BC136*G114,0) -> 0 | BH119: =BG119/$G$114 ->  | BI119: TRUE | BL119: Subtotal Add-On Costs | BP119: =SUM(BP115:BP118) -> 1058186.062
A120: 1. Engineering, Design and Construction (ED&C) Plan (7) | G120: =IF(EDCCheck=TRUE,BG115,"") -> 0 | BB120: 6. Contract Administration (12) | BG120: =IF(G114<=BC138,ROUND(BC139*G114,0),IF(AND(BC138<G114,G114<=BD138),ROUND(BD139*G114,0),IF(AND(BD138<G114,G114<=BE138),ROUND(BE139*G114,0),IF(G114>BF138,ROUND(BF139*G114,0),0)))) -> 0 | BH120: =BG120/$G$114 ->  | BI120: TRUE
A121: 2. Contingency (8) | G121: =IF(ContingencyCheck=TRUE,BG116,"") -> 0 | BB121: 7. Government Indirect Cost (13) | BG121: =IF(PrivateLand=TRUE,"N/A ",ROUND(BG120*BC140,0)) -> 0 | BH121: =BG121/$G$114 ->  | BI121: TRUE
A122: 3. Insurance (9) | D122: =IF(AND(MineLabor=FALSE,MineEquip=FALSE),BD117,"") -> 0 | G122: =IF(InsuranceCheck=TRUE,BG117,"") -> 0 | BB122: Subtotal Add-On Costs | BG122: =SUM(BG115:BG121) -> 0 | BH122: =BG122/$G$114 ->  | BL122: Grand Total | BP122: =BP100+BP119 -> 1058186.062
A123: 4. Performance Bond (10) | G123: =IF(BondCheck=TRUE,BG118,"") -> N/A
A124: 5. Contractor Profit (11) | G124: =IF(ProfitCheck=TRUE,BG119,"") -> 0 | BB124: Grand Total | BG124: =G114+G127 -> 0 | BL124: RECLAMATION COST ESTIMATION SUMMARY SHEET FOOTNOTES
A125: 6. Contract Administration (12) | G125: =IF(AdminCheck=TRUE,BG120,"") -> 0
A126: =IF(AND(MineLabor=FALSE,MineEquip=FALSE),BB121,"") -> 7. Government Indirect Cost (13) | G126: =IF(IndirectCheck=TRUE,BG121,"") -> 0 | BB126: Administrative Cost Rates (%) | BL126: 1. Davis-Bacon wage rates.
A127: Subtotal Add-On Costs | G127: =SUM(G120:G126) -> 0 | BC127: Cost Ranges for Indirect Cost Percentages | BL127: 2. Equipment rates from Cashman
A128: Total Indirect Costs as % of Direct Cost | G128: =IF(G127=0,"--",G127/G114) -> -- | BC128: <= | BD128: <= | BE128: <= | BF128: > | BL128: 3. Includes Laboratory Costs
BB129: 1. Engineering, Design and Construction (ED&C) Plan (7) | BC129: 1000000 | BD129: 25000000 | BF129: 25000000 | BG129: Small Plan | BL129: 4. NDEP Project Administration
A130: GRAND TOTAL | G130: =BG124 -> 0 | BB130: Variable Rate | BC130: 0.08 | BD130: 0.06 | BF130: 0.04
BC131: <= | BD131: <= | BE131: <= | BF131: >
A132: Administrative Cost Rates (%) | BB132: 2. Contingency (8) | BC132: 500000 | BD132: 5000000 | BE132: 50000000 | BF132: 50000000 | BG132: Small Plan
C133: Cost Ranges for Indirect Cost Percentages | BB133: Variable Rate | BC133: 0.1 | BD133: 0.08 | BE133: 0.06 | BF133: 0.04
C134: <= | D134: <= | E134: <= | F134: > | BB134: 3. Insurance (9) | BC134: 0.015 | BD134: of labor costs | BL134: NDEP Administrative Team | BM134: Number of Staff | BN134: % Time Engaged | BO134: Annual Salary & Fringe | BP134: Cost
A135: =BB129 -> 1. Engineering, Design and Construction (ED&C) Plan (7) | C135: =BC129 -> 1000000 | D135: =BD129 -> 25000000 | E135: =IF(ISBLANK(BE129),"",BE129) ->  | F135: =BF129 -> 25000000 | G135: =BG129 -> Small Plan | BB135: 4. Bond (10) | BC135: 0.03 | BD135: of the O&M costs if O&M costs are >$100,000 | BL135: Deputy Administrator | BM135: 1 | BN135: 0.05 | BO135: 112000 | BP135: =BM135*BN135*BO135 -> 5600
B136: =BB130 -> Variable Rate | C136: =BC130 -> 0.08 | D136: =BD130 -> 0.06 | E136: =IF(ISBLANK(BE130),"",BE130) ->  | F136: =BF130 -> 0.04 | G136: =BG130 -> 0 | BB136: 5. Contractor Profit (11) | BC136: 0.1 | BD136: of the O&M costs | BL136: Bureau Chief | BM136: 1 | BN136: 0.15 | BO136: 105000 | BP136: 15750
C137: <= | D137: <= | E137: <= | F137: > | BC137: <= | BD137: <= | BE137: <= | BF137: > | BL137: Supervising Environmental Scientist | BO137: 85000 | BP137: 0
A138: =BB132 -> 2. Contingency (8) | C138: =BC132 -> 500000 | D138: 5000000 | E138: 50000000 | F138: 50000000 | G138: Small Plan | BB138: 6. Contract Administration (12) | BC138: 1000000 | BD138: 25000000 | BF138: 25000000 | BL138: Supervisor | BM138: 1 | BN138: 0.4 | BO138: 96000 | BP138: 38400
B139: =BB133 -> Variable Rate | C139: 0.1 | D139: 0.08 | E139: 0.06 | F139: 0.04 | G139: 0 | BB139: Variable Rate | BC139: 0.1 | BD139: 0.08 | BF139: 0.06 | BL139: Staff Engineer | BM139: 2 | BN139: 1 | BO139: 60000 | BP139: 120000
A140: =BB134 -> 3. Insurance (9) | C140: =BC134 -> 0.015 | D140: of labor costs | BB140: Government Indirect Cost (13) | BC140: 0.21 | BD140: of contract administration | BL140: Environmental Scientist | BM140: 1 | BN140: 0.45 | BO140: 75000 | BP140: 33750
A141: =BB135 -> 4. Bond (10) | C141: 0.03 | D141: of the O&M costs if O&M costs are >$100,000 | BL141: Total Administration Team | BP141: =SUM(BP135:BP140) -> 213500
A142: =BB136 -> 5. Contractor Profit (11) | C142: 0.1 | D142: of the O&M costs | BB142: RECLAMATION COST ESTIMATION SUMMARY SHEET FOOTNOTES | BL142: Overhead | BN142: 0.3217 | BP142: =BP141*0.3217 -> 68682.95
C143: <= | D143: <= | E143: <= | F143: > | BB143: 1. Federal construction contracts require Davis-Bacon wage rates for contracts over $2,000. Wage rate estimates may include base pay, payroll loading, overhead and profit. To avoid double counting of any of the identified administrative costs the operator must itemize the components of their labor cost estimates or provide BLM with a signed statement, under penalty of USC 1001, that identifies what specific administrative costs are included in the quoted hourly rate. | BC143: 1. Federal construction contracts require Davis-Bacon wage rates for contracts over $2,000. Wage rate estimates may include base pay, payroll loading, overhead and profit. To avoid double counting of any of the identified administrative costs the operator must itemize the components of their labor cost estimates or provide BLM with a signed statement, under penalty of USC 1001, that identifies what specific administrative costs are included in the quoted hourly rate. | BD143: 1. Federal construction contracts require Davis-Bacon wage rates for contracts over $2,000. Wage rate estimates may include base pay, payroll loading, overhead and profit. To avoid double counting of any of the identified administrative costs the operator must itemize the components of their labor cost estimates or provide BLM with a signed statement, under penalty of USC 1001, that identifies what specific administrative costs are included in the quoted hourly rate. | BE143: 1. Federal construction contracts require Davis-Bacon wage rates for contracts over $2,000. Wage rate estimates may include base pay, payroll loading, overhead and profit. To avoid double counting of any of the identified administrative costs the operator must itemize the components of their labor cost estimates or provide BLM with a signed statement, under penalty of USC 1001, that identifies what specific administrative costs are included in the quoted hourly rate. | BF143: 1. Federal construction contracts require Davis-Bacon wage rates for contracts over $2,000. Wage rate estimates may include base pay, payroll loading, overhead and profit. To avoid double counting of any of the identified administrative costs the operator must itemize the components of their labor cost estimates or provide BLM with a signed statement, under penalty of USC 1001, that identifies what specific administrative costs are included in the quoted hourly rate. | BG143: 1. Federal construction contracts require Davis-Bacon wage rates for contracts over $2,000. Wage rate estimates may include base pay, payroll loading, overhead and profit. To avoid double counting of any of the identified administrative costs the operator must itemize the components of their labor cost estimates or provide BLM with a signed statement, under penalty of USC 1001, that identifies what specific administrative costs are included in the quoted hourly rate. | BL143: Total Annual Administrative Team Costs | BP143: =BP141+BP142 -> 282182.95
A144: =BB138 -> 6. Contract Administration (12) | C144: =BC138 -> 1000000 | D144: 25000000 | E144: =IF(ISBLANK(BE138),"",BE138) ->  | F144: =BF138 -> 25000000 | G144: =IF(ISBLANK(BG138),"",BG138) ->  | BB144: 2. The reclamation cost estimate must include the estimated plugging cost of at least one drill hole for each active drill rig in the project area. Where the submitted Notice or approved Plan of Operations calls for drill holes to be plugged, but doesn’t specifically require the drill holes be plugged before the drill rig has been moved from the drill pad, the reclamation cost estimate must include the plugging cost for those drill holes. For all drill holes and wells scheduled to be left open, the estimated plugging cost must be included in the reclamation cost estimate. Where the approved Plan of Operations proposes immediate mining through an area where the drilling is to occur, and the cost of the post-mining reclamation is included in the reclamation cost estimate, the cost estimate does not need to include the plugging costs for those drill holes. | BC144: 2. The reclamation cost estimate must include the estimated plugging cost of at least one drill hole for each active drill rig in the project area. Where the submitted Notice or approved Plan of Operations calls for drill holes to be plugged, but doesn’t specifically require the drill holes be plugged before the drill rig has been moved from the drill pad, the reclamation cost estimate must include the plugging cost for those drill holes. For all drill holes and wells scheduled to be left open, the estimated plugging cost must be included in the reclamation cost estimate. Where the approved Plan of Operations proposes immediate mining through an area where the drilling is to occur, and the cost of the post-mining reclamation is included in the reclamation cost estimate, the cost estimate does not need to include the plugging costs for those drill holes. | BD144: 2. The reclamation cost estimate must include the estimated plugging cost of at least one drill hole for each active drill rig in the project area. Where the submitted Notice or approved Plan of Operations calls for drill holes to be plugged, but doesn’t specifically require the drill holes be plugged before the drill rig has been moved from the drill pad, the reclamation cost estimate must include the plugging cost for those drill holes. For all drill holes and wells scheduled to be left open, the estimated plugging cost must be included in the reclamation cost estimate. Where the approved Plan of Operations proposes immediate mining through an area where the drilling is to occur, and the cost of the post-mining reclamation is included in the reclamation cost estimate, the cost estimate does not need to include the plugging costs for those drill holes. | BE144: 2. The reclamation cost estimate must include the estimated plugging cost of at least one drill hole for each active drill rig in the project area. Where the submitted Notice or approved Plan of Operations calls for drill holes to be plugged, but doesn’t specifically require the drill holes be plugged before the drill rig has been moved from the drill pad, the reclamation cost estimate must include the plugging cost for those drill holes. For all drill holes and wells scheduled to be left open, the estimated plugging cost must be included in the reclamation cost estimate. Where the approved Plan of Operations proposes immediate mining through an area where the drilling is to occur, and the cost of the post-mining reclamation is included in the reclamation cost estimate, the cost estimate does not need to include the plugging costs for those drill holes. | BF144: 2. The reclamation cost estimate must include the estimated plugging cost of at least one drill hole for each active drill rig in the project area. Where the submitted Notice or approved Plan of Operations calls for drill holes to be plugged, but doesn’t specifically require the drill holes be plugged before the drill rig has been moved from the drill pad, the reclamation cost estimate must include the plugging cost for those drill holes. For all drill holes and wells scheduled to be left open, the estimated plugging cost must be included in the reclamation cost estimate. Where the approved Plan of Operations proposes immediate mining through an area where the drilling is to occur, and the cost of the post-mining reclamation is included in the reclamation cost estimate, the cost estimate does not need to include the plugging costs for those drill holes. | BG144: 2. The reclamation cost estimate must include the estimated plugging cost of at least one drill hole for each active drill rig in the project area. Where the submitted Notice or approved Plan of Operations calls for drill holes to be plugged, but doesn’t specifically require the drill holes be plugged before the drill rig has been moved from the drill pad, the reclamation cost estimate must include the plugging cost for those drill holes. For all drill holes and wells scheduled to be left open, the estimated plugging cost must be included in the reclamation cost estimate. Where the approved Plan of Operations proposes immediate mining through an area where the drilling is to occur, and the cost of the post-mining reclamation is included in the reclamation cost estimate, the cost estimate does not need to include the plugging costs for those drill holes. | BL144: Total Life of Project for Earthworks and Demolition | BN144: 3 | BO144: years | BP144: =3*BP143 -> 846548.85
B145: =BB139 -> Variable Rate | C145: =BC139 -> 0.1 | D145: 0.08 | E145: =IF(ISBLANK(BE139),"",BE139) ->  | F145: =BF139 -> 0.06 | G145: =IF(ISBLANK(BG139),"",BG139) ->  | BB145: 3. Miscellaneous items should be itemized on accompanying worksheets. | BC145: 3. Miscellaneous items should be itemized on accompanying worksheets. | BD145: 3. Miscellaneous items should be itemized on accompanying worksheets. | BE145: 3. Miscellaneous items should be itemized on accompanying worksheets. | BF145: 3. Miscellaneous items should be itemized on accompanying worksheets. | BG145: 3. Miscellaneous items should be itemized on accompanying worksheets. | BL145: Extended Monitoring Period (5 years @ 15%) | BN145: 5 | BO145: years | BP145: =0.15*BN145*BP143 -> 211637.2125
A146: =BB140 -> Government Indirect Cost (13) | C146: =BC140 -> 0.21 | D146: of contract administration | BB146: 4. Fluid management should be calculated only when mineral processing activities are involved. Fluid management represents the costs of maintaining proper fluid management to prevent overflow of solution ponds through premature cessation or abandonment of operations. Calculate a minimum six month direct cost estimate which includes power, supplies, equipment, labor and maintenance. | BC146: 4. Fluid management should be calculated only when mineral processing activities are involved. Fluid management represents the costs of maintaining proper fluid management to prevent overflow of solution ponds through premature cessation or abandonment of operations. Calculate a minimum six month direct cost estimate which includes power, supplies, equipment, labor and maintenance. | BD146: 4. Fluid management should be calculated only when mineral processing activities are involved. Fluid management represents the costs of maintaining proper fluid management to prevent overflow of solution ponds through premature cessation or abandonment of operations. Calculate a minimum six month direct cost estimate which includes power, supplies, equipment, labor and maintenance. | BE146: 4. Fluid management should be calculated only when mineral processing activities are involved. Fluid management represents the costs of maintaining proper fluid management to prevent overflow of solution ponds through premature cessation or abandonment of operations. Calculate a minimum six month direct cost estimate which includes power, supplies, equipment, labor and maintenance. | BF146: 4. Fluid management should be calculated only when mineral processing activities are involved. Fluid management represents the costs of maintaining proper fluid management to prevent overflow of solution ponds through premature cessation or abandonment of operations. Calculate a minimum six month direct cost estimate which includes power, supplies, equipment, labor and maintenance. | BG146: 4. Fluid management should be calculated only when mineral processing activities are involved. Fluid management represents the costs of maintaining proper fluid management to prevent overflow of solution ponds through premature cessation or abandonment of operations. Calculate a minimum six month direct cost estimate which includes power, supplies, equipment, labor and maintenance. | BP146: =BP144+BP145 -> 1058186.062
BB147: 5. Handling of hazardous materials includes the cost of decontaminating, neutralizing, disposing, treating and/or isolating all hazardous materials used, produced, or stored on the site. | BC147: 5. Handling of hazardous materials includes the cost of decontaminating, neutralizing, disposing, treating and/or isolating all hazardous materials used, produced, or stored on the site. | BD147: 5. Handling of hazardous materials includes the cost of decontaminating, neutralizing, disposing, treating and/or isolating all hazardous materials used, produced, or stored on the site. | BE147: 5. Handling of hazardous materials includes the cost of decontaminating, neutralizing, disposing, treating and/or isolating all hazardous materials used, produced, or stored on the site. | BF147: 5. Handling of hazardous materials includes the cost of decontaminating, neutralizing, disposing, treating and/or isolating all hazardous materials used, produced, or stored on the site. | BG147: 5. Handling of hazardous materials includes the cost of decontaminating, neutralizing, disposing, treating and/or isolating all hazardous materials used, produced, or stored on the site. | BL147: Source: NDEP
A148: =IF(AND(MineLabor=FALSE,MineEquip=FALSE),BB142,"") -> RECLAMATION COST ESTIMATION SUMMARY SHEET FOOTNOTES | C148: =IF(AND(MineLabor=FALSE,MineEquip=FALSE),BC142,"") -> 0 | D148: 0 | E148: 0 | F148: 0 | BB148: 6. Any mitigation measures required in the Plan of Operations must be included in the reclamation cost estimate. Mitigation may include measures to avoid, minimize, rectify and reduce or eliminate the impact, or compensate for the impact. | BC148: 6. Any mitigation measures required in the Plan of Operations must be included in the reclamation cost estimate. Mitigation may include measures to avoid, minimize, rectify and reduce or eliminate the impact, or compensate for the impact. | BD148: 6. Any mitigation measures required in the Plan of Operations must be included in the reclamation cost estimate. Mitigation may include measures to avoid, minimize, rectify and reduce or eliminate the impact, or compensate for the impact. | BE148: 6. Any mitigation measures required in the Plan of Operations must be included in the reclamation cost estimate. Mitigation may include measures to avoid, minimize, rectify and reduce or eliminate the impact, or compensate for the impact. | BF148: 6. Any mitigation measures required in the Plan of Operations must be included in the reclamation cost estimate. Mitigation may include measures to avoid, minimize, rectify and reduce or eliminate the impact, or compensate for the impact. | BG148: 6. Any mitigation measures required in the Plan of Operations must be included in the reclamation cost estimate. Mitigation may include measures to avoid, minimize, rectify and reduce or eliminate the impact, or compensate for the impact. | BL148: Staff Engineer III, RPE - $89,000
A149: =IF(BB143="","",BB143) -> 1. Federal construction contracts require Davis-Bacon wage rates for contracts over $2,000. Wage rate estimates may include base pay, payroll loading, overhead and profit. To avoid double counting of any of the identified administrative costs the operator must itemize the components of their labor cost estimates or provide BLM with a signed statement, under penalty of USC 1001, that identifies what specific administrative costs are included in the quoted hourly rate. | C149: 1. Federal construction contracts require Davis-Bacon wage rates for contracts over $2,000. Wage rate estimates may include base pay, payroll loading, overhead and profit. To avoid double counting of any of the identified administrative costs the operator must itemize the components of their labor cost estimates or provide BLM with a signed statement, under penalty of USC 1001, that identifies what specific administrative costs are included in the quoted hourly rate. | D149: 1. Federal construction contracts require Davis-Bacon wage rates for contracts over $2,000. Wage rate estimates may include base pay, payroll loading, overhead and profit. To avoid double counting of any of the identified administrative costs the operator must itemize the components of their labor cost estimates or provide BLM with a signed statement, under penalty of USC 1001, that identifies what specific administrative costs are included in the quoted hourly rate. | E149: 1. Federal construction contracts require Davis-Bacon wage rates for contracts over $2,000. Wage rate estimates may include base pay, payroll loading, overhead and profit. To avoid double counting of any of the identified administrative costs the operator must itemize the components of their labor cost estimates or provide BLM with a signed statement, under penalty of USC 1001, that identifies what specific administrative costs are included in the quoted hourly rate. | F149: 1. Federal construction contracts require Davis-Bacon wage rates for contracts over $2,000. Wage rate estimates may include base pay, payroll loading, overhead and profit. To avoid double counting of any of the identified administrative costs the operator must itemize the components of their labor cost estimates or provide BLM with a signed statement, under penalty of USC 1001, that identifies what specific administrative costs are included in the quoted hourly rate. | BB149: 7. Engineering, design and construction (ED&C) plans are often necessary to provide details on the reclamation needed to contract for the required work. To estimate the cost to develop an ED&C plan use 4-8% of the O&M cost. Calculate the ED&C cost as a percentage of the O&M cost as follows: up to and including $1 million, use 8%; over $1 million to $25 million, use 6%; and over $25 million, use 4%. Inclusion of a line item for the development of an ED&C plan may not be necessary for small operations, such as notice-level exploration. With small, uncomplicated reclamation efforts contracting may be able to proceed without developing an ED&C plan. [ED&C is automatically eliminated if "Notice" is selected on the Property Information Sheet] | BC149: 7. Engineering, design and construction (ED&C) plans are often necessary to provide details on the reclamation needed to contract for the required work. To estimate the cost to develop an ED&C plan use 4-8% of the O&M cost. Calculate the ED&C cost as a percentage of the O&M cost as follows: up to and including $1 million, use 8%; over $1 million to $25 million, use 6%; and over $25 million, use 4%. Inclusion of a line item for the development of an ED&C plan may not be necessary for small operations, such as notice-level exploration. With small, uncomplicated reclamation efforts contracting may be able to proceed without developing an ED&C plan. [ED&C is automatically eliminated if "Notice" is selected on the Property Information Sheet] | BD149: 7. Engineering, design and construction (ED&C) plans are often necessary to provide details on the reclamation needed to contract for the required work. To estimate the cost to develop an ED&C plan use 4-8% of the O&M cost. Calculate the ED&C cost as a percentage of the O&M cost as follows: up to and including $1 million, use 8%; over $1 million to $25 million, use 6%; and over $25 million, use 4%. Inclusion of a line item for the development of an ED&C plan may not be necessary for small operations, such as notice-level exploration. With small, uncomplicated reclamation efforts contracting may be able to proceed without developing an ED&C plan. [ED&C is automatically eliminated if "Notice" is selected on the Property Information Sheet] | BE149: 7. Engineering, design and construction (ED&C) plans are often necessary to provide details on the reclamation needed to contract for the required work. To estimate the cost to develop an ED&C plan use 4-8% of the O&M cost. Calculate the ED&C cost as a percentage of the O&M cost as follows: up to and including $1 million, use 8%; over $1 million to $25 million, use 6%; and over $25 million, use 4%. Inclusion of a line item for the development of an ED&C plan may not be necessary for small operations, such as notice-level exploration. With small, uncomplicated reclamation efforts contracting may be able to proceed without developing an ED&C plan. [ED&C is automatically eliminated if "Notice" is selected on the Property Information Sheet] | BF149: 7. Engineering, design and construction (ED&C) plans are often necessary to provide details on the reclamation needed to contract for the required work. To estimate the cost to develop an ED&C plan use 4-8% of the O&M cost. Calculate the ED&C cost as a percentage of the O&M cost as follows: up to and including $1 million, use 8%; over $1 million to $25 million, use 6%; and over $25 million, use 4%. Inclusion of a line item for the development of an ED&C plan may not be necessary for small operations, such as notice-level exploration. With small, uncomplicated reclamation efforts contracting may be able to proceed without developing an ED&C plan. [ED&C is automatically eliminated if "Notice" is selected on the Property Information Sheet] | BG149: 7. Engineering, design and construction (ED&C) plans are often necessary to provide details on the reclamation needed to contract for the required work. To estimate the cost to develop an ED&C plan use 4-8% of the O&M cost. Calculate the ED&C cost as a percentage of the O&M cost as follows: up to and including $1 million, use 8%; over $1 million to $25 million, use 6%; and over $25 million, use 4%. Inclusion of a line item for the development of an ED&C plan may not be necessary for small operations, such as notice-level exploration. With small, uncomplicated reclamation efforts contracting may be able to proceed without developing an ED&C plan. [ED&C is automatically eliminated if "Notice" is selected on the Property Information Sheet] | BL149: Environmental Scientist III - $75,000
A150: =IF(BB144="","",BB144) -> 2. The reclamation cost estimate must include the estimated plugging cost of at least one drill hole for each active drill rig in the project area. Where the submitted Notice or approved Plan of Operations calls for drill holes to be plugged, but doesn’t specifically require the drill holes be plugged before the drill rig has been moved from the drill pad, the reclamation cost estimate must include the plugging cost for those drill holes. For all drill holes and wells scheduled to be left open, the estimated plugging cost must be included in the reclamation cost estimate. Where the approved Plan of Operations proposes immediate mining through an area where the drilling is to occur, and the cost of the post-mining reclamation is included in the reclamation cost estimate, the cost estimate does not need to include the plugging costs for those drill holes. | C150: =IF(AND(MineLabor=FALSE,MineEquip=FALSE),BC144,"") -> 2. The reclamation cost estimate must include the estimated plugging cost of at least one drill hole for each active drill rig in the project area. Where the submitted Notice or approved Plan of Operations calls for drill holes to be plugged, but doesn’t specifically require the drill holes be plugged before the drill rig has been moved from the drill pad, the reclamation cost estimate must include the plugging cost for those drill holes. For all drill holes and wells scheduled to be left open, the estimated plugging cost must be included in the reclamation cost estimate. Where the approved Plan of Operations proposes immediate mining through an area where the drilling is to occur, and the cost of the post-mining reclamation is included in the reclamation cost estimate, the cost estimate does not need to include the plugging costs for those drill holes. | D150: =IF(AND(MineLabor=FALSE,MineEquip=FALSE),BD144,"") -> 2. The reclamation cost estimate must include the estimated plugging cost of at least one drill hole for each active drill rig in the project area. Where the submitted Notice or approved Plan of Operations calls for drill holes to be plugged, but doesn’t specifically require the drill holes be plugged before the drill rig has been moved from the drill pad, the reclamation cost estimate must include the plugging cost for those drill holes. For all drill holes and wells scheduled to be left open, the estimated plugging cost must be included in the reclamation cost estimate. Where the approved Plan of Operations proposes immediate mining through an area where the drilling is to occur, and the cost of the post-mining reclamation is included in the reclamation cost estimate, the cost estimate does not need to include the plugging costs for those drill holes. | E150: =IF(AND(MineLabor=FALSE,MineEquip=FALSE),BE144,"") -> 2. The reclamation cost estimate must include the estimated plugging cost of at least one drill hole for each active drill rig in the project area. Where the submitted Notice or approved Plan of Operations calls for drill holes to be plugged, but doesn’t specifically require the drill holes be plugged before the drill rig has been moved from the drill pad, the reclamation cost estimate must include the plugging cost for those drill holes. For all drill holes and wells scheduled to be left open, the estimated plugging cost must be included in the reclamation cost estimate. Where the approved Plan of Operations proposes immediate mining through an area where the drilling is to occur, and the cost of the post-mining reclamation is included in the reclamation cost estimate, the cost estimate does not need to include the plugging costs for those drill holes. | F150: =IF(AND(MineLabor=FALSE,MineEquip=FALSE),BF144,"") -> 2. The reclamation cost estimate must include the estimated plugging cost of at least one drill hole for each active drill rig in the project area. Where the submitted Notice or approved Plan of Operations calls for drill holes to be plugged, but doesn’t specifically require the drill holes be plugged before the drill rig has been moved from the drill pad, the reclamation cost estimate must include the plugging cost for those drill holes. For all drill holes and wells scheduled to be left open, the estimated plugging cost must be included in the reclamation cost estimate. Where the approved Plan of Operations proposes immediate mining through an area where the drilling is to occur, and the cost of the post-mining reclamation is included in the reclamation cost estimate, the cost estimate does not need to include the plugging costs for those drill holes. | BB150: 8. A contingency cost is included in the reclamation cost estimation to cover unforeseen cost elements. Calculate the contingency cost as a percentage of the O&M cost as follows: up to and including $500,000, use 10%; over $500,000 to $5 million, use 8%; over $5 million to $50 million, use 6%; and greater than $50 million, use 4%. As with the ED&C cost, inclusion of a contingency cost may not be necessary for small operations, such as notice-level exploration. | BC150: 8. A contingency cost is included in the reclamation cost estimation to cover unforeseen cost elements. Calculate the contingency cost as a percentage of the O&M cost as follows: up to and including $500,000, use 10%; over $500,000 to $5 million, use 8%; over $5 million to $50 million, use 6%; and greater than $50 million, use 4%. As with the ED&C cost, inclusion of a contingency cost may not be necessary for small operations, such as notice-level exploration. | BD150: 8. A contingency cost is included in the reclamation cost estimation to cover unforeseen cost elements. Calculate the contingency cost as a percentage of the O&M cost as follows: up to and including $500,000, use 10%; over $500,000 to $5 million, use 8%; over $5 million to $50 million, use 6%; and greater than $50 million, use 4%. As with the ED&C cost, inclusion of a contingency cost may not be necessary for small operations, such as notice-level exploration. | BE150: 8. A contingency cost is included in the reclamation cost estimation to cover unforeseen cost elements. Calculate the contingency cost as a percentage of the O&M cost as follows: up to and including $500,000, use 10%; over $500,000 to $5 million, use 8%; over $5 million to $50 million, use 6%; and greater than $50 million, use 4%. As with the ED&C cost, inclusion of a contingency cost may not be necessary for small operations, such as notice-level exploration. | BF150: 8. A contingency cost is included in the reclamation cost estimation to cover unforeseen cost elements. Calculate the contingency cost as a percentage of the O&M cost as follows: up to and including $500,000, use 10%; over $500,000 to $5 million, use 8%; over $5 million to $50 million, use 6%; and greater than $50 million, use 4%. As with the ED&C cost, inclusion of a contingency cost may not be necessary for small operations, such as notice-level exploration. | BG150: 8. A contingency cost is included in the reclamation cost estimation to cover unforeseen cost elements. Calculate the contingency cost as a percentage of the O&M cost as follows: up to and including $500,000, use 10%; over $500,000 to $5 million, use 8%; over $5 million to $50 million, use 6%; and greater than $50 million, use 4%. As with the ED&C cost, inclusion of a contingency cost may not be necessary for small operations, such as notice-level exploration. | BL150: Supervisor IV, RPE - $96,000
A151: 3. Miscellaneous items should be itemized on accompanying worksheets. | C151: 3. Miscellaneous items should be itemized on accompanying worksheets. | D151: 3. Miscellaneous items should be itemized on accompanying worksheets. | E151: 3. Miscellaneous items should be itemized on accompanying worksheets. | F151: 3. Miscellaneous items should be itemized on accompanying worksheets. | BB151: 9. Insurance premiums are calculated at 1.5% of the total labor costs. Enter the premium amount if liability insurance is not included in the itemized unit costs. | BC151: 9. Insurance premiums are calculated at 1.5% of the total labor costs. Enter the premium amount if liability insurance is not included in the itemized unit costs. | BD151: 9. Insurance premiums are calculated at 1.5% of the total labor costs. Enter the premium amount if liability insurance is not included in the itemized unit costs. | BE151: 9. Insurance premiums are calculated at 1.5% of the total labor costs. Enter the premium amount if liability insurance is not included in the itemized unit costs. | BF151: 9. Insurance premiums are calculated at 1.5% of the total labor costs. Enter the premium amount if liability insurance is not included in the itemized unit costs. | BG151: 9. Insurance premiums are calculated at 1.5% of the total labor costs. Enter the premium amount if liability insurance is not included in the itemized unit costs. | BL151: Environmental Scientist IV (Supervisor) - $85,000
A152: 4. Fluid management should be calculated only when mineral processing activities are involved. Fluid management represents the costs of maintaining proper fluid management to prevent overflow of solution ponds through premature cessation or abandonment of operations. Calculate a minimum six month direct cost estimate which includes power, supplies, equipment, labor and maintenance. | C152: 4. Fluid management should be calculated only when mineral processing activities are involved. Fluid management represents the costs of maintaining proper fluid management to prevent overflow of solution ponds through premature cessation or abandonment of operations. Calculate a minimum six month direct cost estimate which includes power, supplies, equipment, labor and maintenance. | D152: 4. Fluid management should be calculated only when mineral processing activities are involved. Fluid management represents the costs of maintaining proper fluid management to prevent overflow of solution ponds through premature cessation or abandonment of operations. Calculate a minimum six month direct cost estimate which includes power, supplies, equipment, labor and maintenance. | E152: 4. Fluid management should be calculated only when mineral processing activities are involved. Fluid management represents the costs of maintaining proper fluid management to prevent overflow of solution ponds through premature cessation or abandonment of operations. Calculate a minimum six month direct cost estimate which includes power, supplies, equipment, labor and maintenance. | F152: 4. Fluid management should be calculated only when mineral processing activities are involved. Fluid management represents the costs of maintaining proper fluid management to prevent overflow of solution ponds through premature cessation or abandonment of operations. Calculate a minimum six month direct cost estimate which includes power, supplies, equipment, labor and maintenance. | BB152: 10. Federal construction contracts exceeding $100,000 require both a performance and a payment bond (Miller Act, 40 USC 270et seq.). Each bond premium is figured at 1.5% of the O&M cost. Enter the sum of both premium costs on this line. | BC152: 10. Federal construction contracts exceeding $100,000 require both a performance and a payment bond (Miller Act, 40 USC 270et seq.). Each bond premium is figured at 1.5% of the O&M cost. Enter the sum of both premium costs on this line. | BD152: 10. Federal construction contracts exceeding $100,000 require both a performance and a payment bond (Miller Act, 40 USC 270et seq.). Each bond premium is figured at 1.5% of the O&M cost. Enter the sum of both premium costs on this line. | BE152: 10. Federal construction contracts exceeding $100,000 require both a performance and a payment bond (Miller Act, 40 USC 270et seq.). Each bond premium is figured at 1.5% of the O&M cost. Enter the sum of both premium costs on this line. | BF152: 10. Federal construction contracts exceeding $100,000 require both a performance and a payment bond (Miller Act, 40 USC 270et seq.). Each bond premium is figured at 1.5% of the O&M cost. Enter the sum of both premium costs on this line. | BG152: 10. Federal construction contracts exceeding $100,000 require both a performance and a payment bond (Miller Act, 40 USC 270et seq.). Each bond premium is figured at 1.5% of the O&M cost. Enter the sum of both premium costs on this line. | BL152: Bureau Chief - $105,000
A153: 5. Handling of hazardous materials includes the cost of decontaminating, neutralizing, disposing, treating and/or isolating all hazardous materials used, produced, or stored on the site. | C153: 5. Handling of hazardous materials includes the cost of decontaminating, neutralizing, disposing, treating and/or isolating all hazardous materials used, produced, or stored on the site. | D153: 5. Handling of hazardous materials includes the cost of decontaminating, neutralizing, disposing, treating and/or isolating all hazardous materials used, produced, or stored on the site. | E153: 5. Handling of hazardous materials includes the cost of decontaminating, neutralizing, disposing, treating and/or isolating all hazardous materials used, produced, or stored on the site. | F153: 5. Handling of hazardous materials includes the cost of decontaminating, neutralizing, disposing, treating and/or isolating all hazardous materials used, produced, or stored on the site. | BB153: 11. For Federal construction contracts, use 10% of estimated O&M cost for the contractor’s profit. | BC153: 11. For Federal construction contracts, use 10% of estimated O&M cost for the contractor’s profit. | BD153: 11. For Federal construction contracts, use 10% of estimated O&M cost for the contractor’s profit. | BE153: 11. For Federal construction contracts, use 10% of estimated O&M cost for the contractor’s profit. | BF153: 11. For Federal construction contracts, use 10% of estimated O&M cost for the contractor’s profit. | BG153: 11. For Federal construction contracts, use 10% of estimated O&M cost for the contractor’s profit. | BL153: Deputy Administrator - $112,000
A154: 6. Any mitigation measures required in the Plan of Operations must be included in the reclamation cost estimate. Mitigation may include measures to avoid, minimize, rectify and reduce or eliminate the impact, or compensate for the impact. | C154: 6. Any mitigation measures required in the Plan of Operations must be included in the reclamation cost estimate. Mitigation may include measures to avoid, minimize, rectify and reduce or eliminate the impact, or compensate for the impact. | D154: 6. Any mitigation measures required in the Plan of Operations must be included in the reclamation cost estimate. Mitigation may include measures to avoid, minimize, rectify and reduce or eliminate the impact, or compensate for the impact. | E154: 6. Any mitigation measures required in the Plan of Operations must be included in the reclamation cost estimate. Mitigation may include measures to avoid, minimize, rectify and reduce or eliminate the impact, or compensate for the impact. | F154: 6. Any mitigation measures required in the Plan of Operations must be included in the reclamation cost estimate. Mitigation may include measures to avoid, minimize, rectify and reduce or eliminate the impact, or compensate for the impact. | BB154: 12. To estimate the contract administration cost, use 6 to 10% of the operational and maintenance (O&M) cost. Calculate the contract administration cost as a percentage of the O&M cost as follows: up to and including $1 million, use 10%; over $1 million to $25 million, use 8%; and greater than $25 million use 6%. | BC154: 12. To estimate the contract administration cost, use 6 to 10% of the operational and maintenance (O&M) cost. Calculate the contract administration cost as a percentage of the O&M cost as follows: up to and including $1 million, use 10%; over $1 million to $25 million, use 8%; and greater than $25 million use 6%. | BD154: 12. To estimate the contract administration cost, use 6 to 10% of the operational and maintenance (O&M) cost. Calculate the contract administration cost as a percentage of the O&M cost as follows: up to and including $1 million, use 10%; over $1 million to $25 million, use 8%; and greater than $25 million use 6%. | BE154: 12. To estimate the contract administration cost, use 6 to 10% of the operational and maintenance (O&M) cost. Calculate the contract administration cost as a percentage of the O&M cost as follows: up to and including $1 million, use 10%; over $1 million to $25 million, use 8%; and greater than $25 million use 6%. | BF154: 12. To estimate the contract administration cost, use 6 to 10% of the operational and maintenance (O&M) cost. Calculate the contract administration cost as a percentage of the O&M cost as follows: up to and including $1 million, use 10%; over $1 million to $25 million, use 8%; and greater than $25 million use 6%. | BG154: 12. To estimate the contract administration cost, use 6 to 10% of the operational and maintenance (O&M) cost. Calculate the contract administration cost as a percentage of the O&M cost as follows: up to and including $1 million, use 10%; over $1 million to $25 million, use 8%; and greater than $25 million use 6%.
A155: 7. Engineering, design and construction (ED&C) plans are often necessary to provide details on the reclamation needed to contract for the required work. To estimate the cost to develop an ED&C plan use 4-8% of the O&M cost. Calculate the ED&C cost as a percentage of the O&M cost as follows: up to and including $1 million, use 8%; over $1 million to $25 million, use 6%; and over $25 million, use 4%. Inclusion of a line item for the development of an ED&C plan may not be necessary for small operations, such as notice-level exploration. With small, uncomplicated reclamation efforts contracting may be able to proceed without developing an ED&C plan. [ED&C is automatically eliminated if "Notice" is selected on the Property Information Sheet] | C155: 7. Engineering, design and construction (ED&C) plans are often necessary to provide details on the reclamation needed to contract for the required work. To estimate the cost to develop an ED&C plan use 4-8% of the O&M cost. Calculate the ED&C cost as a percentage of the O&M cost as follows: up to and including $1 million, use 8%; over $1 million to $25 million, use 6%; and over $25 million, use 4%. Inclusion of a line item for the development of an ED&C plan may not be necessary for small operations, such as notice-level exploration. With small, uncomplicated reclamation efforts contracting may be able to proceed without developing an ED&C plan. [ED&C is automatically eliminated if "Notice" is selected on the Property Information Sheet] | D155: 7. Engineering, design and construction (ED&C) plans are often necessary to provide details on the reclamation needed to contract for the required work. To estimate the cost to develop an ED&C plan use 4-8% of the O&M cost. Calculate the ED&C cost as a percentage of the O&M cost as follows: up to and including $1 million, use 8%; over $1 million to $25 million, use 6%; and over $25 million, use 4%. Inclusion of a line item for the development of an ED&C plan may not be necessary for small operations, such as notice-level exploration. With small, uncomplicated reclamation efforts contracting may be able to proceed without developing an ED&C plan. [ED&C is automatically eliminated if "Notice" is selected on the Property Information Sheet] | E155: 7. Engineering, design and construction (ED&C) plans are often necessary to provide details on the reclamation needed to contract for the required work. To estimate the cost to develop an ED&C plan use 4-8% of the O&M cost. Calculate the ED&C cost as a percentage of the O&M cost as follows: up to and including $1 million, use 8%; over $1 million to $25 million, use 6%; and over $25 million, use 4%. Inclusion of a line item for the development of an ED&C plan may not be necessary for small operations, such as notice-level exploration. With small, uncomplicated reclamation efforts contracting may be able to proceed without developing an ED&C plan. [ED&C is automatically eliminated if "Notice" is selected on the Property Information Sheet] | F155: 7. Engineering, design and construction (ED&C) plans are often necessary to provide details on the reclamation needed to contract for the required work. To estimate the cost to develop an ED&C plan use 4-8% of the O&M cost. Calculate the ED&C cost as a percentage of the O&M cost as follows: up to and including $1 million, use 8%; over $1 million to $25 million, use 6%; and over $25 million, use 4%. Inclusion of a line item for the development of an ED&C plan may not be necessary for small operations, such as notice-level exploration. With small, uncomplicated reclamation efforts contracting may be able to proceed without developing an ED&C plan. [ED&C is automatically eliminated if "Notice" is selected on the Property Information Sheet] | BB155: 13. Government indirect cost rate is 21% of the contract administration costs. | BC155: 13. Government indirect cost rate is 21% of the contract administration costs. | BD155: 13. Government indirect cost rate is 21% of the contract administration costs. | BE155: 13. Government indirect cost rate is 21% of the contract administration costs. | BF155: 13. Government indirect cost rate is 21% of the contract administration costs. | BG155: 13. Government indirect cost rate is 21% of the contract administration costs.
A156: 8. A contingency cost is included in the reclamation cost estimation to cover unforeseen cost elements. Calculate the contingency cost as a percentage of the O&M cost as follows: up to and including $500,000, use 10%; over $500,000 to $5 million, use 8%; over $5 million to $50 million, use 6%; and greater than $50 million, use 4%. As with the ED&C cost, inclusion of a contingency cost may not be necessary for small operations, such as notice-level exploration. | C156: 8. A contingency cost is included in the reclamation cost estimation to cover unforeseen cost elements. Calculate the contingency cost as a percentage of the O&M cost as follows: up to and including $500,000, use 10%; over $500,000 to $5 million, use 8%; over $5 million to $50 million, use 6%; and greater than $50 million, use 4%. As with the ED&C cost, inclusion of a contingency cost may not be necessary for small operations, such as notice-level exploration. | D156: 8. A contingency cost is included in the reclamation cost estimation to cover unforeseen cost elements. Calculate the contingency cost as a percentage of the O&M cost as follows: up to and including $500,000, use 10%; over $500,000 to $5 million, use 8%; over $5 million to $50 million, use 6%; and greater than $50 million, use 4%. As with the ED&C cost, inclusion of a contingency cost may not be necessary for small operations, such as notice-level exploration. | E156: 8. A contingency cost is included in the reclamation cost estimation to cover unforeseen cost elements. Calculate the contingency cost as a percentage of the O&M cost as follows: up to and including $500,000, use 10%; over $500,000 to $5 million, use 8%; over $5 million to $50 million, use 6%; and greater than $50 million, use 4%. As with the ED&C cost, inclusion of a contingency cost may not be necessary for small operations, such as notice-level exploration. | F156: 8. A contingency cost is included in the reclamation cost estimation to cover unforeseen cost elements. Calculate the contingency cost as a percentage of the O&M cost as follows: up to and including $500,000, use 10%; over $500,000 to $5 million, use 8%; over $5 million to $50 million, use 6%; and greater than $50 million, use 4%. As with the ED&C cost, inclusion of a contingency cost may not be necessary for small operations, such as notice-level exploration.
A157: 9. Insurance premiums are calculated at 1.5% of the total labor costs. Enter the premium amount if liability insurance is not included in the itemized unit costs. | C157: 9. Insurance premiums are calculated at 1.5% of the total labor costs. Enter the premium amount if liability insurance is not included in the itemized unit costs. | D157: 9. Insurance premiums are calculated at 1.5% of the total labor costs. Enter the premium amount if liability insurance is not included in the itemized unit costs. | E157: 9. Insurance premiums are calculated at 1.5% of the total labor costs. Enter the premium amount if liability insurance is not included in the itemized unit costs. | F157: 9. Insurance premiums are calculated at 1.5% of the total labor costs. Enter the premium amount if liability insurance is not included in the itemized unit costs.
A158: 10. Federal construction contracts exceeding $100,000 require both a performance and a payment bond (Miller Act, 40 USC 270et seq.). Each bond premium is figured at 1.5% of the O&M cost. Enter the sum of both premium costs on this line. | C158: 10. Federal construction contracts exceeding $100,000 require both a performance and a payment bond (Miller Act, 40 USC 270et seq.). Each bond premium is figured at 1.5% of the O&M cost. Enter the sum of both premium costs on this line. | D158: 10. Federal construction contracts exceeding $100,000 require both a performance and a payment bond (Miller Act, 40 USC 270et seq.). Each bond premium is figured at 1.5% of the O&M cost. Enter the sum of both premium costs on this line. | E158: 10. Federal construction contracts exceeding $100,000 require both a performance and a payment bond (Miller Act, 40 USC 270et seq.). Each bond premium is figured at 1.5% of the O&M cost. Enter the sum of both premium costs on this line. | F158: 10. Federal construction contracts exceeding $100,000 require both a performance and a payment bond (Miller Act, 40 USC 270et seq.). Each bond premium is figured at 1.5% of the O&M cost. Enter the sum of both premium costs on this line.
A159: 11. For Federal construction contracts, use 10% of estimated O&M cost for the contractor’s profit. | C159: 11. For Federal construction contracts, use 10% of estimated O&M cost for the contractor’s profit. | D159: 11. For Federal construction contracts, use 10% of estimated O&M cost for the contractor’s profit. | E159: 11. For Federal construction contracts, use 10% of estimated O&M cost for the contractor’s profit. | F159: 11. For Federal construction contracts, use 10% of estimated O&M cost for the contractor’s profit.
A160: 12. To estimate the contract administration cost, use 6 to 10% of the operational and maintenance (O&M) cost. Calculate the contract administration cost as a percentage of the O&M cost as follows: up to and including $1 million, use 10%; over $1 million to $25 million, use 8%; and greater than $25 million use 6%. | C160: 12. To estimate the contract administration cost, use 6 to 10% of the operational and maintenance (O&M) cost. Calculate the contract administration cost as a percentage of the O&M cost as follows: up to and including $1 million, use 10%; over $1 million to $25 million, use 8%; and greater than $25 million use 6%. | D160: 12. To estimate the contract administration cost, use 6 to 10% of the operational and maintenance (O&M) cost. Calculate the contract administration cost as a percentage of the O&M cost as follows: up to and including $1 million, use 10%; over $1 million to $25 million, use 8%; and greater than $25 million use 6%. | E160: 12. To estimate the contract administration cost, use 6 to 10% of the operational and maintenance (O&M) cost. Calculate the contract administration cost as a percentage of the O&M cost as follows: up to and including $1 million, use 10%; over $1 million to $25 million, use 8%; and greater than $25 million use 6%. | F160: 12. To estimate the contract administration cost, use 6 to 10% of the operational and maintenance (O&M) cost. Calculate the contract administration cost as a percentage of the O&M cost as follows: up to and including $1 million, use 10%; over $1 million to $25 million, use 8%; and greater than $25 million use 6%.
A161: 13. Government indirect cost rate is 21% of the contract administration costs. | C161: 13. Government indirect cost rate is 21% of the contract administration costs. | D161: 13. Government indirect cost rate is 21% of the contract administration costs. | E161: 13. Government indirect cost rate is 21% of the contract administration costs. | F161: 13. Government indirect cost rate is 21% of the contract administration costs.
N185: =IF(M185="None required","",IF(ISBLANK(D27),"",IF(I55="optimize",FH185,I55))) -> 

Sheet Cost Schedule (hidden)
A1: =CONCATENATE('Property Information'!$B$26, 'Property Information'!$C$26,IF('Property Information'!$BC$18=TRUE,"- Notice or Exploration",IF('Property Information'!$BD$18=TRUE," - Plan of Operations"," - Reclamation Plan"))) -> Project Name: - Reclamation Plan
A2: =CONCATENATE('Property Information'!B28,SubmittalDate) -> Date of Submittal:
A3: =CONCATENATE('Property Information'!B12,FileName) -> File Name: SRCE_Version_1_4_1_017c_NV_2026_rev1.xlsm
A4: =CONCATENATE("Model Version: ",'Property Information'!B7) -> Model Version: Version 1.4.1
A5: =CONCATENATE("Cost Data: ",DataCostBasis) -> Cost Data: User Data
A6: =CONCATENATE("Cost Data File: ",DataFileName) -> Cost Data File: SRCE_Cost_Data_File_1_12_Std_2026_rev1.xlsm
A7: =CONCATENATE("Cost Estimate Type: ",CostEstimateType," Cost Basis: ",CostBasisCategory) -> Cost Estimate Type: Surety Cost Basis: Northern Nevada
C9: Cost Schedule and Financial Analysis
B11: Budget Year: | C11: 2011 | E11: Inflation Rate (r) (%): | J11: Engineering, Design and Construction Plan (%) | N11: =IF('Cost Summary'!$G$114<='Cost Summary'!$C$135,'Cost Summary'!$C$136,IF('Cost Summary'!$G$114<='Cost Summary'!$D$135,'Cost Summary'!$D$136,'Cost Summary'!$F$136)) -> 0.08
B12: First Year of Operation | C12: 2009 | E12: Market Risk (MR)(%): | J12: Contingency (%) | N12: =IF('Cost Summary'!$G$114<='Cost Summary'!$C$138,'Cost Summary'!$C$139,IF('Cost Summary'!$G$114<='Cost Summary'!$D$138,'Cost Summary'!$D$139,IF('Cost Summary'!$G$114<='Cost Summary'!$E$138,'Cost Summary'!$E$139,'Cost Summary'!$F$139))) -> 0.1
B13: Operating Period | D13: years | E13: Discount Rate (i)(%): | J13: Contractor OH and Profit (CP)(%): | N13: ='Cost Summary'!$C$142 -> 0.1
B14: Closure Year 1: | C14: 2016 | J14: Contract Administration (%) | N14: =IF('Cost Summary'!$G$114<='Cost Summary'!$C$144,'Cost Summary'!$C$145,IF('Cost Summary'!$G$114<='Cost Summary'!$D$144,'Cost Summary'!$D$145,'Cost Summary'!$F$145)) -> 0.1
B15: Closure Period: | C15: 1 | D15: years | E15: Closure Period:
B16: Post Closure Period | C16: 5 | D16: years | E16: Post Closure Period: | J16: Show how many years in schedule (10 to 100) | P16: <<< Set years and click "Set Years" button | EA16: Schedule years to show: | ED16: 10 | EE16: 10 | EF16: SchedulePeriodText
B18: Term (t)(years): | F18: Total From Cost Summary | G18: 0 | H18: =G18+1 -> 1 | I18: =H18+1 -> 2 | J18: 3 | K18: =J18+1 -> 4 | L18: =K18+1 -> 5 | M18: 6 | N18: 7 | O18: 8 | P18: 9 | Q18: 10 | R18: 11 | S18: 12 | T18: 13 | U18: 14 | V18: 15 | W18: 16 | X18: 17 | Y18: =X18+1 -> 18 | Z18: 19 | AA18: 20 | AB18: 21 | AC18: 22 | AD18: 23 | AE18: 24 | AF18: 25 | AG18: 26 | AH18: 27 | AI18: 28 | AJ18: =AI18+1 -> 29 | AK18: =AJ18+1 -> 30 | AL18: =AK18+1 -> 31 | AM18: =AL18+1 -> 32 | AN18: =AM18+1 -> 33 | AO18: =AN18+1 -> 34 | AP18: =AO18+1 -> 35 | AQ18: =AP18+1 -> 36 | AR18: =AQ18+1 -> 37 | AS18: =AR18+1 -> 38 | AT18: =AS18+1 -> 39 | AU18: =AT18+1 -> 40 | AV18: =AU18+1 -> 41 | AW18: =AV18+1 -> 42 | AX18: =AW18+1 -> 43 | AY18: =AX18+1 -> 44 | AZ18: =AY18+1 -> 45 | BA18: =AZ18+1 -> 46 | BB18: =BA18+1 -> 47 | BC18: =BB18+1 -> 48 | BD18: =BC18+1 -> 49 | BE18: =BD18+1 -> 50 | BF18: =BE18+1 -> 51 | BG18: =BF18+1 -> 52 | BH18: =BG18+1 -> 53 | BI18: =BH18+1 -> 54 | BJ18: =BI18+1 -> 55 | BK18: =BJ18+1 -> 56 | BL18: =BK18+1 -> 57 | BM18: =BL18+1 -> 58 | BN18: =BM18+1 -> 59 | BO18: =BN18+1 -> 60 | BP18: =BO18+1 -> 61 | BQ18: =BP18+1 -> 62 | BR18: =BQ18+1 -> 63 | BS18: =BR18+1 -> 64 | BT18: =BS18+1 -> 65 | BU18: =BT18+1 -> 66 | BV18: =BU18+1 -> 67 | BW18: =BV18+1 -> 68 | BX18: =BW18+1 -> 69 | BY18: =BX18+1 -> 70 | BZ18: =BY18+1 -> 71 | CA18: =BZ18+1 -> 72 | CB18: =CA18+1 -> 73 | CC18: =CB18+1 -> 74 | CD18: =CC18+1 -> 75 | CE18: =CD18+1 -> 76 | CF18: =CE18+1 -> 77 | CG18: =CF18+1 -> 78 | CH18: =CG18+1 -> 79 | CI18: =CH18+1 -> 80 | CJ18: =CI18+1 -> 81 | CK18: =CJ18+1 -> 82 | CL18: =CK18+1 -> 83 | CM18: =CL18+1 -> 84 | CN18: =CM18+1 -> 85 | CO18: =CN18+1 -> 86 | CP18: =CO18+1 -> 87 | CQ18: =CP18+1 -> 88 | CR18: =CQ18+1 -> 89 | CS18: =CR18+1 -> 90 | CT18: =CS18+1 -> 91 | CU18: =CT18+1 -> 92 | CV18: =CU18+1 -> 93 | CW18: =CV18+1 -> 94 | CX18: =CW18+1 -> 95 | CY18: =CX18+1 -> 96 | CZ18: =CY18+1 -> 97 | DA18: =CZ18+1 -> 98 | DB18: =DA18+1 -> 99 | DC18: =DB18+1 -> 100 | DD18: =DC18+1 -> 101 | DE18: TOTAL | DF18: Comments
E19: Schedule Variance | G19: =Budget_Year -> 2011 | H19: =G19+1 -> 2012 | I19: 2013 | J19: 2014 | K19: =J19+1 -> 2015 | L19: =K19+1 -> 2016 | M19: 2017 | N19: 2018 | O19: 2019 | P19: 2020 | Q19: 2021 | R19: 2022 | S19: 2023 | T19: 2024 | U19: 2025 | V19: 2026 | W19: 2027 | X19: 2028 | Y19: 2029 | Z19: 2030 | AA19: 2031 | AB19: 2032 | AC19: 2033 | AD19: 2034 | AE19: 2035 | AF19: 2036 | AG19: 2037 | AH19: 2038 | AI19: =AG19+1 -> 2038 | AJ19: =AI19+1 -> 2039 | AK19: 2040 | AL19: 2041 | AM19: 2042 | AN19: 2043 | AO19: 2044 | AP19: 2045 | AQ19: 2046 | AR19: 2047 | AS19: 2048 | AT19: 2049 | AU19: 2050 | AV19: 2051 | AW19: 2052 | AX19: 2053 | AY19: 2054 | AZ19: =AY19+1 -> 2055 | BA19: 2056 | BB19: 2057 | BC19: 2058 | BD19: 2059 | BE19: 2060 | BF19: 2061 | BG19: 2062 | BH19: 2063 | BI19: 2064 | BJ19: 2065 | BK19: 2066 | BL19: 2067 | BM19: 2068 | BN19: 2069 | BO19: 2070 | BP19: =BO19+1 -> 2071 | BQ19: 2072 | BR19: 2073 | BS19: 2074 | BT19: 2075 | BU19: 2076 | BV19: 2077 | BW19: 2078 | BX19: 2079 | BY19: 2080 | BZ19: 2081 | CA19: 2082 | CB19: 2083 | CC19: 2084 | CD19: 2085 | CE19: 2086 | CF19: =CE19+1 -> 2087 | CG19: 2088 | CH19: 2089 | CI19: 2090 | CJ19: 2091 | CK19: 2092 | CL19: 2093 | CM19: 2094 | CN19: 2095 | CO19: 2096 | CP19: 2097 | CQ19: 2098 | CR19: 2099 | CS19: 2100 | CT19: 2101 | CU19: 2102 | CV19: 2103 | CW19: 2104 | CX19: 2105 | CY19: 2106 | CZ19: 2107 | DA19: 2108 | DB19: 2109 | DC19: 2110 | DD19: 2111
B20: A. Earthwork/Recontouring
B21: Exploration | E21: =ROUND(DE21-F21,0) -> 0 | F21: =ROUND('Cost Summary'!$G10,0) -> 0 | DE21: =SUM(G21:DD21) -> 0
B22: Exploration Roads & Drill Pads | E22: =ROUND(DE22-F22,0) -> 0 | F22: =ROUND('Cost Summary'!$G11,0) -> 0 | DE22: =SUM(G22:DD22) -> 0
B23: Roads | E23: 0 | F23: =ROUND('Cost Summary'!$G12,0) -> 0 | DE23: 0
B24: Well Abandonment | E24: 0 | F24: =ROUND('Cost Summary'!$G13,0) -> 0 | DE24: 0
B25: Pits | E25: 0 | F25: =ROUND('Cost Summary'!$G14,0) -> 0 | DE25: 0
B26: Quarries & Borrow Areas | E26: 0 | F26: =ROUND('Cost Summary'!$G15,0) -> 0 | DE26: 0
B27: Underground Openings | E27: 0 | F27: =ROUND('Cost Summary'!$G16,0) -> 0 | DE27: 0
B28: Process Ponds | E28: 0 | F28: =ROUND('Cost Summary'!$G17,0) -> 0 | DE28: 0
B29: Heaps | E29: 0 | F29: =ROUND('Cost Summary'!$G18,0) -> 0 | DE29: 0
B30: Waste Rock Dumps | E30: 0 | F30: =ROUND('Cost Summary'!$G19,0) -> 0 | DE30: 0
B31: Landfills | E31: 0 | F31: =ROUND('Cost Summary'!$G20,0) -> 0 | DE31: 0
B32: Tailings | E32: 0 | F32: =ROUND('Cost Summary'!$G21,0) -> 0 | DE32: 0
B33: Foundation & Buildings Areas | E33: 0 | F33: =ROUND('Cost Summary'!$G22,0) -> 0 | DE33: 0
B34: Yards, Etc. | E34: 0 | F34: =ROUND('Cost Summary'!$G23,0) -> 0 | DE34: 0
B35: Drainage & Sediment Control | E35: 0 | F35: =ROUND('Cost Summary'!$G24,0) -> 0 | DE35: 0
B36: Generic Material Hauling | E36: 0 | F36: =ROUND('Cost Summary'!$G25,0) -> 0 | DE36: 0
B37: Other User Costs (from Other User sheet) | E37: 0 | F37: =ROUND('Cost Summary'!$G26,0) -> 0 | DE37: =SUM(G37:DD37) -> 0
B38: Other** | C38: =IF('Cost Summary'!$B$25=ISBLANK(TRUE),"",'Cost Summary'!$B$25) ->  | E38: 0 | F38: =ROUND('Cost Summary'!$G27,0) -> 0 | DE38: =SUM(G38:DD38) -> 0
F40: =IF(G40=0,"",ROUND(DF40/G40,2)) -> 
B41: Mob/Demob if included in Other User sheet | E41: 0 | F41: =ROUND('Cost Summary'!$G30,0) -> 0 | DE41: 0
B42: Mob/Demob | C42: =IF('Cost Summary'!$B$29=ISBLANK(TRUE),"",'Cost Summary'!$B$29) ->  | E42: 0 | F42: =ROUND('Cost Summary'!$G31,0) -> 0 | DE42: 0
B43: Subtotal "A" | E43: =IF(F43=0,"",ROUND(DE43-F43,0)) ->  | F43: =ROUND('Cost Summary'!$G32,0) -> 0 | G43: =SUM(G21:G42) -> 0 | H43: 0 | I43: 0 | J43: 0 | K43: 0 | L43: 0 | M43: 0 | N43: 0 | O43: 0 | P43: 0 | Q43: 0 | R43: 0 | S43: 0 | T43: 0 | U43: 0 | V43: 0 | W43: 0 | X43: 0 | Y43: 0 | Z43: 0 | AA43: 0 | AB43: 0 | AC43: 0 | AD43: 0 | AE43: 0 | AF43: 0 | AG43: 0 | AH43: 0 | AI43: 0 | AJ43: 0 | AK43: 0 | AL43: 0 | AM43: =SUM(AM21:AM42) -> 0 | AN43: 0 | AO43: 0 | AP43: 0 | AQ43: 0 | AR43: 0 | AS43: 0 | AT43: 0 | AU43: 0 | AV43: 0 | AW43: 0 | AX43: 0 | AY43: 0 | AZ43: 0 | BA43: 0 | BB43: 0 | BC43: 0 | BD43: 0 | BE43: 0 | BF43: 0 | BG43: 0 | BH43: 0 | BI43: 0 | BJ43: 0 | BK43: 0 | BL43: 0 | BM43: 0 | BN43: 0 | BO43: 0 | BP43: 0 | BQ43: 0 | BR43: 0 | BS43: =SUM(BS21:BS42) -> 0 | BT43: 0 | BU43: 0 | BV43: 0 | BW43: 0 | BX43: 0 | BY43: 0 | BZ43: 0 | CA43: 0 | CB43: 0 | CC43: 0 | CD43: 0 | CE43: 0 | CF43: 0 | CG43: 0 | CH43: 0 | CI43: 0 | CJ43: 0 | CK43: 0 | CL43: 0 | CM43: 0 | CN43: 0 | CO43: 0 | CP43: 0 | CQ43: 0 | CR43: 0 | CS43: 0 | CT43: 0 | CU43: 0 | CV43: 0 | CW43: 0 | CX43: 0 | CY43: =SUM(CY21:CY42) -> 0 | CZ43: 0 | DA43: 0 | DB43: 0 | DC43: 0 | DD43: 0 | DE43: 0
B45: B. Revegetation/Stabilization
B46: Exploration | E46: =ROUND(DE46-F46,0) -> 0 | F46: =ROUND('Cost Summary'!$G35,0) -> 0 | DE46: =SUM(G46:DD46) -> 0
B47: Exploration Roads & Drill Pads | E47: 0 | F47: =ROUND('Cost Summary'!$G36,0) -> 0 | DE47: 0
B48: Roads | E48: 0 | F48: =ROUND('Cost Summary'!$G37,0) -> 0 | DE48: 0
B49: Well Abandonment | F49: ='Cost Summary'!$G38 -> N/A | DE49: 0
B50: Pits | E50: 0 | F50: =ROUND('Cost Summary'!$G39,0) -> 0 | DE50: 0
B51: Quarries & Borrow Areas | E51: 0 | F51: =ROUND('Cost Summary'!$G40,0) -> 0 | DE51: 0
B52: Underground Openings | F52: ='Cost Summary'!$G41 -> N/A | DE52: 0
B53: Process Ponds | E53: 0 | F53: =ROUND('Cost Summary'!$G42,0) -> 0 | DE53: 0
B54: Heaps | E54: 0 | F54: =ROUND('Cost Summary'!$G43,0) -> 0 | DE54: 0
B55: Waste Rock Dumps | E55: 0 | F55: =ROUND('Cost Summary'!$G44,0) -> 0 | DE55: 0
B56: Landfills | E56: 0 | F56: =ROUND('Cost Summary'!$G45,0) -> 0 | DE56: 0
B57: Tailings | E57: 0 | F57: =ROUND('Cost Summary'!$G46,0) -> 0 | DE57: 0
B58: Foundation & Buildings Areas | E58: 0 | F58: =ROUND('Cost Summary'!$G47,0) -> 0 | DE58: 0
B59: Yards, Etc. | E59: 0 | F59: =ROUND('Cost Summary'!$G48,0) -> 0 | DE59: 0
B60: Drainage & Sediment Control | E60: 0 | F60: =ROUND('Cost Summary'!$G49,0) -> 0 | DE60: 0
B61: Generic Material Hauling | E61: 0 | F61: =ROUND('Cost Summary'!$G50,0) -> 0 | DE61: 0
B62: Other User Costs (from Other User sheet) | E62: 0 | F62: =ROUND('Cost Summary'!$G51,0) -> 0 | DE62: 0
B63: Other** | C63: =IF('Cost Summary'!$B$50=ISBLANK(TRUE),"",'Cost Summary'!$B$50) ->  | E63: 0 | F63: =ROUND('Cost Summary'!$G52,0) -> 0 | DE63: 0
B64: Subtotal "B" | E64: =IF(F64=0,"",ROUND(DE64-F64,0)) ->  | F64: =ROUND('Cost Summary'!$G53,0) -> 0 | G64: =SUM(G46:G63) -> 0 | H64: 0 | I64: 0 | J64: 0 | K64: 0 | L64: 0 | M64: 0 | N64: 0 | O64: 0 | P64: 0 | Q64: 0 | R64: 0 | S64: 0 | T64: 0 | U64: 0 | V64: 0 | W64: 0 | X64: 0 | Y64: 0 | Z64: 0 | AA64: 0 | AB64: 0 | AC64: 0 | AD64: 0 | AE64: 0 | AF64: 0 | AG64: 0 | AH64: 0 | AI64: 0 | AJ64: 0 | AK64: 0 | AL64: 0 | AM64: 0 | AN64: 0 | AO64: 0 | AP64: 0 | AQ64: 0 | AR64: 0 | AS64: 0 | AT64: 0 | AU64: 0 | AV64: 0 | AW64: 0 | AX64: 0 | AY64: 0 | AZ64: 0 | BA64: 0 | BB64: 0 | BC64: 0 | BD64: 0 | BE64: 0 | BF64: 0 | BG64: 0 | BH64: 0 | BI64: 0 | BJ64: 0 | BK64: 0 | BL64: 0 | BM64: 0 | BN64: 0 | BO64: 0 | BP64: 0 | BQ64: 0 | BR64: 0 | BS64: 0 | BT64: 0 | BU64: 0 | BV64: 0 | BW64: 0 | BX64: 0 | BY64: 0 | BZ64: 0 | CA64: 0 | CB64: 0 | CC64: 0 | CD64: 0 | CE64: 0 | CF64: 0 | CG64: 0 | CH64: 0 | CI64: 0 | CJ64: 0 | CK64: 0 | CL64: 0 | CM64: 0 | CN64: 0 | CO64: 0 | CP64: 0 | CQ64: 0 | CR64: 0 | CS64: 0 | CT64: 0 | CU64: 0 | CV64: 0 | CW64: 0 | CX64: 0 | CY64: 0 | CZ64: 0 | DA64: 0 | DC64: 0 | DD64: 0 | DE64: 0
B66: C. Detoxification/Water Treatment/Disposal of Wastes**
B67: Process Ponds/Sludge | E67: =ROUND(DE67-F67,0) -> 0 | F67: =ROUND('Cost Summary'!$G56,0) -> 0 | DE67: =SUM(G67:DD67) -> 0
B68: Heaps | E68: 0 | F68: =ROUND('Cost Summary'!$G57,0) -> 0 | DE68: 0
B69: Dumps (Waste & Landfill) | E69: 0 | F69: =ROUND('Cost Summary'!$G58,0) -> 0 | DE69: 0
B70: Tailings | E70: 0 | F70: =ROUND('Cost Summary'!$G59,0) -> 0 | DE70: 0
B71: Surplus Water Disposal | E71: 0 | F71: =ROUND('Cost Summary'!$G60,0) -> 0 | DE71: 0
B72: Monitoring | E72: 0 | F72: =ROUND('Cost Summary'!$G61,0) -> 0 | DE72: 0
B73: Miscellaneous | E73: 0 | F73: =ROUND('Cost Summary'!$G62,0) -> 0 | DE73: 0
B74: Solid Waste - On Site | E74: 0 | F74: =ROUND('Cost Summary'!$G63,0) -> 0 | DE74: 0
B75: Solid Waste - Off Site | E75: 0 | F75: =ROUND('Cost Summary'!$G64,0) -> 0 | DE75: 0
B76: Hazardous Materials | E76: 0 | F76: =ROUND('Cost Summary'!$G65,0) -> 0 | DE76: 0
B77: Hydrocarbon Contaminated Soils | E77: 0 | F77: =ROUND('Cost Summary'!$G66,0) -> 0 | DE77: 0
B78: Pumping (from Solution Mgmt sheet) | E78: 0 | F78: =ROUND('Cost Summary'!$G67,0) -> 0 | DE78: 0
B79: Evaporation (from Solution Mgmt sheet) | E79: 0 | F79: =ROUND('Cost Summary'!$G68,0) -> 0 | DE79: 0
B80: Treatment (from Solution Mgmt sheet) | E80: 0 | F80: =ROUND('Cost Summary'!$G69,0) -> 0 | DE80: 0
B81: Decontamination (from Solution Mgmt sheet) | E81: 0 | F81: =ROUND('Cost Summary'!$G70,0) -> 0 | DE81: 0
B82: Other User Costs (from Other User sheet) | E82: 0 | F82: =ROUND('Cost Summary'!$G71,0) -> 0 | DE82: 0
B83: Other** | C83: =IF('Cost Summary'!$B$70=ISBLANK(TRUE),"",'Cost Summary'!$B$70) ->  | E83: 0 | F83: =ROUND('Cost Summary'!$G72,0) -> 0 | DE83: 0
B84: Subtotal "C" | E84: =IF(F84=0,"",ROUND(DE84-F84,0)) ->  | F84: =ROUND('Cost Summary'!$G73,0) -> 0 | G84: =SUM(G67:G83) -> 0 | H84: 0 | I84: 0 | J84: 0 | K84: 0 | L84: 0 | M84: 0 | N84: 0 | O84: 0 | P84: 0 | Q84: 0 | R84: 0 | S84: 0 | T84: 0 | U84: 0 | V84: 0 | W84: 0 | X84: 0 | Y84: 0 | Z84: 0 | AA84: 0 | AB84: 0 | AC84: 0 | AD84: 0 | AE84: 0 | AF84: 0 | AG84: 0 | AH84: 0 | AI84: 0 | AJ84: 0 | AK84: 0 | AL84: 0 | AM84: 0 | AN84: 0 | AO84: 0 | AP84: 0 | AQ84: 0 | AR84: 0 | AS84: 0 | AT84: 0 | AU84: 0 | AV84: 0 | AW84: 0 | AX84: 0 | AY84: 0 | AZ84: 0 | BA84: 0 | BB84: 0 | BC84: 0 | BD84: 0 | BE84: 0 | BF84: 0 | BG84: 0 | BH84: 0 | BI84: 0 | BJ84: 0 | BK84: 0 | BL84: 0 | BM84: 0 | BN84: 0 | BO84: 0 | BP84: 0 | BQ84: 0 | BR84: 0 | BS84: 0 | BT84: 0 | BU84: 0 | BV84: 0 | BW84: 0 | BX84: 0 | BY84: 0 | BZ84: 0 | CA84: 0 | CB84: 0 | CC84: 0 | CD84: 0 | CE84: 0 | CF84: 0 | CG84: 0 | CH84: 0 | CI84: 0 | CJ84: 0 | CK84: 0 | CL84: 0 | CM84: 0 | CN84: 0 | CO84: 0 | CP84: 0 | CQ84: 0 | CR84: 0 | CS84: 0 | CT84: 0 | CU84: 0 | CV84: 0 | CW84: 0 | CX84: 0 | CY84: 0 | CZ84: 0 | DA84: 0 | DB84: 0 | DC84: 0 | DD84: 0 | DE84: 0
B86: D. Structure, Equipment and Facility Removal, and Misc.
B87: Foundation & Buildings Areas | E87: =ROUND(DE87-F87,0) -> 0 | F87: =ROUND('Cost Summary'!$G76,0) -> 0 | DE87: =SUM(G87:DD87) -> 0
B88: Other Demolition | E88: 0 | F88: =ROUND('Cost Summary'!$G77,0) -> 0 | DE88: 0
B89: Equipment Removal | E89: 0 | F89: =ROUND('Cost Summary'!$G78,0) -> 0 | DE89: 0
B90: Fence Removal | E90: 0 | F90: =ROUND('Cost Summary'!$G79,0) -> 0 | DE90: 0
B91: Fence Installation | E91: 0 | F91: =ROUND('Cost Summary'!$G80,0) -> 0 | DE91: 0
B92: Culvert Removal | E92: 0 | F92: =ROUND('Cost Summary'!$G81,0) -> 0 | DE92: 0
B93: Pipe Removal | E93: 0 | F93: =ROUND('Cost Summary'!$G82,0) -> 0 | DE93: 0
B94: Powerline Removal | E94: 0 | F94: =ROUND('Cost Summary'!$G83,0) -> 0 | DE94: 0
B95: Transformer Removal | E95: 0 | F95: =ROUND('Cost Summary'!$G84,0) -> 0 | DE95: 0
B96: Rip-rap, rock lining, gabions | E96: 0 | F96: =ROUND('Cost Summary'!$G85,0) -> 0 | DE96: 0
B97: Other Misc. Costs | E97: 0 | F97: =ROUND('Cost Summary'!$G86,0) -> 0 | DE97: 0
B98: Other User Costs (from Other User sheet) | E98: 0 | F98: =ROUND('Cost Summary'!$G87,0) -> 0 | DE98: 0
B99: Other** | C99: =IF('Cost Summary'!$B$86=ISBLANK(TRUE),"",'Cost Summary'!$B$86) ->  | E99: 0 | F99: =ROUND('Cost Summary'!$G88,0) -> 0 | DE99: 0
B100: Subtotal "D" | E100: =IF(F100=0,"",ROUND(DE100-F100,0)) ->  | F100: =ROUND('Cost Summary'!$G89,0) -> 0 | G100: =SUM(G87:G99) -> 0 | H100: 0 | I100: 0 | J100: 0 | K100: 0 | L100: 0 | M100: 0 | N100: 0 | O100: 0 | P100: 0 | Q100: 0 | R100: 0 | S100: 0 | T100: 0 | U100: 0 | V100: 0 | W100: 0 | X100: 0 | Y100: 0 | Z100: 0 | AA100: 0 | AB100: 0 | AC100: 0 | AD100: 0 | AE100: 0 | AF100: 0 | AG100: 0 | AH100: 0 | AI100: 0 | AJ100: 0 | AK100: 0 | AL100: 0 | AM100: 0 | AN100: 0 | AO100: 0 | AP100: 0 | AQ100: 0 | AR100: 0 | AS100: 0 | AT100: 0 | AU100: 0 | AV100: 0 | AW100: 0 | AX100: 0 | AY100: 0 | AZ100: 0 | BA100: 0 | BB100: 0 | BC100: 0 | BD100: 0 | BE100: 0 | BF100: 0 | BG100: 0 | BH100: 0 | BI100: 0 | BJ100: 0 | BK100: 0 | BL100: 0 | BM100: 0 | BN100: 0 | BO100: 0 | BP100: 0 | BQ100: 0 | BR100: 0 | BS100: 0 | BT100: 0 | BU100: 0 | BV100: 0 | BW100: 0 | BX100: 0 | BY100: 0 | BZ100: 0 | CA100: 0 | CB100: 0 | CC100: 0 | CD100: 0 | CE100: 0 | CF100: 0 | CG100: 0 | CH100: 0 | CI100: 0 | CJ100: 0 | CK100: 0 | CL100: 0 | CM100: 0 | CN100: 0 | CO100: 0 | CP100: 0 | CQ100: 0 | CR100: 0 | CS100: 0 | CT100: 0 | CU100: 0 | CV100: 0 | CW100: 0 | CX100: 0 | CY100: 0 | CZ100: 0 | DA100: 0 | DB100: 0 | DC100: 0 | DD100: 0 | DE100: 0
B102: E. Monitoring
B103: Reclamation Monitoring and Maintenance | E103: =ROUND(DE103-F103,0) -> 0 | F103: =ROUND('Cost Summary'!$G92,0) -> 0 | DE103: =SUM(G103:DD103) -> 0
B104: Ground and Surface Water Monitoring (calculated from user input in Monitoring Sheet) | E104: =IF(OR(ISBLANK(ClosureYear1),ISBLANK(Budget_Year)),"Enter Yrs Above",ROUND(DE104-F104,0)) -> 0 | F104: =ROUND('Cost Summary'!$G93,0) -> 0 | H104: =IF(OR(ISBLANK(ClosureYear1),ISBLANK(Budget_Year)),"",IF(H19<ClosureYear1,"",IF(OR($F104=0,NOT(ISNUMBER($F104))),0,INDEX(AnnualMonitoringCosts,1,H19-ClosureYear1+1)))) ->  | L104: 0 | M104: 0 | N104: 0 | O104: 0 | P104: 0 | Q104: 0 | R104: 0 | S104: 0 | T104: 0 | U104: 0 | V104: 0 | W104: 0 | X104: 0 | Y104: 0 | Z104: 0 | AA104: 0 | AB104: 0 | AC104: 0 | AD104: 0 | AE104: 0 | AF104: 0 | AG104: 0 | AH104: 0 | AI104: 0 | AJ104: 0 | AK104: 0 | AL104: 0 | AM104: 0 | AN104: =IF(OR(ISBLANK(ClosureYear1),ISBLANK(Budget_Year)),"",IF(AN19<ClosureYear1,"",IF(OR($F104=0,NOT(ISNUMBER($F104))),0,INDEX(AnnualMonitoringCosts,1,AN19-ClosureYear1+1)))) -> 0 | AO104: 0 | AP104: 0 | AQ104: 0 | AR104: 0 | AS104: 0 | AT104: 0 | AU104: 0 | AV104: 0 | AW104: 0 | AX104: 0 | AY104: 0 | AZ104: 0 | BA104: 0 | BB104: 0 | BC104: 0 | BD104: 0 | BE104: 0 | BF104: 0 | BG104: 0 | BH104: 0 | BI104: 0 | BJ104: 0 | BK104: 0 | BL104: 0 | BM104: 0 | BN104: 0 | BO104: 0 | BP104: 0 | BQ104: 0 | BR104: 0 | BS104: 0 | BT104: =IF(OR(ISBLANK(ClosureYear1),ISBLANK(Budget_Year)),"",IF(BT19<ClosureYear1,"",IF(OR($F104=0,NOT(ISNUMBER($F104))),0,INDEX(AnnualMonitoringCosts,1,BT19-ClosureYear1+1)))) -> 0 | BU104: 0 | BV104: 0 | BW104: 0 | BX104: 0 | BY104: 0 | BZ104: 0 | CA104: 0 | CB104: 0 | CC104: 0 | CD104: 0 | CE104: 0 | CF104: 0 | CG104: 0 | CH104: 0 | CI104: 0 | CJ104: 0 | CK104: 0 | CL104: 0 | CM104: 0 | CN104: 0 | CO104: 0 | CP104: 0 | CQ104: 0 | CR104: 0 | CS104: 0 | CT104: 0 | CU104: 0 | CV104: 0 | CW104: 0 | CX104: 0 | CY104: 0 | CZ104: 0 | DA104: 0 | DB104: 0 | DC104: 0 | DD104: =IF(OR(ISBLANK(ClosureYear1),ISBLANK(Budget_Year)),"",IF(DD19<ClosureYear1,"",IF(OR($F104=0,NOT(ISNUMBER($F104))),0,INDEX(AnnualMonitoringCosts,1,DD19-ClosureYear1)))) -> 0 | DE104: =IF(OR(ISBLANK(ClosureYear1),ISBLANK(Budget_Year)),0,SUM(G104:DD104)) -> 0
B105: Other User Costs (from Other User sheet) | E105: 0 | F105: =ROUND('Cost Summary'!$G94,0) -> 0 | DE105: 0
B106: Subtotal "E" | E106: =IF(F106=0,"",ROUND(DE106-F106,0)) ->  | F106: =ROUND('Cost Summary'!$G95,0) -> 0 | G106: =SUM(G103:G105) -> 0 | H106: 0 | I106: 0 | J106: 0 | K106: 0 | L106: 0 | M106: 0 | N106: 0 | O106: 0 | P106: 0 | Q106: 0 | R106: 0 | S106: 0 | T106: 0 | U106: 0 | V106: 0 | W106: 0 | X106: 0 | Y106: 0 | Z106: 0 | AA106: 0 | AB106: 0 | AC106: 0 | AD106: 0 | AE106: 0 | AF106: 0 | AG106: 0 | AH106: 0 | AI106: 0 | AJ106: 0 | AK106: 0 | AL106: 0 | AM106: 0 | AN106: 0 | AO106: 0 | AP106: 0 | AQ106: 0 | AR106: 0 | AS106: 0 | AT106: 0 | AU106: 0 | AV106: 0 | AW106: 0 | AX106: 0 | AY106: 0 | AZ106: 0 | BA106: 0 | BB106: 0 | BC106: 0 | BD106: 0 | BE106: 0 | BF106: 0 | BG106: 0 | BH106: 0 | BI106: 0 | BJ106: 0 | BK106: 0 | BL106: 0 | BM106: 0 | BN106: 0 | BO106: 0 | BP106: 0 | BQ106: 0 | BR106: 0 | BS106: 0 | BT106: 0 | BU106: 0 | BV106: 0 | BW106: 0 | BX106: 0 | BY106: 0 | BZ106: 0 | CA106: 0 | CB106: 0 | CC106: 0 | CD106: 0 | CE106: 0 | CF106: 0 | CG106: 0 | CH106: 0 | CI106: 0 | CJ106: 0 | CK106: 0 | CL106: 0 | CM106: 0 | CN106: 0 | CO106: 0 | CP106: 0 | CQ106: 0 | CR106: 0 | CS106: 0 | CT106: 0 | CU106: 0 | CV106: 0 | CW106: 0 | CX106: 0 | CY106: 0 | CZ106: 0 | DA106: 0 | DC106: 0 | DD106: 0 | DE106: 0
B108: F. Construction Management & Support
B109: Construction Management | E109: =ROUND(DE109-F109,0) -> 0 | F109: =ROUND('Cost Summary'!$G98,0) -> 0 | DE109: =SUM(G109:DD109) -> 0
B110: Construction Support | E110: 0 | F110: =ROUND('Cost Summary'!$G99,0) -> 0 | DE110: 0
B111: Road Maintenance | E111: 0 | F111: =ROUND('Cost Summary'!$G100,0) -> 0 | DE111: 0
B112: Other User Costs (from Other User sheet) | E112: 0 | F112: =ROUND('Cost Summary'!$G101,0) -> 0 | DE112: 0
B113: Other** | C113: =IF('Cost Summary'!$B$100=ISBLANK(TRUE),"",'Cost Summary'!$B$100) ->  | E113: 0 | F113: =ROUND('Cost Summary'!$G102,0) -> 0 | DE113: 0
B114: Subtotal "F" | E114: =IF(F114=0,"",ROUND(DE114-F114,0)) ->  | F114: =ROUND('Cost Summary'!$G103,0) -> 0 | G114: =SUM(G109:G113) -> 0 | H114: 0 | I114: 0 | J114: 0 | K114: 0 | L114: 0 | M114: 0 | N114: 0 | O114: 0 | P114: 0 | Q114: 0 | R114: 0 | S114: 0 | T114: 0 | U114: 0 | V114: 0 | W114: 0 | X114: 0 | Y114: 0 | Z114: 0 | AA114: 0 | AB114: 0 | AC114: 0 | AD114: 0 | AE114: 0 | AF114: 0 | AG114: 0 | AH114: 0 | AI114: 0 | AJ114: 0 | AK114: 0 | AL114: 0 | AM114: 0 | AN114: 0 | AO114: 0 | AP114: 0 | AQ114: 0 | AR114: 0 | AS114: 0 | AT114: 0 | AU114: 0 | AV114: 0 | AW114: 0 | AX114: 0 | AY114: 0 | AZ114: 0 | BA114: 0 | BB114: 0 | BC114: 0 | BD114: 0 | BE114: 0 | BF114: 0 | BG114: 0 | BH114: 0 | BI114: 0 | BJ114: 0 | BK114: 0 | BL114: 0 | BM114: 0 | BN114: 0 | BO114: 0 | BP114: 0 | BQ114: 0 | BR114: 0 | BS114: 0 | BT114: 0 | BU114: 0 | BV114: 0 | BW114: 0 | BX114: 0 | BY114: 0 | BZ114: 0 | CA114: 0 | CB114: 0 | CC114: 0 | CD114: 0 | CE114: 0 | CF114: 0 | CG114: 0 | CH114: 0 | CI114: 0 | CJ114: 0 | CK114: 0 | CL114: 0 | CM114: 0 | CN114: 0 | CO114: 0 | CP114: 0 | CQ114: 0 | CR114: 0 | CS114: 0 | CT114: 0 | CU114: 0 | CV114: 0 | CW114: 0 | CX114: 0 | CY114: 0 | CZ114: 0 | DA114: 0 | DB114: 0 | DC114: 0 | DD114: 0 | DE114: 0
B116: G. Closure Planning, G&A, Human Resources
B117: Closure Planning | E117: =ROUND(DE117-F117,0) -> 0 | F117: =ROUND('Cost Summary'!$G106,0) -> 0 | DE117: =SUM(G117:DD117) -> 0
B118: General & Administration | E118: 0 | F118: =ROUND('Cost Summary'!$G107,0) -> 0 | DE118: 0
B119: Human Resources | E119: 0 | F119: =ROUND('Cost Summary'!$G108,0) -> 0 | DE119: 0
B120: Other User Costs (from Other User sheet) | E120: 0 | F120: =ROUND('Cost Summary'!$G109,0) -> 0 | DE120: 0
B121: Other** | C121: =IF('Cost Summary'!$B$108=ISBLANK(TRUE),"",'Cost Summary'!$B$108) ->  | E121: 0 | F121: =ROUND('Cost Summary'!$G110,0) -> 0 | DE121: 0
B122: Subtotal "G" | E122: =IF(F122=0,"",ROUND(DE122-F122,0)) ->  | F122: =ROUND('Cost Summary'!G111,0) -> 0 | G122: =SUM(G117:G121) -> 0 | H122: 0 | I122: 0 | J122: 0 | K122: 0 | L122: 0 | M122: 0 | N122: 0 | O122: 0 | P122: 0 | Q122: 0 | R122: 0 | S122: 0 | T122: 0 | U122: 0 | V122: 0 | W122: 0 | X122: 0 | Y122: 0 | Z122: 0 | AA122: 0 | AB122: 0 | AC122: 0 | AD122: 0 | AE122: 0 | AF122: 0 | AG122: 0 | AH122: 0 | AI122: 0 | AJ122: 0 | AK122: 0 | AL122: 0 | AM122: 0 | AN122: 0 | AO122: 0 | AP122: 0 | AQ122: 0 | AR122: 0 | AS122: 0 | AT122: 0 | AU122: 0 | AV122: 0 | AW122: 0 | AX122: 0 | AY122: 0 | AZ122: 0 | BA122: 0 | BB122: 0 | BC122: 0 | BD122: 0 | BE122: 0 | BF122: 0 | BG122: 0 | BH122: 0 | BI122: 0 | BJ122: 0 | BK122: 0 | BL122: 0 | BM122: 0 | BN122: 0 | BO122: 0 | BP122: 0 | BQ122: 0 | BR122: 0 | BS122: 0 | BT122: 0 | BU122: 0 | BV122: 0 | BW122: 0 | BX122: 0 | BY122: 0 | BZ122: 0 | CA122: 0 | CB122: 0 | CC122: 0 | CD122: 0 | CE122: 0 | CF122: 0 | CG122: 0 | CH122: 0 | CI122: 0 | CJ122: 0 | CK122: 0 | CL122: 0 | CM122: 0 | CN122: 0 | CO122: 0 | CP122: 0 | CQ122: 0 | CR122: 0 | CS122: 0 | CT122: 0 | CU122: 0 | CV122: 0 | CW122: 0 | CX122: 0 | CY122: 0 | CZ122: 0 | DA122: 0 | DC122: 0 | DD122: 0 | DE122: 0
B124: Subtotal Operational & Maintenance Costs
B125: Subtotal A through G | E125: =IF(F125=0,"",ROUND(DE125-F125,0)) ->  | F125: =ROUND('Cost Summary'!$G114,0) -> 0 | G125: =G122+G114+G106+G100+G84+G64+G43 -> 0 | H125: 0 | I125: 0 | J125: 0 | K125: 0 | L125: 0 | M125: 0 | N125: 0 | O125: 0 | P125: 0 | Q125: 0 | R125: 0 | S125: 0 | T125: 0 | U125: 0 | V125: 0 | W125: 0 | X125: 0 | Y125: 0 | Z125: 0 | AA125: 0 | AB125: 0 | AC125: 0 | AD125: 0 | AE125: 0 | AF125: 0 | AG125: 0 | AH125: 0 | AI125: 0 | AJ125: 0 | AK125: 0 | AL125: 0 | AM125: 0 | AN125: 0 | AO125: 0 | AP125: 0 | AQ125: 0 | AR125: 0 | AS125: 0 | AT125: 0 | AU125: 0 | AV125: 0 | AW125: 0 | AX125: 0 | AY125: 0 | AZ125: 0 | BA125: 0 | BB125: 0 | BC125: 0 | BD125: 0 | BE125: 0 | BF125: 0 | BG125: 0 | BH125: 0 | BI125: 0 | BJ125: 0 | BK125: 0 | BL125: 0 | BM125: 0 | BN125: 0 | BO125: 0 | BP125: 0 | BQ125: 0 | BR125: 0 | BS125: =BS122+BS114+BS106+BS100+BS84+BS64+BS43 -> 0 | BT125: 0 | BU125: 0 | BV125: 0 | BW125: 0 | BX125: 0 | BY125: 0 | BZ125: 0 | CA125: 0 | CB125: 0 | CC125: 0 | CD125: 0 | CE125: 0 | CF125: 0 | CG125: 0 | CH125: 0 | CI125: 0 | CJ125: 0 | CK125: 0 | CL125: 0 | CM125: 0 | CN125: 0 | CO125: 0 | CP125: 0 | CQ125: 0 | CR125: 0 | CS125: 0 | CT125: 0 | CU125: 0 | CV125: 0 | CW125: 0 | CX125: 0 | CY125: 0 | CZ125: 0 | DA125: 0 | DB125: 0 | DC125: 0 | DD125: 0 | DE125: =DE122+DE114+DE106+DE100+DE84+DE64+DE43 -> 0
B130: Indirect Costs
B131: 1. Engineering, Design and Construction (ED&C) Plan (7) | E131: =IF(F131="N/A","",ROUND(DE131-F131,0)) -> 0 | F131: =IF(OR('Cost Summary'!$G120="N/A ",'Cost Summary'!$G120=""), "N/A",ROUND('Cost Summary'!$G120,0)) -> 0 | DE131: =SUM(G131:DD131) -> 0
B132: 2. Contingency (8) | F132: =IF(OR('Cost Summary'!$G121="N/A ",'Cost Summary'!$G121=""), "N/A",ROUND('Cost Summary'!$G121,0)) -> 0 | G132: =IF(G$125<>"",G$125*$N$12,"") -> 0 | H132: =IF(H$125<>"",H$125*$N$12,"") -> 0 | I132: 0 | J132: 0 | K132: 0 | L132: 0 | M132: 0 | N132: 0 | O132: 0 | P132: 0 | Q132: 0 | R132: 0 | S132: 0 | T132: 0 | U132: 0 | V132: 0 | W132: 0 | X132: 0 | Y132: 0 | Z132: 0 | AA132: 0 | AB132: 0 | AC132: 0 | AD132: 0 | AE132: 0 | AF132: 0 | AG132: 0 | AH132: 0 | AI132: 0 | AJ132: 0 | AK132: 0 | AL132: 0 | AM132: 0 | AN132: 0 | AO132: 0 | AP132: 0 | AQ132: 0 | AR132: 0 | AS132: 0 | AT132: 0 | AU132: 0 | AV132: 0 | AW132: 0 | AX132: 0 | AY132: 0 | AZ132: 0 | BA132: 0 | BB132: 0 | BC132: 0 | BD132: 0 | BE132: 0 | BF132: 0 | BG132: 0 | BH132: 0 | BI132: 0 | BJ132: 0 | BK132: 0 | BL132: 0 | BM132: 0 | BN132: 0 | BO132: 0 | BP132: 0 | BQ132: 0 | BR132: 0 | BS132: 0 | BT132: =IF(BT$125<>"",BT$125*$N$12,"") -> 0 | BU132: 0 | BV132: 0 | BW132: 0 | BX132: 0 | BY132: 0 | BZ132: 0 | CA132: 0 | CB132: 0 | CC132: 0 | CD132: 0 | CE132: 0 | CF132: 0 | CG132: 0 | CH132: 0 | CI132: 0 | CJ132: 0 | CK132: 0 | CL132: 0 | CM132: 0 | CN132: 0 | CO132: 0 | CP132: 0 | CQ132: 0 | CR132: 0 | CS132: 0 | CT132: 0 | CU132: 0 | CV132: 0 | CW132: 0 | CX132: 0 | CY132: 0 | CZ132: 0 | DA132: 0 | DB132: 0 | DC132: 0 | DD132: 0 | DE132: =ROUND(SUM(G132:DD132),0) -> 0
B133: 3. Insurance (9) | E133: 0 | F133: =IF(OR('Cost Summary'!$G122="N/A ",'Cost Summary'!$G122=""), "N/A",ROUND('Cost Summary'!$G122,0)) -> 0 | DE133: 0
B134: 4. Performance Bond (10) | E134: =IF(F134="N/A","",ROUND(DE134-F134,0)) ->  | F134: =IF(OR('Cost Summary'!$G123="N/A ",'Cost Summary'!$G123=""), "N/A",ROUND('Cost Summary'!$G123,0)) -> N/A | DE134: 0
B135: 5. Contractor Profit (11) | F135: =IF(OR('Cost Summary'!$G124="N/A ",'Cost Summary'!$G124=""), "N/A",ROUND('Cost Summary'!$G124,0)) -> 0 | G135: =IF(G$125<>"",G$125*Contractor_Profit,"") -> 0 | H135: 0 | I135: 0 | J135: 0 | K135: 0 | L135: 0 | M135: 0 | N135: 0 | O135: 0 | P135: 0 | Q135: 0 | R135: 0 | S135: 0 | T135: 0 | U135: 0 | V135: 0 | W135: 0 | X135: 0 | Y135: 0 | Z135: 0 | AA135: 0 | AB135: 0 | AC135: 0 | AD135: 0 | AE135: 0 | AF135: 0 | AG135: 0 | AH135: 0 | AI135: 0 | AJ135: 0 | AK135: 0 | AL135: 0 | AM135: =IF(AM$125<>"",AM$125*Contractor_Profit,"") -> 0 | AN135: 0 | AO135: 0 | AP135: 0 | AQ135: 0 | AR135: 0 | AS135: 0 | AT135: 0 | AU135: 0 | AV135: 0 | AW135: 0 | AX135: 0 | AY135: 0 | AZ135: 0 | BA135: 0 | BB135: 0 | BC135: 0 | BD135: 0 | BE135: 0 | BF135: 0 | BG135: 0 | BH135: 0 | BI135: 0 | BJ135: 0 | BK135: 0 | BL135: 0 | BM135: 0 | BN135: 0 | BO135: 0 | BP135: 0 | BQ135: 0 | BR135: 0 | BS135: =IF(BS$125<>"",BS$125*Contractor_Profit,"") -> 0 | BT135: 0 | BU135: 0 | BV135: 0 | BW135: 0 | BX135: 0 | BY135: 0 | BZ135: 0 | CA135: 0 | CB135: 0 | CC135: 0 | CD135: 0 | CE135: 0 | CF135: 0 | CG135: 0 | CH135: 0 | CI135: 0 | CJ135: 0 | CK135: 0 | CL135: 0 | CM135: 0 | CN135: 0 | CO135: 0 | CP135: 0 | CQ135: 0 | CR135: 0 | CS135: 0 | CT135: 0 | CU135: 0 | CV135: 0 | CW135: 0 | CX135: 0 | CY135: =IF(CY$125<>"",CY$125*Contractor_Profit,"") -> 0 | CZ135: 0 | DA135: 0 | DB135: 0 | DC135: 0 | DD135: 0 | DE135: =ROUND(SUM(G135:DD135),0) -> 0
B136: 6. Contract Administration (12) | F136: =IF(OR('Cost Summary'!$G125="N/A ",'Cost Summary'!$G125=""), "N/A",ROUND('Cost Summary'!$G125,0)) -> 0 | G136: =IF(G$125<>"",G$125*$N$14,"") -> 0 | H136: 0 | I136: 0 | J136: 0 | K136: 0 | L136: 0 | M136: 0 | N136: 0 | O136: 0 | P136: 0 | Q136: 0 | R136: 0 | S136: 0 | T136: 0 | U136: 0 | V136: 0 | W136: 0 | X136: 0 | Y136: 0 | Z136: 0 | AA136: 0 | AB136: 0 | AC136: 0 | AD136: 0 | AE136: 0 | AF136: 0 | AG136: 0 | AH136: 0 | AI136: 0 | AJ136: 0 | AK136: 0 | AL136: 0 | AM136: =IF(AM$125<>"",AM$125*$N$14,"") -> 0 | AN136: 0 | AO136: 0 | AP136: 0 | AQ136: 0 | AR136: 0 | AS136: 0 | AT136: 0 | AU136: 0 | AV136: 0 | AW136: 0 | AX136: 0 | AY136: 0 | AZ136: 0 | BA136: 0 | BB136: 0 | BC136: 0 | BD136: 0 | BE136: 0 | BF136: 0 | BG136: 0 | BH136: 0 | BI136: 0 | BJ136: 0 | BK136: 0 | BL136: 0 | BM136: 0 | BN136: 0 | BO136: 0 | BP136: 0 | BQ136: 0 | BR136: 0 | BS136: =IF(BS$125<>"",BS$125*$N$14,"") -> 0 | BT136: 0 | BU136: 0 | BV136: 0 | BW136: 0 | BX136: 0 | BY136: 0 | BZ136: 0 | CA136: 0 | CB136: 0 | CC136: 0 | CD136: 0 | CE136: 0 | CF136: 0 | CG136: 0 | CH136: 0 | CI136: 0 | CJ136: 0 | CK136: 0 | CL136: 0 | CM136: 0 | CN136: 0 | CO136: 0 | CP136: 0 | CQ136: 0 | CR136: 0 | CS136: 0 | CT136: 0 | CU136: 0 | CV136: 0 | CW136: 0 | CX136: 0 | CY136: =IF(CY$125<>"",CY$125*$N$14,"") -> 0 | CZ136: 0 | DA136: 0 | DB136: =IF(DB$125<>"",DB$125*$N$14,"") -> 0 | DC136: 0 | DD136: 0 | DE136: =ROUND(SUM(G136:DD136),0) -> 0
B137: 7. Government Indirect Cost (13) | E137: =IF(F137="N/A","",ROUND(DE137-F137,0)) -> 0 | F137: =IF(OR('Cost Summary'!$G126="N/A ",'Cost Summary'!$G126=""), "N/A",ROUND('Cost Summary'!$G126,0)) -> 0 | DE137: 0
B138: Subtotal Add-On Costs | E138: =IF(F138=0,"",ROUND(DE138-F138,0)) ->  | F138: ='Cost Summary'!$G127 -> 0 | G138: =SUM(G131:G137) -> 0 | H138: 0 | I138: 0 | J138: 0 | K138: 0 | L138: =SUM(L131:L137) -> 0 | M138: =SUM(M131:M137) -> 0 | N138: 0 | O138: 0 | P138: 0 | Q138: 0 | R138: 0 | S138: 0 | T138: 0 | U138: 0 | V138: 0 | W138: 0 | X138: 0 | Y138: 0 | Z138: 0 | AA138: 0 | AB138: 0 | AC138: 0 | AD138: 0 | AE138: 0 | AF138: 0 | AG138: 0 | AH138: 0 | AI138: 0 | AJ138: 0 | AK138: 0 | AL138: 0 | AM138: 0 | AN138: 0 | AO138: 0 | AP138: 0 | AQ138: 0 | AR138: 0 | AS138: 0 | AT138: 0 | AU138: 0 | AV138: 0 | AW138: 0 | AX138: 0 | AY138: 0 | AZ138: 0 | BA138: 0 | BB138: 0 | BC138: 0 | BD138: 0 | BE138: 0 | BF138: 0 | BG138: 0 | BH138: 0 | BI138: 0 | BJ138: 0 | BK138: 0 | BL138: 0 | BM138: 0 | BN138: 0 | BO138: 0 | BP138: 0 | BQ138: 0 | BR138: 0 | BS138: =SUM(BS131:BS137) -> 0 | BT138: 0 | BU138: 0 | BV138: 0 | BW138: 0 | BX138: 0 | BY138: 0 | BZ138: 0 | CA138: 0 | CB138: 0 | CC138: 0 | CD138: 0 | CE138: 0 | CF138: 0 | CG138: 0 | CH138: 0 | CI138: 0 | CJ138: 0 | CK138: 0 | CL138: 0 | CM138: 0 | CN138: 0 | CO138: 0 | CP138: 0 | CQ138: 0 | CR138: 0 | CS138: 0 | CT138: 0 | CU138: 0 | CV138: 0 | CW138: 0 | CX138: 0 | CY138: 0 | CZ138: 0 | DA138: 0 | DB138: 0 | DC138: 0 | DD138: =SUM(DD131:DD137) -> 0 | DE138: =SUM(DE131:DE137) -> 0
B140: Grand Total (Undiscounted) | E140: =IF(F140=0,"",ROUND(DE140-F140,0)) ->  | F140: =ROUND('Cost Summary'!$G130,0) -> 0 | G140: =G138+G125 -> 0 | H140: 0 | I140: 0 | J140: 0 | K140: 0 | L140: 0 | M140: 0 | N140: 0 | O140: 0 | P140: 0 | Q140: 0 | R140: 0 | S140: 0 | T140: 0 | U140: 0 | V140: 0 | W140: 0 | X140: 0 | Y140: 0 | Z140: 0 | AA140: 0 | AB140: 0 | AC140: 0 | AD140: 0 | AE140: 0 | AF140: 0 | AG140: 0 | AH140: 0 | AI140: 0 | AJ140: 0 | AK140: 0 | AL140: 0 | AM140: 0 | AN140: 0 | AO140: 0 | AP140: 0 | AQ140: 0 | AR140: 0 | AS140: 0 | AT140: 0 | AU140: 0 | AV140: 0 | AW140: 0 | AX140: 0 | AY140: 0 | AZ140: 0 | BA140: 0 | BB140: 0 | BC140: 0 | BD140: 0 | BE140: 0 | BF140: 0 | BG140: 0 | BH140: 0 | BI140: 0 | BJ140: 0 | BK140: 0 | BL140: 0 | BM140: 0 | BN140: 0 | BO140: 0 | BP140: 0 | BQ140: 0 | BR140: 0 | BS140: =BS138+BS125 -> 0 | BT140: 0 | BU140: 0 | BV140: 0 | BW140: 0 | BX140: 0 | BY140: 0 | BZ140: 0 | CA140: 0 | CB140: 0 | CC140: 0 | CD140: 0 | CE140: 0 | CF140: 0 | CG140: 0 | CH140: 0 | CI140: 0 | CJ140: 0 | CK140: 0 | CL140: 0 | CM140: 0 | CN140: 0 | CO140: 0 | CP140: 0 | CQ140: 0 | CR140: 0 | CS140: 0 | CT140: 0 | CU140: 0 | CV140: 0 | CW140: 0 | CX140: 0 | CY140: 0 | CZ140: 0 | DA140: 0 | DB140: 0 | DC140: 0 | DD140: 0 | DE140: =DE125+DE138 -> 0
B142: Inflation Adjustment (Future Value = FV) | C142: FV = Se(rt) | G142: =G140*EXP(Inflation_Rate*G18) -> 0 | H142: 0 | I142: 0 | J142: 0 | K142: 0 | L142: 0 | M142: 0 | N142: 0 | O142: 0 | P142: 0 | Q142: 0 | R142: 0 | S142: 0 | T142: 0 | U142: 0 | V142: 0 | W142: 0 | X142: 0 | Y142: 0 | Z142: 0 | AA142: 0 | AB142: 0 | AC142: 0 | AD142: 0 | AE142: 0 | AF142: 0 | AG142: 0 | AH142: 0 | AI142: 0 | AJ142: 0 | AK142: 0 | AL142: 0 | AM142: =AM140*EXP(Inflation_Rate*AM18) -> 0 | AN142: 0 | AO142: 0 | AP142: 0 | AQ142: 0 | AR142: 0 | AS142: 0 | AT142: 0 | AU142: 0 | AV142: 0 | AW142: 0 | AX142: 0 | AY142: 0 | AZ142: 0 | BA142: 0 | BB142: 0 | BC142: 0 | BD142: 0 | BE142: 0 | BF142: 0 | BG142: 0 | BH142: 0 | BI142: 0 | BJ142: 0 | BK142: 0 | BL142: 0 | BM142: 0 | BN142: 0 | BO142: 0 | BP142: 0 | BQ142: 0 | BR142: 0 | BS142: =BS140*EXP(Inflation_Rate*BS18) -> 0 | BT142: 0 | BU142: 0 | BV142: 0 | BW142: 0 | BX142: 0 | BY142: 0 | BZ142: 0 | CA142: 0 | CB142: 0 | CC142: 0 | CD142: 0 | CE142: 0 | CF142: 0 | CG142: 0 | CH142: 0 | CI142: 0 | CJ142: 0 | CK142: 0 | CL142: 0 | CM142: 0 | CN142: 0 | CO142: 0 | CP142: 0 | CQ142: 0 | CR142: 0 | CS142: 0 | CT142: 0 | CU142: 0 | CV142: 0 | CW142: 0 | CX142: 0 | CY142: =CY140*EXP(Inflation_Rate*CY18) -> 0 | CZ142: 0 | DA142: 0 | DB142: 0 | DC142: 0 | DD142: 0 | DE142: =SUM(G142:DD142) -> 0
B143: Market Risk Adjustment | C143: (MR x FV) | G143: =G142*Market_Risk -> 0 | H143: 0 | I143: 0 | J143: 0 | K143: 0 | L143: 0 | M143: 0 | N143: 0 | O143: 0 | P143: 0 | Q143: 0 | R143: 0 | S143: 0 | T143: 0 | U143: 0 | V143: 0 | W143: 0 | X143: 0 | Y143: 0 | Z143: 0 | AA143: 0 | AB143: 0 | AC143: 0 | AD143: 0 | AE143: 0 | AF143: 0 | AG143: =AG142*Market_Risk -> 0 | AH143: =AH142*Market_Risk -> 0 | AI143: =AI142*Market_Risk -> 0 | AJ143: =AJ142*Market_Risk -> 0 | AK143: =AK142*Market_Risk -> 0 | AL143: =AL142*Market_Risk -> 0 | AM143: =AM142*Market_Risk -> 0 | AN143: =AN142*Market_Risk -> 0 | AO143: =AO142*Market_Risk -> 0 | AP143: =AP142*Market_Risk -> 0 | AQ143: =AQ142*Market_Risk -> 0 | AR143: =AR142*Market_Risk -> 0 | AS143: =AS142*Market_Risk -> 0 | AT143: =AT142*Market_Risk -> 0 | AU143: =AU142*Market_Risk -> 0 | AV143: =AV142*Market_Risk -> 0 | AW143: =AW142*Market_Risk -> 0 | AX143: =AX142*Market_Risk -> 0 | AY143: =AY142*Market_Risk -> 0 | AZ143: =AZ142*Market_Risk -> 0 | BA143: =BA142*Market_Risk -> 0 | BB143: =BB142*Market_Risk -> 0 | BC143: =BC142*Market_Risk -> 0 | BD143: =BD142*Market_Risk -> 0 | BE143: =BE142*Market_Risk -> 0 | BF143: =BF142*Market_Risk -> 0 | BG143: =BG142*Market_Risk -> 0 | BH143: =BH142*Market_Risk -> 0 | BI143: =BI142*Market_Risk -> 0 | BJ143: =BJ142*Market_Risk -> 0 | BK143: =BK142*Market_Risk -> 0 | BL143: =BL142*Market_Risk -> 0 | BM143: =BM142*Market_Risk -> 0 | BN143: =BN142*Market_Risk -> 0 | BO143: =BO142*Market_Risk -> 0 | BP143: =BP142*Market_Risk -> 0 | BQ143: =BQ142*Market_Risk -> 0 | BR143: =BR142*Market_Risk -> 0 | BS143: =BS142*Market_Risk -> 0 | BT143: =BT142*Market_Risk -> 0 | BU143: =BU142*Market_Risk -> 0 | BV143: =BV142*Market_Risk -> 0 | BW143: =BW142*Market_Risk -> 0 | BX143: =BX142*Market_Risk -> 0 | BY143: =BY142*Market_Risk -> 0 | BZ143: =BZ142*Market_Risk -> 0 | CA143: =CA142*Market_Risk -> 0 | CB143: =CB142*Market_Risk -> 0 | CC143: =CC142*Market_Risk -> 0 | CD143: =CD142*Market_Risk -> 0 | CE143: =CE142*Market_Risk -> 0 | CF143: =CF142*Market_Risk -> 0 | CG143: =CG142*Market_Risk -> 0 | CH143: =CH142*Market_Risk -> 0 | CI143: =CI142*Market_Risk -> 0 | CJ143: =CJ142*Market_Risk -> 0 | CK143: =CK142*Market_Risk -> 0 | CL143: =CL142*Market_Risk -> 0 | CM143: =CM142*Market_Risk -> 0 | CN143: =CN142*Market_Risk -> 0 | CO143: =CO142*Market_Risk -> 0 | CP143: =CP142*Market_Risk -> 0 | CQ143: =CQ142*Market_Risk -> 0 | CR143: =CR142*Market_Risk -> 0 | CS143: =CS142*Market_Risk -> 0 | CT143: =CT142*Market_Risk -> 0 | CU143: =CU142*Market_Risk -> 0 | CV143: =CV142*Market_Risk -> 0 | CW143: =CW142*Market_Risk -> 0 | CX143: =CX142*Market_Risk -> 0 | CY143: =CY142*Market_Risk -> 0 | CZ143: =CZ142*Market_Risk -> 0 | DA143: =DA142*Market_Risk -> 0 | DB143: =DB142*Market_Risk -> 0 | DC143: =DC142*Market_Risk -> 0 | DD143: 0 | DE143: =SUM(G143:DD143) -> 0
B144: Future Value (Fvadj) | C144: Fvadj = (FV + MR) | G144: =G142+G143 -> 0 | H144: =H142+H143 -> 0 | I144: 0 | J144: 0 | K144: 0 | L144: 0 | M144: 0 | N144: 0 | O144: 0 | P144: 0 | Q144: 0 | R144: 0 | S144: 0 | T144: 0 | U144: 0 | V144: 0 | W144: 0 | X144: 0 | Y144: 0 | Z144: 0 | AA144: 0 | AB144: 0 | AC144: 0 | AD144: 0 | AE144: 0 | AF144: 0 | AG144: 0 | AH144: 0 | AI144: 0 | AJ144: 0 | AK144: 0 | AL144: 0 | AM144: 0 | AN144: 0 | AO144: 0 | AP144: 0 | AQ144: 0 | AR144: 0 | AS144: 0 | AT144: 0 | AU144: 0 | AV144: 0 | AW144: 0 | AX144: 0 | AY144: 0 | AZ144: 0 | BA144: 0 | BB144: 0 | BC144: 0 | BD144: 0 | BE144: 0 | BF144: 0 | BG144: 0 | BH144: 0 | BI144: 0 | BJ144: 0 | BK144: 0 | BL144: 0 | BM144: 0 | BN144: 0 | BO144: 0 | BP144: 0 | BQ144: 0 | BR144: 0 | BS144: 0 | BT144: 0 | BU144: 0 | BV144: 0 | BW144: 0 | BX144: 0 | BY144: 0 | BZ144: 0 | CA144: 0 | CB144: 0 | CC144: 0 | CD144: 0 | CE144: 0 | CF144: 0 | CG144: 0 | CH144: 0 | CI144: 0 | CJ144: 0 | CK144: 0 | CL144: 0 | CM144: 0 | CN144: 0 | CO144: 0 | CP144: 0 | CQ144: 0 | CR144: 0 | CS144: 0 | CT144: 0 | CU144: 0 | CV144: 0 | CW144: 0 | CX144: 0 | CY144: 0 | CZ144: 0 | DA144: 0 | DB144: 0 | DC144: 0 | DD144: 0 | DE144: =SUM(G144:DD144) -> 0
B145: Net Present Value (PV) | C145: PV = FVadj/(1+i)t | F145: =SUM(G145:DD145) -> 0 | G145: =IF(Discount_Rate=0,G144,G$144/(POWER((1+(Discount_Rate-0.025)),G$18))) -> 0 | H145: 0 | I145: 0 | J145: 0 | K145: 0 | L145: 0 | M145: 0 | N145: 0 | O145: 0 | P145: 0 | Q145: 0 | R145: 0 | S145: 0 | T145: 0 | U145: 0 | V145: 0 | W145: 0 | X145: 0 | Y145: 0 | Z145: 0 | AA145: 0 | AB145: 0 | AC145: 0 | AD145: 0 | AE145: 0 | AF145: 0 | AG145: 0 | AH145: 0 | AI145: 0 | AJ145: 0 | AK145: 0 | AL145: 0 | AM145: =IF(Discount_Rate=0,AM144,AM$144/(POWER((1+(Discount_Rate-0.025)),AM$18))) -> 0 | AN145: 0 | AO145: 0 | AP145: 0 | AQ145: 0 | AR145: 0 | AS145: 0 | AT145: 0 | AU145: 0 | AV145: 0 | AW145: 0 | AX145: 0 | AY145: 0 | AZ145: 0 | BA145: 0 | BB145: 0 | BC145: 0 | BD145: 0 | BE145: 0 | BF145: 0 | BG145: 0 | BH145: 0 | BI145: 0 | BJ145: 0 | BK145: 0 | BL145: 0 | BM145: 0 | BN145: 0 | BO145: 0 | BP145: 0 | BQ145: 0 | BR145: 0 | BS145: =IF(Discount_Rate=0,BS144,BS$144/(POWER((1+(Discount_Rate-0.025)),BS$18))) -> 0 | BT145: 0 | BU145: 0 | BV145: 0 | BW145: 0 | BX145: 0 | BY145: 0 | BZ145: 0 | CA145: 0 | CB145: 0 | CC145: 0 | CD145: 0 | CE145: 0 | CF145: 0 | CG145: 0 | CH145: 0 | CI145: 0 | CJ145: 0 | CK145: 0 | CL145: 0 | CM145: 0 | CN145: 0 | CO145: 0 | CP145: 0 | CQ145: 0 | CR145: 0 | CS145: 0 | CT145: 0 | CU145: 0 | CV145: 0 | CW145: 0 | CX145: 0 | CY145: =IF(Discount_Rate=0,CY144,CY$144/(POWER((1+(Discount_Rate-0.025)),CY$18))) -> 0 | CZ145: 0 | DA145: 0 | DB145: 0 | DC145: 0 | DD145: 0 | DE145: =SUM(G145:DD145) -> 0
B147: Grand Total (Undiscounted) | F147: =SUM(G140:DD140) -> 0
B148: Grand Total (Inflation Adjusted) (FV) | F148: =SUM(G142:DD142) -> 0
B149: Grand Total Market Risk Adjusted (Fvadj) | F149: =SUM(G144:DD144) -> 0
B150: Grand Total Net Present Value (NPV) | F150: =SUM(G145:DD145) -> 0
B154: Source: This worksheet was prepared and contributed by Patric Lassiter, SRK Consulting

Sheet Solution Mgmt (hidden)
A1: =CONCATENATE('Property Information'!$B$26, 'Property Information'!$C$26,IF('Property Information'!$BC$18=TRUE,"- Notice or Exploration",IF('Property Information'!$BD$18=TRUE," - Plan of Operations"," - Reclamation Plan"))) -> Project Name: - Reclamation Plan
A2: =CONCATENATE('Property Information'!B28,SubmittalDate) -> Date of Submittal:
A3: =CONCATENATE('Property Information'!B12,FileName) -> File Name: SRCE_Version_1_4_1_017c_NV_2026_rev1.xlsm
A4: =CONCATENATE("Model Version: ",'Property Information'!B7) -> Model Version: Version 1.4.1
A5: =CONCATENATE("Cost Data File: ",DataFileName) -> Cost Data File: SRCE_Cost_Data_File_1_12_Std_2026_rev1.xlsm
A6: =CONCATENATE("Cost Estimate Type: ",CostEstimateType," Cost Basis: ",CostBasisCategory) -> Cost Estimate Type: Surety Cost Basis: Northern Nevada
A8: Solution/Water Management - Cost Summary | H8: =IF(OR(ISBLANK(ProjectRegion),ProjectRegion=""),"Go to Property Information Sheet and Enter Project Region",IF(OR(EquipmentZoneRate="Invalid Zone",TruckDriverZone="Invalid ZoneRate",LaborZoneRate="Invalid Zone",EquipmentZone="",TruckDriverZone="",LaborerZone=""),"Go To Labor Rates sheet and select Zone for Each Labor Classification","")) -> 
C9: Labor | D9: Equipment + Operating + Power | E9: Materials | F9: Capital | G9: Totals
B10: Pumping | C10: =O112 -> 0 | D10: =N112+P112 -> 0 | E10: N/A | F10: =M112 -> 0 | G10: =SUM(C10:F10) -> 0
B11: Forced Evaporation | C11: =N122 -> 0 | D11: =O122+P122 -> 0 | F11: =M122 -> 0 | G11: =SUM(C11:F11) -> 0
B12: Water Treatment | C12: =F132 -> 0 | D12: =G132 -> 0 | E12: =E132 -> 0 | F12: =D132 -> 0 | G12: =SUM(C12:F12) -> 0
B13: Decontamination | C13: =O141 -> 0 | D13: =P141+N141 -> 0 | F13: =M141 -> 0 | G13: =SUM(C13:F13) -> 0
B14: TOTALS | C14: =SUM(C10:C13) -> 0 | D14: =SUM(D10:D13) -> 0 | E14: =SUM(E10:E13) -> 0 | F14: =SUM(F10:F13) -> 0 | G14: =SUM(G10:G13) -> 0
A17: Color Code Key
B18: User Input - Direct Input | C18: Direct Input
B19: User Input - Pull Down List | C19: Pull Down Selection | J19: Standard Power Cost | K19: =PowerCost -> 0.1001 | L19: $/kWh | BC19: Pumping Power Cost | BD19: =IF(ISBLANK(K20),K19,K20) -> 0.1001 | BE19: $/kWh
B20: Program Constant (can override) | C20: Alternate Input | J20: User Override Power Cost | L20: $/kWh (used if costs for pumping differ from standard rates (e.g. use of diesel powered generator or pump)
B21: Program Calculated Value | C21: Locked Cell - Formula or Reference
A23: Solution/Water Management - User Input - Pumping
N24: Operating Period | Q24: User Overrides | BD24: Pumping - Metric units
B25: Description (required) | C25: ID Code | D25: Water Type | E25: Management Type | F25: Capital Cost | G25: Flow (Q) | H25: Pipeline Length | I25: Static Head | J25: Pipe Diameter (ID) | K25: Pipe Material | L25: Pump Efficiency | M25: Total Concentated Losses (1) | N25: Hrs/Day | O25: Days/ Month | P25: Number of Months | Q25: Crew Size | R25: Power Cost | BD25: Flow (Q) | BE25: Pipeline Length | BF25: Static Head | BG25: Pipe Diameter
A26: -1 | D26: (select) | E26: (select) | F26: $ | G26: =IF(Metric,"l/s","gpm") -> gpm | H26: =IF(Metric,"m","ft") -> ft | I26: =IF(Metric,"m","ft") -> ft | J26: =IF(Metric,"mm","in") -> in | K26: (select) | L26: % | R26: ($/kWh) | BD26: l/s | BE26: m | BF26: m | BG26: m
A27: =ROW(A27) - ROW($A$26)-1 -> 0 | BD27: =IF(ISBLANK(G27),"",IF(Metric,G27,ROUND(GPM2LperSec*G27,2))) ->  | BE27: =IF(Metric,H27,ROUND(Ft2M*H27,2)) -> 0 | BF27: =IF(Metric,I27,ROUND(Ft2M*I27,1)) -> 0 | BG27: =IF(Metric,J27/1000,ROUND(In2M*J27,3)) -> 0
B30: Notes: 1. k (total of all losses related to valves, restrictions, etc.). Typically 8 -20. Not significant for longer pipes.
B31: 2. Default crew assumes crew of two laborers required during pumping hours
A37: Solution/Water Management - User Input - Forced Evaporation
P38: Operating Period | S38: User Overrides | BD38: Forced Evaporation - Metric units
B39: Description (required) | C39: ID Code | D39: Water Type | E39: Management Type | F39: Forced Evaporation Method | G39: Capital Cost | H39: Flow (Q) | I39: Pipeline Length | J39: Static Head | K39: Pipe Diameter (ID) | L39: Pipe Material | M39: Pump Efficiency | N39: Total Concentated Losses (1) | O39: Required Pressure at Outlet | P39: Hrs/Day | Q39: Days/Month | R39: Number of Months | S39: Crew Size | T39: Power Cost | BD39: Flow (Q) | BE39: Pipeline Length | BF39: Static Head | BG39: Pipe Diameter | BH39: Pressure
A40: -1 | D40: (select) | E40: (select) | F40: (select) | G40: $ | H40: =IF(Metric,"l/s","gpm") -> gpm | I40: =IF(Metric,"m","ft") -> ft | J40: =IF(Metric,"m","ft") -> ft | K40: =IF(Metric,"mm","in") -> in | L40: (select) | M40: % | O40: =IF(Metric,"mH2O","psi") -> psi | T40: ($/kWh) | BD40: l/s | BE40: m | BF40: m | BG40: m | BH40: mH2O
A41: =ROW(A41) - ROW($A$40)-1 -> 0 | BD41: =IF(ISBLANK(H41),"",IF(Metric,H41,ROUND(GPM2LperSec*H41,2))) ->  | BE41: =IF(Metric,I41,ROUND(Ft2M*I41,2)) -> 0 | BF41: =IF(Metric,J41,ROUND(Ft2M*J41,1)) -> 0 | BG41: =IF(Metric,K41/1000,ROUND(In2M*K41,3)) -> 0 | BH41: =IF(Metric,O41,ROUND(psi2mH2O*O41,3)) -> 0
B44: Notes: 1. Default crew assumes crew of two laborers required during pumping hours
B45: 3. Assumes 1-1.5 ton truck for every 2 laborers
BB50: english units
A51: Solution/Water Management - Water Treatment
L52: Operating Period | BB52: Water Treatment
B53: Description (required) | C53: ID Code | D53: Water Type | E53: Treatment Type | F53: Treatment Method | G53: Montly Quantity | H53: Treatment Labor Crew Size per Shift | I53: Capital Cost | J53: =CONCATENATE("Consumable Cost/ ",IF(Metric,"m3","gal")) -> Consumable Cost/ gal | K53: =CONCATENATE("Treatment Operating Cost/",IF(Metric,"m3","gal")) -> Treatment Operating Cost/gal | L53: Number of Months | M53: Hour per Day | BB53: Annual Quant
A54: -1 | D54: (select) | E54: (select) | G54: =IF(Metric,"m3","gal") -> gal | I54: $ | J54: $ | K54: $ | BB54: gal
A55: =ROW(A55) - ROW($A$54)-1 -> 0 | BB55: =IF(ISBLANK(B55),"",IF(Metric,m3_2_Gal*G55,G55)) -> 
B58: Notes:
B59: 1. Use pumping section (above) to calculate pumping costs (including groundwater pumping).
B60: 2. Include initial materials (e.g. chemicals, organic substrate, etc.) in capital cost.
B61: 3. Treatment crew includes 1 foreman (crew defined by user above), 1 light truck if crew size > 0
B62: 4. Assumes active treatement crew works 8 hr/day, 365 days/year.
B63: 5. Assumes 1 truck per each two employees per shift
A69: Solution/Water Management - User Input - Decontamation
O70: Operating Period | Q70: User Overrides | BD70: Decontamination - Metric units
B71: Description (required) | C71: ID Code | D71: Management Type | E71: Type | F71: Disposal Location | G71: Capital Cost | H71: Pumping Flow (Q) | I71: Pipeline Length | J71: Static Head | K71: Pipe Diameter (ID) | L71: Pipe Material | M71: Pump Efficiency | N71: Total Concentated Losses (1) | O71: Number of Work Days | P71: Pumping Hrs/Day | Q71: Crew Size | R71: Power Cost | BD71: Flow (Q) | BE71: Pipeline Length | BF71: Static Head | BG71: Pipe Diameter
A72: -1 | D72: (select) | G72: $ | H72: =IF(Metric,"l/s","gpm") -> gpm | I72: =IF(Metric,"m","ft") -> ft | J72: =IF(Metric,"m","ft") -> ft | K72: =IF(Metric,"mm","in") -> in | L72: (select) | M72: % | O72: days | R72: ($/kWh) | BD72: l/s | BE72: m | BF72: m | BG72: m
A73: =ROW(A73) - ROW($A$72)-1 -> 0 | BD73: =IF(ISBLANK(H73),"",IF(Metric,H73,ROUND(GPM2LperSec*H73,2))) ->  | BE73: =IF(Metric,I73,ROUND(Ft2M*I73,2)) -> 0 | BF73: =IF(Metric,J73,ROUND(Ft2M*J73,1)) -> 0 | BG73: =IF(Metric,K73/1000,ROUND(In2M*K73,3)) -> 0
B76: Notes:
B77: 1. Assumes triple rinse of all piping, tanks and vessels requiring decontamination
B78: 2. Standard crew includes 2 laborers and 1 foreman
B79: 3. Assumes 1-1.5 ton truck for every 2 laborers
B80: 4. Assumes crew works 8 hr/day
A86: Water Management - Assumptions & Calculations
B88: Manning's Roughness Coefficient | E88: Water Treatment Costs
B90: Pipe material | C90: Manning n
B91: HDPE | E91: Water treatment cost = CapEx + Labor Cost + Equipment Cost (includes Operating Cost)
B92: ID < 4" (100 mm) | C92: 0.011
B93: ID ≥ 4 in (100 mm) < 10 in (250 mm) | C93: 0.01 | E93: CapEx = User Entered Value
B94: ID ≥ 10 in (250 mm) | C94: 0.009 | E94: Consumable costs = cost of treatment chemicals or materials based quantity treated
B95: PVC | E95: Labor Cost = No. Months x Days/mo. x [(Supervisor Cost x 8 hrs) + (Laborer Cost x Crew Size x Hours/day)]
B96: ID < 4" (100 mm) | C96: 0.011 | E96: Operating Cost = Fuel, power, maintenance or other costs calculated based on quantity treated
B97: ID ≥ 4 in (100 mm) < 10 in (250 mm) | C97: 0.01 | E97: Equipment Cost = No. Months x Days/mo. x [(Supervisor Truck Cost x 8 hrs) + (Labor Truck Cost x No. Crew Trucks x Hours/day)]
B98: ID ≥ 10 in (250 mm) | C98: 0.009 | E98: No. Crew Trucks = 1 per each two laborers per shift
B99: Brass | C99: 0.011
B100: Cast Iron | C100: 0.013
B101: Smooth Steel | C101: 0.012
B102: Asbestos Cement | C102: 0.011
A106: Solution/Water Management - Pumping | BB106: Pumping Costs
B108: Description (required) | C108: Flow | D108: Manning n (see above) | E108: Losses | F108: Velocity | G108: Friction Head | H108: Total Dynamic Head | I108: Pump Efficiency | J108: Power Required | K108: Horsepower Required | L108: Monthly Operating Hours | M108: Pump Capital Cost | N108: Total Operating Cost | O108: Total Labor Cost | P108: Total Crew Equipment Cost | Q108: Total Cost | R108: Cost/ m3 | BB108: Flow Q | BC108: Flow Q | BD108: Manning n | BE108: Losses | BF108: Velocity | BG108: Friction head | BH108: Total Dynamic Head | BI108: Pump Efficiency | BJ108: Power Required | BK108: Horsepower Required | BL108: Monthly Operating Hrs | BM108: Total m3 pumped | BN108: Crew Size | BO108: Monthly Op Ex | BP108: Total OpEx | BQ108: Pump CapEx | BR108: Monthly Labor Hrs | BS108: Labor Cost | BT108: Crew EquipCost
C109: =IF(Metric,"l/s","gpm") -> gpm | E109: k | F109: =IF(Metric,"m/sec","ft/sec") -> ft/sec | G109: =IF(Metric,"m","ft") -> ft | H109: =IF(Metric,"m","ft") -> ft | I109: % | J109: kW | K109: HP | L109: hrs | M109: $ | N109: $ | O109: $ | P109: $ | Q109: $ | R109: $ | BB109: m3/sec | BC109: m3/hr | BE109: k | BF109: m/s | BG109: m | BH109: m | BI109: % | BJ109: kW | BK109: HP | BL109: hr | BM109: m3 | BO109: $ | BP109: $ | BQ109: $ | BR109: hr | BS109: $ | BT109: $
A110: =A27 -> 0 | B110: =IF(ISBLANK(B27),"",B27) ->  | C110: =IF(OR(ISBLANK(B27),ISBLANK(G27)),"",G27) ->  | D110: =IF(OR(ISBLANK(B27),C110=""),"",BD110) ->  | E110: =IF(OR(ISBLANK(B27),C110=""),"",BE110) ->  | F110: =IF(OR(ISBLANK(B27),C110=""),"",IF(Metric,BF110,LPerSec2FtPerSec*BF110)) ->  | G110: =IF(OR(ISBLANK(B27),C110=""),"",IF(Metric,BG110,M2Ft*BG110)) ->  | H110: =IF(OR(ISBLANK(B27),C110=""),"",IF(Metric,BH110,M2Ft*BH110)) ->  | I110: =IF(OR(ISBLANK(B27),C110=""),"",BI110) ->  | J110: =IF(OR(ISBLANK(B27),C110="",C110=""),"",BJ110) ->  | K110: =IF(OR(ISBLANK(B27),C110=""),"",BK110) ->  | L110: =IF(OR(ISBLANK(B27),C110=""),"",BL110) ->  | M110: =IF(OR(ISBLANK(B27),ISBLANK(C110)),"",BQ110) ->  | N110: =IF(OR(ISBLANK(B27),ISBLANK(C110)),"",IF(L110="",0,BP110)) ->  | O110: =IF(OR(ISBLANK(B27),ISBLANK(D110)),"",IF(L110="",0,BS110)) ->  | P110: =IF(OR(ISBLANK(B27),ISBLANK(E110)),"",IF(L110="",0,BT110)) ->  | Q110: =IF(OR(ISBLANK(B27),ISBLANK(C110)),"",SUM(M110:P110)) ->  | R110: =IF(OR(ISBLANK(B27),ISBLANK(Q110),Q110=""),"",ROUND((Q110-M110)/BM110,2)) ->  | BB110: =BD27/1000 ->  | BC110: =BB110*3600 ->  | BD110: =IF(K27="HDPE",IF(BG27<0.1,INDEX(ManningsN,3,2),IF(AND(BG27>=0.1,BG27<0.25),INDEX(ManningsN,4,2),INDEX(ManningsN,5,2))),IF(K27="PVC",IF(BG27<0.1,INDEX(ManningsN,7,2),IF(AND(BG27>=0.1,BG27<0.25),INDEX(ManningsN,8,2),INDEX(ManningsN,9,2))),INDEX(ManningsN,MATCH(K27,PipeMaterials,0)+6,2))) ->  | BE110: =M27 -> 0 | BF110: =(4*BB110)/(PI()*BG27^2) ->  | BG110: =ROUND(10.29*BD110^2*(BE27*BB110^2)/BG27^(16/3)+0.0826*BE110*(BB110^2/BG27^4),3) ->  | BH110: =BF27+BG110 ->  | BI110: =L27 -> 0 | BJ110: =ROUND(BD27*BH110/(1.02*BI110),2) ->  | BK110: =ROUNDUP(BJ110/0.7457,0) ->  | BL110: =N27*O27 -> 0 | BM110: =BC110*N27*O27*P27 ->  | BN110: =IF(ISBLANK(Q27), 2,Q27) -> 2 | BO110: =ROUND(BL110*IF(ISBLANK(R27),PumpPowerCost,(R27))*BJ110,0) ->  | BP110: =ROUND(P27*BO110,0) ->  | BQ110: =F27 -> 0 | BR110: =IF(ISBLANK(Q27),BL110*2,BL110*Q27) -> 0 | BS110: =IF(ISBLANK(Q27),BL110*_2ClabLabor*P27,BR110*GeneralLaborRate*P27) -> 0 | BT110: =IF(ISBLANK(Q27),BL110*_2ClabEquip*P27,ROUNDUP(Q27/2,0)*BL110*_2ClabEquip*P27) -> 0
L112: =IF(SUM(L110:L111)=0,"",SUM(L110:L111)) ->  | M112: =IF(SUM(M110:M111)=0,0,SUM(M110:M111)) -> 0 | N112: =IF(SUM(N110:N111)=0,0,SUM(N110:N111)) -> 0 | O112: =IF(SUM(O110:O111)=0,0,SUM(O110:O111)) -> 0 | P112: =IF(SUM(P110:P111)=0,0,SUM(P110:P111)) -> 0 | Q112: =IF(SUM(Q110:Q111)=0,0,SUM(Q110:Q111)) -> 0
B113: Notes:
B114: 1. Assumes 2 man labor crew unless user overrides default.
A116: Solution/Water Management - Forced Evaporation | BB116: Forced Evap
B118: Description (required) | C118: Flow | D118: Manning n (see above) | E118: Losses | F118: Velocity | G118: Friction Head | H118: Total Dynamic Head | I118: Pump Efficiency | J118: Power Required | K118: Horsepower Required | L118: Annual Operating Hours | M118: Evaporator/ Pump Capital Cost | N118: Total Labor Cost | O118: Total Equipment Cost | P118: Total Power Cost | Q118: Total Cost | R118: Cost/ m3 | BB118: Flow Q | BC118: Flow Q | BD118: Manning n | BE118: Losses | BF118: Velocity | BG118: Friction head | BH118: Pressure Head | BI118: Total Dynamic Head | BJ118: Pump Efficiency | BK118: Power Required | BL118: Horsepower Required | BM118: Monthly Operating Hrs | BN118: Total m3 pumped | BO118: Total Labor Hours | BP118: Labor Cost | BQ118: Equipment Cost | BR118: Monthly Power Ex | BS118: Evaporator + Pump CapEx | BT118: Total Power Cost | BU118: Total Equipment
C119: =IF(Metric,"l/s","gpm") -> gpm | E119: k | F119: =IF(Metric,"m/sec","ft/sec") -> ft/sec | G119: =IF(Metric,"m","ft") -> ft | H119: =IF(Metric,"m","ft") -> ft | I119: % | J119: kW | K119: HP | L119: hrs | M119: $ | N119: $ | O119: $ | P119: $ | Q119: $ | R119: $ | BB119: m3/sec | BC119: m3/hr | BE119: k | BF119: m/s | BG119: m | BH119: m | BI119: m | BJ119: % | BK119: kW | BL119: HP | BM119: hr | BN119: m3 | BO119: hr | BP119: $ | BQ119: $ | BR119: $ | BS119: $ | BT119: $ | BU119: $
A120: =A41 -> 0 | B120: =IF(ISBLANK(B41),"",B41) ->  | C120: =IF(OR(ISBLANK(B41),ISBLANK(H41)),"",H41) ->  | D120: =IF(OR(ISBLANK(B41),C120=""),"",BD120) ->  | E120: =IF(OR(ISBLANK(B41),C120=""),"",BE120) ->  | F120: =IF(OR(ISBLANK(B41),C120=""),"",IF(Metric,BF120,LPerSec2FtPerSec*BF120)) ->  | G120: =IF(OR(ISBLANK(B41),C120=""),"",IF(Metric,BG120,M2Ft*BG120)) ->  | H120: =IF(OR(ISBLANK(B41),C120=""),"",IF(Metric,BI120,M2Ft*BI120)) ->  | I120: =IF(OR(ISBLANK(B41),C120=""),"",BJ120) ->  | J120: =IF(OR(ISBLANK(B41),C120="",C120=""),"",BK120) ->  | K120: =IF(OR(ISBLANK(B41),C120=""),"",BL120) ->  | L120: =IF(OR(ISBLANK(B41),C120=""),"",BM120) ->  | M120: =IF(OR(ISBLANK(B41),ISBLANK(C120)),"",BS120) ->  | N120: =IF(ISBLANK(B41),"",IF(L120="",0,BP120)) ->  | O120: =IF(ISBLANK(B41),"",IF(L120="",0,BQ120)) ->  | P120: =IF(ISBLANK(B41),"",IF(L120="",0,BT120)) ->  | Q120: =IF(OR(ISBLANK(B41),ISBLANK(C120)),"",SUM(M120:P120)) ->  | R120: =IF(OR(ISBLANK(B37),ISBLANK(Q120),Q120=""),"",ROUND((Q120-M120)/BN120,2)) ->  | BB120: =BD41/1000 ->  | BC120: =BB120*3600 ->  | BD120: =IF(L41="HDPE",IF(BG41<0.1,INDEX(ManningsN,3,2),IF(AND(BG41>=0.1,BG41<0.25),INDEX(ManningsN,4,2),INDEX(ManningsN,5,2))),IF(L41="PVC",IF(BG41<0.1,INDEX(ManningsN,7,2),IF(AND(BG41>=0.1,BG41<0.25),INDEX(ManningsN,8,2),INDEX(ManningsN,9,2))),INDEX(ManningsN,MATCH(L41,PipeMaterials,0)+6,2))) ->  | BE120: =N41 -> 0 | BF120: =(4*BB120)/(PI()*BG41^2) ->  | BG120: =ROUND(10.29*BD120^2*(BE41*BB120^2)/BG41^(16/3)+0.0826*BE120*(BB120^2/BG41^4),3) ->  | BH120: =BH41 -> 0 | BI120: =BF41+BG120+BH120 ->  | BJ120: =M41 -> 0 | BK120: =ROUND(BD41*BI120/(BJ120*1.02),0) ->  | BL120: =ROUNDUP(BK120/0.7457,0) ->  | BM120: =P41*Q41 -> 0 | BN120: =BC120*P41*Q41*R41 ->  | BO120: =BM120*R41 -> 0 | BP120: =BO120*IF(ISBLANK(S41),2,S41)*GeneralLaborRate -> 0 | BQ120: =BO120*IF(ISBLANK(S41),1,ROUNDUP(S41/2,0))*LightTruckRate -> 0 | BR120: =ROUND(BM120*IF(ISBLANK(T41),PumpPowerCost,(T41))*BK120,0) ->  | BS120: =G41 -> 0 | BT120: =ROUND(R41*BR120,0) ->  | BU120: =ROUND(R41*BQ120,0) -> 0
L122: =IF(SUM(L120:L121)=0,"",SUM(L120:L121)) ->  | M122: =IF(SUM(M120:M121)=0,0,SUM(M120:M121)) -> 0 | N122: =IF(SUM(N120:N121)=0,0,SUM(N120:N121)) -> 0 | O122: =IF(SUM(O120:O121)=0,0,SUM(O120:O121)) -> 0 | P122: =IF(SUM(P120:P121)=0,0,SUM(P120:P121)) -> 0 | Q122: =IF(SUM(Q120:Q121)=0,0,SUM(Q120:Q121)) -> 0
B123: Notes:
B124: 1. Assumes 2 man labor crew unless user overrides default.
A126: Solution/Water Management - Water Treatment | BB126: Treatment
B128: Description (required) | C128: Total Quantity Treated | D128: Capital Cost | E128: Total Consumables Cost | F128: Total Labor Cost | G128: Total Equipment + Operating Cost | H128: Total Treatment Cost | I128: Cost/ m3 | BB128: Total Crew Time | BC128: Total Supervisor time | BD128: Capital Cost | BE128: Total Material Cost | BF128: Total Operating Cost | BG128: Total Labor Cost | BH128: Total Equipment Cost
C129: =IF(Metric,"m3","gal") -> gal | D129: $ | E129: $ | F129: $ | G129: $ | H129: $ | I129: $ | BB129: hrs | BC129: hrs | BD129: $ | BE129: $ | BF129: $ | BG129: $ | BH129: $
A130: =A55 -> 0 | B130: =IF(ISBLANK(B55),"",B55) ->  | C130: =IF(OR(ISBLANK(B55),ISBLANK(G55)),"",IF(Metric,ROUND(Gal_2_m3*BB55*L55,0),BB55*L55)) ->  | D130: =IF(ISBLANK(B55),"",BD130) ->  | E130: =IF(ISBLANK(B55),"",IF(C130="",0,BE130)) ->  | F130: =IF(ISBLANK(B55),"",IF(C130="",0,BG130)) ->  | G130: =IF(ISBLANK(B55),"",IF(C130="",0,BF130+BH130)) ->  | H130: =IF(ISBLANK(B55),"",SUM(D130:G130)) ->  | I130: =IF(OR(ISBLANK(B55),ISBLANK(C130),C130=""),"",(H130-D130)/C130) ->  | BB130: =IF(OR(ISBLANK(B55),ISBLANK(H55)),0,ROUND(L55/12*365*M55,0)) -> 0 | BC130: =IF(OR(ISBLANK(B55),ISBLANK(H55)),0,ROUND(L55/12*365*8,0)) -> 0 | BD130: =I55 -> 0 | BE130: =ROUND(J55*G55*L55,0) -> 0 | BF130: =ROUND(K55*G55*L55,0) -> 0 | BG130: =IF(H55=0,0,(BB130*(H55*GeneralLaborRate))+(BC130*Foreman)) -> 0 | BH130: =(ROUNDUP(H55/2,0)*BB130*LightTruckRate)+(BC130*SupervisorsTruck) -> 0
B131: =IF(ISBLANK(B56),"",B56) ->  | C131: =IF(OR(ISBLANK(B56),ISBLANK(G56)),"",IF(Metric,ROUND(Gal_2_m3*BB56*L56,0),BB56*L56)) ->  | D131: =IF(ISBLANK(B56),"",BD131) ->  | E131: =IF(ISBLANK(B56),"",IF(C131="",0,BE131)) ->  | F131: =IF(ISBLANK(B56),"",IF(C131="",0,BG131)) ->  | G131: =IF(ISBLANK(B56),"",IF(C131="",0,BF131+BH131)) ->  | H131: =IF(ISBLANK(B56),"",SUM(D131:G131)) ->  | I131: =IF(ISBLANK(C56),"",SUM(E131:H131)) ->  | BB131: =IF(OR(ISBLANK(B56),ISBLANK(H56)),0,ROUND(L56/12*365*M56,0)) -> 0 | BC131: =IF(OR(ISBLANK(B56),ISBLANK(H56)),0,ROUND(L56/12*365*8,0)) -> 0 | BD131: =I56 -> 0 | BE131: =ROUND(J56*G56*L56,0) -> 0 | BF131: =ROUND(K56*G56*L56,0) -> 0 | BG131: =IF(H56=0,0,(BB131*(H56*GeneralLaborRate))+(BC131*Foreman)) -> 0 | BH131: =(ROUNDUP(H56/2,0)*BB131*LightTruckRate)+(BC131*SupervisorsTruck) -> 0
C132: =IF(SUM(C130:C131)=0,"",SUM(C130:C131)) ->  | D132: =IF(SUM(D130:D131)=0,0,SUM(D130:D131)) -> 0 | E132: =IF(SUM(E130:E131)=0,0,SUM(E130:E131)) -> 0 | F132: =IF(SUM(F130:F131)=0,0,SUM(F130:F131)) -> 0 | G132: =IF(SUM(G130:G131)=0,0,SUM(G130:G131)) -> 0 | H132: =IF(SUM(H130:H131)=0,0,SUM(H130:H131)) -> 0
A135: Solution/Water Management - Decontamination | BB135: Decontamination
B137: Description (required) | C137: Flow | D137: Manning n (see above) | E137: Losses | F137: Velocity | G137: Friction Head | H137: Total Dynamic Head | I137: Pump Efficiency | J137: Power Required | K137: Horsepower Required | L137: Total Operating Hours | M137: Pump Capital Cost | N137: Total Operating Cost | O137: Total Labor Cost | P137: Total Equipment Cost | Q137: Total Cost | BB137: Flow Q | BC137: Flow Q | BD137: Manning n | BE137: Losses | BF137: Velocity | BG137: Friction head | BH137: Total Dynamic Head | BI137: Pump Efficiency | BJ137: Power Required | BK137: Horsepower Required | BL137: Total Crew Time | BM137: Total Pumping Hrs | BN137: Total Pumping Cost | BO137: CapEx | BP137: Labor Cost | BQ137: Equipment Cost
C138: =IF(Metric,"l/s","gpm") -> gpm | E138: k | F138: =IF(Metric,"m/sec","ft/sec") -> ft/sec | G138: =IF(Metric,"m","ft") -> ft | H138: =IF(Metric,"m","ft") -> ft | I138: % | J138: kW | K138: HP | L138: hrs | M138: $ | N138: $ | O138: $ | P138: $ | Q138: $ | BB138: m3/sec | BC138: m3/hr | BE138: k | BF138: m/s | BG138: m | BH138: m | BI138: % | BJ138: kW | BK138: HP | BL138: hrs | BM138: hr | BN138: $ | BO138: $ | BP138: $ | BQ138: $
A139: =A73 -> 0 | B139: =IF(ISBLANK(B73),"",B73) ->  | C139: =IF(OR(ISBLANK(B73),ISBLANK(H73)),"",H73) ->  | D139: =IF(OR(ISBLANK(B73),C139=""),"",BD139) ->  | E139: =IF(OR(ISBLANK(B73),C139=""),"",BE139) ->  | F139: =IF(OR(ISBLANK(B73),C139=""),"",IF(Metric,BF139,LPerSec2FtPerSec*BF139)) ->  | G139: =IF(OR(ISBLANK(B73),C139=""),"",IF(Metric,BG139,M2Ft*BG139)) ->  | H139: =IF(OR(ISBLANK(B73),C139=""),"",IF(Metric,BH139,M2Ft*BH139)) ->  | I139: =IF(OR(ISBLANK(B73),C139=""),"",BI139) ->  | J139: =IF(OR(ISBLANK(B73),C139="",C139=""),"",BJ139) ->  | K139: =IF(OR(ISBLANK(B73),C139=""),"",BK139) ->  | L139: =IF(OR(ISBLANK(B73),C139=""),"",BM139) ->  | M139: =IF(OR(ISBLANK(B73),ISBLANK(C139)),"",BO139) ->  | N139: =IF(OR(ISBLANK(B73),ISBLANK(C139)),"",IF(L139="",0,BN139)) ->  | O139: =IF(OR(ISBLANK(B73),ISBLANK(C139)),"",IF(L139="",0,BP139)) ->  | P139: =IF(OR(ISBLANK(B73),ISBLANK(E139)),"",IF(L139="",0,BQ139)) ->  | Q139: =IF(OR(ISBLANK(B73),ISBLANK(C139)),"",SUM(M139:P139)) ->  | BB139: =BD73/1000 ->  | BC139: =BB139*3600 ->  | BD139: =IF(L73="HDPE",IF(BG73<0.1,INDEX(ManningsN,3,2),IF(AND(BG73>=0.1,BG73<0.25),INDEX(ManningsN,4,2),INDEX(ManningsN,5,2))),IF(L73="PVC",IF(BG73<0.1,INDEX(ManningsN,7,2),IF(AND(BG73>=0.1,BG73<0.25),INDEX(ManningsN,8,2),INDEX(ManningsN,9,2))),INDEX(ManningsN,MATCH(L73,PipeMaterials,0)+6,2))) ->  | BE139: =N73 -> 0 | BF139: =(4*BB139)/(PI()*BG73^2) ->  | BG139: =ROUND(10.29*BD139^2*(BE73*BB139^2)/BG73^(16/3)+0.0826*BE139*(BB139^2/BG73^4),3) ->  | BH139: =BF73+BG139 ->  | BI139: =M73 -> 0 | BJ139: =ROUND(BD73*BH139/(1.02*BI139),0) ->  | BK139: =ROUNDUP(BJ139/0.7457,0) ->  | BL139: =O73*8 -> 0 | BM139: =ROUND(P73*O73,0) -> 0 | BN139: =ROUND(BM139*IF(ISBLANK(R73),PumpPowerCost,(R73))*BJ139,0) ->  | BO139: =G73 -> 0 | BP139: =BL139*((IF(ISBLANK(Q73),2,Q73)*GeneralLaborRate)+ForemanRate) -> 0 | BQ139: =BL139*IF(ISBLANK(Q73),1,ROUNDUP(Q73/3,0))*LightTruckRate -> 0
L141: =IF(SUM(L139:L140)=0,"",SUM(L139:L140)) ->  | M141: =IF(SUM(M139:M140)=0,0,SUM(M139:M140)) -> 0 | N141: =IF(SUM(N139:N140)=0,0,SUM(N139:N140)) -> 0 | O141: =IF(SUM(O139:O140)=0,0,SUM(O139:O140)) -> 0 | P141: =IF(SUM(P139:P140)=0,0,SUM(P139:P140)) -> 0 | Q141: =IF(SUM(Q139:Q140)=0,0,SUM(Q139:Q140)) -> 0

Sheet Other User
A1: =CONCATENATE('Property Information'!$B$26, 'Property Information'!$C$26,IF('Property Information'!$BC$18=TRUE,"- Notice or Exploration",IF('Property Information'!$BD$18=TRUE," - Plan of Operations"," - Reclamation Plan"))) -> Project Name: - Reclamation Plan
A2: =CONCATENATE('Property Information'!B28,SubmittalDate) -> Date of Submittal:
A3: =CONCATENATE('Property Information'!B12,FileName) -> File Name: SRCE_Version_1_4_1_017c_NV_2026_rev1.xlsm
A4: =CONCATENATE("Model Version: ",'Property Information'!B7) -> Model Version: Version 1.4.1
A5: =CONCATENATE("Cost Data: ",DataCostBasis) -> Cost Data: User Data
A6: =CONCATENATE("Cost Data File: ",DataFileName) -> Cost Data File: SRCE_Cost_Data_File_1_12_Std_2026_rev1.xlsm
A7: =CONCATENATE("Cost Estimate Type: ",CostEstimateType," Cost Basis: ",CostBasisCategory) -> Cost Estimate Type: Surety Cost Basis: Northern Nevada
A9: Other User Costs | I9: =IF(OR(ISBLANK(ProjectRegion),ProjectRegion=""),"Go to Property Information Sheet and Enter Project Region",IF(OR(EquipmentZoneRate="Invalid Zone",TruckDriverZone="Invalid ZoneRate",LaborZoneRate="Invalid Zone",EquipmentZone="",TruckDriverZone="",LaborerZone=""),"Go To Labor Rates sheet and select Zone for Each Labor Classification","")) -> 
C10: Labor | D10: Equipment | F10: Materials & Capital | G10: Totals
B11: Other Cost Items | C11: =J29 -> 0 | D11: =K29 -> 0 | F11: =H29+I29 -> 0 | G11: =SUM(C11:F11) -> 0
A15: Color Code Key
B16: User Input - Direct Input | C16: Direct Input
B17: User Input - Pull Down List | C17: Pull Down Selection
B18: Program Constant (can override) | C18: Alternate Input
B19: Program Calculated Value | C19: Locked Cell - Formula or Reference
B22: 1 | C22: 2 | D22: 3 | E22: 4 | F22: 5 | G22: 6 | H22: 7 | I22: 8 | J22: 9
A23: Other Cost Items Calculated Elsewhere
B25: Description (required) | C25: ID Code | D25: Facility Type | E25: Work ID | F25: Quantity | G25: Units | H25: Total Capital Cost | I25: Material Unit Cost | J25: Labor Unit Cost | K25: Equipment/ Operating Unit Cost | L25: Cost Type | M25: Total Cost | N25: Comments
A26: -1 | H26: $ | I26: $ | J26: $ | K26: $ | L26: (select) | M26: $ | BC26: Other user capex | BD26: other user materials | BE26: other user labor | BF26: other user equipment | BG26: other user subtotals
A27: =ROW(A27) - ROW($A$26)-1 -> 0 | M27: =IF(ISBLANK(B27),"",IF(OR(H27="",ISBLANK(H27),NOT(ISNUMBER(H27))),0,H27)+(SUM(I27:K27)*F27)) ->  | BC27: =IF(OR(H27="",ISBLANK(H27),NOT(ISNUMBER(H27))),0,H27) -> 0 | BD27: =$F27*IF(OR(I27="",ISBLANK(I27),NOT(ISNUMBER(I27))),0,I27) -> 0 | BE27: =$F27*IF(OR(J27="",ISBLANK(J27),NOT(ISNUMBER(J27))),0,J27) -> 0 | BF27: =$F27*IF(OR(K27="",ISBLANK(K27),NOT(ISNUMBER(K27))),0,K27) -> 0 | BG27: =SUM(BC27:BF27) -> 0
H29: =SUM(H27:H28) -> 0 | I29: =SUMPRODUCT($F$27:$F$28,I27:I28) -> 0 | J29: =SUMPRODUCT($F$27:$F$28,J27:J28) -> 0 | K29: =SUMPRODUCT($F$27:$F$28,K27:K28) -> 0 | M29: =SUM(M27:M28) -> 0
A31: Notes: | B31: Capital cost is lump sum (i.e. not multiplied by the quantity).
B32: Material, Labor and Equipment/Operating costs are unit costs (i.e. multiplied by the quantity).

Sheet Closure Planning (hidden)
A1: =CONCATENATE('Property Information'!$B$26, 'Property Information'!$C$26,IF('Property Information'!$BC$18=TRUE,"- Notice or Exploration",IF('Property Information'!$BD$18=TRUE," - Plan of Operations"," - Reclamation Plan"))) -> Project Name: - Reclamation Plan
A2: =CONCATENATE('Property Information'!B28,SubmittalDate) -> Date of Submittal:
A3: =CONCATENATE('Property Information'!B12,FileName) -> File Name: SRCE_Version_1_4_1_017c_NV_2026_rev1.xlsm
A4: =CONCATENATE("Model Version: ",'Property Information'!B7) -> Model Version: Version 1.4.1
A5: =CONCATENATE("Cost Data: ",DataCostBasis) -> Cost Data: User Data
A6: =CONCATENATE("Cost Data File: ",DataFileName) -> Cost Data File: SRCE_Cost_Data_File_1_12_Std_2026_rev1.xlsm
A7: =CONCATENATE("Cost Estimate Type: ",CostEstimateType," Cost Basis: ",CostBasisCategory) -> Cost Estimate Type: Surety Cost Basis: Northern Nevada
A9: Closure Plan Management | E9: =IF(OR(ISBLANK(ProjectRegion),ProjectRegion=""),"Go to Property Information Sheet and Enter Project Region",IF(OR(EquipmentZoneRate="Invalid Zone",TruckDriverZone="Invalid ZoneRate",LaborZoneRate="Invalid Zone",EquipmentZone="",TruckDriverZone="",LaborerZone=""),"Go To Labor Rates sheet and select Zone for Each Labor Classification","")) -> 
C10: Totals
B11: Technical Studies | C11: =E28 -> 0
B12: Engineering | C12: =E43 -> 0
B13: Permitting | C13: =E58 -> 0
B14: TOTALS | C14: =SUM(C11:C13) -> 0
A17: Color Code Key
B18: User Input - Direct Input | C18: Direct Input
B19: User Input - Pull Down List | C19: Pull Down Selection
B20: Program Constant (can override) | C20: Alternate Input
B21: Program Calculated Value | C21: Locked Cell - Formula or Reference
A23: Closure Plan Studies and Reporting
B24: Description (required) | C24: ID Code | D24: Type | E24: Total Cost | F24: Comments
A25: -1 | D25: (select type) | E25: $
A26: =ROW(A26) - ROW($A$25)-1 -> 0
E28: =IF(SUM(E26:E27)=0,0,SUM(E26:E27)) -> 0
A30: Notes:
A38: Closure Plan Engineering
B39: Description (required) | C39: ID Code | D39: Type | E39: Total Cost | F39: Comments
A40: -1 | D40: (select type) | E40: $
A41: =ROW(A41) - ROW($A$40)-1 -> 0
E43: =IF(SUM(E41:E42)=0,0,SUM(E41:E42)) -> 0
A45: Notes:
A53: Closure Plan Permitting
B54: Description (required) | C54: ID Code | D54: Type | E54: Total Cost | F54: Comments
A55: -1 | D55: (select type) | E55: $
A56: =ROW(A56) - ROW($A$55)-1 -> 0
E58: =IF(SUM(E56:E57)=0,0,SUM(E56:E57)) -> 0
A60: Notes:

Sheet G & A (hidden)
A1: =CONCATENATE('Property Information'!$B$26, 'Property Information'!$C$26,IF('Property Information'!$BC$18=TRUE,"- Notice or Exploration",IF('Property Information'!$BD$18=TRUE," - Plan of Operations"," - Reclamation Plan"))) -> Project Name: - Reclamation Plan
A2: =CONCATENATE('Property Information'!B28,SubmittalDate) -> Date of Submittal:
A3: =CONCATENATE('Property Information'!B12,FileName) -> File Name: SRCE_Version_1_4_1_017c_NV_2026_rev1.xlsm
A4: =CONCATENATE("Model Version: ",'Property Information'!B7) -> Model Version: Version 1.4.1
A5: =CONCATENATE("Cost Data: ",DataCostBasis) -> Cost Data: User Data
A6: =CONCATENATE("Cost Data File: ",DataFileName) -> Cost Data File: SRCE_Cost_Data_File_1_12_Std_2026_rev1.xlsm
A7: =CONCATENATE("Cost Estimate Type: ",CostEstimateType," Cost Basis: ",CostBasisCategory) -> Cost Estimate Type: Surety Cost Basis: Northern Nevada
A9: General & Administration | E9: =IF(OR(ISBLANK(ProjectRegion),ProjectRegion=""),"Go to Property Information Sheet and Enter Project Region",IF(OR(EquipmentZoneRate="Invalid Zone",TruckDriverZone="Invalid ZoneRate",LaborZoneRate="Invalid Zone",EquipmentZone="",TruckDriverZone="",LaborerZone=""),"Go To Labor Rates sheet and select Zone for Each Labor Classification","")) -> 
C10: Totals
B11: Property Holding Costs | C11: =H28 -> 0
B12: Security & Maintenance | C12: =H42 -> 0
B13: Administration | C13: =H56 -> 0
B14: TOTALS | C14: =SUM(C11:C13) -> 0
A17: Color Code Key
B18: User Input - Direct Input | C18: Direct Input
B19: User Input - Pull Down List | C19: Pull Down Selection
B20: Program Constant (can override) | C20: Alternate Input
B21: Program Calculated Value | C21: Locked Cell - Formula or Reference
A23: Property Holding Costs
B24: Description (required) | C24: ID Code | D24: Type | E24: Frequency | F24: Cost/ Payment | G24: Number of Payments | H24: Total Cost | I24: Comments
A25: -1 | D25: (select type) | E25: (select type) | F25: $ | H25: $
A26: =ROW(A26) - ROW($A$25)-1 -> 0 | H26: =F26*G26 -> 0
H28: =IF(SUM(H26:H27)=0,0,SUM(H26:H27)) -> 0
A30: Notes:
A37: Security and Maintenance
B38: Description (required) | C38: ID Code | D38: Type | E38: Frequency | F38: Cost/ Payment | G38: Number of Payments | H38: Total Cost | I38: Comments
A39: -1 | D39: (select type) | E39: (select type) | F39: $ | H39: $
A40: =ROW(A40) - ROW($A$39)-1 -> 0 | H40: =F40*G40 -> 0
H42: =IF(SUM(H40:H41)=0,0,SUM(H40:H41)) -> 0
A44: Notes:
A51: Administration
B52: Description (required) | C52: ID Code | D52: Type | E52: Frequency | F52: Cost/ Payment | G52: Number of Payments | H52: Total Cost | I52: Comments
A53: -1 | D53: (select type) | E53: (select type) | F53: $ | H53: $
A54: =ROW(A54) - ROW($A$53)-1 -> 0 | H54: =F54*G54 -> 0
H56: =IF(SUM(H54:H55)=0,0,SUM(H54:H55)) -> 0
A58: Notes:

Sheet Human Resources (hidden)
A1: =CONCATENATE('Property Information'!$B$26, 'Property Information'!$C$26,IF('Property Information'!$BC$18=TRUE,"- Notice or Exploration",IF('Property Information'!$BD$18=TRUE," - Plan of Operations"," - Reclamation Plan"))) -> Project Name: - Reclamation Plan
A2: =CONCATENATE('Property Information'!B28,SubmittalDate) -> Date of Submittal:
A3: =CONCATENATE('Property Information'!B12,FileName) -> File Name: SRCE_Version_1_4_1_017c_NV_2026_rev1.xlsm
A4: =CONCATENATE("Model Version: ",'Property Information'!B7) -> Model Version: Version 1.4.1
A5: =CONCATENATE("Cost Data: ",DataCostBasis) -> Cost Data: User Data
A6: =CONCATENATE("Cost Data File: ",DataFileName) -> Cost Data File: SRCE_Cost_Data_File_1_12_Std_2026_rev1.xlsm
A7: =CONCATENATE("Cost Estimate Type: ",CostEstimateType," Cost Basis: ",CostBasisCategory) -> Cost Estimate Type: Surety Cost Basis: Northern Nevada
B9: Human Resources | E9: =IF(OR(ISBLANK(ProjectRegion),ProjectRegion=""),"Go to Property Information Sheet and Enter Project Region",IF(OR(EquipmentZoneRate="Invalid Zone",TruckDriverZone="Invalid ZoneRate",LaborZoneRate="Invalid Zone",EquipmentZone="",TruckDriverZone="",LaborerZone=""),"Go To Labor Rates sheet and select Zone for Each Labor Classification","")) -> 
C10: Totals
B11: Salaries & Benefits | C11: =DA29 -> 0
B12: Severance & Relocation | C12: =DA43 -> 0
B13: TOTALS | C13: =SUM(C11:C12) -> 0
A17: Color Code Key
B18: User Input - Direct Input | C18: Direct Input
B19: User Input - Pull Down List | C19: Pull Down Selection
B20: Program Constant (can override) | C20: Alternate Input
B21: Program Calculated Value | C21: Locked Cell - Formula or Reference
A23: Human Resources - Salary & Benefits
E24: 1 | F24: =E24+1 -> 2 | G24: =F24+1 -> 3 | H24: 4 | I24: 5 | J24: 6 | K24: 7 | L24: 8 | M24: 9 | N24: 10 | O24: 11 | P24: 12 | Q24: 13 | R24: 14 | S24: 15 | T24: 16 | U24: 17 | V24: 18 | W24: 19 | X24: 20 | Y24: 21 | Z24: 22 | AA24: 23 | AB24: 24 | AC24: 25 | AD24: 26 | AE24: 27 | AF24: 28 | AG24: 29 | AH24: 30 | AI24: 31 | AJ24: 32 | AK24: 33 | AL24: 34 | AM24: 35 | AN24: 36 | AO24: 37 | AP24: 38 | AQ24: 39 | AR24: 40 | AS24: 41 | AT24: 42 | AU24: 43 | AV24: 44 | AW24: 45 | AX24: 46 | AY24: 47 | AZ24: 48 | BA24: 49 | BB24: 50 | BC24: 51 | BD24: 52 | BE24: 53 | BF24: 54 | BG24: 55 | BH24: 56 | BI24: 57 | BJ24: 58 | BK24: 59 | BL24: 60 | BM24: 61 | BN24: 62 | BO24: 63 | BP24: 64 | BQ24: 65 | BR24: 66 | BS24: =BR24+1 -> 67 | BT24: 68 | BU24: 69 | BV24: 70 | BW24: 71 | BX24: 72 | BY24: 73 | BZ24: 74 | CA24: 75 | CB24: 76 | CC24: 77 | CD24: 78 | CE24: 79 | CF24: 80 | CG24: 81 | CH24: 82 | CI24: 83 | CJ24: 84 | CK24: 85 | CL24: 86 | CM24: 87 | CN24: 88 | CO24: 89 | CP24: 90 | CQ24: 91 | CR24: 92 | CS24: 93 | CT24: 94 | CU24: 95 | CV24: 96 | CW24: 97 | CX24: 98 | CY24: 99 | CZ24: 100
B25: Job Description (required) | C25: Avg. Annual Salary (incl. benefits) | D25: Type | E25: =CONCATENATE("Closure Year " &E24) -> Closure Year 1 | F25: Closure Year 2 | G25: Closure Year 3 | H25: Closure Year 4 | I25: Closure Year 5 | J25: Closure Year 6 | K25: Closure Year 7 | L25: Closure Year 8 | M25: Closure Year 9 | N25: Closure Year 10 | O25: Closure Year 11 | P25: Closure Year 12 | Q25: Closure Year 13 | R25: Closure Year 14 | S25: Closure Year 15 | T25: Closure Year 16 | U25: Closure Year 17 | V25: Closure Year 18 | W25: Closure Year 19 | X25: Closure Year 20 | Y25: Closure Year 21 | Z25: Closure Year 22 | AA25: Closure Year 23 | AB25: Closure Year 24 | AC25: Closure Year 25 | AD25: Closure Year 26 | AE25: Closure Year 27 | AF25: Closure Year 28 | AG25: Closure Year 29 | AH25: Closure Year 30 | AI25: Closure Year 31 | AJ25: Closure Year 32 | AK25: =CONCATENATE("Closure Year " &AK24) -> Closure Year 33 | AL25: Closure Year 34 | AM25: Closure Year 35 | AN25: Closure Year 36 | AO25: Closure Year 37 | AP25: Closure Year 38 | AQ25: Closure Year 39 | AR25: Closure Year 40 | AS25: Closure Year 41 | AT25: Closure Year 42 | AU25: Closure Year 43 | AV25: Closure Year 44 | AW25: Closure Year 45 | AX25: Closure Year 46 | AY25: Closure Year 47 | AZ25: Closure Year 48 | BA25: Closure Year 49 | BB25: Closure Year 50 | BC25: Closure Year 51 | BD25: Closure Year 52 | BE25: Closure Year 53 | BF25: Closure Year 54 | BG25: Closure Year 55 | BH25: Closure Year 56 | BI25: Closure Year 57 | BJ25: Closure Year 58 | BK25: Closure Year 59 | BL25: Closure Year 60 | BM25: Closure Year 61 | BN25: Closure Year 62 | BO25: Closure Year 63 | BP25: Closure Year 64 | BQ25: =CONCATENATE("Closure Year " &BQ24) -> Closure Year 65 | BR25: Closure Year 66 | BS25: Closure Year 67 | BT25: Closure Year 68 | BU25: Closure Year 69 | BV25: Closure Year 70 | BW25: Closure Year 71 | BX25: Closure Year 72 | BY25: Closure Year 73 | BZ25: Closure Year 74 | CA25: Closure Year 75 | CB25: Closure Year 76 | CC25: Closure Year 77 | CD25: Closure Year 78 | CE25: Closure Year 79 | CF25: Closure Year 80 | CG25: Closure Year 81 | CH25: Closure Year 82 | CI25: Closure Year 83 | CJ25: Closure Year 84 | CK25: Closure Year 85 | CL25: Closure Year 86 | CM25: Closure Year 87 | CN25: Closure Year 88 | CO25: Closure Year 89 | CP25: Closure Year 90 | CQ25: Closure Year 91 | CR25: Closure Year 92 | CS25: Closure Year 93 | CT25: Closure Year 94 | CU25: Closure Year 95 | CV25: Closure Year 96 | CW25: =CONCATENATE("Closure Year " &CW24) -> Closure Year 97 | CX25: =CONCATENATE("Closure Year " &CX24) -> Closure Year 98 | CY25: =CONCATENATE("Closure Year " &CY24) -> Closure Year 99 | CZ25: =CONCATENATE("Closure Year " &CZ24) -> Closure Year 100 | DA25: Totals
A26: -1 | C26: $ | E26: # | F26: # | G26: # | H26: # | I26: # | J26: # | K26: # | L26: # | M26: # | N26: # | O26: # | P26: # | Q26: # | R26: # | S26: # | T26: # | U26: # | V26: # | W26: # | X26: # | Y26: # | Z26: # | AA26: # | AB26: # | AC26: # | AD26: # | AE26: # | AF26: # | AG26: # | AH26: # | AI26: # | AJ26: # | AK26: # | AL26: # | AM26: # | AN26: # | AO26: # | AP26: # | AQ26: # | AR26: # | AS26: # | AT26: # | AU26: # | AV26: # | AW26: # | AX26: # | AY26: # | AZ26: # | BA26: # | BB26: # | BC26: # | BD26: # | BE26: # | BF26: # | BG26: # | BH26: # | BI26: # | BJ26: # | BK26: # | BL26: # | BM26: # | BN26: # | BO26: # | BP26: # | BQ26: # | BR26: # | BS26: # | BT26: # | BU26: # | BV26: # | BW26: # | BX26: # | BY26: # | BZ26: # | CA26: # | CB26: # | CC26: # | CD26: # | CE26: # | CF26: # | CG26: # | CH26: # | CI26: # | CJ26: # | CK26: # | CL26: # | CM26: # | CN26: # | CO26: # | CP26: # | CQ26: # | CR26: # | CS26: # | CT26: # | CU26: # | CV26: # | CW26: # | CX26: # | CY26: # | CZ26: # | DA26: $
A27: =ROW(A27) - ROW($A$26)-1 -> 0 | DA27: =C27*SUM(E27:CZ27) -> 0
C29: SUBTOTAL | E29: =IF(SUMPRODUCT($C$27:$C$28,E27:E28)=0,0,SUMPRODUCT($C$27:$C$28,E27:E28)) -> 0 | F29: 0 | G29: 0 | H29: 0 | I29: 0 | J29: 0 | K29: 0 | L29: 0 | M29: 0 | N29: 0 | O29: 0 | P29: 0 | Q29: 0 | R29: 0 | S29: 0 | T29: 0 | U29: 0 | V29: 0 | W29: 0 | X29: 0 | Y29: 0 | Z29: 0 | AA29: 0 | AB29: 0 | AC29: 0 | AD29: 0 | AE29: 0 | AF29: 0 | AG29: 0 | AH29: 0 | AI29: 0 | AJ29: 0 | AK29: =IF(SUMPRODUCT($C$27:$C$28,AK27:AK28)=0,0,SUMPRODUCT($C$27:$C$28,AK27:AK28)) -> 0 | AL29: 0 | AM29: 0 | AN29: 0 | AO29: 0 | AP29: 0 | AQ29: 0 | AR29: 0 | AS29: 0 | AT29: 0 | AU29: 0 | AV29: 0 | AW29: 0 | AX29: 0 | AY29: 0 | AZ29: 0 | BA29: 0 | BB29: 0 | BC29: 0 | BD29: 0 | BE29: 0 | BF29: 0 | BG29: 0 | BH29: 0 | BI29: 0 | BJ29: 0 | BK29: 0 | BL29: 0 | BM29: 0 | BN29: 0 | BO29: 0 | BP29: 0 | BQ29: =IF(SUMPRODUCT($C$27:$C$28,BQ27:BQ28)=0,0,SUMPRODUCT($C$27:$C$28,BQ27:BQ28)) -> 0 | BR29: 0 | BS29: 0 | BT29: 0 | BU29: 0 | BV29: 0 | BW29: 0 | BX29: 0 | BY29: 0 | BZ29: 0 | CA29: 0 | CB29: 0 | CC29: 0 | CD29: 0 | CE29: 0 | CF29: 0 | CG29: 0 | CH29: 0 | CI29: 0 | CJ29: 0 | CK29: 0 | CL29: 0 | CM29: 0 | CN29: 0 | CO29: 0 | CP29: 0 | CQ29: 0 | CR29: 0 | CS29: 0 | CT29: 0 | CU29: 0 | CV29: 0 | CW29: =IF(SUMPRODUCT($C$27:$C$28,CW27:CW28)=0,0,SUMPRODUCT($C$27:$C$28,CW27:CW28)) -> 0 | CX29: 0 | CY29: 0 | CZ29: 0 | DA29: =SUM(DA27:DA28) -> 0
B31: Notes:
A38: Human Resources - Severance & Outplacement Benefits
B39: Job Description | C39: Severance & Outplacement Cost | E39: =E25 -> Closure Year 1 | F39: Closure Year 2 | G39: Closure Year 3 | H39: Closure Year 4 | I39: Closure Year 5 | J39: Closure Year 6 | K39: Closure Year 7 | L39: Closure Year 8 | M39: Closure Year 9 | N39: Closure Year 10 | O39: Closure Year 11 | P39: Closure Year 12 | Q39: Closure Year 13 | R39: Closure Year 14 | S39: Closure Year 15 | T39: Closure Year 16 | U39: Closure Year 17 | V39: Closure Year 18 | W39: Closure Year 19 | X39: Closure Year 20 | Y39: Closure Year 21 | Z39: Closure Year 22 | AA39: Closure Year 23 | AB39: Closure Year 24 | AC39: Closure Year 25 | AD39: Closure Year 26 | AE39: Closure Year 27 | AF39: Closure Year 28 | AG39: Closure Year 29 | AH39: Closure Year 30 | AI39: Closure Year 31 | AJ39: Closure Year 32 | AK39: =AK25 -> Closure Year 33 | AL39: Closure Year 34 | AM39: Closure Year 35 | AN39: Closure Year 36 | AO39: Closure Year 37 | AP39: Closure Year 38 | AQ39: Closure Year 39 | AR39: Closure Year 40 | AS39: Closure Year 41 | AT39: Closure Year 42 | AU39: Closure Year 43 | AV39: Closure Year 44 | AW39: Closure Year 45 | AX39: Closure Year 46 | AY39: Closure Year 47 | AZ39: Closure Year 48 | BA39: Closure Year 49 | BB39: Closure Year 50 | BC39: Closure Year 51 | BD39: Closure Year 52 | BE39: Closure Year 53 | BF39: Closure Year 54 | BG39: Closure Year 55 | BH39: Closure Year 56 | BI39: Closure Year 57 | BJ39: Closure Year 58 | BK39: Closure Year 59 | BL39: Closure Year 60 | BM39: Closure Year 61 | BN39: Closure Year 62 | BO39: Closure Year 63 | BP39: Closure Year 64 | BQ39: =BQ25 -> Closure Year 65 | BR39: Closure Year 66 | BS39: Closure Year 67 | BT39: Closure Year 68 | BU39: Closure Year 69 | BV39: Closure Year 70 | BW39: Closure Year 71 | BX39: Closure Year 72 | BY39: Closure Year 73 | BZ39: Closure Year 74 | CA39: Closure Year 75 | CB39: Closure Year 76 | CC39: Closure Year 77 | CD39: Closure Year 78 | CE39: Closure Year 79 | CF39: Closure Year 80 | CG39: Closure Year 81 | CH39: Closure Year 82 | CI39: Closure Year 83 | CJ39: Closure Year 84 | CK39: Closure Year 85 | CL39: Closure Year 86 | CM39: Closure Year 87 | CN39: Closure Year 88 | CO39: Closure Year 89 | CP39: Closure Year 90 | CQ39: Closure Year 91 | CR39: Closure Year 92 | CS39: Closure Year 93 | CT39: Closure Year 94 | CU39: Closure Year 95 | CV39: Closure Year 96 | CW39: Closure Year 97 | CX39: Closure Year 98 | CY39: Closure Year 99 | CZ39: Closure Year 100 | DA39: Totals
C40: $ | E40: # | F40: # | G40: # | H40: # | I40: # | J40: # | K40: # | L40: # | M40: # | N40: # | O40: # | P40: # | Q40: # | R40: # | S40: # | T40: # | U40: # | V40: # | W40: # | X40: # | Y40: # | Z40: # | AA40: # | AB40: # | AC40: # | AD40: # | AE40: # | AF40: # | AG40: # | AH40: # | AI40: # | AJ40: # | AK40: # | AL40: # | AM40: # | AN40: # | AO40: # | AP40: # | AQ40: # | AR40: # | AS40: # | AT40: # | AU40: # | AV40: # | AW40: # | AX40: # | AY40: # | AZ40: # | BA40: # | BB40: # | BC40: # | BD40: # | BE40: # | BF40: # | BG40: # | BH40: # | BI40: # | BJ40: # | BK40: # | BL40: # | BM40: # | BN40: # | BO40: # | BP40: # | BQ40: # | BR40: # | BS40: # | BT40: # | BU40: # | BV40: # | BW40: # | BX40: # | BY40: # | BZ40: # | CA40: # | CB40: # | CC40: # | CD40: # | CE40: # | CF40: # | CG40: # | CH40: # | CI40: # | CJ40: # | CK40: # | CL40: # | CM40: # | CN40: # | CO40: # | CP40: # | CQ40: # | CR40: # | CS40: # | CT40: # | CU40: # | CV40: # | CW40: # | CX40: # | CY40: # | CZ40: # | DA40: $
A41: =A27 -> 0 | B41: =IF(ISBLANK(B27),"",B27) ->  | E41: =IF(E27-F27<=0,"",E27-F27) ->  | AQ41: =IF(AQ27-BL27<=0,"",AQ27-BL27) ->  | AR41: =IF(AR27-AS27<=0,"",AR27-AS27) ->  | BK41: =IF(BK27-CF27<=0,"",BK27-CF27) ->  | BL41: =IF(BL27-BM27<=0,"",BL27-BM27) ->  | CE41: =IF(CE27-CZ27<=0,"",CE27-CZ27) ->  | CF41: =IF(CF27-CG27<=0,"",CF27-CG27) ->  | CY41: =IF(CY27-DT27<=0,"",CY27-DT27) ->  | CZ41: =IF(CZ27-DA27<=0,"",CZ27-DA27) ->  | DA41: =IF(C41="","",C41*SUM(E41:CZ41)) -> 
D43: SUBTOTAL | E43: =IF(SUMPRODUCT($C$41:$C$42,E41:E42)=0,0,SUMPRODUCT($C$41:$C$42,E41:E42)) -> 0 | F43: 0 | G43: 0 | H43: 0 | I43: 0 | J43: 0 | K43: 0 | L43: 0 | M43: 0 | N43: 0 | O43: 0 | P43: 0 | Q43: 0 | R43: 0 | S43: 0 | T43: 0 | U43: 0 | V43: 0 | W43: 0 | X43: 0 | Y43: 0 | Z43: 0 | AA43: 0 | AB43: 0 | AC43: 0 | AD43: 0 | AE43: 0 | AF43: 0 | AG43: 0 | AH43: 0 | AI43: 0 | AJ43: 0 | AK43: =IF(SUMPRODUCT($C$41:$C$42,AK41:AK42)=0,0,SUMPRODUCT($C$41:$C$42,AK41:AK42)) -> 0 | AL43: 0 | AM43: 0 | AN43: 0 | AO43: 0 | AP43: 0 | AQ43: 0 | AR43: 0 | AS43: 0 | AT43: 0 | AU43: 0 | AV43: 0 | AW43: 0 | AX43: 0 | AY43: 0 | AZ43: 0 | BA43: 0 | BB43: 0 | BC43: 0 | BD43: 0 | BE43: 0 | BF43: 0 | BG43: 0 | BH43: 0 | BI43: 0 | BJ43: 0 | BK43: 0 | BL43: 0 | BM43: 0 | BN43: 0 | BO43: 0 | BP43: 0 | BQ43: =IF(SUMPRODUCT($C$41:$C$42,BQ41:BQ42)=0,0,SUMPRODUCT($C$41:$C$42,BQ41:BQ42)) -> 0 | BR43: 0 | BS43: 0 | BT43: 0 | BU43: 0 | BV43: 0 | BW43: 0 | BX43: 0 | BY43: 0 | BZ43: 0 | CA43: 0 | CB43: 0 | CC43: 0 | CD43: 0 | CE43: 0 | CF43: 0 | CG43: 0 | CH43: 0 | CI43: 0 | CJ43: 0 | CK43: 0 | CL43: 0 | CM43: 0 | CN43: 0 | CO43: 0 | CP43: 0 | CQ43: 0 | CR43: 0 | CS43: 0 | CT43: 0 | CU43: 0 | CV43: 0 | CW43: =IF(SUMPRODUCT($C$41:$C$42,CW41:CW42)=0,0,SUMPRODUCT($C$41:$C$42,CW41:CW42)) -> 0 | CX43: 0 | CY43: 0 | CZ43: 0 | DA43: =SUM(DA41:DA42) -> 0
B45: Notes:
B46: 1. Assumes Severance + Outplacement

Sheet Reclamation Quantities
A1: =CONCATENATE('Property Information'!$B$26, 'Property Information'!$C$26,IF('Property Information'!$BC$18=TRUE,"- Notice or Exploration",IF('Property Information'!$BD$18=TRUE," - Plan of Operations"," - Reclamation Plan"))) -> Project Name: - Reclamation Plan
A2: =CONCATENATE('Property Information'!B28,SubmittalDate) -> Date of Submittal:
A3: =CONCATENATE('Property Information'!B12,FileName) -> File Name: SRCE_Version_1_4_1_017c_NV_2026_rev1.xlsm
A4: =CONCATENATE("Model Version: ",'Property Information'!B7) -> Model Version: Version 1.4.1
A5: =CONCATENATE("Data Cost File: ",DataFileName) -> Data Cost File: SRCE_Cost_Data_File_1_12_Std_2026_rev1.xlsm
A6: =CONCATENATE("Cost Data: ",DataCostBasis) -> Cost Data: User Data
A7: =CONCATENATE("Cost Data File: ",DataFileName) -> Cost Data File: SRCE_Cost_Data_File_1_12_Std_2026_rev1.xlsm
A8: =CONCATENATE("Cost Estimate Type: ",CostEstimateType," Cost Basis: ",CostBasisCategory) -> Cost Estimate Type: Surety Cost Basis: Northern Nevada
A10: Reclamation Quantity Summary
M11: Unit Costs | BD11: Hole Plugging
B12: Description | C12: Total Regrade or Haul Volume | D12: Total Regrade or Haul Cost | E12: Total Cover Volume | F12: Cover Placement Cost | G12: Total Growth Media Volume | H12: Growth Media Placement Cost | I12: Total Surface Area | J12: Total Scarify Cost | K12: Total Revetation Cost | L12: TOTALS | M12: Regrade Unit Cost | N12: Material Haul or Backfill Unit Cost | O12: Cover Unit Cost | P12: Growth Media Unit Cost | Q12: Scarify Unit Cost | R12: Area Unit Cost | BD12: Waste Type | BE12: Containment Type | BF12: Quanity | BG12: Disposal Site | BH12: Distance | BI12: Average Depth of Hole(1) | BJ12: Depth to Water
A13: 1 | C13: =IF(Metric,"m3","cy") -> cy | D13: $ | E13: =IF(Metric,"m3","cy") -> cy | F13: $ | G13: =IF(Metric,"m3","cy") -> cy | H13: $ | I13: =IF(Metric,"ha","acres") -> acres | J13: $ | K13: $ | L13: $ | M13: =IF(Metric,"$/m3","$/CY") -> $/CY | N13: =IF(Metric,"$/m3","$/CY") -> $/CY | O13: =IF(Metric,"$/m3","$/CY") -> $/CY | P13: =IF(Metric,"$/m3","$/CY") -> $/CY | Q13: =IF(Metric,"$/m3","$/CY") -> $/CY | R13: =IF(Metric,"$/Ha","$/acre") -> $/acre | BF13: cy | BH13: mi | BI13: ft bgs | BJ13: ft bgs
A14: =ROW(A14) - ROW($A$13) -> 1 | B14: Waste Rock Dumps | C14: =RegradeDumps ->  | D14: =RegradeCostDumps -> 0 | E14: =CoverDumps ->  | F14: =CoverCostDumps -> 0 | G14: =TopsoilDumps ->  | H14: =TopsoilCostDumps -> 0 | I14: =AreaDumps ->  | J14: =ScarifyDumps -> 0 | K14: =RevegDumps -> 0 | L14: =IF(D14="",0,D14)+IF(F14="",0,F14)+IF(H14="",0,H14)+IF(J14="",0,J14)+IF(K14="",0,K14) -> 0 | M14: =IF(OR(D14="",C14=""),"",D14/C14) ->  | N14: N/A | O14: =IF(OR(F14="",E14=""),"",F14/E14) ->  | P14: =IF(OR(H14="",G14=""),"",H14/G14) ->  | Q14: =IF(OR(J14="",I14=""),"",J14/I14) ->  | R14: =IF(OR(L14="",I14=""),"",L14/I14) ->  | BD14: =I14 ->  | BE14: =K14 -> 0 | BF14: =IF(ISBLANK(C14),"",IF(Metric,ROUND(M3_2_CY*C14,0),C14)) ->  | BG14: =D14 -> 0 | BH14: =IF(Metric,ROUND(M2Ft*E14,0),E14) ->  | BI14: =IF(Metric,ROUND(M2Ft*F14,0),F14) -> 0 | BJ14: =IF(Metric,ROUND(M2Ft*H14,0),H14) -> 0
A15: =A14+1 -> 2 | B15: Tailings Impoundments | C15: =IF(AND(RegradeTails="",RegradeTailsEmbankment=""),"",IF(RegradeTails="",0,RegradeTails)+IF(RegradeTailsEmbankment="",0,RegradeTailsEmbankment)) ->  | D15: =IF(AND(RegradeCostTails="",RegradeCostTailsEmbankment=""),"",(IF(RegradeCostTails="",0,RegradeCostTails)+IF(RegradeCostTailsEmbankment="",0,RegradeCostTailsEmbankment))) -> 0 | E15: =CoverTails ->  | F15: =CoverCostTails -> 0 | G15: =TopsoilTails ->  | H15: =TopsoilCostTails -> 0 | I15: =AreaTails ->  | J15: =ScarifyTails -> 0 | K15: =RevegTails -> 0 | L15: 0 | M15: =IF(OR(D15="",C15=""),"",D15/C15) ->  | N15: N/A | R15: =IF(OR(L15="",I15=""),"",L15/I15) ->  | BE15: 0 | BG15: 0 | BH15: =IF(ISBLANK(E15),"",IF(Metric,ROUND(Km2Mi*E15,2),E15)) ->  | BI15: =IF(Metric,ROUND(M2Ft*F15,0),F15) -> 0 | BJ15: 0
A16: =A15+1 -> 3 | B16: Heap Leach Pads | C16: =RegradeHeaps ->  | D16: =RegradeCostHeaps -> 0 | E16: =CoverHeaps ->  | F16: =CoverCostHeaps -> 0 | G16: =TopsoilHeaps ->  | H16: =TopsoilCostHeaps -> 0 | I16: =AreaHeaps ->  | J16: =ScarifyHeaps -> 0 | K16: =RevegHeaps -> 0 | L16: 0 | M16: =IF(OR(D16="",C16=""),"",D16/C16) ->  | N16: N/A | BE16: 0 | BG16: 0 | BH16: =IF(Metric,ROUND(M2Ft*E16,0),E16) ->  | BI16: 0 | BJ16: 0
A17: =A18+1 -> 5 | B17: Open Pits | C17: =RegradePits ->  | D17: =RegradeCostPits -> 0 | I17: =AreaPits ->  | K17: =RevegPits -> 0 | L17: 0 | N17: N/A | BE17: 0 | BG17: 0 | BH17: =IF(ISBLANK(E17),"",IF(Metric,ROUND(Km2Mi*E17,2),E17)) ->  | BI17: 0 | BJ17: 0
A18: =A16+1 -> 4 | B18: Quarries & Borrow Pits | C18: =RegradeQuarries ->  | D18: =RegradeCostQuarries -> 0 | E18: =CoverQuarries ->  | F18: =CoverCostQuarries -> 0 | G18: =TopsoilQuarries ->  | H18: =TopsoilCostQuarries -> 0 | I18: =AreaQuarries ->  | J18: =ScarifyQuarries -> 0 | K18: =RevegQuarries -> 0 | L18: =IF(D18="",0,D18)+IF(F18="",0,F18)+IF(H18="",0,H18)+IF(J18="",0,J18)+IF(K18="",0,K18) -> 0 | M18: =IF(OR(D18="",C18=""),"",D18/C18) ->  | N18: N/A | O18: =IF(OR(F18="",E18=""),"",F18/E18) ->  | P18: =IF(OR(H18="",G18=""),"",H18/G18) ->  | Q18: =IF(OR(J18="",I18=""),"",J18/I18) ->  | R18: =IF(OR(L18="",I18=""),"",L18/I18) -> 
A19: =A17+1 -> 6 | B19: Roads | C19: =RegradeRoads ->  | D19: =RegradeCostRoads -> 0 | G19: =TopsoilRoads ->  | H19: =TopsoilCostRoads -> 0 | I19: =AreaRoads ->  | J19: =ScarifyRoads -> 0 | K19: =RevegRoads -> 0 | L19: 0 | N19: N/A | BE19: 0 | BG19: 0 | BH19: =IF(Metric,ROUND(M2Ft*E19,0),E19) -> 0 | BI19: 0 | BJ19: 0
A20: 7 | B20: Landfills | C20: =RegradeLandfills ->  | D20: =RegradeCostLandFills -> 0 | E20: =CoverLandfills ->  | F20: =CoverCostLandfills -> 0 | G20: =TopsoilLandfills ->  | H20: =TopsoilCostLandfills -> 0 | I20: =AreaLandfills ->  | J20: =ScarifyLandfills -> 0 | K20: =RevegLandfills -> 0 | L20: 0 | N20: N/A | BE20: 0 | BG20: 0 | BH20: =IF(ISBLANK(E20),"",IF(Metric,ROUND(Km2Mi*E20,2),E20)) ->  | BI20: 0 | BJ20: 0
A21: 8 | B21: Buildings | E21: =CoverBuilding ->  | F21: =CoverCostBuilding -> 0 | G21: =TopsoilBuilding ->  | H21: =TopsoilCostBuilding -> 0 | I21: =AreaBuilding ->  | J21: =ScarifyBuilding -> 0 | K21: =RevegBuilding -> 0 | L21: 0 | N21: N/A | BE21: 0 | BG21: 0 | BH21: =IF(Metric,ROUND(M2Ft*E21,0),E21) ->  | BI21: 0 | BJ21: =IF(Metric,ROUND(M2Ft*H21,0),H21) -> 0
A22: 9 | B22: Yards | C22: =RegradeYards ->  | D22: =RegradeCostYards -> 0 | E22: =CoverYards ->  | F22: =CoverCostYards -> 0 | G22: =TopsoilYards ->  | H22: =TopsoilCostYards -> 0 | I22: =AreaYards ->  | J22: =ScarifyYards -> 0 | K22: =RevegYards -> 0 | L22: 0 | N22: N/A | BE22: 0 | BG22: 0 | BH22: =IF(ISBLANK(E22),"",IF(Metric,ROUND(Km2Mi*E22,2),E22)) ->  | BI22: 0 | BJ22: 0
A23: 10 | B23: Ponds | C23: =BackfillPonds ->  | D23: =BackfillCostPonds -> 0 | G23: =TopsoilPonds ->  | H23: =TopsoilCostPonds -> 0 | I23: =AreaPonds ->  | K23: =RevegPonds -> 0 | L23: 0 | M23: N/A | N23: =IF(OR(D23="",C23=""),"",D23/C23) ->  | BE23: 0 | BG23: 0 | BH23: =IF(Metric,ROUND(M2Ft*E23,0),E23) -> 0 | BI23: 0 | BJ23: 0
A24: 11 | B24: Exploration Roads | C24: =RegradeExplRoads ->  | D24: =RegradeCostExplRoads -> 0 | G24: =TopsoilExplRoads ->  | H24: =TopsoilCostExplRoads -> 0 | I24: =AreaExplRoads ->  | J24: =ScarifyExplRoads -> 0 | K24: =RevegExplRoads -> 0 | L24: 0 | N24: N/A | BE24: 0 | BG24: 0 | BH24: =IF(ISBLANK(E24),"",IF(Metric,ROUND(Km2Mi*E24,2),E24)) ->  | BI24: 0 | BJ24: 0
A25: 12 | B25: Exploration Trenches | C25: =RegradeTrench ->  | D25: =RegradeCostTrench -> 0 | I25: =AreaTrench ->  | K25: =RevegTrench -> 0 | L25: 0 | N25: N/A | BE25: 0 | BG25: 0 | BH25: =IF(Metric,ROUND(M2Ft*E25,0),E25) -> 0 | BI25: 0 | BJ25: 0
A26: 13 | B26: Diversion Ditches | D26: ='Sediment & Drainage Control'!I102 -> 0 | I26: =AreaDiversions ->  | K26: =RevegDiversions -> 0 | L26: 0 | N26: N/A | BE26: 0 | BG26: 0 | BH26: =IF(ISBLANK(E26),"",IF(Metric,ROUND(Km2Mi*E26,2),E26)) ->  | BI26: 0 | BJ26: 0
A27: 14 | B27: Sediment Ponds | C27: =RegradeSedPonds ->  | D27: =RegradeCostSedPonds -> 0 | E27: =CoverSedPonds ->  | H27: =TopsoilCostSedPonds -> 0 | I27: =AreaSedPonds ->  | J27: =ScarifySedPonds -> 0 | K27: =RevegSedPonds -> 0 | L27: 0 | BE27: 0 | BG27: 0 | BH27: =IF(Metric,ROUND(M2Ft*E27,0),E27) ->  | BI27: 0 | BJ27: 0
A28: 15 | B28: Generic Haulage/Backfill | C28: =HaulQuant ->  | D28: =HaulCost -> 0 | E28: =CoverHaul ->  | F28: =CoverCostHaul -> 0 | G28: =TopsoilHaul ->  | H28: =TopsoilCostHaul -> 0 | I28: =AreaHaul ->  | J28: =ScarifyHaul -> 0 | K28: =RevegHaul -> 0 | L28: 0 | M28: N/A | N28: =IF(OR(D28="",C28=""),"",D28/C28) ->  | BE28: 0 | BG28: 0 | BH28: =IF(ISBLANK(E28),"",IF(Metric,ROUND(Km2Mi*E28,2),E28)) ->  | BI28: 0 | BJ28: 0
A29: 16 | B29: Adit/Decline Backfilling1 | C29: =BackfillAdit ->  | D29: =BackfillCostAdit -> 0 | L29: 0 | M29: N/A | N29: =IF(OR(D29="",C29=""),"",D29/C29) ->  | BD29: 0 | BE29: 0 | BG29: 0 | BH29: =IF(Metric,ROUND(M2Ft*E29,0),E29) -> 0 | BI29: =IF(Metric,ROUND(M2Ft*F29,0),F29) -> 0 | BJ29: =IF(Metric,ROUND(M2Ft*H29,0),H29) -> 0
A30: 17 | B30: Shaft Backfilling | C30: =BackfillShafts ->  | D30: =BackfillCostShaft -> 0 | L30: =IF(D30="",0,D30)+IF(F30="",0,F30)+IF(H30="",0,H30)+IF(J30="",0,J30)+IF(K30="",0,K30) -> 0 | M30: N/A | N30: =IF(OR(D30="",C30=""),"",D30/C30) ->  | BD30: 0 | BE30: 0 | BG30: 0 | BH30: =IF(ISBLANK(E30),"",IF(Metric,ROUND(Km2Mi*E30,2),E30)) ->  | BI30: 0 | BJ30: 0
B31: TOTALS | C31: =SUM(C14:C30) -> 0 | D31: 0 | E31: 0 | F31: 0 | G31: 0 | H31: 0 | I31: =ROUND(SUM(I14:I30),2) -> 0 | J31: =SUM(J14:J30) -> 0 | K31: =SUM(K14:K30) -> 0 | L31: =SUM(L14:L30) -> 0 | BC31: =I31 -> 0 | BD31: =K31 -> 0 | BE31: =IF(ISBLANK(C31),"",IF(Metric,ROUND(M3_2_CY*C31,0),C31)) -> 0 | BF31: =D31 -> 0 | BG31: =IF(ISBLANK(E31),"",IF(Metric,ROUND(Km2Mi*E31,2),E31)) -> 0 | BH31: =IF(Metric,ROUND(M2Ft*F31,0),F31) -> 0 | BI31: =IF(Metric,ROUND(M2Ft*H31,0),H31) -> 0
B32: Average Costs | C32: =IF(Metric,"per m3","per CY") -> per CY | D32: =IF(C31=0,"",ROUND(D31/C31,2)) ->  | E32: =IF(Metric,"per m3","per CY") -> per CY | F32: =IF(E31=0,"",ROUND(F31/E31,2)) ->  | G32: =IF(Metric,"per m3","per CY") -> per CY | H32: =IF(G31=0,"",ROUND(H31/G31,2)) ->  | I32: =IF(Metric,"per Ha","per acre") -> per acre | J32: =IF(I31=0,"",ROUND(J31/I31,2)) ->  | K32: =IF(J31=0,"",ROUND(K31/J31,2)) ->  | L32: =IF(I31=0,"",ROUND(L31/I31,2)) ->  | M32: =IF(Metric,"per Ha","per acre") -> per acre
BC34: 9 | BD34: 1 | BE34: 4 | BF34: 0 | BG34: 3281 | BH34: 1640

Sheet Exploration
A1: =CONCATENATE('Property Information'!$B$26, 'Property Information'!$C$26,IF('Property Information'!$BC$18=TRUE,"- Notice or Exploration",IF('Property Information'!$BD$18=TRUE," - Plan of Operations"," - Reclamation Plan"))) -> Project Name: - Reclamation Plan
A2: =CONCATENATE('Property Information'!B28,SubmittalDate) -> Date of Submittal:
A3: =CONCATENATE('Property Information'!B12,FileName) -> File Name: SRCE_Version_1_4_1_017c_NV_2026_rev1.xlsm
A4: =CONCATENATE("Model Version: ",'Property Information'!B7) -> Model Version: Version 1.4.1
A5: =CONCATENATE("Cost Data: ",DataCostBasis) -> Cost Data: User Data
A6: =CONCATENATE("Cost Data File: ",DataFileName) -> Cost Data File: SRCE_Cost_Data_File_1_12_Std_2026_rev1.xlsm
A7: =CONCATENATE("Cost Estimate Type: ",CostEstimateType," Cost Basis: ",CostBasisCategory) -> Cost Estimate Type: Surety Cost Basis: Northern Nevada
B9: Exploration - Cost Summary | H9: =IF(OR(ISBLANK(ProjectRegion),ProjectRegion=""),"Go to Property Information Sheet and Enter Project Region",IF(OR(EquipmentZoneRate="Invalid Zone",TruckDriverZone="Invalid ZoneRate",LaborZoneRate="Invalid Zone",EquipmentZone="",TruckDriverZone="",LaborerZone=""),"Go To Labor Rates sheet and select Zone for Each Labor Classification","")) -> 
C10: Labor | D10: Equipment | E10: Materials | F10: Totals
B11: Hole Abandonment Costs | C11: =IF(K63="",0,K63)+IF(I63="",0,I63) -> 0 | D11: =IF(L63="",0,L63)+IF(J63="",0,J63) -> 0 | E11: =(IF(M63="",0,M63)+(IF(N63="",0,N63))) -> 0 | F11: =SUM(C11:E11) -> 0
B12: Grading Costs
B13: Ripping/Scarifying Cost
B14: Trench Backfilling Costs | C14: =K104 -> 0 | D14: =L104 -> 0 | F14: =SUM(C14:E14) -> 0
B15: Subtotal Earthworks | C15: =SUM(C11:C14) -> 0 | D15: =SUM(D11:D14) -> 0 | E15: =SUM(E11:E14) -> 0 | F15: =SUM(F11:F14) -> 0
B16: Trench Revegetation Costs | C16: =D112 -> 0 | D16: =E112 -> 0 | E16: =F112 -> 0 | F16: =SUM(C16:E16) -> 0
B17: TOTALS | C17: =C15+C16 -> 0 | D17: =D15+D16 -> 0 | E17: =E15+E16 -> 0 | F17: =F15+F16 -> 0
A20: Color Code Key
B21: User Input - Direct Input | C21: Direct Input | J21: Exploration hole surface seal thickness: | K21: 20 | L21: =IF(Metric,"m","ft") -> ft | M21: =IF(Nevada,IF(Metric,"","< In Nevada use 10'"),"") ->  | BD21: Surface seal thickness: | BE21: =IF(Nevada,10,IF(Metric,ROUND(M2Ft*Exploration_Hole_seal_thickness,0),Exploration_Hole_seal_thickness)) -> 20
B22: User Input - Pull Down List | C22: Pull Down Selection | J22: Minimum seal above groundwater table: | K22: 50 | L22: =IF(Metric,"m","ft") -> ft | M22: =IF(Nevada,IF(Metric,"","< In Nevada use 50'"),"") ->  | BD22: Min Seal above groundwater: | BE22: =IF(Nevada,50,IF(Metric,ROUND(M2Ft*Minimum_seal_above_groundwater_expl,0),Minimum_seal_above_groundwater_expl)) -> 50
B23: Program Constant (can override) | C23: Alternate Input
B24: Program Calculated Value | C24: Locked Cell - Formula or Reference
A27: Exploration Drillhole Abandonment - User Input
A28: Facility Description | D28: Hole Plugging | BB28: Hole Plugging
B29: Description (required) | C29: ID Code | D29: Hole Type | E29: Diameter | F29: Total Number of Holes | G29: Max Holes Open at One Time | H29: Casing to Remove | I29: Average Depth of Hole(1) | J29: Depth to Water | K29: Hole Plug Method | BB29: Hole Type | BC29: Diameter | BD29: Total Number of Holes | BE29: Max Holes Open at One Time | BF29: Casing to Remove | BG29: Average Depth of Hole(1) | BH29: Depth to Water
A30: -1 | D30: (select) | E30: =IF(Metric,"mm","in") -> in | H30: =IF(Metric,"m","ft") -> ft | I30: =IF(Metric,"m bgs","ft bgs") -> ft bgs | J30: =IF(Metric,"m bgs","ft bgs") -> ft bgs | K30: (select) | BC30: in | BF30: ft | BG30: ft bgs | BH30: ft bgs
A31: =ROW(A31) - ROW($A$30)-1 -> 0 | BB31: =D31 -> 0 | BC31: =IF(Metric,ROUND(mm_2_in*E31,0),E31) -> 0 | BD31: =F31 -> 0 | BE31: =G31 -> 0 | BF31: =IF(Metric,ROUND(M2Ft*H31,0),H31) -> 0 | BG31: =IF(Metric,ROUND(M2Ft*I31,0),I31) -> 0 | BH31: =IF(Metric,ROUND(M2Ft*J31,0),J31) -> 0
B34: Notes:
B35: 1. If core holes are pre-drilled, use length of hole below pre-drilled length
B36: =IF(NOT(Nevada)," 2. If Top Plug is selected, assumes maximum 1/2hr laborer time to place plug and backfill with cuttings/soil (including move-to/set up time).","") -> 2. If Top Plug is selected, assumes maximum 1/2hr laborer time to place plug and backfill with cuttings/soil (including move-to/set up time).
A42: Exploration Trenches - User Input
A43: Facility Description | D43: Trench Parameters | I43: Backfill | L43: Revegetation | BB43: Trench Parameters
B44: Description (required) | C44: ID Code | D44: Trench Length | E44: Trench Depth | F44: Trench Bottom Width | G44: Trench Sideslope Angle | H44: Additional Hrs for Walk-in (1) | I44: Backfill Material | J44: Cut Material Type | K44: Backfilling Fleet | L44: Seed Mix | M44: Mulch | N44: Fertilizer | BB44: Trench Length | BC44: Trench Depth | BD44: Trench Bottom Width | BE44: Trench Sideslope Angle | BF44: Cover Truck Fleet
A45: -1 | D45: =IF(Metric,"m","ft") -> ft | E45: =IF(Metric,"m","ft") -> ft | F45: =IF(Metric,"m","ft") -> ft | G45: degrees | H45: hr | I45: (select) | J45: (select) | K45: (select) | L45: (select) | M45: (select) | N45: (select) | BB45: ft | BC45: ft | BD45: ft | BE45: degrees
A46: =ROW(A46) - ROW($A$45)-1 -> 0 | BB46: =IF(Metric,ROUND(M2Ft*D46,0),D46) -> 0 | BC46: =IF(Metric,ROUND(M2Ft*E46,0),E46) -> 0 | BD46: =IF(Metric,ROUND(M2Ft*F46,0),F46) -> 0 | BE46: =G46 -> 0 | BF46: =LEFT(K46,SEARCH(" ",K46)-1) -> 
B49: Notes:
B50: 1. Include one-way hours necessary to walk equipment in from drop-off point to work area
B51: 2. Material Types are used for density correction based on material densities in Caterpillar Performance Handbook material density table
A57: Exploration Drillhole Abandonment | BK57: this is used to determine what amount of grout to use for grout hours
BF58: Per hole calculations
B59: Description (required) | C59: =IF(Metric,"Vol/m of depth","Vol/foot of depth") -> Vol/foot of depth | D59: Hole Plugging Material (1) | E59: Total Grout Volume (2) | F59: Total Cuttings Volume | G59: Total Top Seal Volume (3,4) | H59: Total Drillhole Abandon. Hours (6,7) | I59: Casing Removal Labor Cost (5) | J59: Casing Removal Equipment Cost | K59: Plugging Labor Cost | L59: Plugging Equipment Cost | M59: Plugging Material Cost | N59: Top Seal Material Cost (2,3) | O59: Total Cost (6,7) | BF59: Vol/foot of depth | BG59: Hole Plugging Material(1) | BH59: Grout Volume(2) | BI59: Cuttings Volume | BJ59: Top Seal Volume(2,3) | BK59: Total Grout Volume (grout+cement +/-cutting vol) | BL59: Total Cuttings Volume (if needed) | BM59: Move to Rig up Rig down Total | BN59: Grouting Hours(4) | BO59: Cuttings Hours | BP59: Casing Removal Hours | BQ59: Casing Removal Labor | BR59: Casing Removal Equipment | BS59: Plugging Labor Cost | BT59: Plugging Equipment Cost | BU59: Plugging Material Cost | BV59: Top Seal Material Cost(2) | BW59: Total Cost
C60: =IF(Metric,"m3","ft3") -> ft3 | E60: =IF(Metric,"m3","cy") -> cy | F60: =IF(Metric,"m3","cy") -> cy | G60: =IF(Metric,"m3","cy") -> cy | H60: hrs | I60: $ | J60: $ | K60: $ | L60: $ | M60: $ | N60: $ | O60: $ | BF60: cf | BH60: cy | BI60: cy | BJ60: cy | BM60: hrs | BN60: hrs | BO60: hrs | BP60: hrs | BQ60: $ | BR60: $ | BS60: $ | BT60: $ | BU60: $ | BV60: $ | BW60: $
A61: =A31 -> 0 | B61: =IF(ISBLANK(B31),"",B31) ->  | C61: =IF(OR(ISBLANK($BE31),ISBLANK(B31)),"",IF(Metric,ROUND(Ft3_2_M3*BF61,2),BF61)) ->  | D61: =IF(OR(ISBLANK($BE31),ISBLANK(B31),ISBLANK(BH31),K31=""),"",IF(OR(K31="none",K31="Top Plug"),"none",BG61)) ->  | E61: =IF(OR(ISBLANK(B31),ISBLANK(G31),BK61=0, K31="Top Plug", K31="none",K31=""),"",IF(K31="Cement Plug",0,IF(Metric,ROUND(CY_2_M3*BH61,2),BH61))) ->  | F61: =IF(OR(ISBLANK(B31),ISBLANK(G31),BL61=0,K31="Top Plug"),"",IF(Metric,ROUND(CY_2_M3*BI61,2),BI61)) ->  | G61: =IF(OR(ISBLANK($BE31),ISBLANK(BH31),BJ61=0),"",IF(Metric,ROUND(CY_2_M3*BJ61,2),BJ61)) ->  | H61: =IF(OR(ISBLANK(B31),ISBLANK(BH31),BW61="",K31="",K31="none"),"",ROUND(BM61+BN61+BO61+BP61+IF(AND(BH61>0,BI61>0),SetUpHrsPumpRig,0),0)) ->  | I61: =IF(OR(ISBLANK(BF31),BF31="",BF31=0),0,ROUND(BQ61,0)) -> 0 | J61: =IF(OR(ISBLANK(BF31),BF31="",BF31=0),0,ROUND(BR61,0)) -> 0 | K61: =IF(OR(ISBLANK($BE31),ISBLANK(BH31),ISBLANK(B31),AND(BK61=0,BL61=0)),0,IF(AND(Nevada,J31<I31,K31="Cement Plug"),"Method Error!",ROUND(BS61,0))) -> 0 | L61: =IF(OR(ISBLANK($BE31),ISBLANK(B31),ISBLANK(BH31),AND(BK61=0,BL61=0)),0,IF(AND(Nevada,J31<I31,K31="Cement Plug"),"Method Error!",ROUND(BT61,0))) -> 0 | M61: =IF(OR(ISBLANK($BE31),ISBLANK(BH31),BU61=0),0,ROUND(BU61,0)) -> 0 | N61: =IF(OR(ISBLANK($BE31),ISBLANK(BH31),BV61=0),0,IF(AND(Nevada,J31<I31,K31="Cement Plug"),"Method Error!",ROUND(BV61,0))) -> 0 | O61: =IF(OR(ISBLANK($BE31),ISBLANK(BH31)),0,IF(SUM(I61:N61)=0,"",SUM(I61:N61))) ->  | BF61: =IF(ISBLANK(BE31),"",ROUND((PI()*(BC31/12/2)^2),2)) -> 0 | BG61: =IF(ISBLANK(B31),"",IF(OR(K31="Cement Plug",BH31>=BG31),"Cuttings",IF(OR(K31="Grout Only",BH31<=SurfaceSealExplHoles+MinGWSealExpl),"Grout","Grout + Cuttings"))) ->  | BH61: =IF(OR(ISBLANK(BE31),K31="Cement Plug",K31="Top Plug",K31="none"),0,IF(AND(BG31<=BH31,K31<>"Grout Only"),0,IF(K31="Grout Only",ROUND((BG31-SurfaceSealExplHoles)*BF61/27*1.25,2),ROUND(IF(BH31<=SurfaceSealExplHoles,((BG31-SurfaceSealExplHoles)*BF61)/27*1.25,IF(BH31<MinGWSealExpl+SurfaceSealExplHoles,((BG31-SurfaceSealExplHoles)*BF61)/27*1.25,((BG31-BH31+MinGWSealExpl)*BF61)/27*1.25)),2)))) -> 0 | BI61: =IF(OR(ISBLANK(BE31),K31="Grout Only"),0,IF(BH31>BG31,ROUND((BG31-SurfaceSealExplHoles)*BF61/27,2), IF(BH31>(MinGWSealExpl+SurfaceSealExplHoles),ROUND((BH31-MinGWSealExpl-SurfaceSealExplHoles)*BF61/27,2),0))) -> 0 | BJ61: =IF(OR(ISBLANK(BE31),K31="none",K31="Top Plug",K31=""),0,(IF(BE31=0,0,ROUND(BF61*SurfaceSealExplHoles/27*1.25,2)))) -> 0 | BK61: =IF(OR(K31="none",K31=""),0,IF(K31="Grout + Backfill",BH61+BJ61,IF(K31="Grout Only",BH61+BI61+BJ61,IF(K31="Cement Plug",BJ61,0)))) -> 0 | BL61: =IF(OR(K31="Grout Only",K31="none",K31=""),0,IF(K31="Top Plug",1,IF(OR(K31="Cement Plug",K31="Grout + Backfill"),BI61))) -> 0 | BM61: =IF(K31="Top Plug",0,SetUpHrsPumpRig) -> 2 | BN61: =IF(OR(ISBLANK(BE31),BK61=0),0,ROUND(IF(BH61=0,0,IF(((BK61)/GroutingProductivity)<1,1,(BK61)/GroutingProductivity)),1)) -> 0 | BO61: =IF(OR(ISBLANK(BE31),ISBLANK(BE31),BE31=0,BE31="",BL61=0),0,IF(K31="Top Plug",0.5,ROUND(IF(BI61="",0,IF(BL61/CuttingsProduction<1,1,BL61/CuttingsProduction)),1))) -> 0 | BP61: =ROUND(BF31/CasingRemovalRate,1) -> 0 | BQ61: =ROUND(BE31*BP61*HeavyDutyDrillLaborCost,0) -> 0 | BR61: =ROUND(BE31*BP61*HeavyDutyDrillEquipCost,0) -> 0 | BS61: =IF(ISBLANK(BE31),"",IF(K31="Top Plug",(BM61+BO61)*CuttingsLaborCost*BE31,ROUND(IF(BH61=0,0,ROUND(BM61+BN61,1)*GroutLaborCost*BE31)+IF(BI61=0,0,IF(BH61=0,(ROUND(BM61+BO61,1)*CuttingsLaborCost*BE31),(ROUND(BO61*GroutLaborCost*BE31,0)))),0))) -> 0 | BT61: =IF(ISBLANK(BE31),"",IF(K31="Top Plug",(BM61+BO61)*CuttingsEquipCost*BE31,ROUND(IF(BH61=0,0,ROUND(BM61+BN61,1)*GroutEquipCost*BE31)+IF(BI61=0,0,IF(BH61=0,(ROUND(BM61+BO61,1)*CuttingsEquipCost*BE31),(ROUND(BO61,1)*GroutEquipCost*BE31))),0))) -> 0 | BU61: =IF(OR(K31="none",K31="",K31="Top Plug",ISBLANK(BD31)),0,IF(BH61="",0,ROUND(BH61*BentoniteCost*BE31,0))) -> 0 | BV61: =IF(OR(K31="none",K31="",K31="Top Plug",ISBLANK(BE31)),0,ROUND(BJ61*CementCost*BE31,0)) -> 0 | BW61: =IF(ISBLANK(BE31),"",SUM(BQ61:BV61)) -> 0
E63: =IF(SUM(E61:E62)=0,"",SUM(E61:E62)) ->  | F63: =IF(SUM(F61:F62)=0,"",SUM(F61:F62)) ->  | G63: =IF(SUM(G61:G62)=0,"",SUM(G61:G62)) ->  | H63: =IF(SUM(H61:H62)=0,"",SUM(H61:H62)) ->  | I63: =IF(SUM(I61:I62)=0,0,SUM(I61:I62)) -> 0 | J63: 0 | K63: 0 | L63: 0 | M63: 0 | N63: 0 | O63: 0
B64: Notes:
B66: 1. Assumes grout backfill from bottom of hole to 50' (15.24m) above static water level, up to 10' (3m) from top of hole
B67: 2. Assumes 25% loss to formation for grout backfill
B68: 3. If "Top Plug" hole plug method is used, assumes physical plug installed without backfill, grout or cement. Not available option for Nevada projects
B69: 4. Assumes top 20' (6 m) of hole is plugged with cement if "Grout Only", "Backfill + Grout", or "Cement Plug" hole plug method are chosen.
B70: 5. Assumes that a) casing is not cemented entire length, b) does not include temporary surface casing
B71: 6. Assumes minimum 1 hr per hole for abandonment (excluding move-to and casing removal)
B72: 7. Assumes fixed hours per hole for setup & tear-down and moving between holes (see Productivty Sheet) per drill hole (includes rig time if grouting required, labor crew only if cuttings backfill only)
A75: Exploration Trenches - Calculations
B77: Exploration Trench Volume Calculation | I77: Dozing & Ripping/Scarifying Calculations
I80: Dozing: | J80: Dozing distance = 1/2 trench length or 400 ft (max push) whichever is less
J81: Assumes flat push (grade correction factor = 1)
I84: Revegetation: | J84: =IF(Metric,3,10) -> 10 | K84: =IF(Metric, "m added to trench width to account for revegetation under spoil pile", "ft added to trench width to account for revegetation under spoil pile") -> ft added to trench width to account for revegetation under spoil pile
A98: Exploration Trenches - Backfill/Regrading Costs | BA98: Exploration Trenches
A99: =(CONCATENATE("Productivity = Dozer Productivity x Grade Correction x Density Correction x Operator (",Dozer_Operator,") x Material x Visibility x Job Efficiency (",Dozer_Job_Efficiency,")")) -> Productivity = Dozer Productivity x Grade Correction x Density Correction x Operator (0.75) x Material x Visibility x Job Efficiency (0.83)
B100: Description (required) | C100: Trench Backfill Volume | D100: Dozer Push Distance | E100: Equipment Productivity | F100: Dozing Material | G100: Density Correction | H100: Backfilling Fleet | I100: Corrected Hourly Productivity | J100: Total Dozer Hours | K100: Trench Backfill Labor Cost | L100: Trench Backfill Equipment Cost | M100: Total Trench Backfill Cost | BA100: a | BB100: d | BC100: ang | BD100: Trench Top Width b | BE100: Cross-Sectional Area | BF100: Trench Volume | BG100: Trench Volume | BH100: Push Distance | BI100: Dozer Productivity | BJ100: Dozing Material | BK100: Density Correction | BL100: Job Efficiency | BM100: Altitude Deration | BN100: Corrected Hourly Productivity | BO100: Total Hours | BP100: Labor Cost | BQ100: Equipment Cost | BR100: Total Cost
C101: =IF(Metric,"LCM (BCM+30%)","LCY (BCY+30%)") -> LCY (BCY+30%) | D101: =IF(Metric,"m","ft") -> ft | E101: =IF(Metric,"m3/hr","yd3/hr") -> yd3/hr | I101: =IF(Metric,"m3/hr","yd3/hr") -> yd3/hr | J101: hr | K101: $ | L101: $ | M101: $ | BA101: ft | BB101: ft | BC101: rad | BD101: ft | BE101: sq ft | BF101: BCY | BG101: LCY | BH101: ft | BI101: cy/hr | BN101: cy/hr | BO101: hrs | BP101: $ | BQ101: $ | BR101: $
A102: =A46 -> 0 | B102: =IF(ISBLANK(B46),"",B46) ->  | C102: =IF(OR(ISBLANK(B46),OR(ISBLANK(BC46),BC46=0)),"",IF(Metric,ROUND(CY_2_M3*BG102,0),BG102)) ->  | D102: =IF(ISBLANK(B46),"",IF(K46="Backhoe/Loader","N/A",IF(Metric,ROUND(Ft2M*BH102,0),BH102))) ->  | E102: =IF(ISBLANK(B46),"",IF(ISBLANK(K46),"Select Fleet",IF(K46="Backhoe/Loader","N/A",IF(Metric,ROUND(CY_2_M3*BI102,0),BI102)))) ->  | F102: =IF(OR(ISBLANK(B46),C102=0),"",IF(K46="Backhoe/Loader","N/A",IF(ISBLANK(I46),"Dozing Material!",BJ102))) ->  | G102: =IF(OR(ISBLANK(B46),C102=0),"",IF(K46="Backhoe/Loader","N/A",IF(ISBLANK(J46),"Material Type!",BK102))) ->  | H102: =IF(ISBLANK(B46),"",IF(AND(NOT(C102=""),ISBLANK(K46)),"Select Fleet",INDIRECT(BF46&"TrenchDozer"))) ->  | I102: =IF(OR(ISBLANK($B46),C102=0),"",IF(ISBLANK(K46),"Select Fleet",IF(ISERR(BN102),"",IF(Metric,ROUND(CY_2_M3*BN102,0),BN102)))) ->  | J102: =IF(OR(ISBLANK(B46),C102=0),"",IF(ISBLANK(K46),"Select Fleet",IF(ISERR(BO102),"",BO102))) ->  | K102: =IF(OR(ISBLANK(B46),C102=0),0,IF(ISBLANK(K46),"Select Fleet",IF(ISERR(BP102),0,BP102))) -> 0 | L102: =IF(OR(ISBLANK(B46),C102=0),0,IF(ISBLANK(K46),"Select Fleet",IF(ISERR(BQ102),0,BQ102))) -> 0 | M102: =IF(OR(ISBLANK(B46),C102=0),0,IF(ISBLANK(K46),"Select Fleet",IF(ISERR(BR102),0,BR102))) -> 0 | BA102: =BD46 -> 0 | BB102: =BC46 -> 0 | BC102: =RADIANS(BE46) -> 0 | BD102: =ROUND(BA102+((BB102/TAN(BC102))*2),2) ->  | BE102: =((BA102+BD102)/2)*BB102 ->  | BF102: =ROUND((BE102*BB46)/27,0) ->  | BG102: =BF102*1.3 ->  | BH102: =IF(BB46/2<600, IF(BB46/2<50,50,ROUND(BB46/2,0)),400) -> 50 | BI102: =IF(OR(ISBLANK(B46),ISBLANK(K46)),"",ROUND(HLOOKUP(INDIRECT(BF46 & "TrenchDozer"),DozerProductionArray,13,FALSE)*BH102^HLOOKUP(INDIRECT(BF46 & "TrenchDozer"),DozerProductionArray,14,FALSE),0)) ->  | BJ102: =IF(OR(ISBLANK(B46),ISBLANK(I46)),"",I46) ->  | BK102: =IF(OR(ISBLANK(B46),ISBLANK(J46)),"",VLOOKUP(J46,DozingDensityCorrectionArray,2)) ->  | BL102: =IF(ISBLANK(B46),"",Dozer_Job_Efficiency) ->  | BM102: =IF(ISBLANK(B46),"",IF(BG102=0,0,HLOOKUP(INDIRECT(BF46&"Dozer"),DozerSpecifications,8,FALSE))) ->  | BN102: =IF(ISBLANK(B46),"",ROUND(BI102*Dozer_Operator*Dozer_Visibility*BJ102*BK102*BL102*BM102,0)) ->  | BO102: =IF(ISBLANK(B46),"",IF(BG102/BN102<1+H46,1,ROUND(BG102/BN102,0)+H46)) ->  | BP102: =ROUND(BO102*INDIRECT(BF46 & "TrenchDozerLaborRate"),0) ->  | BQ102: =ROUND(BO102*INDIRECT(BF46 & "TrenchDozerEquipRate"),0) ->  | BR102: =SUM(BP102:BQ102) -> 
C104: =IF(SUM(C102:C103)=0,"",SUM(C102:C103)) ->  | J104: =IF(SUM(J102:J103)=0,"",SUM(J102:J103)) ->  | K104: =IF(SUM(K102:K103)=0,0,SUM(K102:K103)) -> 0 | L104: =IF(SUM(L102:L103)=0,0,SUM(L102:L103)) -> 0 | M104: =IF(SUM(M102:M103)=0,0,SUM(M102:M103)) -> 0
A106: Exploration Trenches - Revegetation Costs | BA106: Revegetation
B108: Description (required) | C108: Surface Area | D108: Revegetation Labor Cost | E108: Revegetation Equipment Cost | F108: Revgetation Material Cost | G108: Total Revegetation Cost | BA108: Surface Area | BB108: Equipment Cost | BC108: Labor Cost | BD108: Seed Mix | BE108: Mulch | BF108: Fertilizer | BG108: Material Cost | BH108: Total
C109: =IF(Metric,"ha","acres") -> acres | D109: $ | E109: $ | F109: $ | G109: $ | BA109: acres
A110: =A46 -> 0 | B110: =IF(ISBLANK(B46),"",B46) ->  | C110: =IF(OR(ISBLANK(B46), OR(AND(BB46=0,BC46=0),AND(ISBLANK(BB46),ISBLANK(BC46),ISBLANK(BD46),ISBLANK(BE46)))),"",IF(Metric,ROUND(Ac2Ha*BA110,2),BA110)) ->  | D110: =IF(OR(L46="None",ISBLANK(L46)),0,BC110) -> 0 | E110: =IF(OR(L46="None",ISBLANK(L46)),0,BB110) -> 0 | F110: =IF(OR(BG110=0,ISBLANK(B46)),0,BG110) -> 0 | G110: =IF(AND(D110="",E110="",F110=""),0,SUM(D110:F110)) -> 0 | BA110: =IF(AND(ISBLANK(D46),ISBLANK(E46)),"",IF(ROUND((BB46*(BD102+ExtraTrenchWidth))/43560,1)<0.1,0.1,ROUND((BB46*(BD102+ExtraTrenchWidth))/43560,1))) ->  | BB110: =IF(OR(L46="None",ISBLANK(L46)),0,IF(BA110<1,ROUND(SeedEquipTrenchFlat,0),ROUND(SeedEquipTrenchFlat*BA110,0))) -> 0 | BC110: =IF(OR(L46="None",ISBLANK(L46)),0,IF(BA110<1,ROUND(SeedLaborTrenchFlat,0),ROUND(SeedLaborTrenchFlat*BA110,0))) -> 0 | BD110: =IF(OR(L46="None",ISBLANK(L46)),0,ROUND(INDEX(SeedMixArray,MATCH(L46,SeedMixes,0),4)*C110,0)) -> 0 | BE110: =IF(OR(M46="None",ISBLANK(M46)),0,ROUND(INDEX(MulchArray,MATCH(M46,Mulches,0),4)*C110,0)) -> 0 | BF110: =IF(OR(N46="None",ISBLANK(N46)),0,ROUND(INDEX(FertilizerArray,MATCH(N46,Fertilizers,0),4)*C110,0)) -> 0 | BG110: =SUM(BD110:BF110) -> 0 | BH110: =IF(ISBLANK(A46),0,ROUND(SUM(BB110:BF110),0)) -> 0
C112: =IF(SUM(C110:C111)=0,"",SUM(C110:C111)) ->  | D112: =IF(SUM(D110:D111)=0,0,SUM(D110:D111)) -> 0 | E112: =IF(SUM(E110:E111)=0,0,SUM(E110:E111)) -> 0 | F112: =IF(SUM(F110:F111)=0,0,SUM(F110:F111)) -> 0 | G112: =IF(SUM(G110:G111)=0,0,SUM(G110:G111)) -> 0

Sheet Expl. Roads & Pads
A1: =CONCATENATE('Property Information'!$B$26, 'Property Information'!$C$26,IF('Property Information'!$BC$18=TRUE,"- Notice or Exploration",IF('Property Information'!$BD$18=TRUE," - Plan of Operations"," - Reclamation Plan"))) -> Project Name: - Reclamation Plan
A2: =CONCATENATE('Property Information'!B28,SubmittalDate) -> Date of Submittal:
A3: =CONCATENATE('Property Information'!B12,FileName) -> File Name: SRCE_Version_1_4_1_017c_NV_2026_rev1.xlsm
A4: =CONCATENATE("Model Version: ",'Property Information'!B7) -> Model Version: Version 1.4.1
A5: =CONCATENATE("Cost Data: ",DataCostBasis) -> Cost Data: User Data
A6: =CONCATENATE("Cost Data File: ",DataFileName) -> Cost Data File: SRCE_Cost_Data_File_1_12_Std_2026_rev1.xlsm
A7: =CONCATENATE("Cost Estimate Type: ",CostEstimateType," Cost Basis: ",CostBasisCategory) -> Cost Estimate Type: Surety Cost Basis: Northern Nevada
A9: Exploration Roads & Pads - Cost Summary | H9: =IF(OR(ISBLANK(ProjectRegion),ProjectRegion=""),"Go to Property Information Sheet and Enter Project Region",IF(OR(EquipmentZoneRate="Invalid Zone",TruckDriverZone="Invalid ZoneRate",LaborZoneRate="Invalid Zone",EquipmentZone="",TruckDriverZone="",LaborerZone=""),"Go To Labor Rates sheet and select Zone for Each Labor Classification","")) -> 
C10: Labor | D10: Equipment | E10: Materials | F10: Totals
B11: Grading Costs | C11: =I147 -> 0 | D11: =J147 -> 0 | E11: N/A | F11: =K147 -> 0
B12: Cover Placement Cost | C12: =H157 -> 0 | D12: =I157 -> 0 | E12: N/A | F12: =SUM(C12:E12) -> 0
B13: Ripping/Scarifying Cost | C13: =F165 -> 0 | D13: =G165 -> 0 | E13: N/A | F13: =SUM(C13:E13) -> 0
B14: Subtotal Earthworks | C14: =IF(ISNA(MATCH("Error!",C11:C13,0)),SUM(C11:C13),"Error!") -> 0 | D14: =IF(ISNA(MATCH("Error!",D11:D13,0)),SUM(D11:D13),"Error!") -> 0 | F14: =IF(ISNA(MATCH("Error!",F11:F13,0)),SUM(F11:F13),"Error!") -> 0
B15: Revegetation Cost | C15: =I165 -> 0 | D15: =J165 -> 0 | E15: =K165 -> 0 | F15: =SUM(C15:E15) -> 0
B16: TOTALS | C16: =SUM(C14:C15) -> 0 | D16: =SUM(D14:D15) -> 0 | E16: =SUM(E14:E15) -> 0 | F16: =SUM(F14:F15) -> 0
A19: Color Code Key
B20: User Input - Direct Input | C20: Direct Input | I20: Maximum grade allowed for dozer: | J20: 30 | K20: % | L20: =IF(Nevada,IF(Metric,"","< In Nevada use 10'"),"") -> 
B21: User Input - Pull Down List | C21: Pull Down Selection | I21: Maximum grade allowed for grader: | J21: 10 | K21: % | L21: =IF(Nevada,IF(Metric,"","< In Nevada use 30'"),"") -> 
B22: Program Constant (can override) | C22: Alternate Input
B23: Program Calculated Value | C23: Locked Cell - Formula or Reference
A26: Exploration Roads & Pads - User Input | E26: You must fill in ALL green cells and relevant blue cells in this section for each road
A27: Facility Description | D27: Physical (1) - MANDATORY | N27: User Overrides | P27: Growth Media | BH27: User Overrides | BJ27: Growth Media
B28: Description (required) | C28: ID Code | D28: Underlying Ground Slope | E28: Ungraded Slope | F28: Cut Slope | G28: Road + Drill Pad Length | H28: Road Width | I28: Number of Drill Pads | J28: Individual Sump Volume | K28: Drill Pad Width | L28: Drill Pad Length | M28: Slope Replacement Percent | N28: Regrade Volume (if calculated elsewhere) | O28: Disturbed Area (if calculated elsewhere) | P28: Growth Media Thickness | Q28: Distance to Growth Media Stockpile | R28: Slope from Road to Stockpile | BA28: Road + Drill Pad Length | BB28: Road Width | BC28: Number of Drill Pads | BD28: Sump Volume | BE28: Drill Pad Width | BF28: Drill Pad Length | BG28: Slope Replacement Percent | BH28: Regrade Volume | BI28: Disturbed Area | BJ28: Growth Media Thickness | BK28: Distance to Growth Media Stockpile | BL28: Slope from Road to Stockpile
A29: -1 | D29: % grade | E29: _H:1V | F29: degrees | G29: =IF(Metric,"m","ft") -> ft | H29: =IF(Metric,"m","ft") -> ft | J29: =IF(Metric,"m3","cy") -> cy | K29: =IF(Metric,"m","ft") -> ft | L29: =IF(Metric,"m","ft") -> ft | M29: % | N29: =IF(Metric,"m3","cy") -> cy | O29: =IF(Metric,"ha","acres") -> acres | P29: =IF(Metric,"mm","in") -> in | Q29: =IF(Metric,"m","ft") -> ft | R29: % grade | BA29: ft | BB29: ft | BD29: cy | BE29: ft | BF29: ft | BG29: % | BH29: cy | BI29: acres | BJ29: in | BK29: ft | BL29: % grade
A30: =ROW(A30) - ROW($A$29)-1 -> 0 | S30: =IF(ABS(R30)>20,"See Note 2.","") ->  | BA30: =IF(Metric,ROUND(M2Ft*G30,0),G30) -> 0 | BB30: =IF(Metric,ROUND(M2Ft*H30,0),H30) -> 0 | BC30: =IF(ISBLANK(I30),"",I30) ->  | BD30: =IF(ISBLANK(B30),"",IF(Metric,ROUND(M3_2_CY*J30,0),J30)) ->  | BE30: =IF(Metric,ROUND(M2Ft*K30,0),K30) -> 0 | BF30: =IF(Metric,ROUND(M2Ft*L30,0),L30) -> 0 | BG30: =IF(ISBLANK(M30),"",M30) ->  | BH30: =IF(ISBLANK(N30),"",IF(Metric,ROUND(M3_2_CY*N30,CubesRounding),N30)) ->  | BI30: =IF(ISBLANK(O30),"",IF(Metric,Ha2Ac*O30,O30)) ->  | BJ30: =IF(Metric,mm2in*P30,P30) -> 0 | BK30: =IF(Metric,ROUND(M2Ft*Q30,3),Q30) -> 0 | BL30: =IF(ISBLANK(R30),"",R30) -> 
B33: Notes:
B34: 1. All Physical parameters must be input even if manual overrides for volume or area are used.
B35: 2. Slope replacement refers to the percentage of cut volumn replaced during regrading.
B36: 3. If Slope from facility to borrow source is >20, downhill travel time may be underestimated due to limitation of uphill travel time curves and downhill speed tables from CAT Handbook (see Productivty Sheet)
B37: 4. Sump volume will be applied to all roads on slopes <20%. On slopes >20% pad width (i.e. cut volume) should be adequate to account for sump volume.
A43: Exploration Roads & Pads - User Input (cont.) | D43: You must fill in ALL green cells and relevant blue cells in this section for each road
C44: Grading | G44: Growth Media | K44: Revegetation
B45: Description (required) | C45: Regrade Material Condition | D45: Cut Material Type | E45: Recontouring Equipment Fleet | F45: Additional Hrs for Walk-in (1) | G45: Growth Media Material Type | H45: Growth Media Placement Equipment Fleet | I45: Maximum Fleet Size | J45: Additional Hrs for Walk-in (1) | K45: Seed Mix | L45: Mulch | M45: Fertilizer | N45: Scarifying/ Ripping? | O45: Ripping Fleet | BA45: Grading Equip | BB45: Grading Fleet | BC45: Size Abbr | BD45: Growth Media Fleet | BF45: GrowthMed truck fleet | BI45: Grading
C46: (select) | D46: (select) | E46: (select) | G46: (select) | H46: (select) | I46: (user override) | K46: (select) | L46: (select) | M46: (select) | N46: (select) | O46: (select)
A47: =A30 -> 0 | B47: =IF(ISBLANK(B30),"",B30) ->  | P47: =IF(OR(AND(D30>MaxDozerGrade,OR(E47="Small Dozer",E47="Medium Dozer",E47="Large Dozer")),AND(D30>MaxGraderGrade,E47="grader"))," <<< Only excavators allowed for steeper slopes","") ->  | BA47: =RIGHT(E47,LEN(E47)-SEARCH(" ",E47)) ->  | BB47: =IF(LEFT(E47,SEARCH(" ",E47)-1)="Medium","Med",LEFT(E47,SEARCH(" ",E47)-1)) ->  | BC47: =IF(BB47="Small","Sm",IF(BB47="Large","Lg",BB47)) ->  | BD47: =IF(LEFT(H47,SEARCH(" ",H47)-1)="Medium","Med",LEFT(H47,SEARCH(" ",H47)-1)) ->  | BF47: =LEFT(H47,SEARCH(" ",H47)-1) ->  | BI47: =LEFT(O47,SEARCH(" ",O47)-1) -> 
B50: Notes:
B51: 1. Include one-way hours necessary to walk equipment in from drop-off point to work area
B52: 2. Material Types are used for density correction based on material densities in Caterpillar Performance Handbook material density table
A55: Exploration Roads & Pads - Calculations
B57: Regrading Volume and Footprint Volume
B79: Will not allow dozer for slopes greater than 30% | D79: Swell Factor: | E79: 1.2
B80: For dozer regrading push distance = road width
B81: Assumes dozer push is uphill
B82: =IF(Metric,"Assumes minimum push distance of 30 m","Assumes minimum push distance of 100 ft") -> Assumes minimum push distance of 100 ft
B84: Ripping/Scarifying Calculations
B87: Minimum 1 hr ripping/scarifying time per area
B88: Number of passes = Final slope length ÷ Grader width
B89: Travel distance = Number of passes x Road length
B90: Total hours = (Travel distance ÷ Grader productivity) + (Number of passes x Grader maneuver time)
B91: For dozer regrading assumes push distance = 3 x road width
B93: Revegetation Calculations
B95: Minimum of 1 acre crew time per area
A98: Inputting Exploration Roads and Drill Pads
A141: Exploration Roads & Pads - Regrading Costs | BH141: ROADS | BZ141: PADS | CW141: Slopes >25% | DC141: Slopes <25%
BA142: Cost Summary by Fleet | BF142: Input Parameters | BJ142: Angles Calculated from Inputs | BP142: Sides Calculated From Inputs | BT142: Area Iterations | BX142: Input Parameters | CB142: Angles Calculated from Inputs | CH142: Sides Calculated From Inputs | CL142: Area Iterations | CW142: Excavator | DC142: Dozer
B143: Description (required) | C143: Total Road Length | D143: Total Drill Pad Length | E143: Regrading Volume | F143: Recontouring Fleet | G143: Equipment Productivity | H143: Total Equipment Hours (1) | I143: Total Labor Cost | J143: Total Equipment Cost | K143: Total Regrading Cost | BA143: Sm Dozer | BB143: Med Dozer | BC143: Sm Excavator | BD143: Med Excavator | BF143: Original Slope (So) | BG143: Ungraded Slope (Su) | BH143: Cut Slope | BI143: Road Width | BJ143: C1 | BK143: A1 | BL143: B1 | BM143: B2 | BN143: A2 | BO143: C2 | BP143: a1 | BQ143: a2 | BR143: c1 | BS143: c2 | BT143: Cut Area 1 | BU143: Fill Area 2 | BV143: Final Slope Length | BX143: Original Slope (So) | BY143: Ungraded Slope (Su) | BZ143: Cut Slope | CA143: Road Width | CB143: C1 | CC143: A1 | CD143: B1 | CE143: B2 | CF143: A2 | CG143: C2 | CH143: a1 | CI143: a2 | CJ143: c1 | CK143: c2 | CL143: Cut Area 1 | CM143: Fill Area 2 | CN143: Final Slope Length | CP143: Total Road Length | CQ143: Total Pad Length | CR143: Road Recontour volume | CS143: Pad Recontour volume | CT143: Total Recontour Volume | CU143: Selected Fleet Prod | CV143: Walk-in Hrs | CW143: Excavator Production | CX143: Excavator hours | CY143: Labor Cost | CZ143: Equipment Cost | DA143: Total Cost | DC143: Grade Correction | DD143: Density Correction | DE143: Dozing Material | DF143: Operator | DG143: Job Efficiency | DH143: Altitude Deration | DI143: Total Corrections | DJ143: Push Distance | DK143: Uncorrected Dozer Production | DL143: Total Hourly Productivity | DM143: Dozer hours | DN143: Labor Cost | DO143: Equipment Cost | DP143: Total Cost
C144: =IF(Metric,"m","ft") -> ft | D144: =IF(Metric,"m","ft") -> ft | E144: =IF(Metric,"m3","cy") -> cy | G144: =IF(Metric,"m3/hr","cy/hr") -> cy/hr | H144: hr | I144: $ | J144: $ | K144: $ | BC144: $ | BD144: $ | BF144: (Degrees) | BG144: (Degrees) | BH144: degrees | BI144: ft | BJ144: (Degrees) | BK144: (Degrees) | BL144: (Degrees) | BM144: (Degrees) | BN144: (Degrees) | BO144: (Degrees) | BP144: (ft) | BQ144: (ft) | BR144: (ft) | BS144: (ft) | BT144: (ft2) | BU144: (ft2) | BV144: (ft) | BX144: (Degrees) | BY144: (Degrees) | BZ144: degrees | CA144: ft | CB144: (Degrees) | CC144: (Degrees) | CD144: (Degrees) | CE144: (Degrees) | CF144: (Degrees) | CG144: (Degrees) | CH144: (ft) | CI144: (ft) | CJ144: (ft) | CK144: (ft) | CL144: (ft2) | CM144: (ft2) | CN144: (ft) | CR144: cy | CS144: cy | CU144: cy/hr | CV144: hr | CW144: cy/hr | CX144: hr | CY144: $ | CZ144: $ | DA144: $ | DJ144: ft | DK144: cy/hr | DL144: cy/hr | DM144: hr | DN144: $ | DO144: $ | DP144: $
A145: =A30 -> 0 | B145: =IF(ISBLANK(B30),"",B30) ->  | C145: =IF(OR(ISBLANK(B30),ISBLANK(G30),ISBLANK(I30)),"",IF(OR(ISBLANK(BA30)),"Road Input!",IF(BA30-(BC30*BF30)<0,"Excess Pads!",IF(Metric,ROUND(Ft2M*CP145,0),CP145)))) ->  | D145: =IF(OR(ISBLANK(B30),ISBLANK(G30),C145="",AND(ISBLANK(BC30),ISBLANK(BE30),ISBLANK(BF30))),"",IF(OR(ISBLANK(BC30),ISBLANK(BF30)),"Road Input!",IF(Metric,ROUND(Ft2M*CQ145,0),CQ145))) ->  | E145: =IF(OR(ISBLANK(B30),ISBLANK(BA30),ISERR(CT145)),"",IF(CT145<0,"Ungraded Slope!",IF(Metric,ROUND(CY_2_M3*CT145,0),CT145))) ->  | F145: =IF(OR(ISBLANK(B30),E145=0,ISBLANK(E145),ISERR(CR145)),"",IF(ISBLANK(D47),"Material Type!",IF(ISBLANK(E47),"Select Fleet",IF(AND(D30>MaxDozerGrade,OR(E47="Sm Dozer",E47="Lg Dozer"),E47="Sm Dozer",E47="Lg Dozer"),"Too steep!",IF(BA47="Dozer",INDIRECT(BB47&"ExplDozer"),INDIRECT(BB47&"ExplExcavator")))))) ->  | G145: =IF(ISBLANK(B30),"",IF(ISBLANK(D47),"Material Type!",IF(OR(ISBLANK(E47),F145=""),"Select Fleet",IF(OR(E145=0,ISBLANK(E145),F145="Select No."),"",IF(Metric,ROUND(CY_2_M3*CU145,1),CU145))))) ->  | H145: =IF(OR(ISBLANK(B30),F145=""),"",IF(ISBLANK(D47),"Material Type!",IF(OR(ISBLANK(E47),F145=""),"Select Fleet",IF(OR(E145=0,ISBLANK(E145),F145="Select No."),"",IF(RIGHT(E47,9)="Excavator",CX145,IF(RIGHT(E47,5)="Dozer",DM145,"")))))) ->  | I145: =IF(OR(OR(ISBLANK(B30),ISBLANK(D47)),E145=0,ISBLANK(E145)),0,IF(OR(ISBLANK(E47),F145="",F145="Select No."),"",IF(F145="Too Steep!","Error!",IF(BA47="Excavator",CY145,IF(BA47="Dozer",DN145,0))))) -> 0 | J145: =IF(OR(OR(ISBLANK(B30),ISBLANK(D47)),E145=0,ISBLANK(E145)),0,IF(OR(ISBLANK(E47),F145="",F145="Select No."),"",IF(F145="Too Steep!","Error!",IF(BA47="Excavator",CZ145,IF(BA47="Dozer",DO145,0))))) -> 0 | K145: =IF(OR(OR(ISBLANK(B30),ISBLANK(D47)),E145=0,ISBLANK(E145)),0,IF(OR(ISBLANK(E47),F145="",F145="Select No."),0,IF(F145="Too Steep!","Error!",SUM(I145:J145)))) -> 0 | L145: =IF(OR(AND(D30>MaxDozerGrade,OR(E47="Small Dozer",E47="Medium Dozer",E47="Large Dozer")),AND(D30>MaxGraderGrade,E47="grader"))," <<< Only excavators allowed for steeper slopes","") ->  | BA145: =IF(ISBLANK(B30),"",DP145) ->  | BB145: =IF(ISBLANK(B30),"",#REF!) ->  | BC145: =IF(ISBLANK(B30),"",DA145) ->  | BD145: =IF(ISBLANK(B30),"",#REF!) ->  | BF145: =RoadSlopeGrade(D30) -> 0 | BG145: =RoadSlopeDeg(E30) -> 0 | BH145: =F30 -> 0 | BI145: =BB30 -> 0 | BJ145: =180-F30 -> 180 | BK145: =F30-BF145 -> 0 | BL145: =BF145 -> 0 | BM145: =BL145 -> 0 | BN145: =BG145-BF145 -> 0 | BO145: =180-BG145 -> 180 | BP145: =IF(AND(BH145=0,BI145=0),"",FindRoadPivot(BI145,BH145,BF145,BG145,SwellFactor)) ->  | BQ145: =BB30-BP145 ->  | BR145: =(BP145*SIN(BJ145*PI()/180))/(SIN(BK145*PI()/180)) ->  | BS145: =BQ145*SIN(BO145*PI()/180)/(SIN(BN145*PI()/180)) ->  | BT145: =0.5*BP145*BR145*SIN(BL145*PI()/180) ->  | BU145: =0.5*BQ145*BS145*SIN(BM145*PI()/180) ->  | BV145: =BR145+BS145 ->  | BX145: =RoadSlopeGrade(D30) -> 0 | BY145: =RoadSlopeDeg(E30) -> 0 | BZ145: =F30 -> 0 | CA145: =BE30 -> 0 | CB145: =180-F30 -> 180 | CC145: =F30-BX145 -> 0 | CD145: =BX145 -> 0 | CE145: =CD145 -> 0 | CF145: =BY145-BX145 -> 0 | CG145: =180-BY145 -> 180 | CH145: =IF(AND(BZ145=0,CA145=0),"",FindRoadPivot(CA145,BZ145,BX145,BY145,SwellFactor)) ->  | CI145: =BE30-CH145 ->  | CJ145: =(CH145*SIN(CB145*PI()/180))/(SIN(CC145*PI()/180)) ->  | CK145: =CI145*SIN(CG145*PI()/180)/(SIN(CF145*PI()/180)) ->  | CL145: =0.5*CH145*CJ145*SIN(CD145*PI()/180) ->  | CM145: =0.5*CI145*CK145*SIN(CE145*PI()/180) ->  | CN145: =CJ145+CK145 ->  | CP145: =IF(BH30=0,0,(BA30-(BC30*BF30))) ->  | CQ145: =BC30*BF30 ->  | CR145: =IF(OR(ISBLANK(BH30),BH30=""),IF(OR(ISBLANK(BG30),BG30=""),ROUND((BU145*(BA30-(BC30*BF30)))/27,CubesRounding),ROUND(((BU145*(BA30-(BC30*BF30)))/27)*BG30,CubesRounding)),"Override") ->  | CS145: =IF(OR(ISBLANK(BH30),BH30=""),IF(OR(ISBLANK(BG30),BG30=""),ROUND(((CM145*BC30*BF30)/27)+IF(D30<20,BD30*BC30,0),CubesRounding),ROUND((((CM145*BC30*BF30)/27)*BG30)+IF(D30<20,BD30*BC30,0),CubesRounding)),"Override") ->  | CT145: =IF(OR(ISBLANK(BH30),BH30=""),CR145+CS145,BH30) ->  | CU145: =IF(RIGHT(E47,9)="Excavator",CW145,IF(RIGHT(E47,5)="Dozer",DL145,"")) ->  | CV145: =F47*2 -> 0 | CW145: =INDEX(ExcavatorSpecficationsArray,18,MATCH(INDIRECT(BB47 & "ExplExcavator"),ExcavatorList,0)) ->  | CX145: =IF(CT145/CW145<1,1+CV145,ROUND(CT145/CW145,0)+CV145) ->  | CY145: =ROUND(CX145*INDIRECT(BB47 & "ExcavatorLaborRate"),0) ->  | CZ145: =ROUND(CX145*INDIRECT(BB47 & "ExcavatorEquipRate"),0) ->  | DA145: =CY145+CZ145 ->  | DC145: =(-0.00006*(D30)^2)-(0.02134*D30)+1.0024 -> 1.0024 | DD145: =IF(ISBLANK(B30),"",VLOOKUP(D47,DozingDensityCorrectionArray,2)) ->  | DE145: =IF(ISBLANK(B30),"",C47) ->  | DF145: =Dozer_Operator -> 0.75 | DG145: =Dozer_Job_Efficiency -> 0.83 | DH145: =IF(ISBLANK(B30),"",IF(DJ145=0,0,HLOOKUP(INDIRECT(BB47 & "ExplDozer"),DozerSpecifications,8,FALSE))) ->  | DI145: =DC145*DD145*DE145*DF145*DG145*DH145 ->  | DJ145: =IF(ISBLANK(B30),"",IF(BB30<100,100,BB30)) ->  | DK145: =IF(ISBLANK(B30),"",IF(CT145=0,0,ROUND(HLOOKUP(INDIRECT(BB47 & "ExplDozer"),DozerProductionArray,13,FALSE)*DJ145^HLOOKUP(INDIRECT(BB47 & "ExplDozer"),DozerProductionArray,14,FALSE)*DI145,0))) ->  | DL145: =IF(ISBLANK(B30),"",ROUND(DK145*DI145,0)) ->  | DM145: =IF(CT145<=0,0,IF(DL145<0,"",IF(ROUND(CT145/DL145,0)<1,1+CV145,ROUND(CT145/DL145,0)+CV145))) ->  | DN145: =ROUND(DM145*INDIRECT(BB47 & "ExplDozerLaborRate"),0) ->  | DO145: =ROUND(DM145*INDIRECT(BB47 & "ExplDozerEquipRate"),0) ->  | DP145: =DN145+DO145 -> 
C147: =IF(SUM(C145:C146)=0,"",SUM(C145:C146)) ->  | D147: =IF(SUM(D145:D146)=0,"",SUM(D145:D146)) ->  | E147: =IF(SUM(E145:E146)=0,"",SUM(E145:E146)) ->  | H147: =IF(SUM(H145:H146)=0,"",SUM(H145:H146)) ->  | I147: =IF(ISNA(MATCH("Error!",I145:I146,0)),IF(SUM(I145:I146)=0,0,SUM(I145:I146)),"Error!") -> 0 | J147: =IF(ISNA(MATCH("Error!",J145:J146,0)),IF(SUM(J145:J146)=0,0,SUM(J145:J146)),"Error!") -> 0 | K147: =IF(ISNA(MATCH("Error!",K145:K146,0)),IF(SUM(K145:K146)=0,0,SUM(K145:K146)),"Error!") -> 0
B149: (1) Includes walk-in time based on distance and travel speed (see Productivity sheet for speeds)
A151: Exploration Roads & Pads - Growth Media Costs | BE151: ROADS | BK151: PADS | BQ151: TOTALS
BA152: Cost Summary by Fleet | BE152: Soil Placement Parameters | BK152: Soil Placement Parameters | BX152: Truck Fleet | CP152: Scraper w/ Dozer Fleet | DD152: Tandem Scraper Fleet
B153: Description (required) | C153: Growth Media Volume | D153: Growth Media Replacement Fleet | E153: Fleet Productivity | F153: Number of Trucks/ Scrapers | G153: Total Fleet Hours | H153: Total Labor Cost | I153: Total Equipment Cost | J153: Total Growth Media Cost | BA153: Truck | BB153: Scraper Dozer | BC153: Tandem Scraper | BE153: Final Slope Length | BF153: Final Slope Width | BG153: Final Slope Area | BH153: Slope Topsoil Volume | BI153: Final Slope Footprint | BK153: Final Slope Length | BL153: Final Slope Width | BM153: Final Slope Area | BN153: Slope Topsoil Volume | BO153: Final Slope Footprint | BQ153: TOTAL SLOPE AREA | BR153: TOTAL TOPSOIL VOLUME | BS153: TOTAL FOOTPRINT AREA | BU153: Productivity for selected fleet | BV153: Absolute grade | BW153: Walk-in Hrs | BX153: downhill empty | BY153: downhill loaded | BZ153: uphill empty | CA153: uphill loaded | CB153: Uphill Travel | CC153: Downhill Travel | CD153: Total Travel Time | CE153: Manuver to Load | CF153: Manuver to Dump | CG153: Loader Load Time | CH153: Total Cycle Time | CI153: Number of Trucks Required | CJ153: Truck Production | CK153: Fleet Productivity | CL153: Total Fleet Time | CM153: Equipment Cost | CN153: Labor Cost | CO153: Total Cost | CP153: downhill empty | CQ153: downhill loaded | CR153: uphill empty | CS153: uphill loaded | CT153: Uphill Travel | CU153: Downhill Travel | CV153: Total Travel Time | CW153: Load/ Manuever/ Dump | CX153: Number Scrapers Required | CY153: Fleet Productivity | CZ153: Total Fleet Hours | DA153: Total Equipment Cost | DB153: Total Labor Cost | DC153: Total Cost | DD153: downhill empty | DE153: downhill loaded | DF153: uphill empty | DG153: uphill loaded | DH153: Uphill Travel | DI153: Downhill Travel | DJ153: Total Travel Time | DK153: Load/ Manuever/ Dump | DL153: Number Scrapers Required | DM153: Fleet Productivity | DN153: Total Fleet Hours | DO153: Total Equipment Cost | DP153: Total Labor Cost | DQ153: Total Cost
C154: =IF(Metric,"m3","cy") -> cy | E154: =IF(Metric,"LCM/hr","LCY/hr") -> LCY/hr | H154: $ | I154: $ | J154: $ | BA154: $ | BB154: $ | BC154: $ | BE154: ft | BF154: ft | BG154: acres | BH154: cu yd | BI154: acres | BK154: ft | BL154: ft | BM154: acres | BN154: cu yd | BO154: acres | BQ154: acres | BR154: cy | BS154: acres | BU154: BCY/hr | BV154: % | BW154: hr | BX154: min | BY154: min | BZ154: min | CA154: min | CB154: min | CC154: min | CD154: min | CE154: min | CF154: min | CG154: min | CH154: min | CJ154: BCY/hr | CK154: BCY/hr | CL154: hrs | CM154: $ | CN154: $ | CO154: $ | CP154: min | CQ154: min | CR154: min | CS154: min | CT154: min | CU154: min | CV154: min | CW154: min | CY154: BCY/hr | CZ154: hrs | DA154: $ | DB154: $ | DC154: $ | DD154: min | DE154: min | DF154: min | DG154: min | DH154: min | DI154: min | DJ154: min | DK154: min | DM154: BCY/hr | DN154: hrs | DO154: $ | DP154: $ | DQ154: $
A155: =A30 -> 0 | B155: =IF(ISBLANK(B30),"",B30) ->  | C155: =IF(OR(ISBLANK(B30),ISBLANK(BJ30),BJ30=0,NOT(AND(ISNUMBER(BH155),ISNUMBER(BN155)))),"",IF(Metric,ROUND(CY_2_M3*(BH155+BN155),0),BH155+BN155)) ->  | D155: =IF(OR(C155=0,ISBLANK(B30),ISBLANK(BJ30),BJ30=0,NOT(ISNUMBER(BH155))),"",IF(ISBLANK(G47),"Material Type!",IF(OR(H47="optmize",ISBLANK(H47)),"Select Fleet",IF(RIGHT(H47,5)="Truck",INDIRECT(BD47&"Truck")&"/"&INDIRECT(BD47&"Loader")&"/"&INDIRECT(BD47&"TruckDozer"),IF(BD47="Scraper",INDIRECT("Haul"&BD47)&"/"&INDIRECT(BD47&"LoadDozer")&"/"&INDIRECT(BD47&"Dozerdozer"),INDIRECT(BD47&"Scraper")&"/"&INDIRECT(BD47&"ScraperDozer")))))) ->  | E155: =IF(OR(C155=0,ISBLANK(B30),ISBLANK(BJ30),BJ30=0,NOT(ISNUMBER(BH155))),"",IF(ISBLANK(G47),"Material Type!",IF(OR(H47="optmize",ISBLANK(H47)),"Select Fleet",IF(Metric,ROUND(CY_2_M3*BU155,0),BU155)))) ->  | F155: =IF(OR(C155=0,ISBLANK(B30),ISBLANK(BJ30),BJ30=0,NOT(ISNUMBER(BH155))),"",IF(ISBLANK(G47),"Material Type!",IF(OR(H47="optmize",ISBLANK(H47)),"Select Fleet",IF(RIGHT(H47,5)="Truck",CI155,IF(H47="Scraper Dozer",CX155,IF(H47="Tandem Scraper",DL155,"")))))) ->  | G155: =IF(OR(C155=0,ISBLANK(B30),ISBLANK(BJ30),BJ30=0,NOT(ISNUMBER(BH155))),"",IF(ISBLANK(G47),"Material Type!",IF(OR(H47="optmize",ISBLANK(H47)),"Select Fleet",IF(RIGHT(H47,5)="Truck",CL155,IF(H47="Scraper Dozer",CZ155,IF(H47="Tandem Scraper",DN155,"")))))) ->  | H155: =IF(OR(ISBLANK(B30),G155="",ISBLANK(G47),ISBLANK(H47),H47="optmize"),0,IF(RIGHT(H47,5)="Truck",CN155,IF(H47="Scraper Dozer",DB155,IF(H47="Tandem Scraper",DP155,0)))) -> 0 | I155: =IF(OR(ISBLANK(B30),G155="",ISBLANK(G47),ISBLANK(H47),H47="optmize"),0,IF(RIGHT(H47,5)="Truck",CM155,IF(H47="Scraper Dozer",DA155,IF(H47="Tandem Scraper",DO155,0)))) -> 0 | J155: =IF(OR(ISBLANK(B30),G155="",ISBLANK(G47),ISBLANK(H47)),0,IF(AND(NOT(ISNUMBER(H155)),NOT(ISNUMBER(I155))),0,IF(C155=0,"",SUM(H155:I155)))) -> 0 | BA155: =IF(ISBLANK(B30),"",CO155) ->  | BB155: =IF(ISBLANK(B30),"",DC155) ->  | BC155: =IF(ISBLANK(B30),"",DQ155) ->  | BE155: =IF(ISBLANK(O30),IF(D30=0,BB30,BV145),BB30) -> 0 | BF155: =IF(ISBLANK(O30),BE155*COS(D30/100),BB30) -> 0 | BG155: =IF(OR(O30="",ISBLANK(O30)),BE155*(BA30-(BC30*BF30))/43560,BI30) ->  | BH155: =IF(OR(ISBLANK(P30),P30=0),0,ROUND(BE155*(BA30-(BC30*BF30))*(BJ30/12)/27,CubesRounding)) -> 0 | BI155: =IF(ISBLANK(O30),(BF155*(BA30-(BC30*BF30)))/43560,BI30) ->  | BK155: =IF(ISBLANK(O30),IF(D30=0,BE30,CN145),BE30) -> 0 | BL155: =IF(ISBLANK(O30),ROUND(BK155*COS(D30/100),0),BE30) -> 0 | BM155: =IF(OR(O30="",ISBLANK(O30)),(BK155*BC30*BF30)/43560,BI30) ->  | BN155: =IF(P30=0,0,ROUND(BK155*BC30*BF30*(BJ30/12)/27,0)) -> 0 | BO155: =IF(ISBLANK(O30),(BL155*BC30*BF30)/43560,BI30) ->  | BQ155: =BG155+BM155 ->  | BR155: =IF(ISNUMBER(BI30),BI30*43560*(BJ30/12)/27,BH155+BN155) -> 0 | BS155: =BI155+BO155 ->  | BU155: =IF(RIGHT(H47,5)="Truck",CK155,IF(H47="Scraper Dozer",CY155,IF(H47="Tandem Scraper",DM155,""))) ->  | BV155: =ABS(BL30) ->  | BW155: =J47*2 -> 0 | BX155: =ROUND($BK30/(INDEX(INDIRECT(BF47 & "TruckSpeedTable"),MATCH("Empty",INDIRECT(BF47 & "TruckLoadedWeight"),0),MATCH(IF($BV155-INDIRECT(BF47 & "TruckRollingResistance")<0,0,$BV155-INDIRECT(BF47 & "TruckRollingResistance")),INDIRECT(BF47 & "TruckDownhillSlopes"),-1))*88),2) ->  | BY155: =ROUND($BK30/(INDEX(INDIRECT(BF47 & "TruckSpeedTable"),MATCH(G47,HaulMaterials,0),MATCH(IF($BV155-INDIRECT(BF47 & "TruckRollingResistance")<0,0,$BV155-INDIRECT(BF47 & "TruckRollingResistance")),INDIRECT(BF47 & "TruckDownhillSlopes"),-1))*88),2) ->  | BZ155: =ROUND(($BK30/VLOOKUP($BV155+INDIRECT(BF47 & "TruckRollingResistance"),INDIRECT(BF47 & "TruckUHEmptyArray"),8,1))^(1/VLOOKUP($BV155+INDIRECT(BF47 & "TruckRollingResistance"),INDIRECT(BF47 & "TruckUHEmptyArray"),9,1)),2) ->  | CA155: =ROUND(($BK30/VLOOKUP($BV155+INDIRECT(BF47 & "TruckRollingResistance"),INDIRECT(BF47 & "TruckUHLoadedArray"),8,1))^(1/VLOOKUP($BV155+INDIRECT(BF47 & "TruckRollingResistance"),INDIRECT(BF47 & "TruckUHLoadedArray"),9,1)),2) ->  | CB155: =IF($BL30>=0,BZ155,CA155) ->  | CC155: =IF($BL30>=0,BY155,BX155) ->  | CD155: =CB155+CC155 ->  | CE155: =INDIRECT(BF47 & "TruckManuverLoad") ->  | CF155: =INDIRECT(BF47 & "TruckManuverDump") ->  | CG155: =INDIRECT(BF47&IF(INDIRECT(BF47&"FltLoader")="Shovel","ShovelTimetoFillTruck","LoaderTimetoFillTruck")) ->  | CH155: =CD155+CE155+CF155+CG155 ->  | CI155: =IF(ISBLANK(I47),ROUNDUP((CH155-CG155)/CG155,0),I47) ->  | CJ155: =ROUND((60/CH155)*INDIRECT(BF47 & "TruckAvgCapacity"),CubesRounding) ->  | CK155: =ROUND(CI155*CJ155*HaulOperator*INDIRECT(BF47 & "TruckJobEfficiency")*INDIRECT(BF47 & "TruckAltitudeDeration"),CubesRounding) ->  | CL155: =IF(BR155/CK155<1,1+BW155,ROUND(BR155/CK155,HoursRounding)+BW155) ->  | CM155: =IF(BR155=0,"",ROUND(CL155*((CI155*INDIRECT(BF47 & "TruckEquipRate"))+INDIRECT(BF47 & "LoaderEquipRate")+INDIRECT(BF47 & "TruckDozerEquipRate")),0)) ->  | CN155: =ROUND(CL155*((CI155*INDIRECT(BF47 & "TruckLaborRate"))+INDIRECT(BF47 & "LoaderLaborRate")+INDIRECT(BF47 & "TruckDozerLaborRate")),0) ->  | CO155: =IF(BR155=0,"",CM155+CN155) ->  | CP155: =ROUND($BK30/(INDEX(HaulScraperSpeedTable,MATCH("Empty",HaulScraperLoadedWeight,0),MATCH(IF($BV155-HaulScraperRollingResistance<0,0,$BV155-HaulScraperRollingResistance),HaulScraperDownhillSlopes,-1))*88),2) ->  | CQ155: =ROUND($BK30/(INDEX(HaulScraperSpeedTable,MATCH(G47,HaulMaterials,0)+1,MATCH(IF($BV155-HaulScraperRollingResistance<0,0,$BV155-HaulScraperRollingResistance),HaulScraperDownhillSlopes,-1))*88),2) ->  | CR155: =ROUND(($BK30/VLOOKUP($BV155+HaulScraperRollingResistance,HaulScraperUHEmptyArray,8,1))^(1/VLOOKUP($BV155+HaulScraperRollingResistance,HaulScraperUHEmptyArray,9,1)),2) ->  | CS155: =ROUND(($BK30/VLOOKUP($BV155+HaulScraperRollingResistance,HaulScraperUHLoadedArray,8,1))^(1/VLOOKUP($BV155+HaulScraperRollingResistance,HaulScraperUHLoadedArray,9,1)),2) ->  | CT155: =IF($BL30>=0,CR155,CS155) ->  | CU155: =IF($BL30>=0,CQ155,CP155) ->  | CV155: =CT155+CU155 ->  | CW155: =IF(ISBLANK(B30),"",IF(BR155=0,"",HaulScraperLoadTime+HaulScraperManuverSpread)) ->  | CX155: =IF(ISBLANK(B30),"",IF(ISBLANK(I47),IF(BR155=0,"",IF(TRUNC(CV155/CW155,0)<1,1,ROUND(CV155/CW155,0)+1)),I47)) ->  | CY155: =IF(ISBLANK(B30),"",IF(BR155=0,"",ROUND((60/(CV155+CW155)*HaulScraperAvgCapacity*HaulScraperJobEfficiency*HaulOperator*HaulScraperAltitudeDeration)*CX155,CubesRounding))) ->  | CZ155: =IF(ISBLANK(B30),"",IF(BR155=0,"",IF(BR155/CY155<1,1+BW155,ROUND(BR155/CY155,HoursRounding)+BW155))) ->  | DA155: =IF(BR155=0,"",ROUND(CZ155*((CX155*ScraperEquipRate)+ScraperLoadDozerEquipRate+ScraperDozerEquipRate),0)) ->  | DB155: =IF(BR155=0,"",ROUND(CZ155*((CX155*ScraperLaborRate)+ScraperLoadDozerLaborRate+ScraperDozerLaborRate),0)) ->  | DC155: =IF(BR155=0,"",DA155+DB155) ->  | DD155: =ROUND($BK30/(INDEX(TandemScraperSpeedTable,MATCH("Empty",TandemScraperLoadedWeight,0),MATCH(IF($BV155-TandemScraperRollingResistance<0,0,$BV155-TandemScraperRollingResistance),TandemScraperDownhillSlopes,-1))*88),2) ->  | DE155: =ROUND($BK30/(INDEX(TandemScraperSpeedTable,MATCH(G47,HaulMaterials,0)+1,MATCH(IF($BV155-TandemScraperRollingResistance<0,0,$BV155-TandemScraperRollingResistance),TandemScraperDownhillSlopes,-1))*88),2) ->  | DF155: =ROUND(($BK30/VLOOKUP($BV155+TandemScraperRollingResistance,TandemScraperUHEmptyArray,8,1))^(1/VLOOKUP($BV155+TandemScraperRollingResistance,TandemScraperUHEmptyArray,9,1)),2) ->  | DG155: =ROUND(($BK30/VLOOKUP($BV155+TandemScraperRollingResistance,TandemScraperUHLoadedArray,8,1))^(1/VLOOKUP($BV155+TandemScraperRollingResistance,TandemScraperUHLoadedArray,9,1)),2) ->  | DH155: =IF($BL30>=0,DF155,DG155) ->  | DI155: =IF($BL30>=0,DE155,DD155) ->  | DJ155: =DH155+DI155 ->  | DK155: =IF(ISBLANK(H47),"",IF(BR155=0,"",TandemScraperLoadTime+TandemScraperManuverSpread)) ->  | DL155: =IF(ISBLANK(I47),IF(TRUNC(DJ155/DK155,0)<2,2,TRUNC(DJ155/DK155,0)+IF(MOD(TRUNC(DJ155/DK155,0),2),1,0)),I47) ->  | DM155: =IF(ISBLANK(B30),"",IF(BR155=0,"",ROUND((60/(DJ155+DK155)*TandemScraperAvgCapacity*TandemScraperJobEfficiency*HaulOperator*HaulScraperAltitudeDeration)*DL155,CubesRounding))) ->  | DN155: =IF(ISBLANK(B30),"",IF(BR155=0,"",IF(BR155/DM155<1,1+BW155,ROUND(BR155/DM155,HoursRounding)+BW155))) ->  | DO155: =IF(BR155=0,"",ROUND(DN155*((DL155*TScraperEquipRate)+TScraperDozerEquipRate),0)) ->  | DP155: =IF(BR155=0,"",ROUND(DN155*((DL155*TScraperLaborRate)+TScraperDozerLaborRate),0)) ->  | DQ155: =IF(BR155=0,"",DO155+DP155) -> 
C157: =IF(SUM(C155:C156)=0,"",SUM(C155:C156)) ->  | G157: =IF(SUM(G155:G156)=0,"",SUM(G155:G156)) ->  | H157: =IF(SUM(H155:H156)=0,0,SUM(H155:H156)) -> 0 | I157: =IF(SUM(I155:I156)=0,0,SUM(I155:I156)) -> 0 | J157: =IF(SUM(J155:J156)=0,0,SUM(J155:J156)) -> 0
A159: Exploration Roads & Pads - Scarifying/Revegetation Costs | BB159: ROAD | BE159: PADS
BB160: Total Acres | BC160: Ripping Parameters | BF160: Ripping Parameters | BJ160: Grader | BR160: Small Dozer | BZ160: Medium Dozer | CH160: Large Dozer | CQ160: Revegetation
B161: Description (required) | C161: Surface Area | D161: Ripping/ Scarifying Fleet | E161: Ripping Hours | F161: Ripping Labor Costs | G161: Ripping Equipment Cost | H161: Total Ripping Costs | I161: Revegetation Labor Cost | J161: Revegetation Equipment Cost | K161: Revgetation Material Cost | L161: Total Revegetation Cost | BB161: Total Acres | BC161: Final Slope Area | BD161: Final Slope Length/ Road Width | BE161: Road Only Length | BF161: Final Slope Area | BG161: Final Slope Length/ Road Width | BH161: Total Pad Length | BJ161: Road Area No. passes | BK161: Pad Area No. passes | BL161: Total Distance | BM161: Uncorrected Ripping Time | BN161: Corrected Ripping Time | BO161: Equipment Cost | BP161: Labor Cost | BQ161: Total Cost | BR161: Road Area No. passes | BS161: Pad Area No. passes | BT161: Total Distance | BU161: Uncorrected Ripping Time | BV161: Corrected Ripping Time | BW161: Equipment Cost | BX161: Labor Cost | BY161: Total Cost | BZ161: Slope Area No. passes | CA161: Pad Area No. passes | CB161: Total Distance | CC161: Uncorrected Ripping Time | CD161: Corrected Ripping Time | CE161: Equipment Cost | CF161: Labor Cost | CG161: Total Cost | CH161: Slope Area No. passes | CI161: Pad Area No. passes | CJ161: Total Distance | CK161: Uncorrected Ripping Time | CL161: Corrected Ripping Time | CM161: Equipment Cost | CN161: Labor Cost | CO161: Total Cost | CQ161: Equipment Cost | CR161: Labor Cost | CS161: Seed Mix | CT161: Mulch | CU161: Fertilizer | CV161: Total Materials | CW161: Total
C162: =IF(Metric,"ha","acres") -> acres | E162: hrs | F162: $ | G162: $ | H162: $ | I162: $ | J162: $ | K162: $ | L162: $ | BB162: ac | BC162: ac | BD162: ft | BE162: ft | BF162: ac | BG162: ft | BH162: ft | BL162: ft | BM162: hr | BN162: hr | BO162: $ | BP162: $ | BQ162: $ | BT162: ft | BU162: hr | BV162: hr | BW162: $ | BX162: $ | BY162: $ | CB162: ft | CC162: hr | CD162: hr | CE162: $ | CF162: $ | CG162: $ | CJ162: ft | CK162: hr | CL162: hr | CM162: $ | CN162: $ | CO162: $
A163: =A30 -> 0 | B163: =IF(ISBLANK(B30),"",B30) ->  | C163: =IF(OR(ISBLANK(B30),ISBLANK(G30),ISBLANK(I30)),"",IF(OR(O30,ISBLANK(O30)),IF(Metric,ROUND(Ac2Ha*BB163,2),BB163),IF(Metric,ROUND(Ac2Ha*O30,2),O30))) ->  | D163: =IF(OR(ISBLANK(N47), N47="No",ISBLANK(B30)),"",IF(ISBLANK(O47),"Select Fleet",IF(RIGHT(O47,5)="Dozer",INDIRECT("Rip"&BI47&"Dozer"),RipGrader))) ->  | E163: =IF(ISBLANK(B30),"",IF(OR(ISBLANK(N47),N47="No"),"",IF(ISBLANK(O47),"Select Fleet",IF(O47="Grader",BN163,IF(O47="Small Dozer",BV163,IF(O47="Med Dozer",CD163,CL163)))))) ->  | F163: =IF(ISBLANK(B30),"",IF(OR(ISBLANK(N47),N47="No"),"",IF(ISBLANK(O47),"Select Fleet",IF(O47="Small Dozer",BX163,IF(O47="Med Dozer",CF163,IF(O47="Large Dozer",CN163,IF(ISBLANK(O47),"",BP163))))))) ->  | G163: =IF(ISBLANK(B30),"",IF(OR(ISBLANK(N47),N47="No"),"",IF(ISBLANK(O47),"Select Fleet",IF(ISNUMBER(E163),IF(O47="Small Dozer",BW163,IF(O47="Med Dozer",CE163,IF(O47="Large Dozer",CM163,BO163))),"")))) ->  | H163: =IF(ISBLANK(B30),"",IF(OR(ISBLANK(N47),N47="No"),"",IF(ISBLANK(O47),"Select Fleet",IF(OR(ISNUMBER(G163),ISNUMBER(F163)),G163+F163,"")))) ->  | I163: =IF(OR(K47="None",ISBLANK(K47),C163=0),0,IF(OR(K47="None",ISBLANK(K47)),0,CR163)) -> 0 | J163: =IF(OR(K47="None",ISBLANK(K47),C163=0),0,IF(OR(K47="None",ISBLANK(K47)),0,CQ163)) -> 0 | K163: =IF(OR(ISBLANK(B30),CV163=0),0,CV163) -> 0 | L163: =IF(AND(I163="",J163="",K163=""),0,SUM(I163:K163)) -> 0 | BB163: =ROUND(IF(ISBLANK(O30),BC163+BF163,BI30),2) ->  | BC163: =ROUND(BG155,2) ->  | BD163: =ROUND(BE155,0) -> 0 | BE163: =BA30-(BC30*BF30) ->  | BF163: =BM155 ->  | BG163: =ROUND(BK155,0) -> 0 | BH163: =BC30*BF30 ->  | BJ163: =ROUND($BD163/INDEX(GraderSpecifications,4,MATCH(RipGrader,Graders,0)),0) -> 0 | BK163: =ROUND($BG163/INDEX(GraderSpecifications,4,MATCH(RipGrader,Graders,0)),0) -> 0 | BL163: =(BJ163*$BE163)+(BK163+$BH163) ->  | BM163: =IF(ISBLANK(B30),"",IF(OR(N47="",N47="No"),0,ROUND((BL163/INDEX(GraderSpecifications,15,MATCH(RipGrader,Graders,0)))+(BJ163*INDEX(GraderSpecifications,16,MATCH(RipGrader,Graders,0))/MinPerHr),2))) ->  | BN163: =IF(BM163<1,1,ROUND(BM163,HoursRounding)) ->  | BO163: =IF(ISBLANK(B30),"",IF(N47="No","",ROUND(BN163*GraderRipEquipRate,0))) ->  | BP163: =IF(ISBLANK(B30),"",IF(N47="No","",ROUND(BN163*GraderRipLaborRate,0))) ->  | BQ163: =IF(ISBLANK(B30),"",IF(N47="No","",BO163+BP163)) ->  | BR163: =ROUND(BD163/INDEX(DozerSpecifications,5,MATCH(RipSmallDozer,Dozers,0)),0) -> 0 | BS163: =ROUND(BG163/INDEX(DozerSpecifications,5,MATCH(RipSmallDozer,Dozers,0)),0) -> 0 | BT163: =(BR163*BE163)+(BH163*BS163) ->  | BU163: =IF(OR(N47="",N47="No"),0,ROUND((BT163/INDEX(DozerSpecifications,9,MATCH(RipSmallDozer,Dozers,0)))+(BR163*INDEX(DozerSpecifications,7,MATCH(RipSmallDozer,Dozers,0))/MinPerHr),2)) -> 0 | BV163: =IF(BU163<1,1,ROUND(BU163,HoursRounding)) -> 1 | BW163: =IF(ISBLANK(B30),"",IF(N47="No","",ROUND(BV163*SmallDozerRipEquipRate,0))) ->  | BX163: =IF(ISBLANK(B30),"",IF(N47="No","",ROUND(BV163*SmallDozerRipLaborRate,0))) ->  | BY163: =IF(ISBLANK(B30),"",IF(N47="No","",BW163+BX163)) ->  | BZ163: =ROUND(BD163/INDEX(DozerSpecifications,5,MATCH(RipMedDozer,Dozers,0)),0) -> 0 | CA163: =ROUND(BG163/INDEX(DozerSpecifications,5,MATCH(RipMedDozer,Dozers,0)),0) -> 0 | CB163: =(BZ163*BE163)+(BH163*CA163) ->  | CC163: =IF(OR(N47="",N47="No"),0,ROUND((CB163/INDEX(DozerSpecifications,9,MATCH(RipMedDozer,Dozers,0)))+(BZ163*INDEX(DozerSpecifications,7,MATCH(RipMedDozer,Dozers,0))/MinPerHr),2)) -> 0 | CD163: =IF(CC163<1,1,ROUND(CC163,HoursRounding)) -> 1 | CE163: =IF(ISBLANK(B30),"",IF(G47="No","",ROUND(CD163*MedDozerRipEquipRate,0))) ->  | CF163: =IF(ISBLANK(B30),"",IF(G47="No","",ROUND(CD163*MedDozerRipLaborRate,0))) ->  | CG163: =IF(ISBLANK(B30),"",IF(G47="No","",CE163+CF163)) ->  | CH163: =ROUND(BD163/INDEX(DozerSpecifications,2,MATCH(RipLargeDozer,Dozers,0)),0) -> 0 | CI163: =ROUND(BG163/INDEX(DozerSpecifications,2,MATCH(RipLargeDozer,Dozers,0)),0) -> 0 | CJ163: =(CH163*BE163)+(CI163*BH163) ->  | CK163: =IF(OR(N47="",N47="No"),0,ROUND((CJ163/INDEX(DozerSpecifications,9,MATCH(RipLargeDozer,Dozers,0)))+(CH163*INDEX(DozerSpecifications,7,MATCH(RipLargeDozer,Dozers,0))/MinPerHr),2)) -> 0 | CL163: =IF(CK163<1,1,ROUND(CK163,HoursRounding)) -> 1 | CM163: =IF(ISBLANK(B30),"",IF(N47="No","",ROUND(CL163*LargeDozerRipEquipRate,0))) ->  | CN163: =IF(ISBLANK(B30),"",IF(N47="No","",ROUND(CL163*LargeDozerRipLaborRate,0))) ->  | CO163: =IF(ISBLANK(B30),"",IF(N47="No","",CM163+CN163)) ->  | CQ163: =IF(OR(K47="None",ISBLANK(K47)),0,IF(BB163<1,SeedEquipExplFlat,ROUND(SeedEquipExplFlat*BB163,0))) -> 0 | CR163: =IF(OR(K47="None",ISBLANK(K47)),0,IF(BB163<1,SeedLaborExplFlat,ROUND(SeedLaborExplFlat*BB163,0))) -> 0 | CS163: =IF(OR(K47="None",ISBLANK(K47)),0,ROUND(INDEX(SeedMixArray,MATCH(K47,SeedMixes,0),4)*C163,0)) -> 0 | CT163: =IF(OR(L47="None",ISBLANK(L47)),0,ROUND(INDEX(MulchArray,MATCH(L47,Mulches,0),4)*C163,0)) -> 0 | CU163: =IF(OR(M47="None",ISBLANK(M47)),0,ROUND(INDEX(FertilizerArray,MATCH(M47,Fertilizers,0),4)*C163,0)) -> 0 | CV163: =SUM(CS163:CU163) -> 0 | CW163: =IF(OR(K47="None",ISBLANK(K47)),0,ROUND(CQ163+CR163+CV163,0)) -> 0
C165: =IF(SUM(C163:C164)=0,"",SUM(C163:C164)) ->  | E165: =IF(SUM(E163:E164)=0,"",SUM(E163:E164)) ->  | F165: =IF(SUM(F163:F164)=0,0,SUM(F163:F164)) -> 0 | G165: 0 | H165: 0 | I165: 0 | J165: 0 | K165: 0 | L165: 0

Sheet Waste Rock Dumps
A1: =CONCATENATE('Property Information'!$B$26, 'Property Information'!$C$26,IF('Property Information'!$BC$18=TRUE,"- Notice or Exploration",IF('Property Information'!$BD$18=TRUE," - Plan of Operations"," - Reclamation Plan"))) -> Project Name: - Reclamation Plan
A2: =CONCATENATE('Property Information'!B28,SubmittalDate) -> Date of Submittal:
A3: =CONCATENATE('Property Information'!B12,FileName) -> File Name: SRCE_Version_1_4_1_017c_NV_2026_rev1.xlsm
A4: =CONCATENATE("Model Version: ",'Property Information'!B7) -> Model Version: Version 1.4.1
A5: =CONCATENATE("Cost Data: ",DataCostBasis) -> Cost Data: User Data
A6: =CONCATENATE("Cost Data File: ",DataFileName) -> Cost Data File: SRCE_Cost_Data_File_1_12_Std_2026_rev1.xlsm
A7: =CONCATENATE("Cost Estimate Type: ",CostEstimateType," Cost Basis: ",CostBasisCategory) -> Cost Estimate Type: Surety Cost Basis: Northern Nevada
A9: Waste Rock Dumps - Cost Summary | H9: =IF(OR(ISBLANK(ProjectRegion),ProjectRegion=""),"Go to Property Information Sheet and Enter Project Region",IF(OR(EquipmentZoneRate="Invalid Zone",TruckDriverZone="Invalid ZoneRate",LaborZoneRate="Invalid Zone",EquipmentZone="",TruckDriverZone="",LaborerZone=""),"Go To Labor Rates sheet and select Zone for Each Labor Classification","")) -> 
C10: Labor | D10: Equipment | E10: Materials | F10: Totals
B11: Grading Costs | C11: =M108 -> 0 | D11: =N108 -> 0 | E11: N/A | F11: =SUM(C11:E11) -> 0
B12: Cover Placement Cost | C12: =H116 -> 0 | D12: =I116 -> 0 | E12: N/A | F12: =SUM(C12:E12) -> 0
B13: Topsoil Placement Cost | C13: =P116 -> 0 | D13: =Q116 -> 0 | E13: N/A | F13: =SUM(C13:E13) -> 0
B14: Ripping/Scarifying Cost | C14: =K124 ->  | D14: =L124 -> 0 | E14: N/A | F14: =SUM(C14:E14) -> 0
B15: Subtotal Earthworks | C15: =SUM(C11:C14) -> 0 | D15: =SUM(D11:D14) -> 0 | E15: =SUM(E11:E14) -> 0 | F15: =SUM(F11:F14) -> 0
B16: Revegetation Cost | C16: =N124 -> 0 | D16: =O124 -> 0 | E16: =P124 -> 0 | F16: =SUM(C16:E16) -> 0
B17: TOTALS | C17: =SUM(C15:C16) -> 0 | D17: =SUM(D15:D16) -> 0 | E17: =SUM(E15:E16) -> 0 | F17: =SUM(F15:F16) -> 0
A20: Color Code Key
B21: User Input - Direct Input | C21: Direct Input
B22: User Input - Pull Down List | C22: Pull Down Selection
B23: Program Constant (can override) | C23: Alternate Input
B24: Program Calculated Value | C24: Locked Cell - Formula or Reference
A26: Waste Rock Dumps - User Input | F26: You must fill in ALL green cells in this section for each dump, lift or dump category | BC26: Waste Rock Dumps - User Input Converted to English Units
A27: Facility Description | E27: Physical - MANDATORY | N27: Cover | R27: Growth Media | BJ27: Cover 3 (upper layer) | BN27: Growth Media (upper layer)
B28: Description (required) | C28: ID Code | D28: Type | E28: Underlying Ground Slope | F28: Ungraded Slope | G28: Final Slope | H28: Final Top Slope | I28: Lift (dump) Height | J28: Mid-Bench Length | K28: Average Flat Area Long Dimension (ripping distance) | L28: Final (Regraded) Dump Footprint | M28: Regrade Volume (1) (if calculated elsewhere) | N28: Cover Thickness Slopes | O28: Cover Thickness Flat Areas | P28: Distance from Cover Borrow | Q28: Slope from Dump to Cover Borrow | R28: Slope Growth Media Thickness | S28: Flat Area Growth Media Thickness | T28: Distance from Growth Media Stockpile | U28: Slope from Dump to Stockpile | BC28: Description (required) | BE28: Lift (dump) Height | BF28: Mid-Bench Length | BG28: Average Flat Area Long Dimension (ripping distance) | BH28: Final (Regraded) Dump Footprint | BI28: Regrade Volume (if calculated elsewhere) | BJ28: Cover Thickness Slopes | BK28: Cover Thickness Flat Areas | BL28: Distance from Cover Borrow | BM28: Slope from Dump to Cover Borrow | BN28: Slope Growth Media Thickness | BO28: Flat Area Growth Media Thickness | BP28: Distance from Growth Media Stockpile | BQ28: Slope from Dump to Stockpile
A29: -1 | E29: % Grade | F29: _H:1V | G29: _H:1V | H29: % Grade | I29: =IF(Metric,"m","ft") -> ft | J29: =IF(Metric,"m","ft") -> ft | K29: =IF(Metric,"m","ft") -> ft | L29: =IF(Metric,"ha","acres") -> acres | M29: =IF(Metric,"m3","cy") -> cy | N29: =IF(Metric,"mm","in") -> in | O29: =IF(Metric,"mm","in") -> in | P29: =IF(Metric,"m","ft") -> ft | Q29: % grade | R29: =IF(Metric,"mm","in") -> in | S29: =IF(Metric,"mm","in") -> in | T29: =IF(Metric,"m","ft") -> ft | U29: % grade | BE29: ft | BF29: ft | BG29: ft | BH29: acres | BI29: cy | BJ29: in | BK29: in | BL29: ft | BM29: % grade | BN29: in | BO29: in | BP29: ft | BQ29: % grade
A30: =ROW(A30) - ROW($A$29)-1 -> 0 | D30: Waste Rock Dump | V30: =IF(OR(ABS(Q30)>20,ABS(U30)>20),"See Note 2.","") ->  | BC30: =A30 -> 0 | BD30: 0 | BE30: =IF(Metric,ROUND(M2Ft*I30,0),I30) -> 0 | BF30: =IF(Metric,ROUND(M2Ft*J30,0),J30) -> 0 | BG30: =IF(Metric,ROUND(M2Ft*K30,0),K30) -> 0 | BH30: =IF(Metric,ROUND(Ha2Ac*L30,3),L30) -> 0 | BI30: =IF(ISBLANK(M30),"",IF(Metric,ROUND(M3_2_CY*M30,0),M30)) ->  | BJ30: =IF(Metric,ROUND(mm2in*N30,3),N30) -> 0 | BK30: =IF(Metric,ROUND(mm2in*O30,3),O30) -> 0 | BL30: =IF(Metric,ROUND(M2Ft*P30,0),P30) -> 0 | BM30: =Q30 -> 0 | BN30: =IF(Metric,ROUND(mm2in*R30,3),R30) -> 0 | BO30: =IF(Metric,ROUND(mm2in*S30,3),S30) -> 0 | BP30: =IF(Metric,ROUND(M2Ft*T30,0),T30) -> 0 | BQ30: =U30 -> 0
B33: Notes:
B34: 1. All Physical parameters must be input even if manual overrides for volume or area are used.
B35: 2. If Slope from facility to borrow source is >20, downhill travel time may be underestimated due to limitation of uphill travel time curves and downhill speed tables from CAT Handbook (see Productivty Sheet)
A41: Waste Rock Dumps - User Input (cont.) | F41: You must fill in ALL green cells and relevant blue cells in this section for each dump, lift or dump category
C42: Grading | G42: Cover | I42: Growth Media | K42: Revegetation
B43: Description (required) | C43: Regrading Material Condition | D43: Regrading Material Type | E43: Regrading Equipment Fleet | F43: Slot/Side-by-Side | G43: Cover Material Type | H43: Cover Placement Equipment Fleet | I43: Growth Media Material Type | J43: Growth Media Equipment Fleet | K43: Seed Mix Slopes | L43: Seed Mix Flat Areas | M43: Mulch Slopes | N43: Mulch Flat Areas | O43: Fertilizer Slopes | P43: Fertilizer Flat Areas | Q43: Slope Scarify/ Rip? | R43: Flat Area Scarify/ Rip? | S43: Scarify/ Ripping Fleet | BA43: Grading Fleet | BB43: Cover Truck Fleet | BC43: GrowthMed truck fleet | BD43: Grading
C44: (select) | D44: (select) | E44: (select) | F44: (select) | G44: (select) | H44: (select) | I44: (select) | J44: (select) | K44: (select) | L44: (select) | M44: (select) | N44: (select) | O44: (select) | P44: (select) | Q44: (select) | R44: (select) | S44: (select)
A45: =A30 -> 0 | B45: =IF(ISBLANK(B30),"",B30) ->  | BA45: =IF(E45="Medium","Med",E45) -> 0 | BB45: =LEFT(H45,SEARCH(" ",H45)-1) ->  | BC45: =LEFT(J45,SEARCH(" ",J45)-1) ->  | BD45: =LEFT(S45,SEARCH(" ",S45)-1) -> 
B48: Notes:
B49: 1. Material Types are used for density correction based on material densities in Caterpillar Performance Handbook material density table
A51: Waste Rock Dumps - Calculations
B53: Regrading Volume Calculation | I53: Final Slope Area and Footprint Area Calculations
B76: Regrading Push Distance Calculation | I76: Ripping/Scarifying Calculations
B78: dozing distance: | C78: =IF(Metric,"based on 2/3 final cut slope + 2/3 final fill slope (minimum = 15 m)","based on 2/3 final cut slope + 2/3 final fill slope (minimum = 50 ft)") -> based on 2/3 final cut slope + 2/3 final fill slope (minimum = 50 ft) | J78: Minimum 1 hr ripping/scarifying time per dump
I80: Slopes:
J81: Number of passes = Final slope length ÷ Grader width
J82: Travel distance = Number of passes x Mid-bench length
J83: Total hours = (Travel distance ÷ Grader productivity) + (Number of passes x Grader maneuver time)
J84: Minimum 1 hr
I86: Flat Areas:
J87: Flat area width = Final flat area ÷ Average long dimensions
J88: Number of passes = Flat area width ÷ Grader width
J89: Travel distance = Number of passes x Average long dimensions
J90: Total hours = (Travel distance ÷ Grader productivity) + (Number of passes x Grader maneuver time)
I93: Revegetation: | J93: Minimum 1 acre revegetation crew time per area
A102: Waste Rock Dumps - Regrading Costs
A103: =(CONCATENATE("Productivity = Dozer Productivity x Grade Correction x Density Correction x Operator (",Dozer_Operator,") x Material x Visibility x Job Efficiency (",Dozer_Job_Efficiency,") x (Slot/Side-by-Side) x (Altitude Deration)")) -> Productivity = Dozer Productivity x Grade Correction x Density Correction x Operator (0.75) x Material x Visibility x Job Efficiency (0.83) x (Slot/Side-by-Side) x (Altitude Deration)
B104: Description (required) | C104: Regrading Volume | D104: Dozing Distance (see above) | E104: Regrading Fleet | F104: Uncorrected Dozer Productivity | G104: Grade Correction | H104: Dozing Material | I104: Density Correction | J104: Side-by-Side or Slot Dozing | K104: Total Hourly Productivity | L104: Total Dozer Hours | M104: Total Labor Cost | N104: Total Equipment Cost | O104: Total Regrading Cost | BA104: Lift Height | BB104: ungraded slope | BC104: regraded slope | BD104: original slope | BE104: final top slope | BF104: aU | BG104: a1 (pivot) | BH104: a2 | BI104: c1 | BJ104: c2 | BK104: B1 | BL104: B2 | BM104: Fill Area | BN104: Cut Area | BO104: b1 | BP104: half b1 | BQ104: New C1 = | BR104: 2/3 C1 = | BS104: b2 | BT104: half b2 | BU104: New C2 = | BV104: 2/3 C2 = | BW104: Total Push | BX104: Total Slope length | BZ104: Dozing Distance (see above) | CA104: Regrading Volume | CB104: Uncorrected Dozer Productivity | CC104: Grade Correction | CD104: Dozing Material | CE104: Density Correction | CF104: Side-by-Side or Slot Dozing | CG104: Altitude Deration | CH104: Total Hourly Productivity | CI104: Total Dozer Hours | CJ104: Total Labor Cost | CK104: Total Equipment Cost | CL104: Total Regrading Cost
C105: =IF(Metric,"m3","cy") -> cy | D105: =IF(Metric,"m","ft") -> ft | F105: =IF(Metric,"m3/hr","cy/hr") -> cy/hr | K105: =IF(Metric,"m3/hr","cy/hr") -> cy/hr | L105: hr | M105: $ | N105: $ | O105: $ | BA105: ft | BB105: _H:1V | BC105: _H:1V | BD105: % Grade | BE105: % Grade | BF105: ft | BG105: ft | BH105: ft | BI105: ft | BJ105: ft | BK105: deg | BL105: deg | BM105: sq ft | BN105: sq ft | BO105: ft | BP105: ft | BQ105: ft | BR105: ft | BS105: ft | BT105: ft | BU105: ft | BV105: ft | BW105: ft | BX105: ft | BZ105: ft | CA105: cy | CB105: cy/hr | CH105: cy/hr | CI105: hr | CJ105: $ | CK105: $ | CL105: $
A106: =A30 -> 0 | B106: =IF(ISBLANK(B30),"",B30) ->  | C106: =IF(OR(ISBLANK($B30),ISBLANK(E30),ISBLANK(F30),ISBLANK(G30),ISBLANK(H30),ISBLANK(BE30),ISBLANK(BF30)),"",IF(E30>1/G30*100,"Input Error!",IF(Metric,ROUND(CY_2_M3*CA106,0),CA106))) ->  | D106: =IF(OR(C106="",C106=0,,ISBLANK($B30),ISBLANK(E30),ISBLANK(F30),ISBLANK(G30),ISBLANK(H30),ISBLANK(BE30),ISBLANK(BF30)),"",IF(Metric,ROUND(Ft2M*BZ106,0),BZ106)) ->  | E106: =IF(OR(ISBLANK($B30),B106="",B106=0),"",IF(ISBLANK(E45),"Select Fleet",INDIRECT(BA45&"Dozer"))) ->  | F106: =IF(OR(ISBLANK($B30),C106="",C106=0),"",IF(ISBLANK(E45),"Select Fleet",IF(Metric,ROUND(CY_2_M3*CB106,0),CB106))) ->  | G106: =IF(OR(ISBLANK($B30),C106="",C106=0),"",CC106) ->  | H106: =IF(OR(ISBLANK($B30),C106="",C106=0),"",IF(OR(ISBLANK(C45),C45>1.2,C45<0.6),"Dozing Material!",CD106)) ->  | I106: =IF(OR(ISBLANK($B30),C106="",C106=0),"",IF(ISBLANK(D45),"Material Type!",CE106)) ->  | J106: =IF(OR(ISBLANK($B30),C106="",C106=0),"",CF106) ->  | K106: =IF(OR(ISBLANK($B30),C106="",C106=0,NOT(ISNUMBER(J106))),"",IF(ISBLANK(E45),"Select Fleet",IF(ISERR(CH106),"",IF(Metric,ROUND(CY_2_M3*CH106,0),CH106)))) ->  | L106: =IF(OR(ISBLANK($B30),C106="",C106=0,NOT(ISNUMBER(J106))),"",IF(ISBLANK(E45),"Select Fleet",IF(ISERR(CI106),"",CI106))) ->  | M106: =IF(OR(ISBLANK($B30),NOT(ISNUMBER(J106))),0,IF(ISBLANK(E45),"",IF(ISERR(CJ106),0,CJ106))) -> 0 | N106: =IF(OR(ISBLANK($B30),NOT(ISNUMBER(J106))),0,IF(ISBLANK(E45),0,IF(ISERR(CK106),0,CK106))) -> 0 | O106: =IF(OR(ISBLANK($B30),NOT(ISNUMBER(J106))),0,IF(ISBLANK(E45),0,IF(ISERR(CL106),"",CL106))) -> 0 | BA106: =BE30 -> 0 | BB106: =F30 -> 0 | BC106: =G30 -> 0 | BD106: =E30 -> 0 | BE106: =H30 -> 0 | BF106: =UngradedSlopeLen(BA106,BB106) -> 0 | BG106: =IF(AND(BA106=0,BB106=0,BC106=0,BD106=0,BE106=0),"",FindPivot(BA106,BB106,BC106,BD106,BE106)) ->  | BH106: =BF106-BG106 ->  | BI106: =1/(SIN((SlopeDeg(BC106)-SlopeGrade(BD106))*PI()/180)/(BG106*SIN((180-SlopeDeg(BB106)+SlopeGrade(BD106))*PI()/180))) ->  | BJ106: =1/(SIN((SlopeDeg(BC106)-SlopeGrade(BE106))*PI()/180)/(BH106*SIN((180-SlopeDeg(BB106)+SlopeGrade(BE106))*PI()/180))) ->  | BK106: =SlopeDeg(BB106)-SlopeDeg(BC106) -> 0 | BL106: =BK106 -> 0 | BM106: =IF(OR(BB106=BC106,BB106=0,BC106=0),0,IF(ROUND(0.5*BG106*BI106*SIN(BK106*PI()/180),5)<0,0,ROUND(0.5*BG106*BI106*SIN(BK106*PI()/180),0))) -> 0 | BN106: =IF(OR(BB106=BC106,BB106=0,BC106=0),0,IF(ROUND(0.5*BH106*BJ106*SIN(BL106*PI()/180),5)<0,0,ROUND(0.5*BH106*BJ106*SIN(BL106*PI()/180),0))) -> 0 | BO106: =BI106*SIN(BK106*PI()/180)/SIN((180-SlopeDeg(BB106)+SlopeGrade(BD106))*PI()/180) ->  | BP106: =BO106/2 ->  | BQ106: =SQRT((BG106^2)+(BP106^2)-(2*BP106*BG106*COS((180-SlopeDeg(BB106)+SlopeGrade(BD106))*PI()/180))) ->  | BR106: =2*BQ106/3 ->  | BS106: =BJ106*SIN(BL106*PI()/180)/SIN((180-SlopeDeg(BB106)+SlopeGrade(BE106))*PI()/180) ->  | BT106: =BS106/2 ->  | BU106: =SQRT((BH106^2)+(BT106^2)-(2*BT106*BH106*COS((180-SlopeDeg(BB106)+SlopeGrade(BE106))*PI()/180))) ->  | BV106: =2*BU106/3 ->  | BW106: =IF(OR(BB106=BC106,BB106=0,BC106=0),0,BV106+BR106) -> 0 | BX106: =IF(OR(BE30=0,F30=0,G30=0),0,ROUND(BI106+BJ106,0)) -> 0 | BZ106: =IF(ISBLANK(B30),"",IF(ROUND(BW106,0)<50,50,ROUND(BW106,0))) ->  | CA106: =IF(ISBLANK(B30),"",IF(M30="",ROUND((BM106*BF30)/27,0),BI30)) ->  | CB106: =IF(ISBLANK(B30),"",IF(CA106=0,0,IF(E45="large",ROUND(HLOOKUP('Fleets (Crews)'!$A$48,DozerProductionArray,13,FALSE)*BZ106^HLOOKUP('Fleets (Crews)'!$A$48,DozerProductionArray,14,FALSE),0),IF(OR(E45="medium",E45="med"),ROUND(HLOOKUP('Fleets (Crews)'!$A$44,DozerProductionArray,13,FALSE)*BZ106^HLOOKUP('Fleets (Crews)'!$A$44,DozerProductionArray,14,FALSE),0),ROUND(HLOOKUP('Fleets (Crews)'!$A$40,DozerProductionArray,13,FALSE)*BZ106^HLOOKUP('Fleets (Crews)'!$A$40,DozerProductionArray,14,FALSE),0))))) ->  | CC106: =IF(ISBLANK(B30),"",IF(AVERAGE(1/F30*100,1/G30*100)>30,1.6,ROUND((0.0214*AVERAGE(1/F30*100,1/G30*100))+0.9786,1))) ->  | CD106: =IF(OR(ISBLANK(B30),ISBLANK(C45)),"",C45) ->  | CE106: =IF(OR(ISBLANK(B30),ISBLANK(D45)),"",VLOOKUP(D45,DozingDensityCorrectionArray,2)) ->  | CF106: =IF(ISBLANK(B30),"",IF(F45="Yes",Slot_Dozing,1)) ->  | CG106: =IF(ISBLANK(B30),"",IF(CA106=0,0,HLOOKUP(INDIRECT(E45&"Dozer"),DozerSpecifications,8,FALSE))) ->  | CH106: =IF(ISBLANK(B30),"",ROUND(CB106*CC106*CE106*CD106*Dozer_Job_Efficiency*CF106*CG106*Dozer_Operator,0)) ->  | CI106: =IF(ISBLANK(B30),"",IF(CA106=0,0,IF(CA106/CH106<1,1,ROUND(CA106/CH106,HoursRounding)))) ->  | CJ106: =IF(ISBLANK(B30),"",ROUND(CI106*INDIRECT(BA45 & "DozerLaborRate"),0)) ->  | CK106: =IF(ISBLANK(B30),"",ROUND(CI106*INDIRECT(BA45 & "DozerEquipRate"),0)) ->  | CL106: =IF(ISBLANK(B30),"",SUM(CJ106:CK106)) -> 
C108: =IF(SUM(C106:C107)=0,"",SUM(C106:C107)) ->  | L108: =IF(SUM(L106:L107)=0,"",SUM(L106:L107)) ->  | M108: =IF(SUM(M106:M107)=0,0,SUM(M106:M107)) -> 0 | N108: =IF(SUM(N106:N107)=0,0,SUM(N106:N107)) -> 0 | O108: =IF(SUM(O106:O107)=0,0,SUM(O106:O107)) -> 0
A110: Waste Rock Dumps - Cover and Growth Media Costs | BZ110: Cover | DY110: Topsoil
C111: Cover (lower layer) | K111: Growth Media Placement | BA111: Cost Summary by Fleet - Cover Layer 3 | BF111: Cost Summary by Fleet - Growth Media | BO111: Cover and Growth Medial Placement Parameters | CA111: Truck Fleet | CO111: Costs | CT111: Scraper w/ Dozer Fleet | DD111: Costs | DI111: Tandem Scraper Fleet | DS111: Costs | DZ111: Truck Fleet | EN111: Costs | ES111: Scraper w/ Dozer Fleet | FC111: Costs | FH111: Tandem Scraper Fleet | FR111: Costs
B112: Description (required) | C112: Cover Volume | D112: Cover Replacement Fleet | E112: Fleet Productivity | F112: Number of Trucks/ Scrapers | G112: Total Fleet Hours | H112: Cover Labor Cost | I112: Cover Equipment Cost | J112: Total Cover Cost | K112: Growth Media Volume | L112: Growth Media Replacement Fleet | M112: Fleet Productivity | N112: Number of Trucks/ Scrapers | O112: Total Fleet Hours | P112: Total Labor Cost | Q112: Total Equipment Cost | R112: Total Growth Media Cost | BA112: Optimum Cost | BB112: Optimum Fleet | BC112: Truck | BD112: Scraper Dozer | BE112: Tandem Scraper | BF112: Optimum Cost | BG112: Optimum Fleet | BH112: Truck | BI112: Scraper Dozer | BJ112: Tandem Scraper | BK112: Cover Fleet | BL112: Topsoil Fleet | BM112: Cover Productivity For Selected Fleet | BN112: Growth media Productivity for selected fleet | BO112: Final Slope Length | BP112: Final Slope Width | BQ112: Final Lift Height | BR112: Final Slope Area | BS112: Slope Cover 3 Volume | BT112: Slope Topsoil Volume | BU112: Final Slope Footprint | BV112: Final Flat Area | BW112: Flat Area Cover 3 Volume | BX112: Flat Area Topsoil Volume | BZ112: Absolute grade | CA112: downhill empty | CB112: downhill loaded | CC112: uphill empty | CD112: uphill loaded | CE112: Uphill Travel | CF112: Downhill Travel | CG112: Total Travel Time | CH112: Manuver to Load | CI112: Manuver to Dump | CJ112: Loader Load Time | CK112: Total Cycle Time | CL112: Number of Trucks Required | CM112: Truck Production | CN112: Fleet Productivity | CO112: Slope Total Fleet Time | CP112: Top Total Fleet Time | CQ112: Equipment Cost | CR112: Labor Cost | CS112: Total Cost | CT112: downhill empty | CU112: downhill loaded | CV112: uphill empty | CW112: uphill loaded | CX112: Uphill Travel | CY112: Downhill Travel | CZ112: Total Travel Time | DA112: Load/ Manuever/ Dump | DB112: Number Scrapers Required | DC112: Fleet Productivity | DD112: Slope Total Fleet Time | DE112: Top Total Fleet Time | DF112: Equipment Cost | DG112: Labor Cost | DH112: Total Cost | DI112: downhill empty | DJ112: downhill loaded | DK112: uphill empty | DL112: uphill loaded | DM112: Uphill Travel | DN112: Downhill Travel | DO112: Total Travel Time | DP112: Load/ Manuever/ Dump | DQ112: Number Scrapers Required | DR112: Fleet Productivity | DS112: Slope Total Fleet Time | DT112: Top Total Fleet Time | DU112: Equipment Cost | DV112: Labor Cost | DW112: Total Cost | DY112: Absolute grade | DZ112: downhill empty | EA112: downhill loaded | EB112: uphill empty | EC112: uphill loaded | ED112: Uphill Travel | EE112: Downhill Travel | EF112: Total Travel Time | EG112: Manuver to Load | EH112: Manuver to Dump | EI112: Loader Load Time | EJ112: Total Cycle Time | EK112: Number of Trucks Required | EL112: Truck Production | EM112: Fleet Productivity | EN112: Slope Total Fleet Time | EO112: Top Total Fleet Time | EP112: Equipment Cost | EQ112: Labor Cost | ER112: Total Cost | ES112: downhill empty | ET112: downhill loaded | EU112: uphill empty | EV112: uphill loaded | EW112: Uphill Travel | EX112: Downhill Travel | EY112: Total Travel Time | EZ112: Load/ Manuever/ Dump | FA112: Number Scrapers Required | FB112: Fleet Productivity | FC112: Slope Total Fleet Time | FD112: Top Total Fleet Time | FE112: Equipment Cost | FF112: Labor Cost | FG112: Total Cost | FH112: downhill empty | FI112: downhill loaded | FJ112: uphill empty | FK112: uphill loaded | FL112: Uphill Travel | FM112: Downhill Travel | FN112: Total Travel Time | FO112: Load/ Manuever/ Dump | FP112: Number Scrapers Required | FQ112: Fleet Productivity | FR112: Slope Total Fleet Time | FS112: Top Total Fleet Time | FT112: Equipment Cost | FU112: Labor Cost | FV112: Total Cost
C113: =IF(Metric,"m3","cy") -> cy | E113: =IF(Metric,"LCM/hr","LCY/hr") -> LCY/hr | H113: $ | I113: $ | J113: $ | K113: =IF(Metric,"m3","cy") -> cy | M113: =IF(Metric,"BCM/hr","BCY/hr") -> BCY/hr | P113: $ | Q113: $ | R113: $ | BA113: $ | BC113: $ | BD113: $ | BE113: $ | BF113: $ | BH113: $ | BI113: $ | BJ113: $ | BM113: LCY/hr | BN113: BCY/hr | BO113: ft | BP113: ft | BQ113: ft | BR113: acres | BS113: cu yd | BT113: cu yd | BU113: acres | BV113: acres | BW113: cu yd | BX113: cu yd | BZ113: % | CA113: min | CB113: min | CC113: min | CD113: min | CE113: min | CF113: min | CG113: min | CH113: min | CI113: min | CJ113: min | CK113: min | CM113: BCY/hr | CN113: BCY/hr | CO113: hrs | CP113: hrs | CQ113: $ | CR113: $ | CS113: $ | CT113: min | CU113: min | CV113: min | CW113: min | CX113: min | CY113: min | CZ113: min | DA113: min | DC113: BCY/hr | DD113: hrs | DE113: hrs | DF113: $ | DG113: $ | DH113: $ | DI113: min | DJ113: min | DK113: min | DL113: min | DM113: min | DN113: min | DO113: min | DP113: min | DR113: BCY/hr | DS113: hrs | DT113: hrs | DU113: $ | DV113: $ | DW113: $ | DY113: % | DZ113: min | EA113: min | EB113: min | EC113: min | ED113: min | EE113: min | EF113: min | EG113: min | EH113: min | EI113: min | EJ113: min | EL113: BCY/hr | EM113: BCY/hr | EN113: hrs | EO113: hrs | EP113: $ | EQ113: $ | ER113: $ | ES113: min | ET113: min | EU113: min | EV113: min | EW113: min | EX113: min | EY113: min | EZ113: min | FB113: BCY/hr | FC113: hrs | FD113: hrs | FE113: $ | FF113: $ | FG113: $ | FH113: min | FI113: min | FJ113: min | FK113: min | FL113: min | FM113: min | FN113: min | FO113: min | FQ113: BCY/hr | FR113: hrs | FS113: hrs | FT113: $ | FU113: $ | FV113: $
A114: =A30 -> 0 | B114: =IF(ISBLANK(B30),"",B30) ->  | C114: =IF(OR(ISBLANK(B30),AND(ISBLANK(N30),ISBLANK(O30),ISBLANK(P30),ISBLANK(Q30))),"",IF(Metric,ROUND(CY_2_M3*(BS114+BW114),0),BS114+BW114)) ->  | D114: =IF(OR(ISBLANK(B30),C114="",C114=0),"",IF(C114=0,"",IF(ISBLANK(G45),"Cover Material!",IF(OR(H45="optimize",ISBLANK(H45)),"Select Fleet",IF(RIGHT(H45,5)="Truck",INDIRECT(BB45&"Truck")&"/"&INDIRECT(BB45&"Loader")&"/"&INDIRECT(BB45&"TruckDozer"),IF(BB45="Scraper",INDIRECT("Haul"&BB45)&"/"&INDIRECT(BB45&"LoadDozer")&"/"&INDIRECT(BB45&"Dozerdozer"),INDIRECT(BB45&"Scraper")&"/"&INDIRECT(BB45&"ScraperDozer"))))))) ->  | E114: =IF(OR(ISBLANK(B30),C114="",C114=0),"",IF(ISBLANK(B30),"",IF(ISBLANK(G45),"Cover Material!",IF(OR(H45="optimize",ISBLANK(H45)),"Select Fleet",IF(Metric,ROUND(CY_2_M3*BM114,0),BM114))))) ->  | F114: =IF(OR(ISBLANK(B30),C114=""),"",IF(ISBLANK(B30),"",IF(ISBLANK(G45),"Cover Material!",IF(OR(H45="optimize",ISBLANK(H45)),"Select Fleet",IF(RIGHT(BK114,5)="Truck",CL114,IF(BK114="Scraper Dozer",DB114,IF(BK114="Tandem Scraper",DQ114,""))))))) ->  | G114: =IF(OR(ISBLANK(B30),C114=""),"",IF(ISBLANK(B30),"",IF(ISBLANK(G45),"Cover Material!",IF(OR(H45="optimize",ISBLANK(H45)),"Select Fleet",IF(RIGHT(BK114,5)="Truck",CO114+CP114,IF(BK114="Scraper Dozer",DD114+DE114,IF(BK114="Tandem Scraper",DS114+DT114,""))))))) ->  | H114: =IF(OR(ISBLANK(B30),ISBLANK(G45),H45="optimize",ISBLANK(H45)),0,IF(RIGHT(BK114,5)="Truck",CR114,IF(BK114="Scraper Dozer",DG114,IF(BK114="Tandem Scraper",DV114,0)))) -> 0 | I114: =IF(OR(ISBLANK(B30),ISBLANK(G45),H45="optimize",ISBLANK(H45)),0,IF(RIGHT(BK114,5)="Truck",CQ114,IF(BK114="Scraper Dozer",DF114,IF(BK114="Tandem Scraper",DU114,0)))) -> 0 | J114: =IF(OR(ISBLANK(B30),C114=0,ISBLANK(G45),ISBLANK(H45)),0,SUM(H114:I114)) -> 0 | K114: =IF(OR(ISBLANK(B30),AND(ISBLANK(R30),ISBLANK(S30),ISBLANK(T30),ISBLANK(U30))),"",IF(Metric,ROUND(CY_2_M3*(BT114+BX114),0),BT114+BX114)) ->  | L114: =IF(OR(ISBLANK(B30),K114="",K114=0),"",IF(K114=0,"",IF(ISBLANK(I45),"Material Type!",IF(OR(J45="optimize",ISBLANK(J45)),"Select Fleet",IF(RIGHT(J45,5)="Truck",INDIRECT(BC45&"Truck")&"/"&INDIRECT(BC45&"Loader")&"/"&INDIRECT(BC45&"TruckDozer"),IF(BC45="Scraper",INDIRECT("Haul"&BC45)&"/"&INDIRECT(BC45&"LoadDozer")&"/"&INDIRECT(BC45&"Dozerdozer"),INDIRECT(BC45&"Scraper")&"/"&INDIRECT(BC45&"ScraperDozer"))))))) ->  | M114: =IF(OR(K114="",K114=0),"",IF(OR(ISBLANK(B30),AND(ISBLANK(BN30),ISBLANK(BO30))),"",IF(ISBLANK(I45),"Material Type!",IF(OR(J45="optimize",ISBLANK(J45)),"Select Fleet",IF(Metric,ROUND(CY_2_M3*BN114,0),BN114))))) ->  | N114: =IF(OR(K114="",K114=0),"",IF(OR(ISBLANK(B30),AND(ISBLANK(BN30),ISBLANK(BO30))),"",IF(ISBLANK(I45),"Material Type!",IF(OR(J45="optimize",ISBLANK(J45)),"Select Fleet",IF(RIGHT(BL114,5)="Truck",EK114,IF(BL114="Scraper Dozer",FA114,IF(BL114="Tandem Scraper",FP114,""))))))) ->  | O114: =IF(OR(K114="",K114=0),"",IF(OR(ISBLANK(B30),AND(ISBLANK(BN30),ISBLANK(BO30))),"",IF(ISBLANK(I45),"Material Type!",IF(OR(J45="optimize",ISBLANK(J45)),"Select Fleet",IF(RIGHT(BL114,5)="Truck",EN114+EO114,IF(BL114="Scraper Dozer",FC114+FD114,IF(BL114="Tandem Scraper",FR114+FS114,""))))))) ->  | P114: =IF(OR(J45="optimize",ISBLANK(B30)),0,IF(RIGHT(BL114,5)="Truck",EQ114,IF(BL114="Scraper Dozer",FF114,IF(BL114="Tandem Scraper",FU114,0)))) -> 0 | Q114: =IF(OR(J45="optimize",ISBLANK(B30)),0,IF(RIGHT(BL114,5)="Truck",EP114,IF(BL114="Scraper Dozer",FE114,IF(BL114="Tandem Scraper",FT114,0)))) -> 0 | R114: =IF(ISBLANK(B30),0,IF(K114=0,0,IF(AND(P114="",Q114=""),0,SUM(P114:Q114)))) -> 0 | BA114: =IF(ISBLANK($B30),"",IF(C114=0,"",MIN(BC114:BE114))) ->  | BB114: =IF(ISBLANK($B30),"",IF(C114=0,"",INDEX($BC$112:$BE$114,1,MATCH(BA114,BC114:BE114,0)))) ->  | BC114: =IF(ISBLANK(B30),"",CS114) ->  | BD114: =IF(ISBLANK(B30),"",DH114) ->  | BE114: =IF(ISBLANK(B30),"",DW114) ->  | BF114: =IF(ISBLANK(B30),"",IF(K114=0,"",MIN(BH114:BJ114))) ->  | BG114: =IF(ISBLANK(B30),"",IF(K114=0,"",INDEX($BH$112:$BJ$114,1,MATCH(BF114,BH114:BJ114,0)))) ->  | BH114: =IF(ISBLANK(B30),"",ER114) ->  | BI114: =IF(ISBLANK(B30),"",FG114) ->  | BJ114: =IF(ISBLANK(B30),"",FV114) ->  | BK114: =IF(OR(ISBLANK(B30),C114=""),"",IF(C114=0,"",IF(ISBLANK(G45),"Cover Material!",IF(ISBLANK(H45),"Select Fleet",IF(H45="optimize",BB114,H45))))) ->  | BL114: =IF(OR(K114="",K114=0),"",IF(OR(ISBLANK(B30),AND(ISBLANK(BN30),ISBLANK(BO30))),"",IF(ISBLANK(I45),"Material Type!",IF(ISBLANK(J45),"Select Fleet",IF(J45="optimize",BG114,J45))))) ->  | BM114: =IF(RIGHT(BK114,5)="Truck",CN114,IF(BK114="Scraper Dozer",DC114,IF(BK114="Tandem Scraper",DR114,""))) ->  | BN114: =IF(RIGHT(BL114,5)="Truck",EM114,IF(BL114="Scraper Dozer",FB114,IF(BL114="Tandem Scraper",FQ114,""))) ->  | BO114: =BX106 -> 0 | BP114: =ROUND(IF((BO114^2)-(BQ114^2)<0,0,SQRT((BO114^2)-(BQ114^2))),0) -> 0 | BQ114: =BE30 -> 0 | BR114: =ROUND(((BO114)*BF30)/43560,2) -> 0 | BS114: =ROUND((BR114*43560*(1/12)*BJ30)/27,2) -> 0 | BT114: =ROUND((BR114*43560*(1/12)*BN30)/27,0) -> 0 | BU114: =(BP114*BF30)/43560 -> 0 | BV114: =IF(BH30-BU114<0,0,ROUND(BH30-BU114,0)) -> 0 | BW114: =ROUND((BV114*43560*(1/12)*BK30)/27,0) -> 0 | BX114: =ROUND((BV114*43560*(1/12)*BO30)/27,0) -> 0 | BZ114: =ABS(BM30) -> 0 | CA114: =ROUND(BL30/(INDEX(INDIRECT(BB45 & "TruckSpeedTable"),MATCH("Empty",INDIRECT(BB45 & "TruckLoadedWeight"),0),MATCH(IF(BZ114-INDIRECT(BB45 & "TruckRollingResistance")<0,0,BZ114-INDIRECT(BB45 & "TruckRollingResistance")),INDIRECT(BB45 & "TruckDownhillSlopes"),-1))*88),2) ->  | CB114: =ROUND(BL30/(INDEX(INDIRECT(BB45 & "TruckSpeedTable"),MATCH(G45,HaulMaterials,0),MATCH(IF(BZ114-INDIRECT(BB45 & "TruckRollingResistance")<0,0,BZ114-INDIRECT(BB45 & "TruckRollingResistance")),INDIRECT(BB45 & "TruckDownhillSlopes"),-1))*88),2) ->  | CC114: =ROUND((BL30/VLOOKUP(BZ114+INDIRECT(BB45 & "TruckRollingResistance"),INDIRECT(BB45 & "TruckUHEmptyArray"),8,1))^(1/VLOOKUP(BZ114+INDIRECT(BB45 & "TruckRollingResistance"),INDIRECT(BB45 & "TruckUHEmptyArray"),9,1)),2) ->  | CD114: =ROUND((BL30/VLOOKUP(BZ114+INDIRECT(BB45 & "TruckRollingResistance"),INDIRECT(BB45 & "TruckUHLoadedArray"),8,1))^(1/VLOOKUP(BZ114+INDIRECT(BB45 & "TruckRollingResistance"),INDIRECT(BB45 & "TruckUHLoadedArray"),9,1)),2) ->  | CE114: =IF(BM30>=0,CC114,CD114) ->  | CF114: =IF(BM30>=0,CB114,CA114) ->  | CG114: =CE114+CF114 ->  | CH114: =INDIRECT(BB45 & "TruckManuverLoad") ->  | CI114: =INDIRECT(BB45 & "TruckManuverDump") ->  | CJ114: =INDIRECT(BB45&IF(INDIRECT(BB45&"FltLoader")="Shovel","ShovelTimetoFillTruck","LoaderTimetoFillTruck")) ->  | CK114: =CG114+CH114+CI114+CJ114 ->  | CL114: =ROUNDUP((CK114-CJ114)/CJ114,0) ->  | CM114: =ROUND((60/CK114)*INDIRECT(BB45 & "TruckAvgCapacity"),CubesRounding) ->  | CN114: =ROUND(CL114*CM114*HaulOperator*INDIRECT(BB45 & "TruckJobEfficiency")*INDIRECT(BB45 & "TruckAltitudeDeration"),CubesRounding) ->  | CO114: =ROUND(BS114/CN114,HoursRounding) ->  | CP114: =ROUND(BW114/CN114,HoursRounding) ->  | CQ114: =ROUND(IF(CO114+CP114<1,1,CO114+CP114)*((CL114*INDIRECT(BB45 & "TruckEquipRate"))+INDIRECT(BB45 & "LoaderEquipRate")+INDIRECT(BB45 & "TruckDozerEquipRate")),0) ->  | CR114: =ROUND(IF(CO114+CP114<1,1,CO114+CP114)*((CL114*INDIRECT(BB45 & "TruckLaborRate"))+INDIRECT(BB45 & "LoaderLaborRate")+INDIRECT(BB45 & "TruckDozerLaborRate")),0) ->  | CS114: =CQ114+CR114 ->  | CT114: =ROUND(BL30/(INDEX(HaulScraperSpeedTable,MATCH("Empty",HaulScraperLoadedWeight,0),MATCH(IF(BZ114-HaulScraperRollingResistance<0,0,BZ114-HaulScraperRollingResistance),HaulScraperDownhillSlopes,-1))*88),2) -> 0 | CU114: =ROUND(BL30/(INDEX(HaulScraperSpeedTable,MATCH(G45,HaulMaterials,0)+1,MATCH(IF(BZ114-HaulScraperRollingResistance<0,0,BZ114-HaulScraperRollingResistance),HaulScraperDownhillSlopes,-1))*88),2) ->  | CV114: =ROUND((BL30/VLOOKUP(BZ114+HaulScraperRollingResistance,HaulScraperUHEmptyArray,8,1))^(1/VLOOKUP(BZ114+HaulScraperRollingResistance,HaulScraperUHEmptyArray,9,1)),2) -> 0 | CW114: =ROUND((BL30/VLOOKUP(BZ114+HaulScraperRollingResistance,HaulScraperUHLoadedArray,8,1))^(1/VLOOKUP(BZ114+HaulScraperRollingResistance,HaulScraperUHLoadedArray,9,1)),2) -> 0 | CX114: =IF(BM30>=0,CV114,CW114) -> 0 | CY114: =IF(BM30>=0,CU114,CT114) ->  | CZ114: =CX114+CY114 ->  | DA114: =IF(ISBLANK(B30),"",IF($C114=0,0,HaulScraperLoadTime+HaulScraperManuverSpread)) ->  | DB114: =IF(ISBLANK($B30),"",IF($C114=0,0,IF(TRUNC(CZ114/DA114,0)<1,1,ROUND(CZ114/DA114,0)+1))) ->  | DC114: =IF(ISBLANK($B30),"",IF($C114=0,0,ROUND((60/(CZ114+DA114)*HaulScraperAvgCapacity*HaulScraperJobEfficiency*HaulScraperAltitudeDeration*HaulOperator)*DB114,CubesRounding))) ->  | DD114: =ROUND(BS114/DC114,HoursRounding) ->  | DE114: =ROUND(BW114/DC114,HoursRounding) ->  | DF114: =ROUND(IF(DD114+DE114<1,1,DD114+DE114)*((DB114*ScraperEquipRate)+ScraperLoadDozerEquipRate+ScraperDozerEquipRate),0) ->  | DG114: =ROUND(IF(DD114+DE114<1,1,DD114+DE114)*((DB114*ScraperLaborRate)+ScraperLoadDozerLaborRate+ScraperDozerLaborRate),0) ->  | DH114: =DF114+DG114 ->  | DI114: =ROUND(BL30/(INDEX(TandemScraperSpeedTable,MATCH("Empty",TandemScraperLoadedWeight,0),MATCH(IF(BZ114-TandemScraperRollingResistance<0,0,BZ114-TandemScraperRollingResistance),TandemScraperDownhillSlopes,-1))*88),2) -> 0 | DJ114: =ROUND(BL30/(INDEX(TandemScraperSpeedTable,MATCH(G45,HaulMaterials,0)+1,MATCH(IF(BZ114-TandemScraperRollingResistance<0,0,BZ114-TandemScraperRollingResistance),TandemScraperDownhillSlopes,-1))*88),2) ->  | DK114: =ROUND((BL30/VLOOKUP(BZ114+TandemScraperRollingResistance,TandemScraperUHEmptyArray,8,1))^(1/VLOOKUP(BZ114+TandemScraperRollingResistance,TandemScraperUHEmptyArray,9,1)),2) -> 0 | DL114: =ROUND((BL30/VLOOKUP(BZ114+TandemScraperRollingResistance,TandemScraperUHLoadedArray,8,1))^(1/VLOOKUP(BZ114+TandemScraperRollingResistance,TandemScraperUHLoadedArray,9,1)),2) -> 0 | DM114: =IF(BM30>=0,DK114,DL114) -> 0 | DN114: =IF(BM30>=0,DJ114,DI114) ->  | DO114: =DM114+DN114 ->  | DP114: =IF(ISBLANK($B30),"",IF($C114=0,0,TandemScraperLoadTime+TandemScraperManuverSpread)) ->  | DQ114: =IF(TRUNC(DO114/DP114,0)<2,2,TRUNC(DO114/DP114,0)+IF(MOD(TRUNC(DO114/DP114,0),2),1,0)) ->  | DR114: =IF(ISBLANK($B30),"",IF($C114=0,0,ROUND((60/(DO114+DP114)*TandemScraperAvgCapacity*TandemScraperJobEfficiency*TandemScraperAltitudeDeration*HaulOperator)*DQ114,CubesRounding))) ->  | DS114: =ROUND(BS114/DR114,HoursRounding) ->  | DT114: =ROUND(BW114/DR114,HoursRounding) ->  | DU114: =ROUND(IF(DS114+DT114<1,1,DS114+DT114)*((DQ114*TScraperEquipRate)+TScraperDozerEquipRate),0) ->  | DV114: =ROUND(IF(DS114+DT114<1,1,DS114+DT114)*((DQ114*TScraperLaborRate)+TScraperDozerLaborRate),0) ->  | DW114: =DU114+DV114 ->  | DY114: =ABS(BQ30) -> 0 | DZ114: =ROUND(BP30/(INDEX(INDIRECT(BC45 & "TruckSpeedTable"),MATCH("Empty",INDIRECT(BC45 & "TruckLoadedWeight"),0),MATCH(IF(DY114-INDIRECT(BC45 & "TruckRollingResistance")<0,0,DY114-INDIRECT(BC45 & "TruckRollingResistance")),INDIRECT(BC45 & "TruckDownhillSlopes"),-1))*88),2) ->  | EA114: =ROUND(BP30/(INDEX(INDIRECT(BC45 & "TruckSpeedTable"),MATCH(I45,HaulMaterials,0),MATCH(IF(DY114-INDIRECT(BC45 & "TruckRollingResistance")<0,0,DY114-INDIRECT(BC45 & "TruckRollingResistance")),INDIRECT(BC45 & "TruckDownhillSlopes"),-1))*88),2) ->  | EB114: =ROUND((BP30/VLOOKUP(DY114+INDIRECT(BC45 & "TruckRollingResistance"),INDIRECT(BC45 & "TruckUHEmptyArray"),8,1))^(1/VLOOKUP(DY114+INDIRECT(BC45 & "TruckRollingResistance"),INDIRECT(BC45 & "TruckUHEmptyArray"),9,1)),2) ->  | EC114: =ROUND((BP30/VLOOKUP(DY114+INDIRECT(BC45 & "TruckRollingResistance"),INDIRECT(BC45 & "TruckUHLoadedArray"),8,1))^(1/VLOOKUP(DY114+INDIRECT(BC45 & "TruckRollingResistance"),INDIRECT(BC45 & "TruckUHLoadedArray"),9,1)),2) ->  | ED114: =IF(BQ30>=0,EB114,EC114) ->  | EE114: =IF(BQ30>=0,EA114,DZ114) ->  | EF114: =ED114+EE114 ->  | EG114: =INDIRECT(BC45 & "TruckManuverLoad") ->  | EH114: =INDIRECT(BC45 & "TruckManuverDump") ->  | EI114: =INDIRECT(BC45&IF(INDIRECT(BC45&"FltLoader")="Shovel","ShovelTimetoFillTruck","LoaderTimetoFillTruck")) ->  | EJ114: =EF114+EG114+EH114+EI114 ->  | EK114: =ROUNDUP((EJ114-EI114)/EI114,0) ->  | EL114: =ROUND((60/EJ114)*INDIRECT(BC45 & "TruckAvgCapacity"),CubesRounding) ->  | EM114: =ROUND(EK114*EL114*HaulOperator*INDIRECT(BC45 & "TruckJobEfficiency")*INDIRECT(BC45 & "TruckAltitudeDeration"),CubesRounding) ->  | EN114: =ROUND(BT114/EM114,HoursRounding) ->  | EO114: =ROUND(BX114/EM114,HoursRounding) ->  | EP114: =ROUND(IF(EN114+EO114<1,1,EN114+EO114)*((EK114*INDIRECT(BC45 & "TruckEquipRate"))+INDIRECT(BC45 & "LoaderEquipRate")+INDIRECT(BC45 & "TruckDozerEquipRate")),0) ->  | EQ114: =ROUND(IF(EN114+EO114<1,1,EN114+EO114)*((EK114*INDIRECT(BC45 & "TruckLaborRate"))+INDIRECT(BC45 & "LoaderLaborRate")+INDIRECT(BC45 & "TruckDozerLaborRate")),0) ->  | ER114: =IF(K114=0,"",EP114+EQ114) ->  | ES114: =ROUND(BP30/(INDEX(HaulScraperSpeedTable,MATCH("Empty",HaulScraperLoadedWeight,0),MATCH(IF(DY114-HaulScraperRollingResistance<0,0,DY114-HaulScraperRollingResistance),HaulScraperDownhillSlopes,-1))*88),2) -> 0 | ET114: =ROUND(BP30/(INDEX(HaulScraperSpeedTable,MATCH(I45,HaulMaterials,0)+1,MATCH(IF(DY114-HaulScraperRollingResistance<0,0,DY114-HaulScraperRollingResistance),HaulScraperDownhillSlopes,-1))*88),2) ->  | EU114: =ROUND((BP30/VLOOKUP(DY114+HaulScraperRollingResistance,HaulScraperUHEmptyArray,8,1))^(1/VLOOKUP(DY114+HaulScraperRollingResistance,HaulScraperUHEmptyArray,9,1)),2) -> 0 | EV114: =ROUND((BP30/VLOOKUP(DY114+HaulScraperRollingResistance,HaulScraperUHLoadedArray,8,1))^(1/VLOOKUP(DY114+HaulScraperRollingResistance,HaulScraperUHLoadedArray,9,1)),2) -> 0 | EW114: =IF(BQ30>=0,EU114,EV114) -> 0 | EX114: =IF(BQ30>=0,ET114,ES114) ->  | EY114: =EW114+EX114 ->  | EZ114: =IF(ISBLANK(B30),"",IF(K114=0,"",HaulScraperLoadTime+HaulScraperManuverSpread)) ->  | FA114: =IF(ISBLANK(B30),"",IF(K114=0,"",IF(TRUNC(EY114/EZ114,0)<1,1,ROUND(EY114/EZ114,0)+1))) ->  | FB114: =IF(ISBLANK(B30),"",IF(K114=0,"",ROUND((60/(EY114+EZ114)*HaulScraperAvgCapacity*HaulScraperJobEfficiency*HaulScraperAltitudeDeration*HaulOperator)*FA114,CubesRounding))) ->  | FC114: =ROUND(BT114/FB114,HoursRounding) ->  | FD114: =ROUND(BX114/FB114,HoursRounding) ->  | FE114: =ROUND(IF(FC114+FD114<1,1,FC114+FD114)*((FA114*ScraperEquipRate)+ScraperLoadDozerEquipRate+ScraperDozerEquipRate),0) ->  | FF114: =ROUND(IF(FC114+FD114<1,1,FC114+FD114)*((FA114*ScraperLaborRate)+ScraperLoadDozerLaborRate+ScraperDozerLaborRate),0) ->  | FG114: =IF(K114=0,"",FE114+FF114) ->  | FH114: =ROUND(BP30/(INDEX(TandemScraperSpeedTable,MATCH("Empty",TandemScraperLoadedWeight,0),MATCH(IF(DY114-TandemScraperRollingResistance<0,0,DY114-TandemScraperRollingResistance),TandemScraperDownhillSlopes,-1))*88),2) -> 0 | FI114: =ROUND(BP30/(INDEX(TandemScraperSpeedTable,MATCH(I45,HaulMaterials,0)+1,MATCH(IF(DY114-TandemScraperRollingResistance<0,0,DY114-TandemScraperRollingResistance),TandemScraperDownhillSlopes,-1))*88),2) ->  | FJ114: =ROUND((BP30/VLOOKUP(DY114+TandemScraperRollingResistance,TandemScraperUHEmptyArray,8,1))^(1/VLOOKUP(DY114+TandemScraperRollingResistance,TandemScraperUHEmptyArray,9,1)),2) -> 0 | FK114: =ROUND((BP30/VLOOKUP(DY114+TandemScraperRollingResistance,TandemScraperUHLoadedArray,8,1))^(1/VLOOKUP(DY114+TandemScraperRollingResistance,TandemScraperUHLoadedArray,9,1)),2) -> 0 | FL114: =IF(BQ30>=0,FJ114,FK114) -> 0 | FM114: =IF(BP30>=0,FI114,FH114) ->  | FN114: =FL114+FM114 ->  | FO114: =IF(ISBLANK(B30),"",IF(K114=0,"",TandemScraperLoadTime+TandemScraperManuverSpread)) ->  | FP114: =IF(TRUNC(FN114/FO114,0)<2,2,TRUNC(FN114/FO114,0)+IF(MOD(TRUNC(FN114/FO114,0),2),1,0)) ->  | FQ114: =IF(ISBLANK(B30),"",IF(K114=0,"",ROUND((60/(FN114+FO114)*TandemScraperAvgCapacity*TandemScraperJobEfficiency*TandemScraperAltitudeDeration*HaulOperator)*FP114,CubesRounding))) ->  | FR114: =ROUND(BT114/FQ114,HoursRounding) ->  | FS114: =ROUND(BX114/FQ114,HoursRounding) ->  | FT114: =ROUND(IF(FR114+FS114<1,1,FR114+FS114)*((FP114*TScraperEquipRate)+TScraperDozerEquipRate),0) ->  | FU114: =ROUND(IF(FR114+FS114<1,1,FR114+FS114)*((FP114*TScraperLaborRate)+TScraperDozerLaborRate),0) ->  | FV114: =IF(K114=0,"",FT114+FU114) -> 
C116: =IF(SUM(C114:C115)=0,"",SUM(C114:C115)) ->  | G116: =IF(SUM(G114:G115)=0,"",SUM(G114:G115)) ->  | H116: =IF(SUM(H114:H115)=0,0,SUM(H114:H115)) -> 0 | I116: =IF(SUM(I114:I115)=0,0,SUM(I114:I115)) -> 0 | J116: =IF(SUM(J114:J115)=0,0,SUM(J114:J115)) -> 0 | K116: =IF(SUM(K114:K115)=0,"",SUM(K114:K115)) ->  | O116: =IF(SUM(O114:O115)=0,"",SUM(O114:O115)) ->  | P116: =IF(SUM(P114:P115)=0,0,SUM(P114:P115)) -> 0 | Q116: =IF(SUM(Q114:Q115)=0,0,SUM(Q114:Q115)) -> 0 | R116: =IF(SUM(R114:R115)=0,0,SUM(R114:R115)) -> 0
A118: Waste Rock Dumps - Scarifying/Revegetation Costs | BA118: Ripping Parameters | BH118: Grader Fleet | BQ118: Small Dozer | BZ118: Medium | CI118: Large Dozer | CS118: Revegetation
BH119: SLOPE | BK119: FLAT | BQ119: SLOPE | BT119: FLAT | BZ119: SLOPE | CC119: FLAT | CI119: SLOPE | CL119: FLAT | CS119: SLOPE | CZ119: FLAT | DG119: TOTAL
B120: Description (required) | C120: Slope Area | D120: Flat Area | E120: Total Surface Area | F120: Final Slope Length | G120: Flat Area Long Dimension | H120: Ripping/ Scarifying Fleet | I120: Slope Scarifying/ Ripping Hours | J120: Flat Area Scarifying/ Ripping Hours | K120: Scarifying/ Ripping Labor Costs | L120: Scarifying/ Ripping Equipment Cost | M120: Total Scarifying/ Ripping Costs | N120: Revegetation Labor Cost | O120: Revegetation Equipment Cost | P120: Revgetation Material Cost | Q120: Total Revegetation Cost | BA120: Final Slope Area | BB120: Final Flat Area | BC120: Final slope Length | BD120: Average long distance | BE120: Flat Area Width | BH120: Slope Area No. passes | BI120: Total Slope Distance | BJ120: Slope Ripping | BK120: Flat Area No. passes | BL120: Total Distance | BM120: total Flat hours | BN120: Equipment Cost | BO120: Labor Cost | BP120: Total Cost | BQ120: Slope Area No. passes | BR120: Total Slope Distance | BS120: Slope Ripping | BT120: Flat Area No. passes | BU120: Total Distance | BV120: total Flat hours | BW120: Equipment Cost | BX120: Labor Cost | BY120: Total Cost | BZ120: Slope Area No. passes | CA120: Total Slope Distance | CB120: Slope Ripping | CC120: Flat Area No. passes | CD120: Total Distance | CE120: Flat Ripping | CF120: Equipment Cost | CG120: Labor Cost | CH120: Total Cost | CI120: Slope Area No. passes | CJ120: Total Slope Distance | CK120: Slope Ripping | CL120: Flat Area No. passes | CM120: Total Distance | CN120: Flat Ripping | CO120: Equipment Cost | CP120: Labor Cost | CQ120: Total Cost | CS120: Equipment Cost | CT120: Labor Cost | CU120: Seed Mix | CV120: Mulch | CW120: Fertilizer | CX120: Total Materials | CY120: Total | CZ120: Equipment Cost | DA120: Labor Cost | DB120: Seed Mix | DC120: Mulch | DD120: Fertilizer | DE120: Total Materials | DF120: Total | DG120: Equipment | DH120: Labor | DI120: Seed Mix | DJ120: Mulch | DK120: Fertilizer | DL120: Materials | DM120: Total
C121: =IF(Metric,"ha","acres") -> acres | D121: =IF(Metric,"ha","acres") -> acres | E121: =IF(Metric,"ha","acres") -> acres | F121: =IF(Metric,"m","ft") -> ft | G121: =IF(Metric,"m","ft") -> ft | I121: hrs | J121: hrs | K121: $ | L121: $ | M121: $ | N121: $ | O121: $ | P121: $ | Q121: $ | BA121: ac | BB121: ac | BC121: ft | BD121: ft | BE121: ft | BI121: ft | BJ121: hr | BL121: ft | BM121: hr | BN121: $ | BO121: $ | BP121: $ | BR121: ft | BS121: hr | BU121: ft | BV121: hr | BW121: $ | BX121: $ | BY121: $ | CA121: ft | CB121: hr | CD121: ft | CE121: hr | CF121: $ | CG121: $ | CH121: $ | CJ121: ft | CK121: hr | CM121: ft | CN121: hr | CO121: $ | CP121: $ | CQ121: $
A122: =A30 -> 0 | B122: =IF(ISBLANK(B30),"",B30) ->  | C122: =IF(ISBLANK(B30),"",IF(BR114=0,0,IF(Metric,ROUND(Ac2Ha*BA122,2),BA122))) ->  | D122: =IF(ISBLANK(B30),"",IF(BV114=0,"",IF(Metric,ROUND(Ac2Ha*BB122,2),BB122))) ->  | E122: =IF(ISBLANK(B30),"",IF(C122="Slope Input!","",IF(Metric,ROUND(C122+IF(D122="",0,D122),2),C122+IF(D122="",0,D122)))) ->  | F122: =IF(ISBLANK(B30),"",IF(BC122=0,"",IF(E30>1/G30*100,"Input Error!",IF(Metric,ROUND(Ft2M*BC122,0),BC122)))) ->  | G122: =IF(ISBLANK(B30),"",IF(OR(ISBLANK(R45),R45="No"),"",IF(Metric,ROUND(Ft2M*BG30,0),BG30))) ->  | H122: =IF(ISBLANK(B30),"",IF(ISBLANK(S45),"",IF(RIGHT(S45,5)="Dozer",INDIRECT("Rip"&BD45&"Dozer"),RipGrader))) ->  | I122: =IF(OR(ISBLANK(B30),OR(ISBLANK(Q45),Q45="No")),"",IF(ISBLANK(S45),"Select Fleet",IF(S45="Small Dozer",BS122,IF(S45="Med Dozer",CB122,IF(S45="Large Dozer",CK122,IF(ISBLANK(S45),"",BJ122)))))) ->  | J122: =IF(OR(ISBLANK(B30),OR(ISBLANK(R45),R45="No",D122="")),"",IF(ISBLANK(S45),"Select Fleet",IF(S45="Small Dozer",BV122,IF(S45="Med Dozer",CE122,IF(S45="Large Dozer",CN122,IF(ISBLANK(S45),"",BM122)))))) ->  | K122: =IF(OR(ISBLANK(B30),AND(OR(ISBLANK(Q45),Q45="No"),OR(ISBLANK(R45),R45="No"))),0,IF(OR(K30=0,K30=""),"Enter Rip Dist!",IF(S45="Small Dozer",BX122,IF(S45="Med Dozer",CG122,IF(S45="Large Dozer",CP122,IF(ISBLANK(S45),0,BO122)))))) -> 0 | L122: =IF(OR(ISBLANK(B30),AND(OR(ISBLANK(Q45),Q45="No"),OR(ISBLANK(R45),R45="No"))),0,IF(OR(K30=0,K30=""),"Enter Rip Dist!",IF(OR(ISNUMBER(I122),ISNUMBER(J122)),IF(S45="Small Dozer",BW122,IF(S45="Med Dozer",CF122,IF(S45="Large Dozer",CO122,IF(ISBLANK(S45),"",BN122)))),0))) -> 0 | M122: =IF(ISBLANK(B30),0,IF(OR(ISNUMBER(L122),ISNUMBER(K122)),L122+K122,0)) -> 0 | N122: =IF(AND(OR(K45="None",ISBLANK(K45)),OR(L45="None",ISBLANK(L45))),0,DH122) -> 0 | O122: =IF(AND(OR(K45="None",ISBLANK(K45)),OR(L45="None",ISBLANK(L45))),0,DG122) -> 0 | P122: =IF(OR(ISBLANK(B30),DL122=0),0,DL122) -> 0 | Q122: =IF(AND(N122="",O122="",P122=""),"",SUM(N122:P122)) -> 0 | R122: =IF(F122="Input Error!"," <<< Regraded slope angle for this facility is flatter than the original topography.","") ->  | BA122: =IF(BR114<0.1,0.1,ROUND(BR114,2)) -> 0.1 | BB122: =IF(BV114<0.1,0.1,BV114) -> 0.1 | BC122: =BO114 -> 0 | BD122: =BG30 -> 0 | BE122: =ROUND(BB122*43560/BD122,0) ->  | BH122: =ROUND(BC122/INDEX(GraderSpecifications,4,MATCH(RipGrader,Graders,0)),0) -> 0 | BI122: =BH122*BF30 -> 0 | BJ122: =IF(ISBLANK(B30),"",IF(OR(Q45="",Q45="No"),0,ROUND((BI122/INDEX(GraderSpecifications,15,MATCH(RipGrader,Graders,0)))+(BH122*INDEX(GraderSpecifications,16,MATCH(RipGrader,Graders,0))/MinPerHr),HoursRounding))) ->  | BK122: =ROUND(BE122/INDEX(GraderSpecifications,4,MATCH(RipGrader,Graders,0)),0) ->  | BL122: =BK122*BD122 ->  | BM122: =IF(ISBLANK(B30),"",IF(OR(R45="",R45="No"),0,ROUND((BL122/INDEX(GraderSpecifications,15,MATCH(RipGrader,Graders,0)))+(BK122*INDEX(GraderSpecifications,16,MATCH(RipGrader,Graders,0))/MinPerHr),HoursRounding))) ->  | BN122: =IF(ISBLANK(B30),"",ROUND(IF((BJ122+BM122)<1,1,(BJ122+BM122))*GraderRipEquipRate,0)) ->  | BO122: =IF(ISBLANK(B30),"",ROUND(IF((BJ122+BM122)<1,1,(BJ122+BM122))*GraderRipLaborRate,0)) ->  | BP122: =IF(ISBLANK(B30),"",BN122+BO122) ->  | BQ122: =ROUND(BC122/INDEX(DozerSpecifications,5,MATCH(RipSmallDozer,Dozers,0)),0) -> 0 | BR122: =BQ122*BF30 -> 0 | BS122: =IF(OR(Q45="",Q45="No"),0,ROUND((BR122/INDEX(DozerSpecifications,9,MATCH(RipSmallDozer,Dozers,0)))+(BQ122*INDEX(DozerSpecifications,7,MATCH(RipSmallDozer,Dozers,0))/MinPerHr),HoursRounding)) -> 0 | BT122: =ROUND(BE122/INDEX(DozerSpecifications,5,MATCH(RipSmallDozer,Dozers,0)),0) ->  | BU122: =BT122*BD122 ->  | BV122: =IF(OR(R45="",R45="No"),0,ROUND((BU122/INDEX(DozerSpecifications,9,MATCH(RipSmallDozer,Dozers,0)))+(BT122*INDEX(DozerSpecifications,7,MATCH(RipSmallDozer,Dozers,0))/MinPerHr),HoursRounding)) -> 0 | BW122: =IF(ISBLANK(B30),"",ROUND(IF((BS122+BV122)<1,1,(BS122+BV122))*SmallDozerRipEquipRate,0)) ->  | BX122: =IF(ISBLANK(B30),"",ROUND(IF((BS122+BV122)<1,1,(BS122+BV122))*SmallDozerRipLaborRate,0)) ->  | BY122: =BW122+BX122 ->  | BZ122: =ROUND(BC122/INDEX(DozerSpecifications,5,MATCH(RipMedDozer,Dozers,0)),0) -> 0 | CA122: =BZ122*BF30 -> 0 | CB122: =IF(OR(Q45="",Q45="No"),0,ROUND((CA122/INDEX(DozerSpecifications,9,MATCH(RipMedDozer,Dozers,0)))+(BZ122*INDEX(DozerSpecifications,7,MATCH(RipMedDozer,Dozers,0))/MinPerHr),HoursRounding)) -> 0 | CC122: =ROUND(BE122/INDEX(DozerSpecifications,5,MATCH(RipMedDozer,Dozers,0)),0) ->  | CD122: =CC122*BD122 ->  | CE122: =IF(OR(R45="",R45="No"),0,ROUND((CD122/INDEX(DozerSpecifications,9,MATCH(RipMedDozer,Dozers,0)))+(CC122*INDEX(DozerSpecifications,7,MATCH(RipMedDozer,Dozers,0))/MinPerHr),HoursRounding)) -> 0 | CF122: =IF(ISBLANK(B30),"",ROUND(IF((CB122+CE122)<1,1,(CB122+CE122))*MedDozerRipEquipRate,0)) ->  | CG122: =IF(ISBLANK(B30),"",ROUND(IF((CB122+CE122)<1,1,(CB122+CE122))*MedDozerRipLaborRate,0)) ->  | CH122: =CF122+CG122 ->  | CI122: =ROUND(BC122/INDEX(DozerSpecifications,5,MATCH(RipLargeDozer,Dozers,0)),0) -> 0 | CJ122: =CI122*BF30 -> 0 | CK122: =IF(OR(Q45="",Q45="No"),0,ROUND((CJ122/INDEX(DozerSpecifications,9,MATCH(RipLargeDozer,Dozers,0)))+(CI122*INDEX(DozerSpecifications,7,MATCH(RipLargeDozer,Dozers,0))/MinPerHr),HoursRounding)) -> 0 | CL122: =ROUND(BE122/INDEX(DozerSpecifications,5,MATCH(RipLargeDozer,Dozers,0)),0) ->  | CM122: =CL122*BD122 ->  | CN122: =IF(OR(R45="",R45="No"),0,ROUND((CM122/INDEX(DozerSpecifications,9,MATCH(RipLargeDozer,Dozers,0)))+(CL122*INDEX(DozerSpecifications,7,MATCH(RipLargeDozer,Dozers,0))/MinPerHr),HoursRounding)) -> 0 | CO122: =IF(ISBLANK(B30),"",ROUND(IF((CK122+CN122)<1,1,(CK122+CN122))*LargeDozerRipEquipRate,0)) ->  | CP122: =IF(ISBLANK(B30),"",ROUND(IF((CK122+CN122)<1,1,(CK122+CN122))*LargeDozerRipLaborRate,0)) ->  | CQ122: =CO122+CP122 ->  | CS122: =IF(OR(K45="None",C122=0,ISBLANK(K45)),0,ROUND(SeedEquipDumpsSlope*BA122,0)) -> 0 | CT122: =IF(OR(K45="None",C122=0,ISBLANK(K45)),0,ROUND(SeedLaborDumpsSlope*BA122,0)) -> 0 | CU122: =IF(OR(K45="None",C122=0,ISBLANK(K45)),0,ROUND(INDEX(SeedMixArray,MATCH(K45,SeedMixes,0),4)*C122,0)) -> 0 | CV122: =IF(OR(M45="None",C122=0,ISBLANK(M45)),0,ROUND(INDEX(MulchArray,MATCH(M45,Mulches,0),4)*C122,0)) -> 0 | CW122: =IF(OR(O45="None",C122=0,ISBLANK(O45)),0,ROUND(INDEX(FertilizerArray,MATCH(O45,Fertilizers,0),4)*C122,0)) -> 0 | CX122: =SUM(CU122:CW122) -> 0 | CY122: =IF(OR(K45="None",ISBLANK(K45)),0,ROUND(CS122+CT122+CX122,0)) -> 0 | CZ122: =IF(OR(L45="None",D122="",ISBLANK(L45)),0,ROUND(SeedEquipDumpsFlat*BB122,0)) -> 0 | DA122: =IF(OR(L45="None",D122="",ISBLANK(L45)),0,ROUND(SeedLaborDumpsFlat*BB122,0)) -> 0 | DB122: =IF(OR(L45="None",D122="",ISBLANK(L45)),0,ROUND(INDEX(SeedMixArray,MATCH(L45,SeedMixes,0),4)*D122,0)) -> 0 | DC122: =IF(OR(N45="None",D122="",ISBLANK(N45)),0,ROUND(INDEX(MulchArray,MATCH(N45,Mulches,0),4)*D122,0)) -> 0 | DD122: =IF(OR(P45="None",D122="",ISBLANK(P45)),0,ROUND(INDEX(FertilizerArray,MATCH(P45,Fertilizers,0),4)*D122,0)) -> 0 | DE122: =SUM(DB122:DD122) -> 0 | DF122: =IF(OR(L45="None",ISBLANK(L45)),0,ROUND(CZ122+DA122+DE122,0)) -> 0 | DG122: =IF(AND(CS122+CZ122>0,CS122+CZ122<SeedingEquipmentCost),SeedingEquipmentCost,CS122+CZ122) -> 0 | DH122: =IF(AND(CT122+DA122>0,CT122+DA122<SeedingLaborCost),SeedingLaborCost,CT122+DA122) -> 0 | DI122: =CU122+DB122 -> 0 | DJ122: 0 | DK122: 0 | DL122: 0 | DM122: 0
C124: =IF(SUM(C122:C123)=0,"",SUM(C122:C123)) ->  | D124: =IF(SUM(D122:D123)=0,"",SUM(D122:D123)) ->  | E124: =IF(SUM(E122:E123)=0,"",SUM(E122:E123)) ->  | I124: =IF(SUM(I122:I123)=0,"",SUM(I122:I123)) ->  | J124: =IF(SUM(J122:J123)=0,"",SUM(J122:J123)) ->  | K124: =IF(SUM(K122:K123)=0,"",SUM(K122:K123)) ->  | L124: =IF(SUM(L122:L123)=0,0,SUM(L122:L123)) -> 0 | M124: 0 | N124: 0 | O124: 0 | P124: 0 | Q124: 0
B126: Notes: | C126: 1) Minimum total ripping hours = 1 (i.e. If total ripping hrs (slope + flat) < 1, then one hour of fleet time is assumed, regardless of acres shown in in scarifying table.)
C127: 2) Assumes 50min/hr equipment availability

Sheet Heap Leach
A1: =CONCATENATE('Property Information'!$B$26, 'Property Information'!$C$26,IF('Property Information'!$BC$18=TRUE,"- Notice or Exploration",IF('Property Information'!$BD$18=TRUE," - Plan of Operations"," - Reclamation Plan"))) -> Project Name: - Reclamation Plan
A2: =CONCATENATE('Property Information'!B28,SubmittalDate) -> Date of Submittal:
A3: =CONCATENATE('Property Information'!B12,FileName) -> File Name: SRCE_Version_1_4_1_017c_NV_2026_rev1.xlsm
A4: =CONCATENATE("Model Version: ",'Property Information'!B7) -> Model Version: Version 1.4.1
A5: =CONCATENATE("Cost Data: ",DataCostBasis) -> Cost Data: User Data
A6: =CONCATENATE("Cost Data File: ",DataFileName) -> Cost Data File: SRCE_Cost_Data_File_1_12_Std_2026_rev1.xlsm
A7: =CONCATENATE("Cost Estimate Type: ",CostEstimateType," Cost Basis: ",CostBasisCategory) -> Cost Estimate Type: Surety Cost Basis: Northern Nevada
A9: Heap Leach Pads - Cost Summary | H9: =IF(OR(ISBLANK(ProjectRegion),ProjectRegion=""),"Go to Property Information Sheet and Enter Project Region",IF(OR(EquipmentZoneRate="Invalid Zone",TruckDriverZone="Invalid ZoneRate",LaborZoneRate="Invalid Zone",EquipmentZone="",TruckDriverZone="",LaborerZone=""),"Go To Labor Rates sheet and select Zone for Each Labor Classification","")) -> 
C10: Labor | D10: Equipment | E10: Materials | F10: Totals
B11: Drain Installation | C11: =IF(H140="",0,H140)+IF(L140="",0,L140) -> 0 | D11: =IF(I140="",0,I140)+IF(M140="",0,M140) -> 0 | E11: =N140 -> 0 | F11: =SUM(C11:E11) -> 0
B12: Grading Costs | C12: =M148 -> 0 | D12: =N148 -> 0 | E12: N/A | F12: =SUM(C12:E12) -> 0
B13: Cover Placement Cost | C13: =H156 -> 0 | D13: =I156 -> 0 | E13: N/A | F13: =SUM(C13:E13) -> 0
B14: Topsoil Placement Cost | C14: =P156 -> 0 | D14: =Q156 -> 0 | E14: N/A | F14: =SUM(C14:E14) -> 0
B15: Ripping/Scarifying Cost | C15: =K164 -> 0 | D15: =L164 -> 0 | E15: N/A | F15: =SUM(C15:E15) -> 0
B16: Subtotal Earthworks | C16: =SUM(C11:C15) -> 0 | D16: =SUM(D11:D15) -> 0 | E16: =SUM(E11:E15) -> 0 | F16: =SUM(F11:F15) -> 0
B17: Revegetation Cost | C17: =N164 -> 0 | D17: =O164 -> 0 | E17: =P164 -> 0 | F17: =SUM(C17:E17) -> 0
B18: TOTALS | C18: =SUM(C16:C17) -> 0 | D18: =SUM(D16:D17) -> 0 | E18: =SUM(E16:E17) -> 0 | F18: =SUM(F16:F17) -> 0
A21: Color Code Key
B22: User Input - Direct Input | C22: Direct Input
B23: User Input - Pull Down List | C23: Pull Down Selection
B24: Program Constant (can override) | C24: Alternate Input
B25: Program Calculated Value | C25: Locked Cell - Formula or Reference
BA27: User Input Converted to English Units
A28: Heap Leach Pads - User Input | G28: You must fill in ALL green cells and relevant blue cells in this section for each heap, lift or heap category
A29: Facility Description | E29: Physical (1) - MANDATORY | N29: Cover | R29: Growth Media | BJ29: Cover 3 (upper layer) | BN29: Growth Media
B30: Description (required) | C30: ID Code | D30: Type | E30: Underlying Ground Slope | F30: Ungraded Slope | G30: Final Slope | H30: Final Top Slope | I30: Lift (heap) Height | J30: Mid-Bench Length | K30: Average Flat Area Long Dimension (ripping distance) | L30: Final (Regraded) Heap Footprint | M30: Regrade Volume (if calculated elsewhere) | N30: Cover Thickness Slopes | O30: Cover Thickness Flat Areas | P30: Distance from Cover Borrow | Q30: Slope from Heap to Cover Borrow | R30: Slope Growth Media Thickness | S30: Flat Area Growth Media Thickness | T30: Distance from Growth Material Stockpile | U30: Slope from Heap to Stockpile | BC30: Description (required) | BE30: Lift (heap) Height | BF30: Mid-Bench Length | BG30: Average Flat Area Long Dimension (ripping distance) | BH30: Final (Regraded) Heap Footprint | BI30: Regrade Volume (if calculated elsewhere) | BJ30: Cover Thickness Slopes | BK30: Cover Thickness Flat Areas | BL30: Distance from Cover Borrow | BM30: Slope from Heap to Cover Borrow | BN30: Slope Growth Media Thickness | BO30: Flat Area Growth Media Thickness | BP30: Distance from Growth Material Stockpile | BQ30: Slope from Heap to Stockpile
